Workbook

Sheet Instructions
A1: Affordability Ratio Calculator (ARC)
A2: Version Release Date: 2/10/2023 (draft tool)
A3: Base Analysis Year: 2021
A4: Introduction This tool allows users to calculate values of the affordability ratio (AR) metric for representative households at the 20th and 50th percentiles of the income distribution,1 referred to as AR20 and AR50, respectively. The tool outputs results at several different levels of geographic specficity, depending on the specific type of AR metric that is of interest. AR can be calculated for a specific industry (electricity, gas, water, or communications), in which case only the essential utility bills associated with that industry are measured as a percentage of the representative households' income net of housing costs and other essential utility bills, or it can be measured for the entire bundle of essential utility bills, in which case the sum of the essential utility bills is expressed as a percentage of households' income net of housing costs. For more information on the methodology and data sources used to calculate this metric, please refer to the Affordability Metrics Framework Revised Staff Proposal.2 This tool identifies the essential service providers associated with each census tract in the state of California, as well as the PUMA that the census tract is associated with. Based on the essential usage bills (pre-populated for a base scenario and several other scenarios, but can be overwritten by the user), as well as the income and housing costs for the representative household based on the PUMA that the census tract belongs to, AR values are calculated for each census tract. For census tracts where multiple service providers are present, the tool calculates AR values for each combination of possible providers. These census tract-level results are then aggregated up to larger geographic areas and weighted average results are computed. 1 The AR metric is calculated for a representative household at a given point in the income distribution for a geographic area known as a Public Use Microdata Area (PUMA). This distribution of incomes is particular to each PUMA and is measured in the Census Bureau’s American Community Survey (ACS). PUMAs are “non-overlapping, statistical geographic areas that partition each state or equivalent entity into geographic areas containing no fewer than 100,000 people each.” There are currently 265 PUMAs in the state of California. By looking at a common income percentile across the different PUMAs in California, the AR metric characterizes the relative wealth of each PUMA to the others. More information on PUMAs can be found on the Census Bureau’s website:
A30: https://www.census.gov/programs-surveys/geography/guidance/geo-areas/pumas.html
A31: 2 https://docs.cpuc.ca.gov/PublishedDocs/Efile/G000/M325/K620/325620620.PDF
A33: Important Note: Do not add, delete, or move any rows or columns in this tool. This will break the macros.
A35: Recommendation for Optimizing Tool Performance This tool contains quite a bit of data and performs a large number of calculations. As such, it can sometimes take a few minutes to perform a task. Please be patient, particularly when running multi-year analyses. To minimize the number of times the tool needs to recalculate all of the formulas, it is highly recommended that users change the calculation settings in Microsoft Excel to "Manual". To do this, click on the "Formulas" menu and select the "Calculation Options" dropdown menu near the right hand side of the menu. If it is not already selected, change this setting to "Manual". Selecting this option means that cell formulas will not automatically re-calculate (for instance, if the essential usage bill is calculated based on an inflation formula and a prior year's value, changing the prior year's value will not automatically update the calculated value). However, the tool will recalculate all cells in the tool when either the single or multi-year analysis is run.
A50: Essential Usage Bill Input The main user-defined input to the ARC is the monthly amount households need to pay for an essential level of usage of electricity, natural gas, water, and communication services. Inputs can be specified for each year in the analysis period (base analysis year plus seven forecast years). The tool comes pre-populated with historical values for the base analysis year, and applies forecasted values of the US average of CPI-U to estimate essential usage bills during the forecast period. Users may overwrite the pre-populated values for any essential service provider for whatever portion of the analysis period that is desired.
A61: Essential Usage Bill Input Geographic Scale by Industry:
A62: Industry | B62: Geographic Scale of Input
A63: Electricity | B63: Utility/Climate Zone
A64: Gas | B64: Utility/Climate Zone
A65: Water | B65: Water System/Ratemaking Area
A66: Communications | B66: Area defined by combination of ILEC Voice and Lowest Cost Broadband
A68: Essential Usage Bill Input Instructions To overwrite the pre-populated essential usage bills, enter the values in the orange colored input tabs: "Electric Input", "Gas Input", "Water Input", and "Comm Input." For the "Electric Input" tab, users will need to specify the essential usage bills for basic service (columns D through K) and all-electric service (columns L through S) separately if any portion of the customers for that climate zone are on an all-electric rate (all-electric rate participation can be specified in column C). The tool will automatically turn the essential usage bill input cells blue if a formula is present, allowing for easy identification of cells that contain hard coded values (unshaded cells) as opposed to cells that contain an inflation calculation using a previous year's input as the basis (blue shaded cells). The tool comes pre-populated with 2021 values hard coded based on historical values, while forecast years use an inflation calculation. Tip: Do not override any cells shaded in gray. Please refer to Input Tabs Cell Color Legend below.
A84: Essential Usage Bill Input Tabs Cell Color Legend
B85: User Input (currently hard coded value, can be overwritten)
B86: User Input (currently calculated value, can be overwritten)
B87: Calculated or Static Cell (do not alter)
A89: Scenario Input This tool allows users to save and load scenarios once essential usage bills have been input. After inputting the desired essential usage bills in the industry-specific input tabs, select the "Scenario Input" tab and enter the desired name for the new scenario in cell C5. Then click on the "Save New Scenario" macro button. The essential usage bills associated with this scenario will be saved to a hidden tab and the name of the new scenario will be added to the list of scenarios saved in this workbook.
A103: The list of saved scenarios can be seen by selecting the dropdown menu in cell C6 of the same tab. The pre-populated values associated with the historical 2021 essential usage bills are saved to the tool as the scenario "2021 Base." Once additional scenarios are saved, they will be added to this dropdown list. Please note that users will still need to save the spreadsheet before closing the file in order to maintain the changes. Scenarios that have been saved previously can be loaded by selecting them from the dropdown menu in cell C6 and clicking on the "Load Selected Scenario" macro button. Doing this will overwrite any essential usage bills currently entered in the industry-specific input tabs.
A117: Scenario Calculation Once the user has finished entering the essential usage bill inputs (and saving the scenario, if so desired), the AR results can be calculated in two different ways: single year or multi-year analysis.
A121: Single Year Analysis To perform a single year analysis, select the year of interest in cell B2 of the "Scenario Input" tab and click on the "Calculate AR for Selected Year" macro button. The calculation may take a few minutes. Single year analysis will output the AR results in the output tabs (blue colored tabs) in the blue shaded cells on the left side. These results will reflect only the selected analysis year (which is displayed at the top of the output tabs for convenience).
A133: Multi-Year Analysis Multi-year analysis is performed by clicking on the "Calculate AR Results for All Years" macro button at the top of the "Scenario Input" tab. This macro runs the AR analysis for each year in the analysis period starting with the base year followed by each subsequent year. After the calculations are complete for each year, the AR values are copied over to the orange shaded cells on the right side of the blue output tabs and the next year's calculations begin. Because the tool is doing eight sets of AR calculations, it can take quite a bit of time to run. Please be patient. When the calculations are complete, the full set of results will be in the orange cells on the right side of each output tab.
A147: Please note that the multi-year analysis outputs (orange shaded cells in the outputs tabs) are only updated when the multi-year analysis is run. If a single year analysis is performed, those results will only be in the blue shaded cells on the left side of the output tabs, while the orange shaded cells will reflect the most recent multi-year analysis that was run. Tip: Please refer to Output Tabs Cell Color Legend below.
A154: Output Tabs Cell Color Legend
B155: AR results for single year analysis (based on analysis year selected in "Scenario Input")
B156: AR results for multi-year analysis
A158: Geographic Scale of Outputs The tool outputs the AR results in the blue output tabs at several different geographic scales depending on the given industry. For each industry, the more granular set of results also includes the estimated number of residential households that are located in each reporting area. These estimates are based on GIS analysis of Census data. They are intended to help the user understand how many customers would be affected by a change in affordability when evaluating results at this more granular level.
A165: Industry | B165: Geographic Scale of Output
A166: Electricity | B166: • Climate Zones broken down by PUMA (Electric PUMA-CZ Results) • Climate Zone (Electric CZ Results)
A167: Gas | B167: • Climate Zones broken down by PUMA (Gas PUMA-CZ Results) • Climate Zone (Gas CZ Results)
A168: Water | B168: • Water System/Ratemaking Area (Water Results)
A169: Communications | B169: • Area defined by combination of ILEC Voice and Lowest Broadband broken down by PUMA (Comm PUMA-Provider Results) • PUMA (Comm PUMA Results)
A170: Bundled (All Services Combined) | B170: • PUMA (PUMA Bundled AR Results)

Sheet Scenario Input
A1: Analysis Year | B1: 2028
A4: Scenario Selector
B5: Name for New Scenario:
B6: Load Existing Scenario: | C6: 2021 Base
A8: Escalators applied to base year inputs (base year = 2021) | Z8: Percentage point changes versus prior year
C9: 2022 | F9: 2023 | I9: 2024 | L9: 2025 | O9: 2026 | R9: 2027 | U9: 2028 | AA9: 2022 | AD9: 2023 | AG9: 2024 | AJ9: 2025 | AM9: 2026 | AP9: 2027 | AS9: 2028
A10: County ID | B10: MSA | C10: CPI-U | D10: CPI-W | E10: Shelter Escalator | F10: CPI-U | G10: CPI-W | H10: Shelter Escalator | I10: CPI-U | J10: CPI-W | K10: Shelter Escalator | L10: CPI-U | M10: CPI-W | N10: Shelter Escalator | O10: CPI-U | P10: CPI-W | Q10: Shelter Escalator | R10: CPI-U | S10: CPI-W | T10: Shelter Escalator | U10: CPI-U | V10: CPI-W | W10: Shelter Escalator | Z10: MSA | AA10: CPI-U | AB10: CPI-W | AC10: Shelter Escalator | AD10: CPI-U | AE10: CPI-W | AF10: Shelter Escalator | AG10: CPI-U | AH10: CPI-W | AI10: Shelter Escalator | AJ10: CPI-U | AK10: CPI-W | AL10: Shelter Escalator | AM10: CPI-U | AN10: CPI-W | AO10: Shelter Escalator | AP10: CPI-U | AQ10: CPI-W | AR10: Shelter Escalator | AS10: CPI-U | AT10: CPI-W | AU10: Shelter Escalator
A11: 037 | B11: LA | C11: =1+VLOOKUP($B11,$Z$11:$AU$15,2,FALSE)/100 -> 1.078184521 | D11: =1+VLOOKUP($B11,$Z$11:$AU$15,3,FALSE)/100 -> 1.077447433 | E11: =1+VLOOKUP($B11,$Z$11:$AU$15,4,FALSE)/100 -> 1.048047768 | F11: =C11*(1+VLOOKUP($B11,$Z$11:$AU$15,5,FALSE)/100) -> 1.134564206 | G11: =D11*(1+VLOOKUP($B11,$Z$11:$AU$15,6,FALSE)/100) -> 1.125817555 | H11: =E11*(1+VLOOKUP($B11,$Z$11:$AU$15,7,FALSE)/100) -> 1.107804655 | I11: =F11*(1+VLOOKUP($B11,$Z$11:$AU$15,8,FALSE)/100) -> 1.174852597 | J11: =G11*(1+VLOOKUP($B11,$Z$11:$AU$15,9,FALSE)/100) -> 1.166820226 | K11: =H11*(1+VLOOKUP($B11,$Z$11:$AU$15,10,FALSE)/100) -> 1.157811822 | L11: =I11*(1+VLOOKUP($B11,$Z$11:$AU$15,11,FALSE)/100) -> 1.212527135 | M11: =J11*(1+VLOOKUP($B11,$Z$11:$AU$15,12,FALSE)/100) -> 1.204904363 | N11: =K11*(1+VLOOKUP($B11,$Z$11:$AU$15,13,FALSE)/100) -> 1.206752933 | O11: =L11*(1+VLOOKUP($B11,$Z$11:$AU$15,14,FALSE)/100) -> 1.250167946 | P11: =M11*(1+VLOOKUP($B11,$Z$11:$AU$15,15,FALSE)/100) -> 1.242857599 | Q11: =N11*(1+VLOOKUP($B11,$Z$11:$AU$15,16,FALSE)/100) -> 1.256738341 | R11: =O11*(1+VLOOKUP($B11,$Z$11:$AU$15,17,FALSE)/100) -> 1.307449787 | S11: =P11*(1+VLOOKUP($B11,$Z$11:$AU$15,18,FALSE)/100) -> 1.298264005 | T11: =Q11*(1+VLOOKUP($B11,$Z$11:$AU$15,19,FALSE)/100) -> 1.315527967 | U11: =R11*(1+VLOOKUP($B11,$Z$11:$AU$15,20,FALSE)/100) -> 1.367356242 | V11: =S11*(1+VLOOKUP($B11,$Z$11:$AU$15,21,FALSE)/100) -> 1.356140419 | W11: =T11*(1+VLOOKUP($B11,$Z$11:$AU$15,22,FALSE)/100) -> 1.377067744 | Z11: LA | AA11: 7.818452109 | AB11: 7.744743337 | AC11: 4.804776808 | AD11: 5.229131327 | AE11: 4.489325476 | AF11: 5.701733126 | AG11: 3.551001438 | AH11: 3.642035135 | AI11: 4.514078106 | AJ11: 3.206745932 | AK11: 3.263924986 | AL11: 4.227035014 | AM11: 3.104327335 | AN11: 3.149896117 | AO11: 4.142140944 | AP11: =AVERAGE(AA11,AD11,AG11,AJ11,AM11) -> 4.581931628 | AQ11: =AVERAGE(AB11,AE11,AH11,AK11,AN11) -> 4.45798501 | AR11: 4.6779528 | AS11: =AP11 -> 4.581931628 | AT11: =AQ11 -> 4.45798501 | AU11: 4.6779528
A12: 059 | B12: LA | C12: =1+VLOOKUP($B12,$Z$11:$AU$15,2,FALSE)/100 -> 1.078184521 | D12: =1+VLOOKUP($B12,$Z$11:$AU$15,3,FALSE)/100 -> 1.077447433 | E12: =1+VLOOKUP($B12,$Z$11:$AU$15,4,FALSE)/100 -> 1.048047768 | F12: =C12*(1+VLOOKUP($B12,$Z$11:$AU$15,5,FALSE)/100) -> 1.134564206 | G12: =D12*(1+VLOOKUP($B12,$Z$11:$AU$15,6,FALSE)/100) -> 1.125817555 | H12: =E12*(1+VLOOKUP($B12,$Z$11:$AU$15,7,FALSE)/100) -> 1.107804655 | I12: =F12*(1+VLOOKUP($B12,$Z$11:$AU$15,8,FALSE)/100) -> 1.174852597 | J12: =G12*(1+VLOOKUP($B12,$Z$11:$AU$15,9,FALSE)/100) -> 1.166820226 | K12: =H12*(1+VLOOKUP($B12,$Z$11:$AU$15,10,FALSE)/100) -> 1.157811822 | L12: =I12*(1+VLOOKUP($B12,$Z$11:$AU$15,11,FALSE)/100) -> 1.212527135 | M12: =J12*(1+VLOOKUP($B12,$Z$11:$AU$15,12,FALSE)/100) -> 1.204904363 | N12: =K12*(1+VLOOKUP($B12,$Z$11:$AU$15,13,FALSE)/100) -> 1.206752933 | O12: =L12*(1+VLOOKUP($B12,$Z$11:$AU$15,14,FALSE)/100) -> 1.250167946 | P12: =M12*(1+VLOOKUP($B12,$Z$11:$AU$15,15,FALSE)/100) -> 1.242857599 | Q12: =N12*(1+VLOOKUP($B12,$Z$11:$AU$15,16,FALSE)/100) -> 1.256738341 | R12: =O12*(1+VLOOKUP($B12,$Z$11:$AU$15,17,FALSE)/100) -> 1.307449787 | S12: =P12*(1+VLOOKUP($B12,$Z$11:$AU$15,18,FALSE)/100) -> 1.298264005 | T12: =Q12*(1+VLOOKUP($B12,$Z$11:$AU$15,19,FALSE)/100) -> 1.315527967 | U12: =R12*(1+VLOOKUP($B12,$Z$11:$AU$15,20,FALSE)/100) -> 1.367356242 | V12: =S12*(1+VLOOKUP($B12,$Z$11:$AU$15,21,FALSE)/100) -> 1.356140419 | W12: =T12*(1+VLOOKUP($B12,$Z$11:$AU$15,22,FALSE)/100) -> 1.377067744 | Z12: Riverside | AA12: 9.066555725 | AB12: 8.762454288 | AC12: 6.744831027 | AD12: 5.797639163 | AE12: 4.295620268 | AF12: 6.997302989 | AG12: 3.858476915 | AH12: 3.889028555 | AI12: 5.338423671 | AJ12: 3.301283839 | AK12: 3.329777138 | AL12: 4.559947958 | AM12: 3.112607471 | AN12: 3.127308799 | AO12: 4.275555414 | AP12: =AVERAGE(AA12,AD12,AG12,AJ12,AM12) -> 5.027312623 | AQ12: =AVERAGE(AB12,AE12,AH12,AK12,AN12) -> 4.68083781 | AR12: =AVERAGE(AC12,AF12,AI12,AL12,AO12) -> 5.583212212 | AS12: =AP12 -> 5.027312623 | AT12: =AQ12 -> 4.68083781 | AU12: =AR12 -> 5.583212212
A13: 065 | B13: Riverside | C13: 1.090665557 | D13: 1.087624543 | E13: 1.06744831 | F13: 1.153898411 | G13: 1.134344763 | H13: 1.142140903 | I13: 1.198421315 | J13: 1.178459755 | K13: 1.203113223 | L13: 1.237984604 | M13: 1.217699838 | N13: 1.25797456 | O13: 1.276518205 | P13: 1.255781073 | Q13: 1.311759959 | R13: 1.340692766 | S13: 1.314562148 | T13: 1.384998302 | U13: 1.408093582 | V13: 1.37609467 | W13: 1.462325696 | Z13: SD | AA13: 8.018152484 | AB13: 8.389994073 | AC13: 6.293617488 | AD13: 5.429676754 | AE13: 4.88029693 | AF13: 6.329456424 | AG13: 3.439506466 | AH13: 3.471302767 | AI13: 4.769934006 | AJ13: 3.044107897 | AK13: 3.064958418 | AL13: 4.391733702 | AM13: 2.937942604 | AN13: 2.947871574 | AO13: 4.312378345 | AP13: 4.573877241 | AQ13: 4.550884753 | AR13: 5.219423993 | AS13: 4.573877241 | AT13: 4.550884753 | AU13: 5.219423993
A14: 071 | B14: Riverside | C14: 1.090665557 | D14: 1.087624543 | E14: 1.06744831 | F14: 1.153898411 | G14: 1.134344763 | H14: 1.142140903 | I14: 1.198421315 | J14: 1.178459755 | K14: 1.203113223 | L14: 1.237984604 | M14: 1.217699838 | N14: 1.25797456 | O14: 1.276518205 | P14: 1.255781073 | Q14: 1.311759959 | R14: 1.340692766 | S14: 1.314562148 | T14: 1.384998302 | U14: 1.408093582 | V14: 1.37609467 | W14: 1.462325696 | Z14: SF | AA14: 5.854137317 | AB14: 6.500986993 | AC14: 2.14704584 | AD14: 4.981006155 | AE14: 4.354640425 | AF14: 5.227534759 | AG14: 3.673602952 | AH14: 3.717532302 | AI14: 4.568510838 | AJ14: 3.445296011 | AK14: 3.45384085 | AL14: 4.303479486 | AM14: 3.396724093 | AN14: 3.395792928 | AO14: 4.308316324 | AP14: 4.270153305 | AQ14: 4.2845587 | AR14: 4.110977449 | AS14: 4.270153305 | AT14: 4.2845587 | AU14: 4.110977449
A15: 073 | B15: SD | C15: 1.080181525 | D15: 1.083899941 | E15: 1.062936175 | F15: 1.13883189 | G15: 1.136797476 | H15: 1.130214257 | I15: 1.178002086 | J15: 1.176259159 | K15: 1.184124731 | L15: 1.213861741 | M15: 1.212311013 | N15: 1.236128336 | O15: 1.249524302 | P15: 1.248048384 | Q15: 1.289434867 | R15: 1.30667601 | S15: 1.304845628 | T15: 1.356735939 | U15: 1.366441767 | V15: 1.364227649 | W15: 1.427549741 | Y15: US Avg. | Z15: Other | AA15: 8.140154075 | AB15: 8.535063896 | AC15: 5.810928916 | AD15: 4.658545721 | AE15: 4.148430963 | AF15: 5.868303657 | AG15: 2.57063184 | AH15: 2.556792747 | AI15: 3.66915191 | AJ15: 2.316777592 | AK15: 2.298666002 | AL15: 3.187516408 | AM15: 2.285503413 | AN15: 2.265229068 | AO15: 3.067527952 | AP15: 3.994322528 | AQ15: 3.960836535 | AR15: 4.320685769 | AS15: 3.994322528 | AT15: 3.960836535 | AU15: 4.320685769
A16: 001 | B16: SF | C16: 1.058541373 | D16: 1.06500987 | E16: 1.021470458 | F16: 1.111267384 | G16: 1.11138722 | H16: 1.074868182 | I16: 1.152090936 | J16: 1.152703399 | K16: 1.123973651 | L16: 1.191783879 | M16: 1.19251594 | N16: 1.172343627 | O16: 1.232265489 | P16: 1.233011312 | Q16: 1.222851898 | R16: 1.284885114 | S16: 1.285840405 | T16: 1.273123064 | U16: 1.339751678 | V16: 1.340932992 | W16: 1.325460866
A17: 013 | B17: SF | C17: 1.058541373 | D17: 1.06500987 | E17: 1.021470458 | F17: 1.111267384 | G17: 1.11138722 | H17: 1.074868182 | I17: 1.152090936 | J17: 1.152703399 | K17: 1.123973651 | L17: 1.191783879 | M17: 1.19251594 | N17: 1.172343627 | O17: 1.232265489 | P17: 1.233011312 | Q17: 1.222851898 | R17: 1.284885114 | S17: 1.285840405 | T17: 1.273123064 | U17: 1.339751678 | V17: 1.340932992 | W17: 1.325460866
A18: 041 | B18: SF | C18: 1.058541373 | D18: 1.06500987 | E18: 1.021470458 | F18: 1.111267384 | G18: 1.11138722 | H18: 1.074868182 | I18: 1.152090936 | J18: 1.152703399 | K18: 1.123973651 | L18: 1.191783879 | M18: 1.19251594 | N18: 1.172343627 | O18: 1.232265489 | P18: 1.233011312 | Q18: 1.222851898 | R18: 1.284885114 | S18: 1.285840405 | T18: 1.273123064 | U18: 1.339751678 | V18: 1.340932992 | W18: 1.325460866
A19: 075 | B19: SF | C19: 1.058541373 | D19: 1.06500987 | E19: 1.021470458 | F19: 1.111267384 | G19: 1.11138722 | H19: 1.074868182 | I19: 1.152090936 | J19: 1.152703399 | K19: 1.123973651 | L19: 1.191783879 | M19: 1.19251594 | N19: 1.172343627 | O19: 1.232265489 | P19: 1.233011312 | Q19: 1.222851898 | R19: 1.284885114 | S19: 1.285840405 | T19: 1.273123064 | U19: 1.339751678 | V19: 1.340932992 | W19: 1.325460866
A20: 081 | B20: SF | C20: 1.058541373 | D20: 1.06500987 | E20: 1.021470458 | F20: 1.111267384 | G20: 1.11138722 | H20: 1.074868182 | I20: 1.152090936 | J20: 1.152703399 | K20: 1.123973651 | L20: 1.191783879 | M20: 1.19251594 | N20: 1.172343627 | O20: 1.232265489 | P20: 1.233011312 | Q20: 1.222851898 | R20: 1.284885114 | S20: 1.285840405 | T20: 1.273123064 | U20: 1.339751678 | V20: 1.340932992 | W20: 1.325460866
A21: Other | B21: Other | C21: 1.081401541 | D21: 1.085350639 | E21: 1.058109289 | F21: 1.131779126 | G21: 1.130375661 | H21: 1.120202355 | I21: 1.160873001 | J21: 1.159277024 | K21: 1.161304281 | L21: 1.187767846 | M21: 1.185924931 | N21: 1.198321046 | O21: 1.214914321 | P21: 1.212788847 | Q21: 1.235079879 | R21: 1.263441917 | S21: 1.260825431 | T21: 1.2884438 | U21: 1.313907862 | V21: 1.310764665 | W21: 1.344113407
A24: Effective Escalators (based on selected analysis year)
A25: County ID | B25: MSA | C25: CPI-U | D25: CPI-W | E25: Shelter Escalator
A26: 037 | B26: LA | C26: =IF(selected_forecast_year=2021,1,IF(selected_forecast_year=2022,C11,IF(selected_forecast_year=2023,F11,IF(selected_forecast_year=2024,I11,IF(selected_forecast_year=2025,L11,IF(selected_forecast_year=2026,O11,IF(selected_forecast_year=2027,R11,U11))))))) -> 1.367356242 | D26: =IF(selected_forecast_year=2021,1,IF(selected_forecast_year=2022,D11,IF(selected_forecast_year=2023,G11,IF(selected_forecast_year=2024,J11,IF(selected_forecast_year=2025,M11,IF(selected_forecast_year=2026,P11,IF(selected_forecast_year=2027,S11,V11))))))) -> 1.356140419 | E26: =IF(selected_forecast_year=2021,1,IF(selected_forecast_year=2022,E11,IF(selected_forecast_year=2023,H11,IF(selected_forecast_year=2024,K11,IF(selected_forecast_year=2025,N11,IF(selected_forecast_year=2026,Q11,IF(selected_forecast_year=2027,T11,W11))))))) -> 1.377067744
A27: 059 | B27: LA | C27: 1.367356242 | D27: 1.356140419 | E27: 1.377067744
A28: 065 | B28: Riverside | C28: 1.408093582 | D28: 1.37609467 | E28: 1.462325696
A29: 071 | B29: Riverside | C29: 1.408093582 | D29: 1.37609467 | E29: 1.462325696
A30: 073 | B30: SD | C30: 1.366441767 | D30: 1.364227649 | E30: 1.427549741
A31: 001 | B31: SF | C31: 1.339751678 | D31: 1.340932992 | E31: 1.325460866
A32: 013 | B32: SF | C32: 1.339751678 | D32: 1.340932992 | E32: 1.325460866
A33: 041 | B33: SF | C33: 1.339751678 | D33: 1.340932992 | E33: 1.325460866
A34: 075 | B34: SF | C34: 1.339751678 | D34: 1.340932992 | E34: 1.325460866
A35: 081 | B35: SF | C35: 1.339751678 | D35: 1.340932992 | E35: 1.325460866
A36: Other | B36: Other | C36: 1.313907862 | D36: 1.310764665 | E36: 1.344113407

Sheet Electric Input
D1: Basic Service | L1: All-Electric Service | T1: Weighted Average
A2: Electric Provider and Climate Zone | B2: Regulated | C2: Percentage of Customers on All-Electric Rate | D2: 2021 Essential Usage Bill ($/month) | E2: 2022 Essential Usage Bill ($/month) | F2: 2023 Essential Usage Bill ($/month) | G2: 2024 Essential Usage Bill ($/month) | H2: 2025 Essential Usage Bill ($/month) | I2: 2026 Essential Usage Bill ($/month) | J2: 2027 Essential Usage Bill ($/month) | K2: 2028 Essential Usage Bill ($/month) | L2: 2021 Essential Usage Bill ($/month) | M2: 2022 Essential Usage Bill ($/month) | N2: 2023 Essential Usage Bill ($/month) | O2: 2024 Essential Usage Bill ($/month) | P2: 2025 Essential Usage Bill ($/month) | Q2: 2026 Essential Usage Bill ($/month) | R2: 2027 Essential Usage Bill ($/month) | S2: 2028 Essential Usage Bill ($/month) | T2: 2021 Essential Usage Bill ($/month) | U2: 2022 Essential Usage Bill ($/month) | V2: 2023 Essential Usage Bill ($/month) | W2: 2024 Essential Usage Bill ($/month) | X2: 2025 Essential Usage Bill ($/month) | Y2: 2026 Essential Usage Bill ($/month) | Z2: 2027 Essential Usage Bill ($/month) | AA2: 2028 Essential Usage Bill ($/month)
A3: Aha Macav Power Service | C3: 0 | D3: 61.09884804 | E3: =D3*(1+('Scenario Input'!$AA$15/100)) -> 66.07238841 | F3: =E3*(1+('Scenario Input'!$AD$15/100)) -> 69.15040083 | G3: =F3*(1+('Scenario Input'!$AG$15/100)) -> 70.92800305 | H3: =G3*(1+('Scenario Input'!$AJ$15/100)) -> 72.57124713 | I3: =H3*(1+('Scenario Input'!$AM$15/100)) -> 74.22986546 | J3: =I3*(1+('Scenario Input'!$AP$15/100)) -> 77.1948457 | K3: =J3*(1+('Scenario Input'!$AS$15/100)) -> 80.27825681 | L3: 61.09884804 | M3: =L3*(1+('Scenario Input'!$AA$15/100)) -> 66.07238841 | N3: =M3*(1+('Scenario Input'!$AD$15/100)) -> 69.15040083 | O3: =N3*(1+('Scenario Input'!$AG$15/100)) -> 70.92800305 | P3: =O3*(1+('Scenario Input'!$AJ$15/100)) -> 72.57124713 | Q3: =P3*(1+('Scenario Input'!$AM$15/100)) -> 74.22986546 | R3: =Q3*(1+('Scenario Input'!$AP$15/100)) -> 77.1948457 | S3: =R3*(1+('Scenario Input'!$AS$15/100)) -> 80.27825681 | T3: =(D3*(1-$C3))+(L3*$C3) -> 61.09884804 | U3: =(E3*(1-$C3))+(M3*$C3) -> 66.07238841 | V3: 69.15040083 | W3: 70.92800305 | X3: 72.57124713 | Y3: 74.22986546 | Z3: 77.1948457 | AA3: 80.27825681
A4: Anza Electric Coop Inc | C4: 0 | D4: 76 | E4: =D4*(1+('Scenario Input'!$AA$15/100)) -> 82.1865171 | F4: =E4*(1+('Scenario Input'!$AD$15/100)) -> 86.01521357 | G4: =F4*(1+('Scenario Input'!$AG$15/100)) -> 88.22634804 | H4: =G4*(1+('Scenario Input'!$AJ$15/100)) -> 90.2703563 | I4: =H4*(1+('Scenario Input'!$AM$15/100)) -> 92.33348838 | J4: =I4*(1+('Scenario Input'!$AP$15/100)) -> 96.0215857 | K4: =J4*(1+('Scenario Input'!$AS$15/100)) -> 99.85699753 | L4: 76 | M4: =L4*(1+('Scenario Input'!$AA$15/100)) -> 82.1865171 | N4: =M4*(1+('Scenario Input'!$AD$15/100)) -> 86.01521357 | O4: =N4*(1+('Scenario Input'!$AG$15/100)) -> 88.22634804 | P4: =O4*(1+('Scenario Input'!$AJ$15/100)) -> 90.2703563 | Q4: =P4*(1+('Scenario Input'!$AM$15/100)) -> 92.33348838 | R4: =Q4*(1+('Scenario Input'!$AP$15/100)) -> 96.0215857 | S4: =R4*(1+('Scenario Input'!$AS$15/100)) -> 99.85699753 | T4: =(D4*(1-$C4))+(L4*$C4) -> 76 | U4: =(E4*(1-$C4))+(M4*$C4) -> 82.1865171 | V4: =(F4*(1-$C4))+(N4*$C4) -> 86.01521357 | W4: =(G4*(1-$C4))+(O4*$C4) -> 88.22634804 | X4: =(H4*(1-$C4))+(P4*$C4) -> 90.2703563 | Y4: =(I4*(1-$C4))+(Q4*$C4) -> 92.33348838 | Z4: =(J4*(1-$C4))+(R4*$C4) -> 96.0215857 | AA4: =(K4*(1-$C4))+(S4*$C4) -> 99.85699753
A5: BVES 16 | B5: X | C5: 0.001319234438 | D5: 63.11280152 | E5: =D5*(1+('Scenario Input'!$AA$15/100)) -> 68.25028081 | F5: =E5*(1+('Scenario Input'!$AD$15/100)) -> 71.42975134 | G5: =F5*(1+('Scenario Input'!$AG$15/100)) -> 73.26594728 | H5: =G5*(1+('Scenario Input'!$AJ$15/100)) -> 74.96335632 | I5: =H5*(1+('Scenario Input'!$AM$15/100)) -> 76.67664639 | J5: =I5*(1+('Scenario Input'!$AP$15/100)) -> 79.73935895 | K5: =J5*(1+('Scenario Input'!$AS$15/100)) -> 82.92440613 | L5: 112.3242032 | M5: =L5*(1+('Scenario Input'!$AA$15/100)) -> 121.4675664 | N5: =M5*(1+('Scenario Input'!$AD$15/100)) -> 127.1261885 | O5: =N5*(1+('Scenario Input'!$AG$15/100)) -> 130.3941348 | P5: =O5*(1+('Scenario Input'!$AJ$15/100)) -> 133.4150769 | Q5: =P5*(1+('Scenario Input'!$AM$15/100)) -> 136.4642831 | R5: =Q5*(1+('Scenario Input'!$AP$15/100)) -> 141.9151067 | S5: =R5*(1+('Scenario Input'!$AS$15/100)) -> 147.5836537 | T5: 63.1777229 | U5: 68.32048688 | V5: 71.503228 | W5: 73.34131275 | X5: 75.04046785 | Y5: 76.7555203 | Z5: 79.82138334 | AA5: 83.00970684
A6: City & County of San Francisco | C6: 0 | D6: 49.6523 | E6: =D6*(1+('Scenario Input'!$AA$15/100)) -> 53.69407372 | F6: =E6*(1+('Scenario Input'!$AD$15/100)) -> 56.1954367 | G6: =F6*(1+('Scenario Input'!$AG$15/100)) -> 57.64001448 | H6: =G6*(1+('Scenario Input'!$AJ$15/100)) -> 58.97540542 | I6: =H6*(1+('Scenario Input'!$AM$15/100)) -> 60.32329033 | J6: =I6*(1+('Scenario Input'!$AP$15/100)) -> 62.7327971 | K6: =J6*(1+('Scenario Input'!$AS$15/100)) -> 65.23854735 | L6: 49.6523 | M6: =L6*(1+('Scenario Input'!$AA$15/100)) -> 53.69407372 | N6: =M6*(1+('Scenario Input'!$AD$15/100)) -> 56.1954367 | O6: =N6*(1+('Scenario Input'!$AG$15/100)) -> 57.64001448 | P6: =O6*(1+('Scenario Input'!$AJ$15/100)) -> 58.97540542 | Q6: =P6*(1+('Scenario Input'!$AM$15/100)) -> 60.32329033 | R6: =Q6*(1+('Scenario Input'!$AP$15/100)) -> 62.7327971 | S6: =R6*(1+('Scenario Input'!$AS$15/100)) -> 65.23854735 | T6: 49.6523 | U6: 53.69407372 | V6: 56.1954367 | W6: 57.64001448 | X6: 58.97540542 | Y6: 60.32329033 | Z6: 62.7327971 | AA6: 65.23854735
A7: City of Alameda | C7: 0 | D7: 49.07865 | E7: =D7*(1+('Scenario Input'!$AA$15/100)) -> 53.07372773 | F7: =E7*(1+('Scenario Input'!$AD$15/100)) -> 55.5461916 | G7: =F7*(1+('Scenario Input'!$AG$15/100)) -> 56.97407969 | H7: =G7*(1+('Scenario Input'!$AJ$15/100)) -> 58.2940424 | I7: =H7*(1+('Scenario Input'!$AM$15/100)) -> 59.62635473 | J7: =I7*(1+('Scenario Input'!$AP$15/100)) -> 62.00802365 | K7: =J7*(1+('Scenario Input'!$AS$15/100)) -> 64.4848241 | L7: 49.07865 | M7: =L7*(1+('Scenario Input'!$AA$15/100)) -> 53.07372773 | N7: =M7*(1+('Scenario Input'!$AD$15/100)) -> 55.5461916 | O7: =N7*(1+('Scenario Input'!$AG$15/100)) -> 56.97407969 | P7: =O7*(1+('Scenario Input'!$AJ$15/100)) -> 58.2940424 | Q7: =P7*(1+('Scenario Input'!$AM$15/100)) -> 59.62635473 | R7: =Q7*(1+('Scenario Input'!$AP$15/100)) -> 62.00802365 | S7: =R7*(1+('Scenario Input'!$AS$15/100)) -> 64.4848241 | T7: 49.07865 | U7: 53.07372773 | V7: 55.5461916 | W7: 56.97407969 | X7: 58.2940424 | Y7: 59.62635473 | Z7: 62.00802365 | AA7: 64.4848241
A8: City of Anaheim - (CA) | C8: 0 | D8: 41.504 | E8: =D8*(1+('Scenario Input'!$AA$15/100)) -> 44.88248955 | F8: =E8*(1+('Scenario Input'!$AD$15/100)) -> 46.97336084 | G8: =F8*(1+('Scenario Input'!$AG$15/100)) -> 48.18087301 | H8: =G8*(1+('Scenario Input'!$AJ$15/100)) -> 49.29711668 | I8: =H8*(1+('Scenario Input'!$AM$15/100)) -> 50.42380397 | J8: =I8*(1+('Scenario Input'!$AP$15/100)) -> 52.43789333 | K8: =J8*(1+('Scenario Input'!$AS$15/100)) -> 54.53243192 | L8: 41.504 | M8: =L8*(1+('Scenario Input'!$AA$15/100)) -> 44.88248955 | N8: =M8*(1+('Scenario Input'!$AD$15/100)) -> 46.97336084 | O8: =N8*(1+('Scenario Input'!$AG$15/100)) -> 48.18087301 | P8: =O8*(1+('Scenario Input'!$AJ$15/100)) -> 49.29711668 | Q8: =P8*(1+('Scenario Input'!$AM$15/100)) -> 50.42380397 | R8: =Q8*(1+('Scenario Input'!$AP$15/100)) -> 52.43789333 | S8: =R8*(1+('Scenario Input'!$AS$15/100)) -> 54.53243192 | T8: 41.504 | U8: 44.88248955 | V8: 46.97336084 | W8: 48.18087301 | X8: 49.29711668 | Y8: 50.42380397 | Z8: 52.43789333 | AA8: 54.53243192
A9: City of Azusa | C9: 0 | D9: 33.075 | E9: =D9*(1+('Scenario Input'!$AA$15/100)) -> 35.76735596 | F9: =E9*(1+('Scenario Input'!$AD$15/100)) -> 37.43359459 | G9: =F9*(1+('Scenario Input'!$AG$15/100)) -> 38.39587449 | H9: =G9*(1+('Scenario Input'!$AJ$15/100)) -> 39.28542151 | I9: =H9*(1+('Scenario Input'!$AM$15/100)) -> 40.18329116 | J9: =I9*(1+('Scenario Input'!$AP$15/100)) -> 41.78834141 | K9: =J9*(1+('Scenario Input'!$AS$15/100)) -> 43.45750254 | L9: 33.075 | M9: =L9*(1+('Scenario Input'!$AA$15/100)) -> 35.76735596 | N9: =M9*(1+('Scenario Input'!$AD$15/100)) -> 37.43359459 | O9: =N9*(1+('Scenario Input'!$AG$15/100)) -> 38.39587449 | P9: =O9*(1+('Scenario Input'!$AJ$15/100)) -> 39.28542151 | Q9: =P9*(1+('Scenario Input'!$AM$15/100)) -> 40.18329116 | R9: =Q9*(1+('Scenario Input'!$AP$15/100)) -> 41.78834141 | S9: =R9*(1+('Scenario Input'!$AS$15/100)) -> 43.45750254 | T9: 33.075 | U9: 35.76735596 | V9: 37.43359459 | W9: 38.39587449 | X9: 39.28542151 | Y9: 40.18329116 | Z9: 41.78834141 | AA9: 43.45750254
A10: City of Banning - (CA) | C10: 0 | D10: 120.22376 | E10: =D10*(1+('Scenario Input'!$AA$15/100)) -> 130.0101593 | F10: =E10*(1+('Scenario Input'!$AD$15/100)) -> 136.066742 | G10: =F10*(1+('Scenario Input'!$AG$15/100)) -> 139.564517 | H10: =G10*(1+('Scenario Input'!$AJ$15/100)) -> 142.7979165 | I10: =H10*(1+('Scenario Input'!$AM$15/100)) -> 146.0615677 | J10: =I10*(1+('Scenario Input'!$AP$15/100)) -> 151.8957378 | K10: =J10*(1+('Scenario Input'!$AS$15/100)) -> 157.9629435 | L10: 120.22376 | M10: =L10*(1+('Scenario Input'!$AA$15/100)) -> 130.0101593 | N10: =M10*(1+('Scenario Input'!$AD$15/100)) -> 136.066742 | O10: =N10*(1+('Scenario Input'!$AG$15/100)) -> 139.564517 | P10: =O10*(1+('Scenario Input'!$AJ$15/100)) -> 142.7979165 | Q10: =P10*(1+('Scenario Input'!$AM$15/100)) -> 146.0615677 | R10: =Q10*(1+('Scenario Input'!$AP$15/100)) -> 151.8957378 | S10: =R10*(1+('Scenario Input'!$AS$15/100)) -> 157.9629435 | T10: 120.22376 | U10: 130.0101593 | V10: 136.066742 | W10: 139.564517 | X10: 142.7979165 | Y10: 146.0615677 | Z10: 151.8957378 | AA10: 157.9629435
A11: City of Biggs | C11: 0 | D11: 67.57 | E11: =D11*(1+('Scenario Input'!$AA$15/100)) -> 73.07030211 | F11: =E11*(1+('Scenario Input'!$AD$15/100)) -> 76.47431554 | G11: =F11*(1+('Scenario Input'!$AG$15/100)) -> 78.44018865 | H11: =G11*(1+('Scenario Input'!$AJ$15/100)) -> 80.25747336 | I11: =H11*(1+('Scenario Input'!$AM$15/100)) -> 82.09176065 | J11: =I11*(1+('Scenario Input'!$AP$15/100)) -> 85.37077034 | K11: =J11*(1+('Scenario Input'!$AS$15/100)) -> 88.78075425 | L11: 67.57 | M11: =L11*(1+('Scenario Input'!$AA$15/100)) -> 73.07030211 | N11: =M11*(1+('Scenario Input'!$AD$15/100)) -> 76.47431554 | O11: =N11*(1+('Scenario Input'!$AG$15/100)) -> 78.44018865 | P11: =O11*(1+('Scenario Input'!$AJ$15/100)) -> 80.25747336 | Q11: =P11*(1+('Scenario Input'!$AM$15/100)) -> 82.09176065 | R11: =Q11*(1+('Scenario Input'!$AP$15/100)) -> 85.37077034 | S11: =R11*(1+('Scenario Input'!$AS$15/100)) -> 88.78075425 | T11: 67.57 | U11: 73.07030211 | V11: 76.47431554 | W11: 78.44018865 | X11: 80.25747336 | Y11: 82.09176065 | Z11: 85.37077034 | AA11: 88.78075425
A12: City of Burbank Water and Power | C12: 0 | D12: 45.65 | E12: =D12*(1+('Scenario Input'!$AA$15/100)) -> 49.36598034 | F12: =E12*(1+('Scenario Input'!$AD$15/100)) -> 51.6657171 | G12: =F12*(1+('Scenario Input'!$AG$15/100)) -> 52.99385247 | H12: =G12*(1+('Scenario Input'!$AJ$15/100)) -> 54.22160217 | I12: =H12*(1+('Scenario Input'!$AM$15/100)) -> 55.46083874 | J12: =I12*(1+('Scenario Input'!$AP$15/100)) -> 57.67612352 | K12: =J12*(1+('Scenario Input'!$AS$15/100)) -> 59.97989391 | L12: 45.65 | M12: =L12*(1+('Scenario Input'!$AA$15/100)) -> 49.36598034 | N12: =M12*(1+('Scenario Input'!$AD$15/100)) -> 51.6657171 | O12: =N12*(1+('Scenario Input'!$AG$15/100)) -> 52.99385247 | P12: =O12*(1+('Scenario Input'!$AJ$15/100)) -> 54.22160217 | Q12: =P12*(1+('Scenario Input'!$AM$15/100)) -> 55.46083874 | R12: =Q12*(1+('Scenario Input'!$AP$15/100)) -> 57.67612352 | S12: =R12*(1+('Scenario Input'!$AS$15/100)) -> 59.97989391 | T12: 45.65 | U12: 49.36598034 | V12: 51.6657171 | W12: 52.99385247 | X12: 54.22160217 | Y12: 55.46083874 | Z12: 57.67612352 | AA12: 59.97989391
A13: City of Colton - (CA) | C13: 0 | D13: 23.075 | E13: =D13*(1+('Scenario Input'!$AA$15/100)) -> 24.95334055 | F13: =E13*(1+('Scenario Input'!$AD$15/100)) -> 26.11580333 | G13: =F13*(1+('Scenario Input'!$AG$15/100)) -> 26.78714449 | H13: =G13*(1+('Scenario Input'!$AJ$15/100)) -> 27.40774305 | I13: =H13*(1+('Scenario Input'!$AM$15/100)) -> 28.03414795 | J13: =I13*(1+('Scenario Input'!$AP$15/100)) -> 29.15392224 | K13: =J13*(1+('Scenario Input'!$AS$15/100)) -> 30.31842392 | L13: 23.075 | M13: =L13*(1+('Scenario Input'!$AA$15/100)) -> 24.95334055 | N13: =M13*(1+('Scenario Input'!$AD$15/100)) -> 26.11580333 | O13: =N13*(1+('Scenario Input'!$AG$15/100)) -> 26.78714449 | P13: =O13*(1+('Scenario Input'!$AJ$15/100)) -> 27.40774305 | Q13: =P13*(1+('Scenario Input'!$AM$15/100)) -> 28.03414795 | R13: =Q13*(1+('Scenario Input'!$AP$15/100)) -> 29.15392224 | S13: =R13*(1+('Scenario Input'!$AS$15/100)) -> 30.31842392 | T13: 23.075 | U13: 24.95334055 | V13: 26.11580333 | W13: 26.78714449 | X13: 27.40774305 | Y13: 28.03414795 | Z13: 29.15392224 | AA13: 30.31842392
A14: City of Corona - (CA) | C14: 0 | D14: 47.34054 | E14: =D14*(1+('Scenario Input'!$AA$15/100)) -> 51.1941329 | F14: =E14*(1+('Scenario Input'!$AD$15/100)) -> 53.57903498 | G14: =F14*(1+('Scenario Input'!$AG$15/100)) -> 54.95635472 | H14: =G14*(1+('Scenario Input'!$AJ$15/100)) -> 56.22957123 | I14: =H14*(1+('Scenario Input'!$AM$15/100)) -> 57.5147 | J14: =I14*(1+('Scenario Input'!$AP$15/100)) -> 59.81202262 | K14: =J14*(1+('Scenario Input'!$AS$15/100)) -> 62.20110771 | L14: 47.34054 | M14: =L14*(1+('Scenario Input'!$AA$15/100)) -> 51.1941329 | N14: =M14*(1+('Scenario Input'!$AD$15/100)) -> 53.57903498 | O14: =N14*(1+('Scenario Input'!$AG$15/100)) -> 54.95635472 | P14: =O14*(1+('Scenario Input'!$AJ$15/100)) -> 56.22957123 | Q14: =P14*(1+('Scenario Input'!$AM$15/100)) -> 57.5147 | R14: =Q14*(1+('Scenario Input'!$AP$15/100)) -> 59.81202262 | S14: =R14*(1+('Scenario Input'!$AS$15/100)) -> 62.20110771 | T14: 47.34054 | U14: 51.1941329 | V14: 53.57903498 | W14: 54.95635472 | X14: 56.22957123 | Y14: 57.5147 | Z14: 59.81202262 | AA14: 62.20110771
A15: City of Glendale - (CA) | C15: 0 | D15: 62.0574 | E15: =D15*(1+('Scenario Input'!$AA$15/100)) -> 67.10896797 | F15: =E15*(1+('Scenario Input'!$AD$15/100)) -> 70.23526993 | G15: =F15*(1+('Scenario Input'!$AG$15/100)) -> 72.04076014 | H15: =G15*(1+('Scenario Input'!$AJ$15/100)) -> 73.70978433 | I15: =H15*(1+('Scenario Input'!$AM$15/100)) -> 75.39442397 | J15: =I15*(1+('Scenario Input'!$AP$15/100)) -> 78.40592043 | K15: =J15*(1+('Scenario Input'!$AS$15/100)) -> 81.53770577 | L15: 62.0574 | M15: =L15*(1+('Scenario Input'!$AA$15/100)) -> 67.10896797 | N15: =M15*(1+('Scenario Input'!$AD$15/100)) -> 70.23526993 | O15: =N15*(1+('Scenario Input'!$AG$15/100)) -> 72.04076014 | P15: =O15*(1+('Scenario Input'!$AJ$15/100)) -> 73.70978433 | Q15: =P15*(1+('Scenario Input'!$AM$15/100)) -> 75.39442397 | R15: =Q15*(1+('Scenario Input'!$AP$15/100)) -> 78.40592043 | S15: =R15*(1+('Scenario Input'!$AS$15/100)) -> 81.53770577 | T15: 62.0574 | U15: 67.10896797 | V15: 70.23526993 | W15: 72.04076014 | X15: 73.70978433 | Y15: 75.39442397 | Z15: 78.40592043 | AA15: 81.53770577
A16: City of Gridley | C16: 0 | D16: 94.4003875 | E16: =D16*(1+('Scenario Input'!$AA$15/100)) -> 102.0847245 | F16: =E16*(1+('Scenario Input'!$AD$15/100)) -> 106.8403881 | G16: =F16*(1+('Scenario Input'!$AG$15/100)) -> 109.5868611 | H16: =G16*(1+('Scenario Input'!$AJ$15/100)) -> 112.1257449 | I16: =H16*(1+('Scenario Input'!$AM$15/100)) -> 114.6883827 | J16: =I16*(1+('Scenario Input'!$AP$15/100)) -> 119.2694066 | K16: =J16*(1+('Scenario Input'!$AS$15/100)) -> 124.0334113 | L16: 94.4003875 | M16: =L16*(1+('Scenario Input'!$AA$15/100)) -> 102.0847245 | N16: =M16*(1+('Scenario Input'!$AD$15/100)) -> 106.8403881 | O16: =N16*(1+('Scenario Input'!$AG$15/100)) -> 109.5868611 | P16: =O16*(1+('Scenario Input'!$AJ$15/100)) -> 112.1257449 | Q16: =P16*(1+('Scenario Input'!$AM$15/100)) -> 114.6883827 | R16: =Q16*(1+('Scenario Input'!$AP$15/100)) -> 119.2694066 | S16: =R16*(1+('Scenario Input'!$AS$15/100)) -> 124.0334113 | T16: 94.4003875 | U16: 102.0847245 | V16: 106.8403881 | W16: 109.5868611 | X16: 112.1257449 | Y16: 114.6883827 | Z16: 119.2694066 | AA16: 124.0334113
A17: City of Healdsburg - (CA) | C17: 0 | D17: 49.8184 | E17: =D17*(1+('Scenario Input'!$AA$15/100)) -> 53.87369452 | F17: =E17*(1+('Scenario Input'!$AD$15/100)) -> 56.38342521 | G17: =F17*(1+('Scenario Input'!$AG$15/100)) -> 57.83283549 | H17: =G17*(1+('Scenario Input'!$AJ$15/100)) -> 59.17269366 | I17: =H17*(1+('Scenario Input'!$AM$15/100)) -> 60.5250876 | J17: =I17*(1+('Scenario Input'!$AP$15/100)) -> 62.94265481 | K17: =J17*(1+('Scenario Input'!$AS$15/100)) -> 65.45678745 | L17: 49.8184 | M17: =L17*(1+('Scenario Input'!$AA$15/100)) -> 53.87369452 | N17: =M17*(1+('Scenario Input'!$AD$15/100)) -> 56.38342521 | O17: =N17*(1+('Scenario Input'!$AG$15/100)) -> 57.83283549 | P17: =O17*(1+('Scenario Input'!$AJ$15/100)) -> 59.17269366 | Q17: =P17*(1+('Scenario Input'!$AM$15/100)) -> 60.5250876 | R17: =Q17*(1+('Scenario Input'!$AP$15/100)) -> 62.94265481 | S17: =R17*(1+('Scenario Input'!$AS$15/100)) -> 65.45678745 | T17: 49.8184 | U17: 53.87369452 | V17: 56.38342521 | W17: 57.83283549 | X17: 59.17269366 | Y17: 60.5250876 | Z17: 62.94265481 | AA17: 65.45678745
A18: City of Industry | C18: 0 | D18: 40.21648 | E18: =D18*(1+('Scenario Input'!$AA$15/100)) -> 43.49016344 | F18: =E18*(1+('Scenario Input'!$AD$15/100)) -> 45.51617258 | G18: =F18*(1+('Scenario Input'!$AG$15/100)) -> 46.68622581 | H18: =G18*(1+('Scenario Input'!$AJ$15/100)) -> 47.76784183 | I18: =H18*(1+('Scenario Input'!$AM$15/100)) -> 48.85957748 | J18: =I18*(1+('Scenario Input'!$AP$15/100)) -> 50.81118659 | K18: =J18*(1+('Scenario Input'!$AS$15/100)) -> 52.84074926 | L18: 40.21648 | M18: =L18*(1+('Scenario Input'!$AA$15/100)) -> 43.49016344 | N18: =M18*(1+('Scenario Input'!$AD$15/100)) -> 45.51617258 | O18: =N18*(1+('Scenario Input'!$AG$15/100)) -> 46.68622581 | P18: =O18*(1+('Scenario Input'!$AJ$15/100)) -> 47.76784183 | Q18: =P18*(1+('Scenario Input'!$AM$15/100)) -> 48.85957748 | R18: =Q18*(1+('Scenario Input'!$AP$15/100)) -> 50.81118659 | S18: =R18*(1+('Scenario Input'!$AS$15/100)) -> 52.84074926 | T18: 40.21648 | U18: 43.49016344 | V18: 45.51617258 | W18: 46.68622581 | X18: 47.76784183 | Y18: 48.85957748 | Z18: 50.81118659 | AA18: 52.84074926
A19: City of Lodi - (CA) | C19: 0 | D19: 72.4608 | E19: =D19*(1+('Scenario Input'!$AA$15/100)) -> 78.35922076 | F19: =E19*(1+('Scenario Input'!$AD$15/100)) -> 82.00962089 | G19: =F19*(1+('Scenario Input'!$AG$15/100)) -> 84.11778632 | H19: =G19*(1+('Scenario Input'!$AJ$15/100)) -> 86.06660834 | I19: =H19*(1+('Scenario Input'!$AM$15/100)) -> 88.03366361 | J19: =I19*(1+('Scenario Input'!$AP$15/100)) -> 91.55001207 | K19: =J19*(1+('Scenario Input'!$AS$15/100)) -> 95.20681483 | L19: 72.4608 | M19: =L19*(1+('Scenario Input'!$AA$15/100)) -> 78.35922076 | N19: =M19*(1+('Scenario Input'!$AD$15/100)) -> 82.00962089 | O19: =N19*(1+('Scenario Input'!$AG$15/100)) -> 84.11778632 | P19: =O19*(1+('Scenario Input'!$AJ$15/100)) -> 86.06660834 | Q19: =P19*(1+('Scenario Input'!$AM$15/100)) -> 88.03366361 | R19: =Q19*(1+('Scenario Input'!$AP$15/100)) -> 91.55001207 | S19: =R19*(1+('Scenario Input'!$AS$15/100)) -> 95.20681483 | T19: 72.4608 | U19: 78.35922076 | V19: 82.00962089 | W19: 84.11778632 | X19: 86.06660834 | Y19: 88.03366361 | Z19: 91.55001207 | AA19: 95.20681483
A20: City of Lompoc - (CA) | C20: 0 | D20: 52.6225 | E20: =D20*(1+('Scenario Input'!$AA$15/100)) -> 56.90605258 | F20: =E20*(1+('Scenario Input'!$AD$15/100)) -> 59.55704706 | G20: =F20*(1+('Scenario Input'!$AG$15/100)) -> 61.08803947 | H20: =G20*(1+('Scenario Input'!$AJ$15/100)) -> 62.50331348 | I20: =H20*(1+('Scenario Input'!$AM$15/100)) -> 63.93182884 | J20: =I20*(1+('Scenario Input'!$AP$15/100)) -> 66.48547228 | K20: =J20*(1+('Scenario Input'!$AS$15/100)) -> 69.14111648 | L20: 52.6225 | M20: =L20*(1+('Scenario Input'!$AA$15/100)) -> 56.90605258 | N20: =M20*(1+('Scenario Input'!$AD$15/100)) -> 59.55704706 | O20: =N20*(1+('Scenario Input'!$AG$15/100)) -> 61.08803947 | P20: =O20*(1+('Scenario Input'!$AJ$15/100)) -> 62.50331348 | Q20: =P20*(1+('Scenario Input'!$AM$15/100)) -> 63.93182884 | R20: =Q20*(1+('Scenario Input'!$AP$15/100)) -> 66.48547228 | S20: =R20*(1+('Scenario Input'!$AS$15/100)) -> 69.14111648 | T20: 52.6225 | U20: 56.90605258 | V20: 59.55704706 | W20: 61.08803947 | X20: 62.50331348 | Y20: 63.93182884 | Z20: 66.48547228 | AA20: 69.14111648
A21: City of Moreno Valley - (CA) | C21: 0 | D21: 84.08468 | E21: =D21*(1+('Scenario Input'!$AA$15/100)) -> 90.92930251 | F21: =E21*(1+('Scenario Input'!$AD$15/100)) -> 95.16528564 | G21: =F21*(1+('Scenario Input'!$AG$15/100)) -> 97.61163477 | H21: =G21*(1+('Scenario Input'!$AJ$15/100)) -> 99.87307925 | I21: =H21*(1+('Scenario Input'!$AM$15/100)) -> 102.1556819 | J21: =I21*(1+('Scenario Input'!$AP$15/100)) -> 106.2361093 | K21: =J21*(1+('Scenario Input'!$AS$15/100)) -> 110.4795221 | L21: 84.08468 | M21: =L21*(1+('Scenario Input'!$AA$15/100)) -> 90.92930251 | N21: =M21*(1+('Scenario Input'!$AD$15/100)) -> 95.16528564 | O21: =N21*(1+('Scenario Input'!$AG$15/100)) -> 97.61163477 | P21: =O21*(1+('Scenario Input'!$AJ$15/100)) -> 99.87307925 | Q21: =P21*(1+('Scenario Input'!$AM$15/100)) -> 102.1556819 | R21: =Q21*(1+('Scenario Input'!$AP$15/100)) -> 106.2361093 | S21: =R21*(1+('Scenario Input'!$AS$15/100)) -> 110.4795221 | T21: 84.08468 | U21: 90.92930251 | V21: 95.16528564 | W21: 97.61163477 | X21: 99.87307925 | Y21: 102.1556819 | Z21: 106.2361093 | AA21: 110.4795221
A22: City of Needles | C22: 0 | D22: 141.87 | E22: =D22*(1+('Scenario Input'!$AA$15/100)) -> 153.4184366 | F22: =E22*(1+('Scenario Input'!$AD$15/100)) -> 160.5655046 | G22: =F22*(1+('Scenario Input'!$AG$15/100)) -> 164.6930526 | H22: =G22*(1+('Scenario Input'!$AJ$15/100)) -> 168.5086243 | I22: =H22*(1+('Scenario Input'!$AM$15/100)) -> 172.3598947 | J22: =I22*(1+('Scenario Input'!$AP$15/100)) -> 179.2445048 | K22: =J22*(1+('Scenario Input'!$AS$15/100)) -> 186.4041084 | L22: 141.87 | M22: =L22*(1+('Scenario Input'!$AA$15/100)) -> 153.4184366 | N22: =M22*(1+('Scenario Input'!$AD$15/100)) -> 160.5655046 | O22: =N22*(1+('Scenario Input'!$AG$15/100)) -> 164.6930526 | P22: =O22*(1+('Scenario Input'!$AJ$15/100)) -> 168.5086243 | Q22: =P22*(1+('Scenario Input'!$AM$15/100)) -> 172.3598947 | R22: =Q22*(1+('Scenario Input'!$AP$15/100)) -> 179.2445048 | S22: =R22*(1+('Scenario Input'!$AS$15/100)) -> 186.4041084 | T22: 141.87 | U22: 153.4184366 | V22: 160.5655046 | W22: 164.6930526 | X22: 168.5086243 | Y22: 172.3598947 | Z22: 179.2445048 | AA22: 186.4041084
A23: City of Palo Alto - (CA) | C23: 0 | D23: 58.79624 | E23: =D23*(1+('Scenario Input'!$AA$15/100)) -> 63.58234453 | F23: =E23*(1+('Scenario Input'!$AD$15/100)) -> 66.54435712 | G23: =F23*(1+('Scenario Input'!$AG$15/100)) -> 68.25496755 | H23: =G23*(1+('Scenario Input'!$AJ$15/100)) -> 69.83628334 | I23: =H23*(1+('Scenario Input'!$AM$15/100)) -> 71.43239398 | J23: =I23*(1+('Scenario Input'!$AP$15/100)) -> 74.28563419 | K23: =J23*(1+('Scenario Input'!$AS$15/100)) -> 77.25284201 | L23: 58.79624 | M23: =L23*(1+('Scenario Input'!$AA$15/100)) -> 63.58234453 | N23: =M23*(1+('Scenario Input'!$AD$15/100)) -> 66.54435712 | O23: =N23*(1+('Scenario Input'!$AG$15/100)) -> 68.25496755 | P23: =O23*(1+('Scenario Input'!$AJ$15/100)) -> 69.83628334 | Q23: =P23*(1+('Scenario Input'!$AM$15/100)) -> 71.43239398 | R23: =Q23*(1+('Scenario Input'!$AP$15/100)) -> 74.28563419 | S23: =R23*(1+('Scenario Input'!$AS$15/100)) -> 77.25284201 | T23: 58.79624 | U23: 63.58234453 | V23: 66.54435712 | W23: 68.25496755 | X23: 69.83628334 | Y23: 71.43239398 | Z23: 74.28563419 | AA23: 77.25284201
A24: City of Pasadena - (CA) | C24: 0 | D24: 61.13 | E24: =D24*(1+('Scenario Input'!$AA$15/100)) -> 66.10607619 | F24: =E24*(1+('Scenario Input'!$AD$15/100)) -> 69.18565797 | G24: =F24*(1+('Scenario Input'!$AG$15/100)) -> 70.96416652 | H24: =G24*(1+('Scenario Input'!$AJ$15/100)) -> 72.60824843 | I24: =H24*(1+('Scenario Input'!$AM$15/100)) -> 74.26771243 | J24: =I24*(1+('Scenario Input'!$AP$15/100)) -> 77.23420439 | K24: =J24*(1+('Scenario Input'!$AS$15/100)) -> 80.31918762 | L24: 61.13 | M24: =L24*(1+('Scenario Input'!$AA$15/100)) -> 66.10607619 | N24: =M24*(1+('Scenario Input'!$AD$15/100)) -> 69.18565797 | O24: =N24*(1+('Scenario Input'!$AG$15/100)) -> 70.96416652 | P24: =O24*(1+('Scenario Input'!$AJ$15/100)) -> 72.60824843 | Q24: =P24*(1+('Scenario Input'!$AM$15/100)) -> 74.26771243 | R24: =Q24*(1+('Scenario Input'!$AP$15/100)) -> 77.23420439 | S24: =R24*(1+('Scenario Input'!$AS$15/100)) -> 80.31918762 | T24: 61.13 | U24: 66.10607619 | V24: 69.18565797 | W24: 70.96416652 | X24: 72.60824843 | Y24: 74.26771243 | Z24: 77.23420439 | AA24: 80.31918762
A25: City of Rancho Cucamonga | C25: 0 | D25: 55.76500074 | E25: =D25*(1+('Scenario Input'!$AA$15/100)) -> 60.30435771 | F25: =E25*(1+('Scenario Input'!$AD$15/100)) -> 63.11366379 | G25: =F25*(1+('Scenario Input'!$AG$15/100)) -> 64.73608373 | H25: =G25*(1+('Scenario Input'!$AJ$15/100)) -> 66.23587481 | I25: =H25*(1+('Scenario Input'!$AM$15/100)) -> 67.74969799 | J25: =I25*(1+('Scenario Input'!$AP$15/100)) -> 70.45583944 | K25: =J25*(1+('Scenario Input'!$AS$15/100)) -> 73.27007291 | L25: 55.76500074 | M25: =L25*(1+('Scenario Input'!$AA$15/100)) -> 60.30435771 | N25: =M25*(1+('Scenario Input'!$AD$15/100)) -> 63.11366379 | O25: =N25*(1+('Scenario Input'!$AG$15/100)) -> 64.73608373 | P25: =O25*(1+('Scenario Input'!$AJ$15/100)) -> 66.23587481 | Q25: =P25*(1+('Scenario Input'!$AM$15/100)) -> 67.74969799 | R25: =Q25*(1+('Scenario Input'!$AP$15/100)) -> 70.45583944 | S25: =R25*(1+('Scenario Input'!$AS$15/100)) -> 73.27007291 | T25: 55.76500074 | U25: 60.30435771 | V25: 63.11366379 | W25: 64.73608373 | X25: 66.23587481 | Y25: 67.74969799 | Z25: 70.45583944 | AA25: 73.27007291
A26: City of Redding - (CA) | C26: 0 | D26: 78.82456 | E26: =D26*(1+('Scenario Input'!$AA$15/100)) -> 85.24100063 | F26: =E26*(1+('Scenario Input'!$AD$15/100)) -> 89.21199162 | G26: =F26*(1+('Scenario Input'!$AG$15/100)) -> 91.50530348 | H26: =G26*(1+('Scenario Input'!$AJ$15/100)) -> 93.62527785 | I26: =H26*(1+('Scenario Input'!$AM$15/100)) -> 95.76508677 | J26: =I26*(1+('Scenario Input'!$AP$15/100)) -> 99.5902532 | K26: =J26*(1+('Scenario Input'!$AS$15/100)) -> 103.5682091 | L26: 78.82456 | M26: =L26*(1+('Scenario Input'!$AA$15/100)) -> 85.24100063 | N26: =M26*(1+('Scenario Input'!$AD$15/100)) -> 89.21199162 | O26: =N26*(1+('Scenario Input'!$AG$15/100)) -> 91.50530348 | P26: =O26*(1+('Scenario Input'!$AJ$15/100)) -> 93.62527785 | Q26: =P26*(1+('Scenario Input'!$AM$15/100)) -> 95.76508677 | R26: =Q26*(1+('Scenario Input'!$AP$15/100)) -> 99.5902532 | S26: =R26*(1+('Scenario Input'!$AS$15/100)) -> 103.5682091 | T26: 78.82456 | U26: 85.24100063 | V26: 89.21199162 | W26: 91.50530348 | X26: 93.62527785 | Y26: 95.76508677 | Z26: 99.5902532 | AA26: 103.5682091
A27: City of Riverside - (CA) | C27: 0 | D27: 80.01151 | E27: =D27*(1+('Scenario Input'!$AA$15/100)) -> 86.52457019 | F27: =E27*(1+('Scenario Input'!$AD$15/100)) -> 90.55535685 | G27: =F27*(1+('Scenario Input'!$AG$15/100)) -> 92.88320169 | H27: =G27*(1+('Scenario Input'!$AJ$15/100)) -> 95.03509889 | I27: =H27*(1+('Scenario Input'!$AM$15/100)) -> 97.20712932 | J27: =I27*(1+('Scenario Input'!$AP$15/100)) -> 101.0898956 | K27: =J27*(1+('Scenario Input'!$AS$15/100)) -> 105.1277521 | L27: 80.01151 | M27: =L27*(1+('Scenario Input'!$AA$15/100)) -> 86.52457019 | N27: =M27*(1+('Scenario Input'!$AD$15/100)) -> 90.55535685 | O27: =N27*(1+('Scenario Input'!$AG$15/100)) -> 92.88320169 | P27: =O27*(1+('Scenario Input'!$AJ$15/100)) -> 95.03509889 | Q27: =P27*(1+('Scenario Input'!$AM$15/100)) -> 97.20712932 | R27: =Q27*(1+('Scenario Input'!$AP$15/100)) -> 101.0898956 | S27: =R27*(1+('Scenario Input'!$AS$15/100)) -> 105.1277521 | T27: 80.01151 | U27: 86.52457019 | V27: 90.55535685 | W27: 92.88320169 | X27: 95.03509889 | Y27: 97.20712932 | Z27: 101.0898956 | AA27: 105.1277521
A28: City of Roseville - (CA) | C28: 0 | D28: 72.55 | E28: =D28*(1+('Scenario Input'!$AA$15/100)) -> 78.45568178 | F28: =E28*(1+('Scenario Input'!$AD$15/100)) -> 82.11057559 | G28: =F28*(1+('Scenario Input'!$AG$15/100)) -> 84.22133619 | H28: =G28*(1+('Scenario Input'!$AJ$15/100)) -> 86.17255723 | I28: =H28*(1+('Scenario Input'!$AM$15/100)) -> 88.14203397 | J28: =I28*(1+('Scenario Input'!$AP$15/100)) -> 91.66271109 | K28: =J28*(1+('Scenario Input'!$AS$15/100)) -> 95.32401541 | L28: 72.55 | M28: =L28*(1+('Scenario Input'!$AA$15/100)) -> 78.45568178 | N28: =M28*(1+('Scenario Input'!$AD$15/100)) -> 82.11057559 | O28: =N28*(1+('Scenario Input'!$AG$15/100)) -> 84.22133619 | P28: =O28*(1+('Scenario Input'!$AJ$15/100)) -> 86.17255723 | Q28: =P28*(1+('Scenario Input'!$AM$15/100)) -> 88.14203397 | R28: =Q28*(1+('Scenario Input'!$AP$15/100)) -> 91.66271109 | S28: =R28*(1+('Scenario Input'!$AS$15/100)) -> 95.32401541 | T28: 72.55 | U28: 78.45568178 | V28: 82.11057559 | W28: 84.22133619 | X28: 86.17255723 | Y28: 88.14203397 | Z28: 91.66271109 | AA28: 95.32401541
A29: City of Santa Clara - (CA) | C29: 0 | D29: 36.96 | E29: =D29*(1+('Scenario Input'!$AA$15/100)) -> 39.96860095 | F29: =E29*(1+('Scenario Input'!$AD$15/100)) -> 41.8305565 | G29: =F29*(1+('Scenario Input'!$AG$15/100)) -> 42.9058661 | H29: =G29*(1+('Scenario Input'!$AJ$15/100)) -> 43.89989959 | I29: =H29*(1+('Scenario Input'!$AM$15/100)) -> 44.90323329 | J29: =I29*(1+('Scenario Input'!$AP$15/100)) -> 46.69681326 | K29: =J29*(1+('Scenario Input'!$AS$15/100)) -> 48.56203459 | L29: 36.96 | M29: =L29*(1+('Scenario Input'!$AA$15/100)) -> 39.96860095 | N29: =M29*(1+('Scenario Input'!$AD$15/100)) -> 41.8305565 | O29: =N29*(1+('Scenario Input'!$AG$15/100)) -> 42.9058661 | P29: =O29*(1+('Scenario Input'!$AJ$15/100)) -> 43.89989959 | Q29: =P29*(1+('Scenario Input'!$AM$15/100)) -> 44.90323329 | R29: =Q29*(1+('Scenario Input'!$AP$15/100)) -> 46.69681326 | S29: =R29*(1+('Scenario Input'!$AS$15/100)) -> 48.56203459 | T29: 36.96 | U29: 39.96860095 | V29: 41.8305565 | W29: 42.9058661 | X29: 43.89989959 | Y29: 44.90323329 | Z29: 46.69681326 | AA29: 48.56203459
A30: City of Shasta Lake - (CA) | C30: 0 | D30: 89.38121 | E30: =D30*(1+('Scenario Input'!$AA$15/100)) -> 96.65697821 | F30: =E30*(1+('Scenario Input'!$AD$15/100)) -> 101.1597877 | G30: =F30*(1+('Scenario Input'!$AG$15/100)) -> 103.7602334 | H30: =G30*(1+('Scenario Input'!$AJ$15/100)) -> 106.1641273 | I30: =H30*(1+('Scenario Input'!$AM$15/100)) -> 108.590512 | J30: =I30*(1+('Scenario Input'!$AP$15/100)) -> 112.9279673 | K30: =J30*(1+('Scenario Input'!$AS$15/100)) -> 117.4386746 | L30: 89.38121 | M30: =L30*(1+('Scenario Input'!$AA$15/100)) -> 96.65697821 | N30: =M30*(1+('Scenario Input'!$AD$15/100)) -> 101.1597877 | O30: =N30*(1+('Scenario Input'!$AG$15/100)) -> 103.7602334 | P30: =O30*(1+('Scenario Input'!$AJ$15/100)) -> 106.1641273 | Q30: =P30*(1+('Scenario Input'!$AM$15/100)) -> 108.590512 | R30: =Q30*(1+('Scenario Input'!$AP$15/100)) -> 112.9279673 | S30: =R30*(1+('Scenario Input'!$AS$15/100)) -> 117.4386746 | T30: 89.38121 | U30: 96.65697821 | V30: 101.1597877 | W30: 103.7602334 | X30: 106.1641273 | Y30: 108.590512 | Z30: 112.9279673 | AA30: 117.4386746
A31: City of Ukiah - (CA) | C31: 0 | D31: 48.558 | E31: =D31*(1+('Scenario Input'!$AA$15/100)) -> 52.51069602 | F31: =E31*(1+('Scenario Input'!$AD$15/100)) -> 54.9569308 | G31: =F31*(1+('Scenario Input'!$AG$15/100)) -> 56.36967116 | H31: =G31*(1+('Scenario Input'!$AJ$15/100)) -> 57.67563107 | I31: =H31*(1+('Scenario Input'!$AM$15/100)) -> 58.99380959 | J31: =I31*(1+('Scenario Input'!$AP$15/100)) -> 61.35021261 | K31: =J31*(1+('Scenario Input'!$AS$15/100)) -> 63.80073798 | L31: 48.558 | M31: =L31*(1+('Scenario Input'!$AA$15/100)) -> 52.51069602 | N31: =M31*(1+('Scenario Input'!$AD$15/100)) -> 54.9569308 | O31: =N31*(1+('Scenario Input'!$AG$15/100)) -> 56.36967116 | P31: =O31*(1+('Scenario Input'!$AJ$15/100)) -> 57.67563107 | Q31: =P31*(1+('Scenario Input'!$AM$15/100)) -> 58.99380959 | R31: =Q31*(1+('Scenario Input'!$AP$15/100)) -> 61.35021261 | S31: =R31*(1+('Scenario Input'!$AS$15/100)) -> 63.80073798 | T31: 48.558 | U31: 52.51069602 | V31: 54.9569308 | W31: 56.36967116 | X31: 57.67563107 | Y31: 58.99380959 | Z31: 61.35021261 | AA31: 63.80073798
A32: City of Vernon | C32: 0 | D32: 37.17909 | E32: =D32*(1+('Scenario Input'!$AA$15/100)) -> 40.20552521 | F32: =E32*(1+('Scenario Input'!$AD$15/100)) -> 42.07851798 | G32: =F32*(1+('Scenario Input'!$AG$15/100)) -> 43.16020176 | H32: =G32*(1+('Scenario Input'!$AJ$15/100)) -> 44.16012765 | I32: =H32*(1+('Scenario Input'!$AM$15/100)) -> 45.16940887 | J32: =I32*(1+('Scenario Input'!$AP$15/100)) -> 46.97362075 | K32: =J32*(1+('Scenario Input'!$AS$15/100)) -> 48.84989866 | L32: 37.17909 | M32: =L32*(1+('Scenario Input'!$AA$15/100)) -> 40.20552521 | N32: =M32*(1+('Scenario Input'!$AD$15/100)) -> 42.07851798 | O32: =N32*(1+('Scenario Input'!$AG$15/100)) -> 43.16020176 | P32: =O32*(1+('Scenario Input'!$AJ$15/100)) -> 44.16012765 | Q32: =P32*(1+('Scenario Input'!$AM$15/100)) -> 45.16940887 | R32: =Q32*(1+('Scenario Input'!$AP$15/100)) -> 46.97362075 | S32: =R32*(1+('Scenario Input'!$AS$15/100)) -> 48.84989866 | T32: 37.17909 | U32: 40.20552521 | V32: 42.07851798 | W32: 43.16020176 | X32: 44.16012765 | Y32: 45.16940887 | Z32: 46.97362075 | AA32: 48.84989866
A33: Imperial Irrigation District | C33: 0 | D33: 55.76545245 | E33: =D33*(1+('Scenario Input'!$AA$15/100)) -> 60.30484619 | F33: =E33*(1+('Scenario Input'!$AD$15/100)) -> 63.11417503 | G33: =F33*(1+('Scenario Input'!$AG$15/100)) -> 64.73660811 | H33: =G33*(1+('Scenario Input'!$AJ$15/100)) -> 66.23641134 | I33: =H33*(1+('Scenario Input'!$AM$15/100)) -> 67.75024678 | J33: =I33*(1+('Scenario Input'!$AP$15/100)) -> 70.45641015 | K33: =J33*(1+('Scenario Input'!$AS$15/100)) -> 73.27066641 | L33: 55.76545245 | M33: =L33*(1+('Scenario Input'!$AA$15/100)) -> 60.30484619 | N33: =M33*(1+('Scenario Input'!$AD$15/100)) -> 63.11417503 | O33: =N33*(1+('Scenario Input'!$AG$15/100)) -> 64.73660811 | P33: =O33*(1+('Scenario Input'!$AJ$15/100)) -> 66.23641134 | Q33: =P33*(1+('Scenario Input'!$AM$15/100)) -> 67.75024678 | R33: =Q33*(1+('Scenario Input'!$AP$15/100)) -> 70.45641015 | S33: =R33*(1+('Scenario Input'!$AS$15/100)) -> 73.27066641 | T33: 55.76545245 | U33: 60.30484619 | V33: 63.11417503 | W33: 64.73660811 | X33: 66.23641134 | Y33: 67.75024678 | Z33: 70.45641015 | AA33: 73.27066641
A34: Kirkwood Meadows Public Utility District | C34: 0 | D34: 168.6515 | E34: =D34*(1+('Scenario Input'!$AA$15/100)) -> 182.3799919 | F34: =E34*(1+('Scenario Input'!$AD$15/100)) -> 190.8762473 | G34: =F34*(1+('Scenario Input'!$AG$15/100)) -> 195.7829728 | H34: =G34*(1+('Scenario Input'!$AJ$15/100)) -> 200.3188289 | I34: =H34*(1+('Scenario Input'!$AM$15/100)) -> 204.8971226 | J34: =I34*(1+('Scenario Input'!$AP$15/100)) -> 213.0813745 | K34: =J34*(1+('Scenario Input'!$AS$15/100)) -> 221.5925318 | L34: 168.6515 | M34: =L34*(1+('Scenario Input'!$AA$15/100)) -> 182.3799919 | N34: =M34*(1+('Scenario Input'!$AD$15/100)) -> 190.8762473 | O34: =N34*(1+('Scenario Input'!$AG$15/100)) -> 195.7829728 | P34: =O34*(1+('Scenario Input'!$AJ$15/100)) -> 200.3188289 | Q34: =P34*(1+('Scenario Input'!$AM$15/100)) -> 204.8971226 | R34: =Q34*(1+('Scenario Input'!$AP$15/100)) -> 213.0813745 | S34: =R34*(1+('Scenario Input'!$AS$15/100)) -> 221.5925318 | T34: 168.6515 | U34: 182.3799919 | V34: 190.8762473 | W34: 195.7829728 | X34: 200.3188289 | Y34: 204.8971226 | Z34: 213.0813745 | AA34: 221.5925318
A35: Lassen Municipal Utility District | C35: 0 | D35: 79.966 | E35: =D35*(1+('Scenario Input'!$AA$15/100)) -> 86.47535561 | F35: =E35*(1+('Scenario Input'!$AD$15/100)) -> 90.50384959 | G35: =F35*(1+('Scenario Input'!$AG$15/100)) -> 92.83037036 | H35: =G35*(1+('Scenario Input'!$AJ$15/100)) -> 94.98104358 | I35: =H35*(1+('Scenario Input'!$AM$15/100)) -> 97.15183857 | J35: =I35*(1+('Scenario Input'!$AP$15/100)) -> 101.0323963 | K35: =J35*(1+('Scenario Input'!$AS$15/100)) -> 105.0679561 | L35: 79.966 | M35: =L35*(1+('Scenario Input'!$AA$15/100)) -> 86.47535561 | N35: =M35*(1+('Scenario Input'!$AD$15/100)) -> 90.50384959 | O35: =N35*(1+('Scenario Input'!$AG$15/100)) -> 92.83037036 | P35: =O35*(1+('Scenario Input'!$AJ$15/100)) -> 94.98104358 | Q35: =P35*(1+('Scenario Input'!$AM$15/100)) -> 97.15183857 | R35: =Q35*(1+('Scenario Input'!$AP$15/100)) -> 101.0323963 | S35: =R35*(1+('Scenario Input'!$AS$15/100)) -> 105.0679561 | T35: 79.966 | U35: 86.47535561 | V35: 90.50384959 | W35: 92.83037036 | X35: 94.98104358 | Y35: 97.15183857 | Z35: 101.0323963 | AA35: 105.0679561
A36: Lathrop Irrigation District | C36: 0 | D36: 82.9 | E36: =D36*(1+('Scenario Input'!$AA$15/100)) -> 89.64818773 | F36: =E36*(1+('Scenario Input'!$AD$15/100)) -> 93.82448954 | G36: =F36*(1+('Scenario Input'!$AG$15/100)) -> 96.23637174 | H36: =G36*(1+('Scenario Input'!$AJ$15/100)) -> 98.46595444 | I36: =H36*(1+('Scenario Input'!$AM$15/100)) -> 100.7163972 | J36: =I36*(1+('Scenario Input'!$AP$15/100)) -> 104.7393349 | K36: =J36*(1+('Scenario Input'!$AS$15/100)) -> 108.9229618 | L36: 82.9 | M36: =L36*(1+('Scenario Input'!$AA$15/100)) -> 89.64818773 | N36: =M36*(1+('Scenario Input'!$AD$15/100)) -> 93.82448954 | O36: =N36*(1+('Scenario Input'!$AG$15/100)) -> 96.23637174 | P36: =O36*(1+('Scenario Input'!$AJ$15/100)) -> 98.46595444 | Q36: =P36*(1+('Scenario Input'!$AM$15/100)) -> 100.7163972 | R36: =Q36*(1+('Scenario Input'!$AP$15/100)) -> 104.7393349 | S36: =R36*(1+('Scenario Input'!$AS$15/100)) -> 108.9229618 | T36: 82.9 | U36: 89.64818773 | V36: 93.82448954 | W36: 96.23637174 | X36: 98.46595444 | Y36: 100.7163972 | Z36: 104.7393349 | AA36: 108.9229618
A37: Liberty 16 | B37: X | C37: 0.1251879084 | D37: 87.763569 | E37: =D37*(1+('Scenario Input'!$AA$15/100)) -> 94.90765874 | F37: =E37*(1+('Scenario Input'!$AD$15/100)) -> 99.32897542 | G37: =F37*(1+('Scenario Input'!$AG$15/100)) -> 101.8823577 | H37: =G37*(1+('Scenario Input'!$AJ$15/100)) -> 104.2427453 | I37: =H37*(1+('Scenario Input'!$AM$15/100)) -> 106.6252168 | J37: =I37*(1+('Scenario Input'!$AP$15/100)) -> 110.8841719 | K37: =J37*(1+('Scenario Input'!$AS$15/100)) -> 115.3132433 | L37: 120.9318069 | M37: =L37*(1+('Scenario Input'!$AA$15/100)) -> 130.7758423 | N37: =M37*(1+('Scenario Input'!$AD$15/100)) -> 136.8680948 | O37: =N37*(1+('Scenario Input'!$AG$15/100)) -> 140.3864696 | P37: =O37*(1+('Scenario Input'!$AJ$15/100)) -> 143.6389118 | Q37: =P37*(1+('Scenario Input'!$AM$15/100)) -> 146.9217841 | R37: =Q37*(1+('Scenario Input'!$AP$15/100)) -> 152.790314 | S37: =R37*(1+('Scenario Input'!$AS$15/100)) -> 158.8932519 | T37: 91.91583134 | U37: 99.39792163 | V37: 104.0284193 | W37: 106.7026069 | X37: 109.174669 | Y37: 111.6698598 | Z37: 116.1303142 | AA37: 120.7689335
A38: Los Angeles Dep of Water & Power | C38: 0 | D38: 92.22625 | E38: =D38*(1+('Scenario Input'!$AA$15/100)) -> 99.73360885 | F38: =E38*(1+('Scenario Input'!$AD$15/100)) -> 104.3797446 | G38: =F38*(1+('Scenario Input'!$AG$15/100)) -> 107.0629636 | H38: =G38*(1+('Scenario Input'!$AJ$15/100)) -> 109.5433743 | I38: =H38*(1+('Scenario Input'!$AM$15/100)) -> 112.0469919 | J38: =I38*(1+('Scenario Input'!$AP$15/100)) -> 116.5225101 | K38: =J38*(1+('Scenario Input'!$AS$15/100)) -> 121.176795 | L38: 92.22625 | M38: =L38*(1+('Scenario Input'!$AA$15/100)) -> 99.73360885 | N38: =M38*(1+('Scenario Input'!$AD$15/100)) -> 104.3797446 | O38: =N38*(1+('Scenario Input'!$AG$15/100)) -> 107.0629636 | P38: =O38*(1+('Scenario Input'!$AJ$15/100)) -> 109.5433743 | Q38: =P38*(1+('Scenario Input'!$AM$15/100)) -> 112.0469919 | R38: =Q38*(1+('Scenario Input'!$AP$15/100)) -> 116.5225101 | S38: =R38*(1+('Scenario Input'!$AS$15/100)) -> 121.176795 | T38: 92.22625 | U38: 99.73360885 | V38: 104.3797446 | W38: 107.0629636 | X38: 109.5433743 | Y38: 112.0469919 | Z38: 116.5225101 | AA38: 121.176795
A39: Merced Irrigation District | C39: 0 | D39: 55.355 | E39: =D39*(1+('Scenario Input'!$AA$15/100)) -> 59.86098229 | F39: =E39*(1+('Scenario Input'!$AD$15/100)) -> 62.64963352 | G39: =F39*(1+('Scenario Input'!$AG$15/100)) -> 64.26012494 | H39: =G39*(1+('Scenario Input'!$AJ$15/100)) -> 65.74888912 | I39: =H39*(1+('Scenario Input'!$AM$15/100)) -> 67.25158222 | J39: =I39*(1+('Scenario Input'!$AP$15/100)) -> 69.93782732 | K39: =J39*(1+('Scenario Input'!$AS$15/100)) -> 72.73136972 | L39: 55.355 | M39: =L39*(1+('Scenario Input'!$AA$15/100)) -> 59.86098229 | N39: =M39*(1+('Scenario Input'!$AD$15/100)) -> 62.64963352 | O39: =N39*(1+('Scenario Input'!$AG$15/100)) -> 64.26012494 | P39: =O39*(1+('Scenario Input'!$AJ$15/100)) -> 65.74888912 | Q39: =P39*(1+('Scenario Input'!$AM$15/100)) -> 67.25158222 | R39: =Q39*(1+('Scenario Input'!$AP$15/100)) -> 69.93782732 | S39: =R39*(1+('Scenario Input'!$AS$15/100)) -> 72.73136972 | T39: 55.355 | U39: 59.86098229 | V39: 62.64963352 | W39: 64.26012494 | X39: 65.74888912 | Y39: 67.25158222 | Z39: 69.93782732 | AA39: 72.73136972
A40: Modesto Irrigation District | C40: 0 | D40: 86.25 | E40: =D40*(1+('Scenario Input'!$AA$15/100)) -> 93.27088289 | F40: =E40*(1+('Scenario Input'!$AD$15/100)) -> 97.61594961 | G40: =F40*(1+('Scenario Input'!$AG$15/100)) -> 100.1252963 | H40: =G40*(1+('Scenario Input'!$AJ$15/100)) -> 102.4449767 | I40: =H40*(1+('Scenario Input'!$AM$15/100)) -> 104.7863602 | J40: =I40*(1+('Scenario Input'!$AP$15/100)) -> 108.9718654 | K40: =J40*(1+('Scenario Input'!$AS$15/100)) -> 113.3245531 | L40: 86.25 | M40: =L40*(1+('Scenario Input'!$AA$15/100)) -> 93.27088289 | N40: =M40*(1+('Scenario Input'!$AD$15/100)) -> 97.61594961 | O40: =N40*(1+('Scenario Input'!$AG$15/100)) -> 100.1252963 | P40: =O40*(1+('Scenario Input'!$AJ$15/100)) -> 102.4449767 | Q40: =P40*(1+('Scenario Input'!$AM$15/100)) -> 104.7863602 | R40: =Q40*(1+('Scenario Input'!$AP$15/100)) -> 108.9718654 | S40: =R40*(1+('Scenario Input'!$AS$15/100)) -> 113.3245531 | T40: 86.25 | U40: 93.27088289 | V40: 97.61594961 | W40: 100.1252963 | X40: 102.4449767 | Y40: 104.7863602 | Z40: 108.9718654 | AA40: 113.3245531
A41: PacCorp DEL NORTE | B41: X | C41: 0.7854548841 | D41: 100.289394 | E41: =D41*(1+('Scenario Input'!$AA$15/100)) -> 108.4531052 | F41: =E41*(1+('Scenario Input'!$AD$15/100)) -> 113.5054427 | G41: =F41*(1+('Scenario Input'!$AG$15/100)) -> 116.4232497 | H41: =G41*(1+('Scenario Input'!$AJ$15/100)) -> 119.1205175 | I41: =H41*(1+('Scenario Input'!$AM$15/100)) -> 121.843021 | J41: =I41*(1+('Scenario Input'!$AP$15/100)) -> 126.7098242 | K41: =J41*(1+('Scenario Input'!$AS$15/100)) -> 131.7710233 | L41: 125.4009104 | M41: =L41*(1+('Scenario Input'!$AA$15/100)) -> 135.6087377 | N41: =M41*(1+('Scenario Input'!$AD$15/100)) -> 141.9261328 | O41: =N41*(1+('Scenario Input'!$AG$15/100)) -> 145.5745311 | P41: =O41*(1+('Scenario Input'!$AJ$15/100)) -> 148.9471692 | Q41: =P41*(1+('Scenario Input'!$AM$15/100)) -> 152.3513619 | R41: =Q41*(1+('Scenario Input'!$AP$15/100)) -> 158.4367666 | S41: =R41*(1+('Scenario Input'!$AS$15/100)) -> 164.7652421 | T41: 120.0133572 | U41: 129.7826294 | V41: 135.8286125 | W41: 139.3202661 | X41: 142.5480068 | Y41: 145.8059463 | Z41: 151.6299061 | AA41: 157.6864936
A42: PacCorp NON-DEL NORTE | B42: X | C42: 0.5652564905 | D42: 90.29127999 | E42: =D42*(1+('Scenario Input'!$AA$15/100)) -> 97.6411293 | F42: =E42*(1+('Scenario Input'!$AD$15/100)) -> 102.189786 | G42: =F42*(1+('Scenario Input'!$AG$15/100)) -> 104.8167091 | H42: =G42*(1+('Scenario Input'!$AJ$15/100)) -> 107.2450792 | I42: =H42*(1+('Scenario Input'!$AM$15/100)) -> 109.6961691 | J42: =I42*(1+('Scenario Input'!$AP$15/100)) -> 114.0777879 | K42: =J42*(1+('Scenario Input'!$AS$15/100)) -> 118.6344227 | L42: 118.0022571 | M42: =L42*(1+('Scenario Input'!$AA$15/100)) -> 127.6078226 | N42: =M42*(1+('Scenario Input'!$AD$15/100)) -> 133.5524914 | O42: =N42*(1+('Scenario Input'!$AG$15/100)) -> 136.9856342 | P42: =O42*(1+('Scenario Input'!$AJ$15/100)) -> 140.1592867 | Q42: =P42*(1+('Scenario Input'!$AM$15/100)) -> 143.362632 | R42: =Q42*(1+('Scenario Input'!$AP$15/100)) -> 149.0889979 | S42: =R42*(1+('Scenario Input'!$AS$15/100)) -> 155.0440933 | T42: 105.9550896 | U42: 114.5799972 | V42: 119.9177587 | W42: 123.0004028 | X42: 125.8500486 | Y42: 128.7263558 | Z42: 133.8681016 | AA42: 139.2152253
A43: PG&E P | B43: X | C43: 0.5463479786 | D43: 100.0712507 | E43: =D43*(1+('Scenario Input'!$AA$15/100)) -> 108.2172047 | F43: =E43*(1+('Scenario Input'!$AD$15/100)) -> 113.2585526 | G43: =F43*(1+('Scenario Input'!$AG$15/100)) -> 116.1700131 | H43: =G43*(1+('Scenario Input'!$AJ$15/100)) -> 118.8614139 | I43: =H43*(1+('Scenario Input'!$AM$15/100)) -> 121.5779956 | J43: =I43*(1+('Scenario Input'!$AP$15/100)) -> 126.4342128 | K43: =J43*(1+('Scenario Input'!$AS$15/100)) -> 131.4844031 | L43: 185.2242962 | M43: =L43*(1+('Scenario Input'!$AA$15/100)) -> 200.3018392 | N43: =M43*(1+('Scenario Input'!$AD$15/100)) -> 209.632992 | O43: =N43*(1+('Scenario Input'!$AG$15/100)) -> 215.0218844 | P43: =O43*(1+('Scenario Input'!$AJ$15/100)) -> 220.0034633 | Q43: =P43*(1+('Scenario Input'!$AM$15/100)) -> 225.0316499 | R43: =Q43*(1+('Scenario Input'!$AP$15/100)) -> 234.0201398 | S43: =R43*(1+('Scenario Input'!$AS$15/100)) -> 243.367659 | T43: 146.594445 | U43: 158.5274586 | V43: 165.9125328 | W43: 170.1775332 | X43: 174.1201681 | Y43: 178.0996905 | Z43: 185.2135666 | AA43: 192.6115938
A44: PG&E Q | B44: X | C44: 0.490850672 | D44: 89.79564287 | E44: =D44*(1+('Scenario Input'!$AA$15/100)) -> 97.10514655 | F44: =E44*(1+('Scenario Input'!$AD$15/100)) -> 101.6288342 | G44: =F44*(1+('Scenario Input'!$AG$15/100)) -> 104.2413374 | H44: =G44*(1+('Scenario Input'!$AJ$15/100)) -> 106.6563773 | I44: =H44*(1+('Scenario Input'!$AM$15/100)) -> 109.0940125 | J44: =I44*(1+('Scenario Input'!$AP$15/100)) -> 113.4515792 | K44: =J44*(1+('Scenario Input'!$AS$15/100)) -> 117.9832012 | L44: 166.5174204 | M44: =L44*(1+('Scenario Input'!$AA$15/100)) -> 180.072195 | N44: =M44*(1+('Scenario Input'!$AD$15/100)) -> 188.4609405 | O44: =N44*(1+('Scenario Input'!$AG$15/100)) -> 193.3055774 | P44: =O44*(1+('Scenario Input'!$AJ$15/100)) -> 197.7840377 | Q44: =P44*(1+('Scenario Input'!$AM$15/100)) -> 202.3043987 | R44: =Q44*(1+('Scenario Input'!$AP$15/100)) -> 210.3850888 | S44: =R44*(1+('Scenario Input'!$AS$15/100)) -> 218.7885478 | T44: 127.4545789 | U44: 137.829578 | V44: 144.2504319 | W44: 147.9585795 | X44: 151.3864507 | Y44: 154.8463932 | Z44: 161.0314575 | AA44: 167.4635733
A45: PG&E R | B45: X | C45: 0.1324140642 | D45: 108.0092233 | E45: =D45*(1+('Scenario Input'!$AA$15/100)) -> 116.8013405 | F45: =E45*(1+('Scenario Input'!$AD$15/100)) -> 122.2425844 | G45: =F45*(1+('Scenario Input'!$AG$15/100)) -> 125.3849912 | H45: =G45*(1+('Scenario Input'!$AJ$15/100)) -> 128.2898826 | I45: =H45*(1+('Scenario Input'!$AM$15/100)) -> 131.2219522 | J45: =I45*(1+('Scenario Input'!$AP$15/100)) -> 136.4633802 | K45: =J45*(1+('Scenario Input'!$AS$15/100)) -> 141.9141677 | L45: 201.789696 | M45: =L45*(1+('Scenario Input'!$AA$15/100)) -> 218.2156881 | N45: =M45*(1+('Scenario Input'!$AD$15/100)) -> 228.3813658 | O45: =N45*(1+('Scenario Input'!$AG$15/100)) -> 234.2522099 | P45: =O45*(1+('Scenario Input'!$AJ$15/100)) -> 239.6793126 | Q45: =P45*(1+('Scenario Input'!$AM$15/100)) -> 245.1571914 | R45: =Q45*(1+('Scenario Input'!$AP$15/100)) -> 254.9495604 | S45: =R45*(1+('Scenario Input'!$AS$15/100)) -> 265.1330681 | T45: 120.4270769 | U45: 130.2300265 | V45: 136.2968518 | W45: 139.8005421 | X45: 143.0394097 | Y45: 146.3085803 | Z45: 152.1526169 | AA45: 158.2300831
A46: PG&E S | B46: X | C46: 0.1217373675 | D46: 99.58757223 | E46: =D46*(1+('Scenario Input'!$AA$15/100)) -> 107.694154 | F46: =E46*(1+('Scenario Input'!$AD$15/100)) -> 112.7111355 | G46: =F46*(1+('Scenario Input'!$AG$15/100)) -> 115.6085238 | H46: =G46*(1+('Scenario Input'!$AJ$15/100)) -> 118.2869162 | I46: =H46*(1+('Scenario Input'!$AM$15/100)) -> 120.9903677 | J46: =I46*(1+('Scenario Input'!$AP$15/100)) -> 125.8231132 | K46: =J46*(1+('Scenario Input'!$AS$15/100)) -> 130.8488941 | L46: 179.2845328 | M46: =L46*(1+('Scenario Input'!$AA$15/100)) -> 193.87857 | N46: =M46*(1+('Scenario Input'!$AD$15/100)) -> 202.9104919 | O46: =N46*(1+('Scenario Input'!$AG$15/100)) -> 208.1265736 | P46: =O46*(1+('Scenario Input'!$AJ$15/100)) -> 212.9484034 | Q46: =P46*(1+('Scenario Input'!$AM$15/100)) -> 217.8153464 | R46: =Q46*(1+('Scenario Input'!$AP$15/100)) -> 226.5155939 | S46: =R46*(1+('Scenario Input'!$AS$15/100)) -> 235.5633573 | T46: 109.2896704 | U46: 118.186018 | V46: 123.6917677 | W46: 126.8714276 | X46: 129.8107564 | Y46: 132.7775857 | Z46: 138.0811507 | AA46: 143.5965572
A47: PG&E T | B47: X | C47: 0.1712079548 | D47: 60.73240215 | E47: =D47*(1+('Scenario Input'!$AA$15/100)) -> 65.67611326 | F47: =E47*(1+('Scenario Input'!$AD$15/100)) -> 68.73566502 | G47: =F47*(1+('Scenario Input'!$AG$15/100)) -> 70.50260591 | H47: =G47*(1+('Scenario Input'!$AJ$15/100)) -> 72.13599449 | I47: =H47*(1+('Scenario Input'!$AM$15/100)) -> 73.78466511 | J47: =I47*(1+('Scenario Input'!$AP$15/100)) -> 76.73186261 | K47: =J47*(1+('Scenario Input'!$AS$15/100)) -> 79.79678068 | L47: 90.77261663 | M47: =L47*(1+('Scenario Input'!$AA$15/100)) -> 98.16164748 | N47: =M47*(1+('Scenario Input'!$AD$15/100)) -> 102.7345527 | O47: =N47*(1+('Scenario Input'!$AG$15/100)) -> 105.3754798 | P47: =O47*(1+('Scenario Input'!$AJ$15/100)) -> 107.8167953 | Q47: =P47*(1+('Scenario Input'!$AM$15/100)) -> 110.2809519 | R47: =Q47*(1+('Scenario Input'!$AP$15/100)) -> 114.6859288 | S47: =R47*(1+('Scenario Input'!$AS$15/100)) -> 119.2668547 | T47: 65.87552583 | U47: 71.23789513 | V47: 74.55654505 | W47: 76.47311934 | X47: 78.24483143 | Y47: 80.03311972 | Z47: 83.22990065 | AA47: 86.55437132
A48: PG&E V | B48: X | C48: 0.1538476346 | D48: 65.70961697 | E48: =D48*(1+('Scenario Input'!$AA$15/100)) -> 71.05848104 | F48: =E48*(1+('Scenario Input'!$AD$15/100)) -> 74.36877286 | G48: =F48*(1+('Scenario Input'!$AG$15/100)) -> 76.28052022 | H48: =G48*(1+('Scenario Input'!$AJ$15/100)) -> 78.04777022 | I48: =H48*(1+('Scenario Input'!$AM$15/100)) -> 79.83155467 | J48: =I48*(1+('Scenario Input'!$AP$15/100)) -> 83.02028444 | K48: =J48*(1+('Scenario Input'!$AS$15/100)) -> 86.33638237 | L48: 116.9616511 | M48: =L48*(1+('Scenario Input'!$AA$15/100)) -> 126.4825097 | N48: =M48*(1+('Scenario Input'!$AD$15/100)) -> 132.3747552 | O48: =N48*(1+('Scenario Input'!$AG$15/100)) -> 135.7776229 | P48: =O48*(1+('Scenario Input'!$AJ$15/100)) -> 138.9232884 | Q48: =P48*(1+('Scenario Input'!$AM$15/100)) -> 142.0983849 | R48: =Q48*(1+('Scenario Input'!$AP$15/100)) -> 147.7742527 | S48: =R48*(1+('Scenario Input'!$AS$15/100)) -> 153.676833 | T48: 73.59462119 | U48: 79.58533675 | V48: 83.29285605 | W48: 85.43400873 | X48: 87.4133247 | Y48: 89.41115922 | Z48: 92.98252929 | AA48: 96.69655141
A49: PG&E W | B49: X | C49: 0.07424041662 | D49: 109.0919824 | E49: =D49*(1+('Scenario Input'!$AA$15/100)) -> 117.9722378 | F49: =E49*(1+('Scenario Input'!$AD$15/100)) -> 123.4680284 | G49: =F49*(1+('Scenario Input'!$AG$15/100)) -> 126.6419369 | H49: =G49*(1+('Scenario Input'!$AJ$15/100)) -> 129.5759489 | I49: =H49*(1+('Scenario Input'!$AM$15/100)) -> 132.5374116 | J49: =I49*(1+('Scenario Input'!$AP$15/100)) -> 137.8313833 | K49: =J49*(1+('Scenario Input'!$AS$15/100)) -> 143.3368133 | L49: 166.6097664 | M49: =L49*(1+('Scenario Input'!$AA$15/100)) -> 180.1720581 | N49: =M49*(1+('Scenario Input'!$AD$15/100)) -> 188.5654558 | O49: =N49*(1+('Scenario Input'!$AG$15/100)) -> 193.4127794 | P49: =O49*(1+('Scenario Input'!$AJ$15/100)) -> 197.8937234 | Q49: =P49*(1+('Scenario Input'!$AM$15/100)) -> 202.4165912 | R49: =Q49*(1+('Scenario Input'!$AP$15/100)) -> 210.5017627 | S49: =R49*(1+('Scenario Input'!$AS$15/100)) -> 218.909882 | T49: 113.3621266 | U49: 122.5899784 | V49: 128.3008886 | W49: 131.5990321 | X49: 134.6478889 | Y49: 137.725271 | Z49: 143.2264626 | AA49: 148.9473894
A50: PG&E X | B50: X | C50: 0.1519872498 | D50: 81.96345548 | E50: =D50*(1+('Scenario Input'!$AA$15/100)) -> 88.63540704 | F50: =E50*(1+('Scenario Input'!$AD$15/100)) -> 92.764528 | G50: =F50*(1+('Scenario Input'!$AG$15/100)) -> 95.14916249 | H50: =G50*(1+('Scenario Input'!$AJ$15/100)) -> 97.35355697 | I50: =H50*(1+('Scenario Input'!$AM$15/100)) -> 99.57857584 | J50: =I50*(1+('Scenario Input'!$AP$15/100)) -> 103.5560653 | K50: =J50*(1+('Scenario Input'!$AS$15/100)) -> 107.6924286 | L50: 103.8599212 | M50: =L50*(1+('Scenario Input'!$AA$15/100)) -> 112.3142788 | N50: =M50*(1+('Scenario Input'!$AD$15/100)) -> 117.5464909 | O50: =N50*(1+('Scenario Input'!$AG$15/100)) -> 120.5681784 | P50: =O50*(1+('Scenario Input'!$AJ$15/100)) -> 123.3614749 | Q50: =P50*(1+('Scenario Input'!$AM$15/100)) -> 126.1809057 | R50: =Q50*(1+('Scenario Input'!$AP$15/100)) -> 131.220978 | S50: =R50*(1+('Scenario Input'!$AS$15/100)) -> 136.4623671 | T50: 85.29143909 | U50: 92.23429364 | V50: 96.53107038 | W50: 99.01252881 | X50: 101.3064289 | Y50: 103.6217908 | Z50: 107.7607793 | AA50: 112.0650924
A51: PG&E Y | B51: X | C51: 0.6014136081 | D51: 92.16212856 | E51: =D51*(1+('Scenario Input'!$AA$15/100)) -> 99.66426782 | F51: =E51*(1+('Scenario Input'!$AD$15/100)) -> 104.3071733 | G51: =F51*(1+('Scenario Input'!$AG$15/100)) -> 106.9885267 | H51: =G51*(1+('Scenario Input'!$AJ$15/100)) -> 109.4672129 | I51: =H51*(1+('Scenario Input'!$AM$15/100)) -> 111.9690898 | J51: =I51*(1+('Scenario Input'!$AP$15/100)) -> 116.4414964 | K51: =J51*(1+('Scenario Input'!$AS$15/100)) -> 121.0925453 | L51: 165.3010116 | M51: =L51*(1+('Scenario Input'!$AA$15/100)) -> 178.7567686 | N51: =M51*(1+('Scenario Input'!$AD$15/100)) -> 187.0842344 | O51: =N51*(1+('Scenario Input'!$AG$15/100)) -> 191.8934813 | P51: =O51*(1+('Scenario Input'!$AJ$15/100)) -> 196.3392265 | Q51: =P51*(1+('Scenario Input'!$AM$15/100)) -> 200.8265662 | R51: =Q51*(1+('Scenario Input'!$AP$15/100)) -> 208.848227 | S51: =R51*(1+('Scenario Input'!$AS$15/100)) -> 217.1902988 | T51: 136.1488481 | U51: 147.2315741 | V51: 154.0904243 | W51: 158.0515218 | X51: 161.7132241 | Y51: 165.4091853 | Z51: 172.0161617 | AA51: 178.887042
A52: PG&E Z | B52: X | C52: 0.6566625594 | D52: 58.62939358 | E52: =D52*(1+('Scenario Input'!$AA$15/100)) -> 63.40191655 | F52: =E52*(1+('Scenario Input'!$AD$15/100)) -> 66.35552382 | G52: =F52*(1+('Scenario Input'!$AG$15/100)) -> 68.06128005 | H52: =G52*(1+('Scenario Input'!$AJ$15/100)) -> 69.63810853 | I52: =H52*(1+('Scenario Input'!$AM$15/100)) -> 71.22968988 | J52: =I52*(1+('Scenario Input'!$AP$15/100)) -> 74.07483343 | K52: =J52*(1+('Scenario Input'!$AS$15/100)) -> 77.03362119 | L52: 104.59746 | M52: =L52*(1+('Scenario Input'!$AA$15/100)) -> 113.1118544 | N52: =M52*(1+('Scenario Input'!$AD$15/100)) -> 118.3812218 | O52: =N52*(1+('Scenario Input'!$AG$15/100)) -> 121.4243672 | P52: =O52*(1+('Scenario Input'!$AJ$15/100)) -> 124.2374997 | Q52: =P52*(1+('Scenario Input'!$AM$15/100)) -> 127.076952 | R52: =Q52*(1+('Scenario Input'!$AP$15/100)) -> 132.1528154 | S52: =R52*(1+('Scenario Input'!$AS$15/100)) -> 137.431425 | T52: 88.81490171 | U52: 96.04457155 | V52: 100.5188518 | W52: 103.1028214 | X52: 105.4914845 | Y52: 107.902496 | Z52: 112.2124697 | AA52: 116.6945976
A53: Pittsburg Power Company | C53: 0.1519872498 | D53: 81.96345548 | E53: =D53*(1+('Scenario Input'!$AA$15/100)) -> 88.63540704 | F53: =E53*(1+('Scenario Input'!$AD$15/100)) -> 92.764528 | G53: =F53*(1+('Scenario Input'!$AG$15/100)) -> 95.14916249 | H53: =G53*(1+('Scenario Input'!$AJ$15/100)) -> 97.35355697 | I53: =H53*(1+('Scenario Input'!$AM$15/100)) -> 99.57857584 | J53: =I53*(1+('Scenario Input'!$AP$15/100)) -> 103.5560653 | K53: =J53*(1+('Scenario Input'!$AS$15/100)) -> 107.6924286 | L53: 103.8599212 | M53: =L53*(1+('Scenario Input'!$AA$15/100)) -> 112.3142788 | N53: =M53*(1+('Scenario Input'!$AD$15/100)) -> 117.5464909 | O53: =N53*(1+('Scenario Input'!$AG$15/100)) -> 120.5681784 | P53: =O53*(1+('Scenario Input'!$AJ$15/100)) -> 123.3614749 | Q53: =P53*(1+('Scenario Input'!$AM$15/100)) -> 126.1809057 | R53: =Q53*(1+('Scenario Input'!$AP$15/100)) -> 131.220978 | S53: =R53*(1+('Scenario Input'!$AS$15/100)) -> 136.4623671 | T53: 85.29143909 | U53: 92.23429364 | V53: 96.53107038 | W53: 99.01252881 | X53: 101.3064289 | Y53: 103.6217908 | Z53: 107.7607793 | AA53: 112.0650924
A54: Plumas-Sierra Rural Elec Coop | C54: 0 | D54: 71.23256 | E54: =D54*(1+('Scenario Input'!$AA$15/100)) -> 77.03100014 | F54: =E54*(1+('Scenario Input'!$AD$15/100)) -> 80.6195245 | G54: =F54*(1+('Scenario Input'!$AG$15/100)) -> 82.69195566 | H54: =G54*(1+('Scenario Input'!$AJ$15/100)) -> 84.60774436 | I54: =H54*(1+('Scenario Input'!$AM$15/100)) -> 86.54145725 | J54: =I54*(1+('Scenario Input'!$AP$15/100)) -> 89.99820217 | K54: =J54*(1+('Scenario Input'!$AS$15/100)) -> 93.59302063 | L54: 71.23256 | M54: =L54*(1+('Scenario Input'!$AA$15/100)) -> 77.03100014 | N54: =M54*(1+('Scenario Input'!$AD$15/100)) -> 80.6195245 | O54: =N54*(1+('Scenario Input'!$AG$15/100)) -> 82.69195566 | P54: =O54*(1+('Scenario Input'!$AJ$15/100)) -> 84.60774436 | Q54: =P54*(1+('Scenario Input'!$AM$15/100)) -> 86.54145725 | R54: =Q54*(1+('Scenario Input'!$AP$15/100)) -> 89.99820217 | S54: =R54*(1+('Scenario Input'!$AS$15/100)) -> 93.59302063 | T54: 71.23256 | U54: 77.03100014 | V54: 80.6195245 | W54: 82.69195566 | X54: 84.60774436 | Y54: 86.54145725 | Z54: 89.99820217 | AA54: 93.59302063
A55: Sacramento Municipal Util Dist | C55: 0 | D55: 76.92276562 | E55: =D55*(1+('Scenario Input'!$AA$15/100)) -> 83.18439726 | F55: =E55*(1+('Scenario Input'!$AD$15/100)) -> 87.05958044 | G55: =F55*(1+('Scenario Input'!$AG$15/100)) -> 89.29756174 | H55: =G55*(1+('Scenario Input'!$AJ$15/100)) -> 91.36638764 | I55: =H55*(1+('Scenario Input'!$AM$15/100)) -> 93.45456955 | J55: =I55*(1+('Scenario Input'!$AP$15/100)) -> 97.18744647 | K55: =J55*(1+('Scenario Input'!$AS$15/100)) -> 101.0694265 | L55: 76.92276562 | M55: =L55*(1+('Scenario Input'!$AA$15/100)) -> 83.18439726 | N55: =M55*(1+('Scenario Input'!$AD$15/100)) -> 87.05958044 | O55: =N55*(1+('Scenario Input'!$AG$15/100)) -> 89.29756174 | P55: =O55*(1+('Scenario Input'!$AJ$15/100)) -> 91.36638764 | Q55: =P55*(1+('Scenario Input'!$AM$15/100)) -> 93.45456955 | R55: =Q55*(1+('Scenario Input'!$AP$15/100)) -> 97.18744647 | S55: =R55*(1+('Scenario Input'!$AS$15/100)) -> 101.0694265 | T55: 76.92276562 | U55: 83.18439726 | V55: 87.05958044 | W55: 89.29756174 | X55: 91.36638764 | Y55: 93.45456955 | Z55: 97.18744647 | AA55: 101.0694265
A56: SCE 10 | B56: X | C56: 0.08890515082 | D56: 106.6465361 | E56: =D56*(1+('Scenario Input'!$AA$15/100)) -> 115.3277284 | F56: =E56*(1+('Scenario Input'!$AD$15/100)) -> 120.7003234 | G56: =F56*(1+('Scenario Input'!$AG$15/100)) -> 123.8030843 | H56: =G56*(1+('Scenario Input'!$AJ$15/100)) -> 126.6713264 | I56: =H56*(1+('Scenario Input'!$AM$15/100)) -> 129.5664039 | J56: =I56*(1+('Scenario Input'!$AP$15/100)) -> 134.741704 | K56: =J56*(1+('Scenario Input'!$AS$15/100)) -> 140.1237222 | L56: 121.0995709 | M56: =L56*(1+('Scenario Input'!$AA$15/100)) -> 130.9572625 | N56: =M56*(1+('Scenario Input'!$AD$15/100)) -> 137.0579665 | O56: =N56*(1+('Scenario Input'!$AG$15/100)) -> 140.5812222 | P56: =O56*(1+('Scenario Input'!$AJ$15/100)) -> 143.8381764 | Q56: =P56*(1+('Scenario Input'!$AM$15/100)) -> 147.1256029 | R56: =Q56*(1+('Scenario Input'!$AP$15/100)) -> 153.002274 | S56: =R56*(1+('Scenario Input'!$AS$15/100)) -> 159.1136783 | T56: 107.9314853 | U56: 116.7172745 | V56: 122.1546021 | W56: 125.2947472 | X56: 128.1975478 | Y56: 131.1275072 | Z56: 136.3651627 | AA56: 141.8120271
A57: SCE 13 | B57: X | C57: 0.07174209795 | D57: 114.5188685 | E57: =D57*(1+('Scenario Input'!$AA$15/100)) -> 123.8408808 | F57: =E57*(1+('Scenario Input'!$AD$15/100)) -> 129.6100648 | G57: =F57*(1+('Scenario Input'!$AG$15/100)) -> 132.9418624 | H57: =G57*(1+('Scenario Input'!$AJ$15/100)) -> 136.0218297 | I57: =H57*(1+('Scenario Input'!$AM$15/100)) -> 139.1306133 | J57: =I57*(1+('Scenario Input'!$AP$15/100)) -> 144.6879387 | K57: =J57*(1+('Scenario Input'!$AS$15/100)) -> 150.4672416 | L57: 177.4985015 | M57: =L57*(1+('Scenario Input'!$AA$15/100)) -> 191.947153 | N57: =M57*(1+('Scenario Input'!$AD$15/100)) -> 200.8890989 | O57: =N57*(1+('Scenario Input'!$AG$15/100)) -> 206.0532181 | P57: =O57*(1+('Scenario Input'!$AJ$15/100)) -> 210.8270129 | Q57: =P57*(1+('Scenario Input'!$AM$15/100)) -> 215.6454714 | R57: =Q57*(1+('Scenario Input'!$AP$15/100)) -> 224.2590471 | S57: =R57*(1+('Scenario Input'!$AS$15/100)) -> 233.2166767 | T57: 119.0371595 | U57: 128.7269676 | V57: 134.7237723 | W57: 138.1870245 | X57: 141.3885105 | Y57: 144.6199497 | Z57: 150.396537 | AA57: 156.4038597
A58: SCE 14 | B58: X | C58: 0.08354035561 | D58: 103.7432852 | E58: =D58*(1+('Scenario Input'!$AA$15/100)) -> 112.1881484 | F58: =E58*(1+('Scenario Input'!$AD$15/100)) -> 117.4144846 | G58: =F58*(1+('Scenario Input'!$AG$15/100)) -> 120.4327788 | H58: =G58*(1+('Scenario Input'!$AJ$15/100)) -> 123.2229384 | I58: =H58*(1+('Scenario Input'!$AM$15/100)) -> 126.0392028 | J58: =I58*(1+('Scenario Input'!$AP$15/100)) -> 131.0736151 | K58: =J58*(1+('Scenario Input'!$AS$15/100)) -> 136.3091181 | L58: 147.9261925 | M58: =L58*(1+('Scenario Input'!$AA$15/100)) -> 159.9676125 | N58: =M58*(1+('Scenario Input'!$AD$15/100)) -> 167.4197769 | O58: =N58*(1+('Scenario Input'!$AG$15/100)) -> 171.723523 | P58: =O58*(1+('Scenario Input'!$AJ$15/100)) -> 175.7019751 | Q58: =P58*(1+('Scenario Input'!$AM$15/100)) -> 179.7176497 | R58: =Q58*(1+('Scenario Input'!$AP$15/100)) -> 186.8961523 | S58: =R58*(1+('Scenario Input'!$AS$15/100)) -> 194.3613874 | T58: 107.434341 | U58: 116.1796619 | V58: 121.5919445 | W58: 124.7176258 | X58: 127.6070558 | Y58: 130.5235194 | Z58: 135.7370497 | AA58: 141.1588253
A59: SCE 15 | B59: X | C59: 0.1400367881 | D59: 159.5576741 | E59: =D59*(1+('Scenario Input'!$AA$15/100)) -> 172.5459146 | F59: =E59*(1+('Scenario Input'!$AD$15/100)) -> 180.5840449 | G59: =F59*(1+('Scenario Input'!$AG$15/100)) -> 185.2261959 | H59: =G59*(1+('Scenario Input'!$AJ$15/100)) -> 189.5174749 | I59: =H59*(1+('Scenario Input'!$AM$15/100)) -> 193.8489032 | J59: =I59*(1+('Scenario Input'!$AP$15/100)) -> 201.5918537 | K59: =J59*(1+('Scenario Input'!$AS$15/100)) -> 209.6440825 | L59: 146.701672 | M59: =L59*(1+('Scenario Input'!$AA$15/100)) -> 158.6434141 | N59: =M59*(1+('Scenario Input'!$AD$15/100)) -> 166.0338901 | O59: =N59*(1+('Scenario Input'!$AG$15/100)) -> 170.3020101 | P59: =O59*(1+('Scenario Input'!$AJ$15/100)) -> 174.2475289 | Q59: =P59*(1+('Scenario Input'!$AM$15/100)) -> 178.2299622 | R59: =Q59*(1+('Scenario Input'!$AP$15/100)) -> 185.3490417 | S59: =R59*(1+('Scenario Input'!$AS$15/100)) -> 192.7524802 | T59: 157.7573608 | U59: 170.5990531 | V59: 178.546488 | W59: 183.1362608 | X59: 187.3791207 | Y59: 191.6616769 | Z59: 199.3172624 | AA59: 207.2786368
A60: SCE 16 | B60: X | C60: 0.1768697936 | D60: 96.40880805 | E60: =D60*(1+('Scenario Input'!$AA$15/100)) -> 104.2566336 | F60: =E60*(1+('Scenario Input'!$AD$15/100)) -> 109.1134765 | G60: =F60*(1+('Scenario Input'!$AG$15/100)) -> 111.9183823 | H60: =G60*(1+('Scenario Input'!$AJ$15/100)) -> 114.5112823 | I60: =H60*(1+('Scenario Input'!$AM$15/100)) -> 117.1284415 | J60: =I60*(1+('Scenario Input'!$AP$15/100)) -> 121.8069293 | K60: =J60*(1+('Scenario Input'!$AS$15/100)) -> 126.6722909 | L60: 145.2242729 | M60: =L60*(1+('Scenario Input'!$AA$15/100)) -> 157.0457525 | N60: =M60*(1+('Scenario Input'!$AD$15/100)) -> 164.3618007 | O60: =N60*(1+('Scenario Input'!$AG$15/100)) -> 168.5869374 | P60: =O60*(1+('Scenario Input'!$AJ$15/100)) -> 172.4927218 | Q60: =P60*(1+('Scenario Input'!$AM$15/100)) -> 176.4350489 | R60: =Q60*(1+('Scenario Input'!$AP$15/100)) -> 183.4824338 | S60: =R60*(1+('Scenario Input'!$AS$15/100)) -> 190.811314 | T60: 105.0427892 | U60: 113.5934341 | V60: 118.8852362 | W60: 121.9413379 | X60: 124.7664475 | Y60: 127.6179889 | Z60: 132.715463 | AA60: 138.0165467
A61: SCE 5 | B61: X | C61: 0.325617284 | D61: 132.6863138 | E61: =D61*(1+('Scenario Input'!$AA$15/100)) -> 143.4871842 | F61: =E61*(1+('Scenario Input'!$AD$15/100)) -> 150.1716003 | G61: =F61*(1+('Scenario Input'!$AG$15/100)) -> 154.0319592 | H61: =G61*(1+('Scenario Input'!$AJ$15/100)) -> 157.6005371 | I61: =H61*(1+('Scenario Input'!$AM$15/100)) -> 161.2025028 | J61: =I61*(1+('Scenario Input'!$AP$15/100)) -> 167.6414507 | K61: =J61*(1+('Scenario Input'!$AS$15/100)) -> 174.3375909 | L61: 184.8290889 | M61: =L61*(1+('Scenario Input'!$AA$15/100)) -> 199.8744615 | N61: =M61*(1+('Scenario Input'!$AD$15/100)) -> 209.1857047 | O61: =N61*(1+('Scenario Input'!$AG$15/100)) -> 214.563099 | P61: =O61*(1+('Scenario Input'!$AJ$15/100)) -> 219.5340488 | Q61: =P61*(1+('Scenario Input'!$AM$15/100)) -> 224.551507 | R61: =Q61*(1+('Scenario Input'!$AP$15/100)) -> 233.5208184 | S61: =R61*(1+('Scenario Input'!$AS$15/100)) -> 242.848393 | T61: 149.6649026 | U61: 161.8478563 | V61: 169.3876126 | W61: 173.7419445 | X61: 177.767159 | Y61: 181.8300335 | Z61: 189.0929115 | AA61: 196.6458922
A62: SCE 6 | B62: X | C62: 0.1662288104 | D62: 82.9507571 | E62: =D62*(1+('Scenario Input'!$AA$15/100)) -> 89.70307653 | F62: =E62*(1+('Scenario Input'!$AD$15/100)) -> 93.88193536 | G62: =F62*(1+('Scenario Input'!$AG$15/100)) -> 96.29529429 | H62: =G62*(1+('Scenario Input'!$AJ$15/100)) -> 98.52624209 | I62: =H62*(1+('Scenario Input'!$AM$15/100)) -> 100.7780627 | J62: =I62*(1+('Scenario Input'!$AP$15/100)) -> 104.8034636 | K62: =J62*(1+('Scenario Input'!$AS$15/100)) -> 108.9896519 | L62: 85.00588929 | M62: =L62*(1+('Scenario Input'!$AA$15/100)) -> 91.92549966 | N62: =M62*(1+('Scenario Input'!$AD$15/100)) -> 96.20789109 | O62: =N62*(1+('Scenario Input'!$AG$15/100)) -> 98.68104177 | P62: =O62*(1+('Scenario Input'!$AJ$15/100)) -> 100.967262 | Q62: =P62*(1+('Scenario Input'!$AM$15/100)) -> 103.2748722 | R62: =Q62*(1+('Scenario Input'!$AP$15/100)) -> 107.4000037 | S62: =R62*(1+('Scenario Input'!$AS$15/100)) -> 111.6899063 | T62: 83.29237928 | U62: 90.07250728 | V62: 94.26857622 | W62: 96.69187425 | X62: 98.93200993 | Y62: 101.1931044 | Z62: 105.2350834 | AA62: 109.438512
A63: SCE 8 | B63: X | C63: 0.1072509768 | D63: 82.41290183 | E63: =D63*(1+('Scenario Input'!$AA$15/100)) -> 89.12143902 | F63: =E63*(1+('Scenario Input'!$AD$15/100)) -> 93.27320201 | G63: =F63*(1+('Scenario Input'!$AG$15/100)) -> 95.67091263 | H63: =G63*(1+('Scenario Input'!$AJ$15/100)) -> 97.8873949 | I63: =H63*(1+('Scenario Input'!$AM$15/100)) -> 100.1246147 | J63: =I63*(1+('Scenario Input'!$AP$15/100)) -> 104.1239147 | K63: =J63*(1+('Scenario Input'!$AS$15/100)) -> 108.2829597 | L63: 85.93278977 | M63: =L63*(1+('Scenario Input'!$AA$15/100)) -> 92.92785126 | N63: =M63*(1+('Scenario Input'!$AD$15/100)) -> 97.2569377 | O63: =N63*(1+('Scenario Input'!$AG$15/100)) -> 99.7570555 | P63: =O63*(1+('Scenario Input'!$AJ$15/100)) -> 102.0682046 | Q63: =P63*(1+('Scenario Input'!$AM$15/100)) -> 104.4009769 | R63: =Q63*(1+('Scenario Input'!$AP$15/100)) -> 108.5710887 | S63: =R63*(1+('Scenario Input'!$AS$15/100)) -> 112.9077681 | T63: 82.79041325 | U63: 89.52968045 | V63: 93.70046155 | W63: 96.10915545 | X63: 98.33579083 | Y63: 100.5832587 | Z63: 104.6008784 | AA63: 108.7789749
A64: SCE 9 | B64: X | C64: 0.08279485294 | D64: 99.95690148 | E64: =D64*(1+('Scenario Input'!$AA$15/100)) -> 108.0935473 | F64: =E64*(1+('Scenario Input'!$AD$15/100)) -> 113.1291346 | G64: =F64*(1+('Scenario Input'!$AG$15/100)) -> 116.0372681 | H64: =G64*(1+('Scenario Input'!$AJ$15/100)) -> 118.7255936 | I64: =H64*(1+('Scenario Input'!$AM$15/100)) -> 121.4390711 | J64: =I64*(1+('Scenario Input'!$AP$15/100)) -> 126.2897392 | K64: =J64*(1+('Scenario Input'!$AS$15/100)) -> 131.3341587 | L64: 99.89368186 | M64: =L64*(1+('Scenario Input'!$AA$15/100)) -> 108.0251815 | N64: =M64*(1+('Scenario Input'!$AD$15/100)) -> 113.0575839 | O64: =N64*(1+('Scenario Input'!$AG$15/100)) -> 115.9638782 | P64: =O64*(1+('Scenario Input'!$AJ$15/100)) -> 118.6505033 | Q64: =P64*(1+('Scenario Input'!$AM$15/100)) -> 121.3622646 | R64: =Q64*(1+('Scenario Input'!$AP$15/100)) -> 126.2098649 | S64: =R64*(1+('Scenario Input'!$AS$15/100)) -> 131.251094 | T64: 99.95166722 | U64: 108.0878869 | V64: 113.1232106 | W64: 116.0311918 | X64: 118.7193765 | Y64: 121.4327119 | Z64: 126.2831261 | AA64: 131.3272814
A65: SDG&E COASTAL | B65: X | C65: 0.2022850503 | D65: 89.76622693 | E65: =D65*(1+('Scenario Input'!$AA$15/100)) -> 97.07333611 | F65: =E65*(1+('Scenario Input'!$AD$15/100)) -> 101.5955419 | G65: =F65*(1+('Scenario Input'!$AG$15/100)) -> 104.2071892 | H65: =G65*(1+('Scenario Input'!$AJ$15/100)) -> 106.621438 | I65: =H65*(1+('Scenario Input'!$AM$15/100)) -> 109.0582746 | J65: =I65*(1+('Scenario Input'!$AP$15/100)) -> 113.4144138 | K65: =J65*(1+('Scenario Input'!$AS$15/100)) -> 117.9445513 | L65: 74.9782878 | M65: =L65*(1+('Scenario Input'!$AA$15/100)) -> 81.08163595 | N65: =M65*(1+('Scenario Input'!$AD$15/100)) -> 84.85886103 | O65: =N65*(1+('Scenario Input'!$AG$15/100)) -> 87.04026993 | P65: =O65*(1+('Scenario Input'!$AJ$15/100)) -> 89.0567994 | Q65: =P65*(1+('Scenario Input'!$AM$15/100)) -> 91.09219559 | R65: =Q65*(1+('Scenario Input'!$AP$15/100)) -> 94.73071168 | S65: =R65*(1+('Scenario Input'!$AS$15/100)) -> 98.51456183 | T65: 86.77484792 | U65: 93.83845424 | V65: 98.20996153 | W65: 100.7345781 | X65: 103.0683742 | Y65: 105.4240054 | Z65: 109.6349802 | AA65: 114.0141549
A66: SDG&E DESERT | B66: X | C66: 0.518819939 | D66: 128.2052219 | E66: =D66*(1+('Scenario Input'!$AA$15/100)) -> 138.6413245 | F66: =E66*(1+('Scenario Input'!$AD$15/100)) -> 145.0999939 | G66: =F66*(1+('Scenario Input'!$AG$15/100)) -> 148.8299806 | H66: =G66*(1+('Scenario Input'!$AJ$15/100)) -> 152.2780402 | I66: =H66*(1+('Scenario Input'!$AM$15/100)) -> 155.75836 | J66: =I66*(1+('Scenario Input'!$AP$15/100)) -> 161.9798513 | K66: =J66*(1+('Scenario Input'!$AS$15/100)) -> 168.449849 | L66: 167.9819561 | M66: =L66*(1+('Scenario Input'!$AA$15/100)) -> 181.6559461 | N66: =M66*(1+('Scenario Input'!$AD$15/100)) -> 190.1184714 | O66: =N66*(1+('Scenario Input'!$AG$15/100)) -> 195.0057174 | P66: =O66*(1+('Scenario Input'!$AJ$15/100)) -> 199.5235662 | Q66: =P66*(1+('Scenario Input'!$AM$15/100)) -> 204.0836841 | R66: =Q66*(1+('Scenario Input'!$AP$15/100)) -> 212.2354446 | S66: =R66*(1+('Scenario Input'!$AS$15/100)) -> 220.7128128 | T66: 148.8421847 | U66: 160.9581678 | V66: 168.4564777 | W66: 172.7868735 | X66: 176.7899611 | Y66: 180.8305017 | Z66: 188.0534552 | AA66: 195.5649167
A67: SDG&E INLAND | B67: X | C67: 0.2245527557 | D67: 97.87799611 | E67: =D67*(1+('Scenario Input'!$AA$15/100)) -> 105.8454158 | F67: =E67*(1+('Scenario Input'!$AD$15/100)) -> 110.7762729 | G67: =F67*(1+('Scenario Input'!$AG$15/100)) -> 113.623923 | H67: =G67*(1+('Scenario Input'!$AJ$15/100)) -> 116.2563366 | I67: =H67*(1+('Scenario Input'!$AM$15/100)) -> 118.9133792 | J67: =I67*(1+('Scenario Input'!$AP$15/100)) -> 123.6631631 | K67: =J67*(1+('Scenario Input'!$AS$15/100)) -> 128.6026686 | L67: 105.5403486 | M67: =L67*(1+('Scenario Input'!$AA$15/100)) -> 114.1314956 | N67: =M67*(1+('Scenario Input'!$AD$15/100)) -> 119.4483635 | O67: =N67*(1+('Scenario Input'!$AG$15/100)) -> 122.5189412 | P67: =O67*(1+('Scenario Input'!$AJ$15/100)) -> 125.3574326 | Q67: =P67*(1+('Scenario Input'!$AM$15/100)) -> 128.222481 | R67: =Q67*(1+('Scenario Input'!$AP$15/100)) -> 133.3441004 | S67: =R67*(1+('Scenario Input'!$AS$15/100)) -> 138.6702939 | T67: 99.59859849 | U67: 107.7060779 | V67: 112.7236147 | W67: 115.6213239 | X67: 118.3000128 | Y67: 121.0037636 | Z67: 125.8370442 | AA67: 130.8633816
A68: SDG&E MOUNTAIN | B68: X | C68: 0.3532663317 | D68: 129.9588299 | E68: =D68*(1+('Scenario Input'!$AA$15/100)) -> 140.5376789 | F68: =E68*(1+('Scenario Input'!$AD$15/100)) -> 147.084691 | G68: =F68*(1+('Scenario Input'!$AG$15/100)) -> 150.8656969 | H68: =G68*(1+('Scenario Input'!$AJ$15/100)) -> 154.3609195 | I68: =H68*(1+('Scenario Input'!$AM$15/100)) -> 157.8888436 | J68: =I68*(1+('Scenario Input'!$AP$15/100)) -> 164.1954333 | K68: =J68*(1+('Scenario Input'!$AS$15/100)) -> 170.7539284 | L68: 188.8477709 | M68: =L68*(1+('Scenario Input'!$AA$15/100)) -> 204.2202704 | N68: =M68*(1+('Scenario Input'!$AD$15/100)) -> 213.733965 | O68: =N68*(1+('Scenario Input'!$AG$15/100)) -> 219.2282784 | P68: =O68*(1+('Scenario Input'!$AJ$15/100)) -> 224.30731 | Q68: =P68*(1+('Scenario Input'!$AM$15/100)) -> 229.4338612 | R68: =Q68*(1+('Scenario Input'!$AP$15/100)) -> 238.5981897 | S68: =R68*(1+('Scenario Input'!$AS$15/100)) -> 248.1285709 | T68: =(D68*(1-$C68))+(L68*$C68) -> 150.7623101 | U68: =(E68*(1-$C68))+(M68*$C68) -> 163.0345944 | V68: =(F68*(1-$C68))+(N68*$C68) -> 170.6296355 | W68: =(G68*(1-$C68))+(O68*$C68) -> 175.0158953 | X68: =(H68*(1-$C68))+(P68*$C68) -> 179.0706243 | Y68: =(I68*(1-$C68))+(Q68*$C68) -> 183.1632895 | Z68: =(J68*(1-$C68))+(R68*$C68) -> 190.4794221 | AA68: =(K68*(1-$C68))+(S68*$C68) -> 198.0877845
A69: Shelter Cove Resort Improvement District | C69: 0 | D69: 251.82 | E69: =D69*(1+('Scenario Input'!$AA$15/100)) -> 272.318536 | F69: =E69*(1+('Scenario Input'!$AD$15/100)) -> 285.0046195 | G69: =F69*(1+('Scenario Input'!$AG$15/100)) -> 292.331039 | H69: =G69*(1+('Scenario Input'!$AJ$15/100)) -> 299.103699 | I69: =H69*(1+('Scenario Input'!$AM$15/100)) -> 305.9397242 | J69: =I69*(1+('Scenario Input'!$AP$15/100)) -> 318.1599436 | K69: =J69*(1+('Scenario Input'!$AS$15/100)) -> 330.8682779 | L69: 251.82 | M69: =L69*(1+('Scenario Input'!$AA$15/100)) -> 272.318536 | N69: =M69*(1+('Scenario Input'!$AD$15/100)) -> 285.0046195 | O69: =N69*(1+('Scenario Input'!$AG$15/100)) -> 292.331039 | P69: =O69*(1+('Scenario Input'!$AJ$15/100)) -> 299.103699 | Q69: =P69*(1+('Scenario Input'!$AM$15/100)) -> 305.9397242 | R69: =Q69*(1+('Scenario Input'!$AP$15/100)) -> 318.1599436 | S69: =R69*(1+('Scenario Input'!$AS$15/100)) -> 330.8682779 | T69: 251.82 | U69: 272.318536 | V69: 285.0046195 | W69: 292.331039 | X69: 299.103699 | Y69: 305.9397242 | Z69: 318.1599436 | AA69: 330.8682779
A70: Surprise Valley Electrification | C70: 0 | D70: 31.8054 | E70: =D70*(1+('Scenario Input'!$AA$15/100)) -> 34.39440856 | F70: =E70*(1+('Scenario Input'!$AD$15/100)) -> 35.99668781 | G70: =F70*(1+('Scenario Input'!$AG$15/100)) -> 36.92203013 | H70: =G70*(1+('Scenario Input'!$AJ$15/100)) -> 37.77743145 | I70: =H70*(1+('Scenario Input'!$AM$15/100)) -> 38.64083594 | J70: =I70*(1+('Scenario Input'!$AP$15/100)) -> 40.18427555 | K70: =J70*(1+('Scenario Input'!$AS$15/100)) -> 41.78936512 | L70: 31.8054 | M70: =L70*(1+('Scenario Input'!$AA$15/100)) -> 34.39440856 | N70: =M70*(1+('Scenario Input'!$AD$15/100)) -> 35.99668781 | O70: =N70*(1+('Scenario Input'!$AG$15/100)) -> 36.92203013 | P70: =O70*(1+('Scenario Input'!$AJ$15/100)) -> 37.77743145 | Q70: =P70*(1+('Scenario Input'!$AM$15/100)) -> 38.64083594 | R70: =Q70*(1+('Scenario Input'!$AP$15/100)) -> 40.18427555 | S70: =R70*(1+('Scenario Input'!$AS$15/100)) -> 41.78936512 | T70: 31.8054 | U70: 34.39440856 | V70: 35.99668781 | W70: 36.92203013 | X70: 37.77743145 | Y70: 38.64083594 | Z70: 40.18427555 | AA70: 41.78936512
A71: Trinity Public Utility District | C71: 0 | D71: 44.37899 | E71: =D71*(1+('Scenario Input'!$AA$15/100)) -> 47.99150816 | F71: =E71*(1+('Scenario Input'!$AD$15/100)) -> 50.22721451 | G71: =F71*(1+('Scenario Input'!$AG$15/100)) -> 51.51837128 | H71: =G71*(1+('Scenario Input'!$AJ$15/100)) -> 52.71193736 | I71: =H71*(1+('Scenario Input'!$AM$15/100)) -> 53.91667049 | J71: =I71*(1+('Scenario Input'!$AP$15/100)) -> 56.07027621 | K71: =J71*(1+('Scenario Input'!$AS$15/100)) -> 58.30990388 | L71: 44.37899 | M71: =L71*(1+('Scenario Input'!$AA$15/100)) -> 47.99150816 | N71: =M71*(1+('Scenario Input'!$AD$15/100)) -> 50.22721451 | O71: =N71*(1+('Scenario Input'!$AG$15/100)) -> 51.51837128 | P71: =O71*(1+('Scenario Input'!$AJ$15/100)) -> 52.71193736 | Q71: =P71*(1+('Scenario Input'!$AM$15/100)) -> 53.91667049 | R71: =Q71*(1+('Scenario Input'!$AP$15/100)) -> 56.07027621 | S71: =R71*(1+('Scenario Input'!$AS$15/100)) -> 58.30990388 | T71: 44.37899 | U71: 47.99150816 | V71: 50.22721451 | W71: 51.51837128 | X71: 52.71193736 | Y71: 53.91667049 | Z71: 56.07027621 | AA71: 58.30990388
A72: Truckee Donner P U D | C72: 0 | D72: 48.5272 | E72: =D72*(1+('Scenario Input'!$AA$15/100)) -> 52.47738885 | F72: =E72*(1+('Scenario Input'!$AD$15/100)) -> 54.922072 | G72: =F72*(1+('Scenario Input'!$AG$15/100)) -> 56.33391627 | H72: =G72*(1+('Scenario Input'!$AJ$15/100)) -> 57.63904782 | I72: =H72*(1+('Scenario Input'!$AM$15/100)) -> 58.95639023 | J72: =I72*(1+('Scenario Input'!$AP$15/100)) -> 61.3112986 | K72: =J72*(1+('Scenario Input'!$AS$15/100)) -> 63.76026961 | L72: 48.5272 | M72: =L72*(1+('Scenario Input'!$AA$15/100)) -> 52.47738885 | N72: =M72*(1+('Scenario Input'!$AD$15/100)) -> 54.922072 | O72: =N72*(1+('Scenario Input'!$AG$15/100)) -> 56.33391627 | P72: =O72*(1+('Scenario Input'!$AJ$15/100)) -> 57.63904782 | Q72: =P72*(1+('Scenario Input'!$AM$15/100)) -> 58.95639023 | R72: =Q72*(1+('Scenario Input'!$AP$15/100)) -> 61.3112986 | S72: =R72*(1+('Scenario Input'!$AS$15/100)) -> 63.76026961 | T72: 48.5272 | U72: 52.47738885 | V72: 54.922072 | W72: 56.33391627 | X72: 57.63904782 | Y72: 58.95639023 | Z72: 61.3112986 | AA72: 63.76026961
A73: Turlock Irrigation District | C73: 0 | D73: 90.01 | E73: =D73*(1+('Scenario Input'!$AA$15/100)) -> 97.33695268 | F73: =E73*(1+('Scenario Input'!$AD$15/100)) -> 101.8714391 | G73: =F73*(1+('Scenario Input'!$AG$15/100)) -> 104.4901788 | H73: =G73*(1+('Scenario Input'!$AJ$15/100)) -> 106.9109838 | I73: =H73*(1+('Scenario Input'!$AM$15/100)) -> 109.354438 | J73: =I73*(1+('Scenario Input'!$AP$15/100)) -> 113.722407 | K73: =J73*(1+('Scenario Input'!$AS$15/100)) -> 118.2648467 | L73: 90.01 | M73: =L73*(1+('Scenario Input'!$AA$15/100)) -> 97.33695268 | N73: =M73*(1+('Scenario Input'!$AD$15/100)) -> 101.8714391 | O73: =N73*(1+('Scenario Input'!$AG$15/100)) -> 104.4901788 | P73: =O73*(1+('Scenario Input'!$AJ$15/100)) -> 106.9109838 | Q73: =P73*(1+('Scenario Input'!$AM$15/100)) -> 109.354438 | R73: =Q73*(1+('Scenario Input'!$AP$15/100)) -> 113.722407 | S73: =R73*(1+('Scenario Input'!$AS$15/100)) -> 118.2648467 | T73: 90.01 | U73: 97.33695268 | V73: 101.8714391 | W73: 104.4901788 | X73: 106.9109838 | Y73: 109.354438 | Z73: 113.722407 | AA73: 118.2648467
A74: Valley Electric Assn, Inc | C74: 0 | D74: 68.0194 | E74: =D74*(1+('Scenario Input'!$AA$15/100)) -> 73.55628396 | F74: =E74*(1+('Scenario Input'!$AD$15/100)) -> 76.98293708 | G74: =F74*(1+('Scenario Input'!$AG$15/100)) -> 78.96188497 | H74: =G74*(1+('Scenario Input'!$AJ$15/100)) -> 80.79125623 | I74: =H74*(1+('Scenario Input'!$AM$15/100)) -> 82.63774315 | J74: =I74*(1+('Scenario Input'!$AP$15/100)) -> 85.93856114 | K74: =J74*(1+('Scenario Input'!$AS$15/100)) -> 89.37122445 | L74: 68.0194 | M74: =L74*(1+('Scenario Input'!$AA$15/100)) -> 73.55628396 | N74: =M74*(1+('Scenario Input'!$AD$15/100)) -> 76.98293708 | O74: =N74*(1+('Scenario Input'!$AG$15/100)) -> 78.96188497 | P74: =O74*(1+('Scenario Input'!$AJ$15/100)) -> 80.79125623 | Q74: =P74*(1+('Scenario Input'!$AM$15/100)) -> 82.63774315 | R74: =Q74*(1+('Scenario Input'!$AP$15/100)) -> 85.93856114 | S74: =R74*(1+('Scenario Input'!$AS$15/100)) -> 89.37122445 | T74: 68.0194 | U74: 73.55628396 | V74: 76.98293708 | W74: 78.96188497 | X74: 80.79125623 | Y74: 82.63774315 | Z74: 85.93856114 | AA74: 89.37122445

Sheet Gas Input
A1: Gas Provider and Climate Zone | B1: 2021 Essential Usage Bill ($/month) | C1: 2022 Essential Usage Bill ($/month) | D1: 2023 Essential Usage Bill ($/month) | E1: 2024 Essential Usage Bill ($/month) | F1: 2025 Essential Usage Bill ($/month) | G1: 2026 Essential Usage Bill ($/month) | H1: 2027 Essential Usage Bill ($/month) | I1: 2028 Essential Usage Bill ($/month)
A2: City of Coalinga | B2: 46.49 | C2: =B2*(1+('Scenario Input'!$AA$15/100)) -> 50.27435763 | D2: =C2*(1+('Scenario Input'!$AD$15/100)) -> 52.61641157 | E2: =D2*(1+('Scenario Input'!$AG$15/100)) -> 53.96898579 | F2: =E2*(1+('Scenario Input'!$AJ$15/100)) -> 55.21932716 | G2: =F2*(1+('Scenario Input'!$AM$15/100)) -> 56.48136677 | H2: =G2*(1+('Scenario Input'!$AP$15/100)) -> 58.73741473 | I2: =H2*(1+('Scenario Input'!$AS$15/100)) -> 61.08357652
A3: City of Palo Alto Ultilities | B3: 55.67 | C3: =B3*(1+('Scenario Input'!$AA$15/100)) -> 60.20162377 | D3: =C3*(1+('Scenario Input'!$AD$15/100)) -> 63.00614394 | E3: =D3*(1+('Scenario Input'!$AG$15/100)) -> 64.62579994 | F3: =E3*(1+('Scenario Input'!$AJ$15/100)) -> 66.12303599 | G3: =F3*(1+('Scenario Input'!$AM$15/100)) -> 67.63428024 | H3: =G3*(1+('Scenario Input'!$AP$15/100)) -> 70.33581153 | I3: =H3*(1+('Scenario Input'!$AS$15/100)) -> 73.14525069
A4: City of Susanville | B4: 74.21 | C4: =B4*(1+('Scenario Input'!$AA$15/100)) -> 80.25080834 | D4: =C4*(1+('Scenario Input'!$AD$15/100)) -> 83.98932894 | E4: =D4*(1+('Scenario Input'!$AG$15/100)) -> 86.14838537 | F4: =E4*(1+('Scenario Input'!$AJ$15/100)) -> 88.14425186 | G4: =F4*(1+('Scenario Input'!$AM$15/100)) -> 90.15879174 | H4: =G4*(1+('Scenario Input'!$AP$15/100)) -> 93.76002467 | I4: =H4*(1+('Scenario Input'!$AS$15/100)) -> 97.50510246
A5: City of Vernon Gas System | B5: 52.37 | C5: =B5*(1+('Scenario Input'!$AA$15/100)) -> 56.63299869 | D5: =C5*(1+('Scenario Input'!$AD$15/100)) -> 59.27127283 | E5: =D5*(1+('Scenario Input'!$AG$15/100)) -> 60.79491904 | F5: =E5*(1+('Scenario Input'!$AJ$15/100)) -> 62.2034021 | G5: =F5*(1+('Scenario Input'!$AM$15/100)) -> 63.62506298 | H5: =G5*(1+('Scenario Input'!$AP$15/100)) -> 66.1664532 | I5: =H5*(1+('Scenario Input'!$AS$15/100)) -> 68.80935475
A6: Island Energy | B6: 55.67 | C6: =B6*(1+('Scenario Input'!$AA$15/100)) -> 60.20162377 | D6: =C6*(1+('Scenario Input'!$AD$15/100)) -> 63.00614394 | E6: =D6*(1+('Scenario Input'!$AG$15/100)) -> 64.62579994 | F6: =E6*(1+('Scenario Input'!$AJ$15/100)) -> 66.12303599 | G6: =F6*(1+('Scenario Input'!$AM$15/100)) -> 67.63428024 | H6: =G6*(1+('Scenario Input'!$AP$15/100)) -> 70.33581153 | I6: =H6*(1+('Scenario Input'!$AS$15/100)) -> 73.14525069
A7: Long Beach Gas & Oil | B7: 52.37 | C7: =B7*(1+('Scenario Input'!$AA$15/100)) -> 56.63299869 | D7: =C7*(1+('Scenario Input'!$AD$15/100)) -> 59.27127283 | E7: =D7*(1+('Scenario Input'!$AG$15/100)) -> 60.79491904 | F7: =E7*(1+('Scenario Input'!$AJ$15/100)) -> 62.2034021 | G7: =F7*(1+('Scenario Input'!$AM$15/100)) -> 63.62506298 | H7: =G7*(1+('Scenario Input'!$AP$15/100)) -> 66.1664532 | I7: =H7*(1+('Scenario Input'!$AS$15/100)) -> 68.80935475
A8: PG&E P | B8: 57.39921756 | C8: =B8*(1+('Scenario Input'!$AA$15/100)) -> 62.07160231 | D8: =C8*(1+('Scenario Input'!$AD$15/100)) -> 64.96323628 | E8: =D8*(1+('Scenario Input'!$AG$15/100)) -> 66.63320192 | F8: =E8*(1+('Scenario Input'!$AJ$15/100)) -> 68.17694501 | G8: =F8*(1+('Scenario Input'!$AM$15/100)) -> 69.73513141 | H8: =G8*(1+('Scenario Input'!$AP$15/100)) -> 72.52057748 | I8: =H8*(1+('Scenario Input'!$AS$15/100)) -> 75.41728324
A9: PG&E Q | B9: 58.47443849 | C9: =B9*(1+('Scenario Input'!$AA$15/100)) -> 63.23434787 | D9: =C9*(1+('Scenario Input'!$AD$15/100)) -> 66.18014888 | E9: =D9*(1+('Scenario Input'!$AG$15/100)) -> 67.88139686 | F9: =E9*(1+('Scenario Input'!$AJ$15/100)) -> 69.45405785 | G9: =F9*(1+('Scenario Input'!$AM$15/100)) -> 71.04143271 | H9: =G9*(1+('Scenario Input'!$AP$15/100)) -> 73.87905666 | I9: =H9*(1+('Scenario Input'!$AS$15/100)) -> 76.83002447
A10: PG&E R | B10: 46.48748077 | C10: =B10*(1+('Scenario Input'!$AA$15/100)) -> 50.27163333 | D10: =C10*(1+('Scenario Input'!$AD$15/100)) -> 52.61356036 | E10: =D10*(1+('Scenario Input'!$AG$15/100)) -> 53.96606129 | F10: =E10*(1+('Scenario Input'!$AJ$15/100)) -> 55.21633491 | G10: =F10*(1+('Scenario Input'!$AM$15/100)) -> 56.47830613 | H10: =G10*(1+('Scenario Input'!$AP$15/100)) -> 58.73423183 | I10: =H10*(1+('Scenario Input'!$AS$15/100)) -> 61.08026648
A11: PG&E S | B11: 49.56367416 | C11: =B11*(1+('Scenario Input'!$AA$15/100)) -> 53.5982336 | D11: =C11*(1+('Scenario Input'!$AD$15/100)) -> 56.09513182 | E11: =D11*(1+('Scenario Input'!$AG$15/100)) -> 57.53713114 | F11: =E11*(1+('Scenario Input'!$AJ$15/100)) -> 58.8701385 | G11: =F11*(1+('Scenario Input'!$AM$15/100)) -> 60.21561752 | H11: =G11*(1+('Scenario Input'!$AP$15/100)) -> 62.6208235 | I11: =H11*(1+('Scenario Input'!$AS$15/100)) -> 65.12210116
A12: PG&E T | B12: 52.80239774 | C12: =B12*(1+('Scenario Input'!$AA$15/100)) -> 57.10059427 | D12: =C12*(1+('Scenario Input'!$AD$15/100)) -> 59.76065156 | E12: =D12*(1+('Scenario Input'!$AG$15/100)) -> 61.2968779 | F12: =E12*(1+('Scenario Input'!$AJ$15/100)) -> 62.71699023 | G12: =F12*(1+('Scenario Input'!$AM$15/100)) -> 64.15038918 | H12: =G12*(1+('Scenario Input'!$AP$15/100)) -> 66.71276263 | I12: =H12*(1+('Scenario Input'!$AS$15/100)) -> 69.37748554
A13: PG&E V | B13: 55.72047976 | C13: =B13*(1+('Scenario Input'!$AA$15/100)) -> 60.25621266 | D13: =C13*(1+('Scenario Input'!$AD$15/100)) -> 63.06327588 | E13: =D13*(1+('Scenario Input'!$AG$15/100)) -> 64.68440053 | F13: =E13*(1+('Scenario Input'!$AJ$15/100)) -> 66.18299422 | G13: =F13*(1+('Scenario Input'!$AM$15/100)) -> 67.69560882 | H13: =G13*(1+('Scenario Input'!$AP$15/100)) -> 70.39958977 | I13: =H13*(1+('Scenario Input'!$AS$15/100)) -> 73.21157644
A14: PG&E W | B14: 44.71606414 | C14: =B14*(1+('Scenario Input'!$AA$15/100)) -> 48.35602066 | D14: =C14*(1+('Scenario Input'!$AD$15/100)) -> 50.60870799 | E14: =D14*(1+('Scenario Input'!$AG$15/100)) -> 51.90967156 | F14: =E14*(1+('Scenario Input'!$AJ$15/100)) -> 53.11230319 | G14: =F14*(1+('Scenario Input'!$AM$15/100)) -> 54.3261867 | H14: =G14*(1+('Scenario Input'!$AP$15/100)) -> 56.49614981 | I14: =H14*(1+('Scenario Input'!$AS$15/100)) -> 58.75278825
A15: PG&E X | B15: 55.66522069 | C15: =B15*(1+('Scenario Input'!$AA$15/100)) -> 60.19645542 | D15: =C15*(1+('Scenario Input'!$AD$15/100)) -> 63.00073481 | E15: =D15*(1+('Scenario Input'!$AG$15/100)) -> 64.62025176 | F15: =E15*(1+('Scenario Input'!$AJ$15/100)) -> 66.11735928 | G15: =F15*(1+('Scenario Input'!$AM$15/100)) -> 67.62847378 | H15: =G15*(1+('Scenario Input'!$AP$15/100)) -> 70.32977314 | I15: =H15*(1+('Scenario Input'!$AS$15/100)) -> 73.13897111
A16: PG&E Y | B16: 74.20828215 | C16: =B16*(1+('Scenario Input'!$AA$15/100)) -> 80.24895066 | D16: =C16*(1+('Scenario Input'!$AD$15/100)) -> 83.98738471 | E16: =D16*(1+('Scenario Input'!$AG$15/100)) -> 86.14639117 | F16: =E16*(1+('Scenario Input'!$AJ$15/100)) -> 88.14221145 | G16: =F16*(1+('Scenario Input'!$AM$15/100)) -> 90.1567047 | H16: =G16*(1+('Scenario Input'!$AP$15/100)) -> 93.75785427 | I16: =H16*(1+('Scenario Input'!$AS$15/100)) -> 97.50284537
A17: SCG 1 | B17: 52.36965945 | C17: =B17*(1+('Scenario Input'!$AA$15/100)) -> 56.63263041 | D17: =C17*(1+('Scenario Input'!$AD$15/100)) -> 59.2708874 | E17: =D17*(1+('Scenario Input'!$AG$15/100)) -> 60.7945237 | F17: =E17*(1+('Scenario Input'!$AJ$15/100)) -> 62.2029976 | G17: =F17*(1+('Scenario Input'!$AM$15/100)) -> 63.62464923 | H17: =G17*(1+('Scenario Input'!$AP$15/100)) -> 66.16602293 | I17: =H17*(1+('Scenario Input'!$AS$15/100)) -> 68.80890729
A18: SCG 2 | B18: 55.33138214 | C18: =B18*(1+('Scenario Input'!$AA$15/100)) -> 59.8354419 | D18: =C18*(1+('Scenario Input'!$AD$15/100)) -> 62.62290332 | E18: =D18*(1+('Scenario Input'!$AG$15/100)) -> 64.23270761 | F18: =E18*(1+('Scenario Input'!$AJ$15/100)) -> 65.72083659 | G18: =F18*(1+('Scenario Input'!$AM$15/100)) -> 67.22288855 | H18: =G18*(1+('Scenario Input'!$AP$15/100)) -> 69.90798753 | I18: =H18*(1+('Scenario Input'!$AS$15/100)) -> 72.70033803
A19: SCG 3 | B19: 80.61821154 | C19: =B19*(1+('Scenario Input'!$AA$15/100)) -> 87.18065817 | D19: =C19*(1+('Scenario Input'!$AD$15/100)) -> 91.24200899 | E19: =D19*(1+('Scenario Input'!$AG$15/100)) -> 93.58750512 | F19: =E19*(1+('Scenario Input'!$AJ$15/100)) -> 95.75571947 | G19: =F19*(1+('Scenario Input'!$AM$15/100)) -> 97.94421971 | H19: =G19*(1+('Scenario Input'!$AP$15/100)) -> 101.8564277 | I19: =H19*(1+('Scenario Input'!$AS$15/100)) -> 105.924902
A20: SDG&E COASTAL | B20: 60.09723857 | C20: =B20*(1+('Scenario Input'!$AA$15/100)) -> 64.98924638 | D20: =C20*(1+('Scenario Input'!$AD$15/100)) -> 68.01680014 | E20: =D20*(1+('Scenario Input'!$AG$15/100)) -> 69.76526166 | F20: =E20*(1+('Scenario Input'!$AJ$15/100)) -> 71.38156761 | G20: =F20*(1+('Scenario Input'!$AM$15/100)) -> 73.01299577 | H20: =G20*(1+('Scenario Input'!$AP$15/100)) -> 75.92937031 | I20: =H20*(1+('Scenario Input'!$AS$15/100)) -> 78.96223426
A21: SDG&E DESERT | B21: 60.09723857 | C21: =B21*(1+('Scenario Input'!$AA$15/100)) -> 64.98924638 | D21: =C21*(1+('Scenario Input'!$AD$15/100)) -> 68.01680014 | E21: =D21*(1+('Scenario Input'!$AG$15/100)) -> 69.76526166 | F21: =E21*(1+('Scenario Input'!$AJ$15/100)) -> 71.38156761 | G21: =F21*(1+('Scenario Input'!$AM$15/100)) -> 73.01299577 | H21: =G21*(1+('Scenario Input'!$AP$15/100)) -> 75.92937031 | I21: =H21*(1+('Scenario Input'!$AS$15/100)) -> 78.96223426
A22: SDG&E INLAND | B22: 60.09723857 | C22: =B22*(1+('Scenario Input'!$AA$15/100)) -> 64.98924638 | D22: =C22*(1+('Scenario Input'!$AD$15/100)) -> 68.01680014 | E22: =D22*(1+('Scenario Input'!$AG$15/100)) -> 69.76526166 | F22: =E22*(1+('Scenario Input'!$AJ$15/100)) -> 71.38156761 | G22: =F22*(1+('Scenario Input'!$AM$15/100)) -> 73.01299577 | H22: =G22*(1+('Scenario Input'!$AP$15/100)) -> 75.92937031 | I22: =H22*(1+('Scenario Input'!$AS$15/100)) -> 78.96223426
A23: SDG&E MOUNTAIN | B23: 60.09723857 | C23: =B23*(1+('Scenario Input'!$AA$15/100)) -> 64.98924638 | D23: =C23*(1+('Scenario Input'!$AD$15/100)) -> 68.01680014 | E23: =D23*(1+('Scenario Input'!$AG$15/100)) -> 69.76526166 | F23: =E23*(1+('Scenario Input'!$AJ$15/100)) -> 71.38156761 | G23: =F23*(1+('Scenario Input'!$AM$15/100)) -> 73.01299577 | H23: =G23*(1+('Scenario Input'!$AP$15/100)) -> 75.92937031 | I23: =H23*(1+('Scenario Input'!$AS$15/100)) -> 78.96223426
A24: SWG_Barstow | B24: 55.17258752 | C24: =B24*(1+('Scenario Input'!$AA$15/100)) -> 59.66372115 | D24: =C24*(1+('Scenario Input'!$AD$15/100)) -> 62.44318288 | E24: =D24*(1+('Scenario Input'!$AG$15/100)) -> 64.04836722 | F24: =E24*(1+('Scenario Input'!$AJ$15/100)) -> 65.53222544 | G24: =F24*(1+('Scenario Input'!$AM$15/100)) -> 67.02996669 | H24: =G24*(1+('Scenario Input'!$AP$15/100)) -> 69.70735975 | I24: =H24*(1+('Scenario Input'!$AS$15/100)) -> 72.49169652
A25: SWG_Victorville | B25: 55.90044326 | C25: =B25*(1+('Scenario Input'!$AA$15/100)) -> 60.45082547 | D25: =C25*(1+('Scenario Input'!$AD$15/100)) -> 63.26695482 | E25: =D25*(1+('Scenario Input'!$AG$15/100)) -> 64.8933153 | F25: =E25*(1+('Scenario Input'!$AJ$15/100)) -> 66.39674909 | G25: =F25*(1+('Scenario Input'!$AM$15/100)) -> 67.91424905 | H25: =G25*(1+('Scenario Input'!$AP$15/100)) -> 70.6269632 | I25: =H25*(1+('Scenario Input'!$AS$15/100)) -> 73.44803191
A26: SWG_Big_Bear | B26: 70.08587811 | C26: =B26*(1+('Scenario Input'!$AA$15/100)) -> 75.79097658 | D26: =C26*(1+('Scenario Input'!$AD$15/100)) -> 79.32173387 | E26: =D26*(1+('Scenario Input'!$AG$15/100)) -> 81.36080362 | F26: =E26*(1+('Scenario Input'!$AJ$15/100)) -> 83.24575249 | G26: =F26*(1+('Scenario Input'!$AM$15/100)) -> 85.148337 | H26: =G26*(1+('Scenario Input'!$AP$15/100)) -> 88.54943621 | I26: =H26*(1+('Scenario Input'!$AS$15/100)) -> 92.08638629
A27: SWG_NLT | B27: 90.33990698 | C27: =B27*(1+('Scenario Input'!$AA$15/100)) -> 97.6937146 | D27: =C27*(1+('Scenario Input'!$AD$15/100)) -> 102.244821 | E27: =D27*(1+('Scenario Input'!$AG$15/100)) -> 104.8731589 | F27: =E27*(1+('Scenario Input'!$AJ$15/100)) -> 107.3028367 | G27: =F27*(1+('Scenario Input'!$AM$15/100)) -> 109.7552467 | H27: =G27*(1+('Scenario Input'!$AP$15/100)) -> 114.1392253 | I27: =H27*(1+('Scenario Input'!$AS$15/100)) -> 118.6983141
A28: SWG_Truckee | B28: 99.34717406 | C28: =B28*(1+('Scenario Input'!$AA$15/100)) -> 107.4341871 | D28: =C28*(1+('Scenario Input'!$AD$15/100)) -> 112.4390578 | E28: =D28*(1+('Scenario Input'!$AG$15/100)) -> 115.329452 | F28: =E28*(1+('Scenario Input'!$AJ$15/100)) -> 118.0013789 | G28: =F28*(1+('Scenario Input'!$AM$15/100)) -> 120.6983045 | H28: =G28*(1+('Scenario Input'!$AP$15/100)) -> 125.5193841 | I28: =H28*(1+('Scenario Input'!$AS$15/100)) -> 130.5330331
A29: SWG_SLT | B29: 80.84243751 | C29: =B29*(1+('Scenario Input'!$AA$15/100)) -> 87.42313648 | D29: =C29*(1+('Scenario Input'!$AD$15/100)) -> 91.49578326 | E29: =D29*(1+('Scenario Input'!$AG$15/100)) -> 93.847803 | F29: =E29*(1+('Scenario Input'!$AJ$15/100)) -> 96.02204787 | G29: =F29*(1+('Scenario Input'!$AM$15/100)) -> 98.21663505 | H29: =G29*(1+('Scenario Input'!$AP$15/100)) -> 102.1397242 | I29: =H29*(1+('Scenario Input'!$AS$15/100)) -> 106.2195142
A30: SWG_Needles | B30: 28.87560388 | C30: =B30*(1+('Scenario Input'!$AA$15/100)) -> 31.22612253 | D30: =C30*(1+('Scenario Input'!$AD$15/100)) -> 32.68080572 | E30: =D30*(1+('Scenario Input'!$AG$15/100)) -> 33.52090892 | F30: =E30*(1+('Scenario Input'!$AJ$15/100)) -> 34.29751382 | G30: =F30*(1+('Scenario Input'!$AM$15/100)) -> 35.08138467 | H30: =G30*(1+('Scenario Input'!$AP$15/100)) -> 36.48264833 | I30: =H30*(1+('Scenario Input'!$AS$15/100)) -> 37.93988297

Sheet Water Input
A1: PWSID | B1: Name | C1: 2021 Essential Usage Bill ($/month) | D1: 2022 Essential Usage Bill ($/month) | E1: 2023 Essential Usage Bill ($/month) | F1: 2024 Essential Usage Bill ($/month) | G1: 2025 Essential Usage Bill ($/month) | H1: 2026 Essential Usage Bill ($/month) | I1: 2027 Essential Usage Bill ($/month) | J1: 2028 Essential Usage Bill ($/month)
A2: CWS_Bakersfield | B2: CALIFORNIA WATER SERVICE - BAKERSFIELD | C2: 30.09 | D2: =C2*(1+('Scenario Input'!$AA$15/100)) -> 32.53937236 | E2: =D2*(1+('Scenario Input'!$AD$15/100)) -> 34.0552339 | F2: =E2*(1+('Scenario Input'!$AG$15/100)) -> 34.93066859 | G2: =F2*(1+('Scenario Input'!$AJ$15/100)) -> 35.73993449 | H2: =G2*(1+('Scenario Input'!$AM$15/100)) -> 36.55677191 | I2: =H2*(1+('Scenario Input'!$AP$15/100)) -> 38.01696729 | J2: =I2*(1+('Scenario Input'!$AS$15/100)) -> 39.53548758
A3: CWS_Bay_Area | B3: CALIFORNIA WATER SERVICE - BAY AREA REGION | C3: 58.04 | D3: =C3*(1+('Scenario Input'!$AA$15/100)) -> 62.76454543 | E3: =D3*(1+('Scenario Input'!$AD$15/100)) -> 65.68846047 | F3: =E3*(1+('Scenario Input'!$AG$15/100)) -> 67.37706895 | G3: =F3*(1+('Scenario Input'!$AJ$15/100)) -> 68.93804579 | H3: =G3*(1+('Scenario Input'!$AM$15/100)) -> 70.51362718 | I3: =H3*(1+('Scenario Input'!$AP$15/100)) -> 73.33016887 | J3: =I3*(1+('Scenario Input'!$AS$15/100)) -> 76.25921233
A4: CWS_BearGulch | B4: CALIFORNIA WATER SERVICE - BEAR GULCH | C4: 67.76 | D4: =C4*(1+('Scenario Input'!$AA$15/100)) -> 73.2757684 | E4: =D4*(1+('Scenario Input'!$AD$15/100)) -> 76.68935357 | F4: =E4*(1+('Scenario Input'!$AG$15/100)) -> 78.66075452 | G4: =F4*(1+('Scenario Input'!$AJ$15/100)) -> 80.48314925 | H4: =G4*(1+('Scenario Input'!$AM$15/100)) -> 82.32259437 | I4: =H4*(1+('Scenario Input'!$AP$15/100)) -> 85.61082431 | J4: =I4*(1+('Scenario Input'!$AS$15/100)) -> 89.03039675
A5: CWS_Chico | B5: CALIFORNIA WATER SERVICE - CHICO | C5: 25.07 | D5: =C5*(1+('Scenario Input'!$AA$15/100)) -> 27.11073663 | E5: =D5*(1+('Scenario Input'!$AD$15/100)) -> 28.37370269 | F5: =E5*(1+('Scenario Input'!$AG$15/100)) -> 29.10308612 | G5: =F5*(1+('Scenario Input'!$AJ$15/100)) -> 29.7773399 | H5: =G5*(1+('Scenario Input'!$AM$15/100)) -> 30.45790202 | I5: =H5*(1+('Scenario Input'!$AP$15/100)) -> 31.67448886 | J5: =I5*(1+('Scenario Input'!$AS$15/100)) -> 32.93967011
A6: CWS_Dixon | B6: CALIFORNIA WATER SERVICE - DIXON | C6: 64.64 | D6: =C6*(1+('Scenario Input'!$AA$15/100)) -> 69.90179559 | E6: =D6*(1+('Scenario Input'!$AD$15/100)) -> 73.1582027 | F6: =E6*(1+('Scenario Input'!$AG$15/100)) -> 75.03883075 | G6: =F6*(1+('Scenario Input'!$AJ$15/100)) -> 76.77731357 | H6: =G6*(1+('Scenario Input'!$AM$15/100)) -> 78.53206169 | I6: =H6*(1+('Scenario Input'!$AP$15/100)) -> 81.66888552 | J6: =I6*(1+('Scenario Input'!$AS$15/100)) -> 84.93100422
A7: CWS_Dominguez | B7: CALIFORNIA WATER SERVICE - DOMINGUEZ | C7: 43.07 | D7: =C7*(1+('Scenario Input'!$AA$15/100)) -> 46.57596436 | E7: =D7*(1+('Scenario Input'!$AD$15/100)) -> 48.74572695 | F7: =E7*(1+('Scenario Input'!$AG$15/100)) -> 49.99880013 | G7: =F7*(1+('Scenario Input'!$AJ$15/100)) -> 51.15716113 | H7: =G7*(1+('Scenario Input'!$AM$15/100)) -> 52.32635979 | I7: =H7*(1+('Scenario Input'!$AP$15/100)) -> 54.41644337 | J7: =I7*(1+('Scenario Input'!$AS$15/100)) -> 56.59001163
A8: CWS_EastLA | B8: CALIFORNIA WATER SERVICE - EAST LA | C8: 45.91 | D8: =C8*(1+('Scenario Input'!$AA$15/100)) -> 49.64714474 | E8: =D8*(1+('Scenario Input'!$AD$15/100)) -> 51.95997967 | F8: =E8*(1+('Scenario Input'!$AG$15/100)) -> 53.29567945 | G8: =F8*(1+('Scenario Input'!$AJ$15/100)) -> 54.53042181 | H8: =G8*(1+('Scenario Input'!$AM$15/100)) -> 55.77671646 | I8: =H8*(1+('Scenario Input'!$AP$15/100)) -> 58.00461842 | J8: =I8*(1+('Scenario Input'!$AS$15/100)) -> 60.32150996
A9: CWS_HermosaRedondo | B9: CALIFORNIA WATER SERVICE - HERMOSA REDONDO | C9: 46.5 | D9: =C9*(1+('Scenario Input'!$AA$15/100)) -> 50.28517164 | E9: =D9*(1+('Scenario Input'!$AD$15/100)) -> 52.62772936 | F9: =E9*(1+('Scenario Input'!$AG$15/100)) -> 53.98059452 | G9: =F9*(1+('Scenario Input'!$AJ$15/100)) -> 55.23120484 | H9: =G9*(1+('Scenario Input'!$AM$15/100)) -> 56.49351591 | I9: =H9*(1+('Scenario Input'!$AP$15/100)) -> 58.75004915 | J9: =I9*(1+('Scenario Input'!$AS$15/100)) -> 61.0967156
A10: CWS_KernValley | B10: CALIFORNIA WATER SERVICE - KERN VALLEY | C10: 103.32 | D10: =C10*(1+('Scenario Input'!$AA$15/100)) -> 111.7304072 | E10: =D10*(1+('Scenario Input'!$AD$15/100)) -> 116.9354193 | F10: =E10*(1+('Scenario Input'!$AG$15/100)) -> 119.9413984 | G10: =F10*(1+('Scenario Input'!$AJ$15/100)) -> 122.7201739 | H10: =G10*(1+('Scenario Input'!$AM$15/100)) -> 125.5249476 | I10: =H10*(1+('Scenario Input'!$AP$15/100)) -> 130.5388189 | J10: =I10*(1+('Scenario Input'!$AS$15/100)) -> 135.7529603
A11: CWS_Livermore | B11: CALIFORNIA WATER SERVICE - LIVERMORE | C11: 51.36 | D11: =C11*(1+('Scenario Input'!$AA$15/100)) -> 55.54078313 | E11: =D11*(1+('Scenario Input'!$AD$15/100)) -> 58.12817591 | F11: =E11*(1+('Scenario Input'!$AG$15/100)) -> 59.62243731 | G11: =F11*(1+('Scenario Input'!$AJ$15/100)) -> 61.00375657 | H11: =G11*(1+('Scenario Input'!$AM$15/100)) -> 62.39799951 | I11: =H11*(1+('Scenario Input'!$AP$15/100)) -> 64.89037686 | J11: =I11*(1+('Scenario Input'!$AS$15/100)) -> 67.48230781
A12: CWS_LosAltos | B12: CALIFORNIA WATER SERVICE - LOS ALTOS | C12: 56.75 | D12: =C12*(1+('Scenario Input'!$AA$15/100)) -> 61.36953744 | E12: =D12*(1+('Scenario Input'!$AD$15/100)) -> 64.2284654 | F12: =E12*(1+('Scenario Input'!$AG$15/100)) -> 65.87954278 | G12: =F12*(1+('Scenario Input'!$AJ$15/100)) -> 67.40582526 | H12: =G12*(1+('Scenario Input'!$AM$15/100)) -> 68.9463877 | I12: =H12*(1+('Scenario Input'!$AP$15/100)) -> 71.7003288 | J12: =I12*(1+('Scenario Input'!$AS$15/100)) -> 74.56427118
A13: CWS_Marysville | B13: CALIFORNIA WATER SERVICE - MARYSVILLE | C13: 44.49 | D13: =C13*(1+('Scenario Input'!$AA$15/100)) -> 48.11155455 | E13: =D13*(1+('Scenario Input'!$AD$15/100)) -> 50.35285331 | F13: =E13*(1+('Scenario Input'!$AG$15/100)) -> 51.64723979 | G13: =F13*(1+('Scenario Input'!$AJ$15/100)) -> 52.84379147 | H13: =G13*(1+('Scenario Input'!$AM$15/100)) -> 54.05153813 | I13: =H13*(1+('Scenario Input'!$AP$15/100)) -> 56.21053089 | J13: =I13*(1+('Scenario Input'!$AS$15/100)) -> 58.45576079
A14: CWS_Monterey | B14: CALIFORNIA WATER SERVICE - SALINAS | C14: 36.13 | D14: =C14*(1+('Scenario Input'!$AA$15/100)) -> 39.07103767 | E14: =D14*(1+('Scenario Input'!$AD$15/100)) -> 40.89117982 | F14: =E14*(1+('Scenario Input'!$AG$15/100)) -> 41.94234151 | G14: =F14*(1+('Scenario Input'!$AJ$15/100)) -> 42.91405228 | H14: =G14*(1+('Scenario Input'!$AM$15/100)) -> 43.89485441 | I14: =H14*(1+('Scenario Input'!$AP$15/100)) -> 45.64815647 | J14: =I14*(1+('Scenario Input'!$AS$15/100)) -> 47.47149106
A15: CWS_Oroville | B15: CALIFORNIA WATER SERVICE - OROVILLE | C15: 42.38 | D15: =C15*(1+('Scenario Input'!$AA$15/100)) -> 45.8297973 | E15: =D15*(1+('Scenario Input'!$AD$15/100)) -> 47.96479936 | F15: =E15*(1+('Scenario Input'!$AG$15/100)) -> 49.19779776 | G15: =F15*(1+('Scenario Input'!$AJ$15/100)) -> 50.33760132 | H15: =G15*(1+('Scenario Input'!$AM$15/100)) -> 51.48806891 | I15: =H15*(1+('Scenario Input'!$AP$15/100)) -> 53.54466845 | J15: =I15*(1+('Scenario Input'!$AS$15/100)) -> 55.6834152
A16: CWS_Selma | B16: CALIFORNIA WATER SERVICE - SELMA | C16: 33.81 | D16: =C16*(1+('Scenario Input'!$AA$15/100)) -> 36.56218609 | E16: =D16*(1+('Scenario Input'!$AD$15/100)) -> 38.26545225 | F16: =E16*(1+('Scenario Input'!$AG$15/100)) -> 39.24911615 | G16: =F16*(1+('Scenario Input'!$AJ$15/100)) -> 40.15843088 | H16: =G16*(1+('Scenario Input'!$AM$15/100)) -> 41.07625318 | I16: =H16*(1+('Scenario Input'!$AP$15/100)) -> 42.71697122 | J16: =I16*(1+('Scenario Input'!$AS$15/100)) -> 44.42322482
A17: CWS_Stockton | B17: CALIFORNIA WATER SERVICE - STOCKTON | C17: 45.05 | D17: =C17*(1+('Scenario Input'!$AA$15/100)) -> 48.71713941 | E17: =D17*(1+('Scenario Input'!$AD$15/100)) -> 50.98664962 | F17: =E17*(1+('Scenario Input'!$AG$15/100)) -> 52.29732867 | G17: =F17*(1+('Scenario Input'!$AJ$15/100)) -> 53.50894147 | H17: =G17*(1+('Scenario Input'!$AM$15/100)) -> 54.73189015 | I17: =H17*(1+('Scenario Input'!$AP$15/100)) -> 56.91805837 | J17: =I17*(1+('Scenario Input'!$AS$15/100)) -> 59.1915492
A18: CWS_Visalia | B18: CALIFORNIA WATER SERVICE - VISALIA | C18: 18.34 | D18: =C18*(1+('Scenario Input'!$AA$15/100)) -> 19.83290426 | E18: =D18*(1+('Scenario Input'!$AD$15/100)) -> 20.75682917 | F18: =E18*(1+('Scenario Input'!$AG$15/100)) -> 21.29041083 | G18: =F18*(1+('Scenario Input'!$AJ$15/100)) -> 21.7836623 | H18: =G18*(1+('Scenario Input'!$AM$15/100)) -> 22.28152864 | I18: =H18*(1+('Scenario Input'!$AP$15/100)) -> 23.17152476 | J18: =I18*(1+('Scenario Input'!$AS$15/100)) -> 24.09707019
A19: CWS_Westlake | B19: CALIFORNIA WATER SERVICE - WESTLAKE | C19: 55.53 | D19: =C19*(1+('Scenario Input'!$AA$15/100)) -> 60.05022756 | E19: =D19*(1+('Scenario Input'!$AD$15/100)) -> 62.84769486 | F19: =E19*(1+('Scenario Input'!$AG$15/100)) -> 64.46327772 | G19: =F19*(1+('Scenario Input'!$AJ$15/100)) -> 65.95674849 | H19: =G19*(1+('Scenario Input'!$AM$15/100)) -> 67.46419223 | I19: =H19*(1+('Scenario Input'!$AP$15/100)) -> 70.15892966 | J19: =I19*(1+('Scenario Input'!$AS$15/100)) -> 72.96130359
A20: CWS_Willows | B20: CALIFORNIA WATER SERVICE - WILLOWS | C20: 54.72 | D20: =C20*(1+('Scenario Input'!$AA$15/100)) -> 59.17429231 | E20: =D20*(1+('Scenario Input'!$AD$15/100)) -> 61.93095377 | F20: =E20*(1+('Scenario Input'!$AG$15/100)) -> 63.52297059 | G20: =F20*(1+('Scenario Input'!$AJ$15/100)) -> 64.99465654 | H20: =G20*(1+('Scenario Input'!$AM$15/100)) -> 66.48011163 | I20: =H20*(1+('Scenario Input'!$AP$15/100)) -> 69.13554171 | J20: =I20*(1+('Scenario Input'!$AS$15/100)) -> 71.89703822
A21: GreatOaks | B21: GREAT OAKS WATER COMPANY | C21: 31.9 | D21: =C21*(1+('Scenario Input'!$AA$15/100)) -> 34.49670915 | E21: =D21*(1+('Scenario Input'!$AD$15/100)) -> 36.10375412 | F21: =E21*(1+('Scenario Input'!$AG$15/100)) -> 37.03184872 | G21: =F21*(1+('Scenario Input'!$AJ$15/100)) -> 37.88979429 | H21: =G21*(1+('Scenario Input'!$AM$15/100)) -> 38.75576683 | I21: =H21*(1+('Scenario Input'!$AP$15/100)) -> 40.30379716 | J21: =I21*(1+('Scenario Input'!$AS$15/100)) -> 41.91366081
A22: GSWC_ArdenCordova | B22: GOLDEN STATE - ARDEN-CORDOVA | C22: 21.14 | D22: =C22*(1+('Scenario Input'!$AA$15/100)) -> 22.86082857 | E22: =D22*(1+('Scenario Input'!$AD$15/100)) -> 23.92581072 | F22: =E22*(1+('Scenario Input'!$AG$15/100)) -> 24.54085523 | G22: =F22*(1+('Scenario Input'!$AJ$15/100)) -> 25.10941227 | H22: =G22*(1+('Scenario Input'!$AM$15/100)) -> 25.68328874 | I22: =H22*(1+('Scenario Input'!$AP$15/100)) -> 26.70916213 | J22: =I22*(1+('Scenario Input'!$AS$15/100)) -> 27.77601221
A23: GSWC_BayPoint | B23: GOLDEN STATE - BAY POINT | C23: 57.05 | D23: =C23*(1+('Scenario Input'!$AA$15/100)) -> 61.6939579 | E23: =D23*(1+('Scenario Input'!$AD$15/100)) -> 64.56799914 | F23: =E23*(1+('Scenario Input'!$AG$15/100)) -> 66.22780468 | G23: =F23*(1+('Scenario Input'!$AJ$15/100)) -> 67.76215562 | H23: =G23*(1+('Scenario Input'!$AM$15/100)) -> 69.310862 | I23: =H23*(1+('Scenario Input'!$AP$15/100)) -> 72.07936137 | J23: =I23*(1+('Scenario Input'!$AS$15/100)) -> 74.95844354
A24: GSWC_ClearLake | B24: GOLDEN STATE - CLEARLAKE | C24: 103.01 | D24: =C24*(1+('Scenario Input'!$AA$15/100)) -> 111.3951727 | E24: =D24*(1+('Scenario Input'!$AD$15/100)) -> 116.5845678 | F24: =E24*(1+('Scenario Input'!$AG$15/100)) -> 119.5815278 | G24: =F24*(1+('Scenario Input'!$AJ$15/100)) -> 122.3519658 | H24: =G24*(1+('Scenario Input'!$AM$15/100)) -> 125.1483242 | I24: =H24*(1+('Scenario Input'!$AP$15/100)) -> 130.1471519 | J24: =I24*(1+('Scenario Input'!$AS$15/100)) -> 135.3456489
A25: GSWC_LosOsos | B25: GOLDEN STATE - LOS OSOS | C25: 94.93 | D25: =C25*(1+('Scenario Input'!$AA$15/100)) -> 102.6574483 | E25: =D25*(1+('Scenario Input'!$AD$15/100)) -> 107.4397924 | F25: =E25*(1+('Scenario Input'!$AG$15/100)) -> 110.2016739 | G25: =F25*(1+('Scenario Input'!$AJ$15/100)) -> 112.7548016 | H25: =G25*(1+('Scenario Input'!$AM$15/100)) -> 115.3318165 | I25: =H25*(1+('Scenario Input'!$AP$15/100)) -> 119.9385412 | J25: =I25*(1+('Scenario Input'!$AS$15/100)) -> 124.7292734
A26: GSWC_SantaMaria | B26: GOLDEN STATE - SANTA MARIA | C26: 39.34 | D26: =C26*(1+('Scenario Input'!$AA$15/100)) -> 42.54233661 | E26: =D26*(1+('Scenario Input'!$AD$15/100)) -> 44.52419082 | F26: =E26*(1+('Scenario Input'!$AG$15/100)) -> 45.66874384 | G26: =F26*(1+('Scenario Input'!$AJ$15/100)) -> 46.72678706 | H26: =G26*(1+('Scenario Input'!$AM$15/100)) -> 47.79472938 | I26: =H26*(1+('Scenario Input'!$AP$15/100)) -> 49.70380502 | J26: =I26*(1+('Scenario Input'!$AS$15/100)) -> 51.6891353
A27: GSWC_SimiValley | B27: GOLDEN STATE - SIMI VALLEY | C27: 43.19 | D27: =C27*(1+('Scenario Input'!$AA$15/100)) -> 46.70573255 | E27: =D27*(1+('Scenario Input'!$AD$15/100)) -> 48.88154045 | F27: =E27*(1+('Scenario Input'!$AG$15/100)) -> 50.13810489 | G27: =F27*(1+('Scenario Input'!$AJ$15/100)) -> 51.29969327 | H27: =G27*(1+('Scenario Input'!$AM$15/100)) -> 52.47214951 | I27: =H27*(1+('Scenario Input'!$AP$15/100)) -> 54.5680564 | J27: =I27*(1+('Scenario Input'!$AS$15/100)) -> 56.74768057
A28: GSWC_Region3 | B28: GOLDEN STATE - REGION 3 | C28: 40.99 | D28: =C28*(1+('Scenario Input'!$AA$15/100)) -> 44.32664916 | E28: =D28*(1+('Scenario Input'!$AD$15/100)) -> 46.39162637 | F28: =E28*(1+('Scenario Input'!$AG$15/100)) -> 47.58418429 | G28: =F28*(1+('Scenario Input'!$AJ$15/100)) -> 48.68660401 | H28: =G28*(1+('Scenario Input'!$AM$15/100)) -> 49.79933801 | I28: =H28*(1+('Scenario Input'!$AP$15/100)) -> 51.78848418 | J28: =I28*(1+('Scenario Input'!$AS$15/100)) -> 53.85708327
A29: LU_MesaCrest | B29: LIBERTY UTILITIES - MESA CREST | C29: 52.68 | D29: =C29*(1+('Scenario Input'!$AA$15/100)) -> 56.96823317 | E29: =D29*(1+('Scenario Input'!$AD$15/100)) -> 59.62212436 | F29: =E29*(1+('Scenario Input'!$AG$15/100)) -> 61.15478967 | G29: =F29*(1+('Scenario Input'!$AJ$15/100)) -> 62.57161013 | H29: =G29*(1+('Scenario Input'!$AM$15/100)) -> 64.00168642 | I29: =H29*(1+('Scenario Input'!$AP$15/100)) -> 66.5581202 | J29: =I29*(1+('Scenario Input'!$AS$15/100)) -> 69.21666618
A30: LU_Park | B30: LIBERTY UTILITIES - PARK | C30: 56.29 | D30: =C30*(1+('Scenario Input'!$AA$15/100)) -> 60.87209273 | E30: =D30*(1+('Scenario Input'!$AD$15/100)) -> 63.707847 | F30: =E30*(1+('Scenario Input'!$AG$15/100)) -> 65.3455412 | G30: =F30*(1+('Scenario Input'!$AJ$15/100)) -> 66.85945206 | H30: =G30*(1+('Scenario Input'!$AM$15/100)) -> 68.38752711 | I30: =H30*(1+('Scenario Input'!$AP$15/100)) -> 71.11914552 | J30: =I30*(1+('Scenario Input'!$AS$15/100)) -> 73.95987357
A31: LU_Yermo | B31: LIBERTY UTILITIES - YERMO | C31: 67.06 | D31: =C31*(1+('Scenario Input'!$AA$15/100)) -> 72.51878732 | E31: =D31*(1+('Scenario Input'!$AD$15/100)) -> 75.89710819 | F31: =E31*(1+('Scenario Input'!$AG$15/100)) -> 77.84814341 | G31: =F31*(1+('Scenario Input'!$AJ$15/100)) -> 79.65171176 | H31: =G31*(1+('Scenario Input'!$AM$15/100)) -> 81.47215435 | I31: =H31*(1+('Scenario Input'!$AP$15/100)) -> 84.72641496 | J31: =I31*(1+('Scenario Input'!$AS$15/100)) -> 88.11066124
A32: SWS_SJH | B32: SUBURBAN WATER SYSTEMS-SAN JOSE | C32: 43.17 | D32: =C32*(1+('Scenario Input'!$AA$15/100)) -> 46.68410451 | E32: =D32*(1+('Scenario Input'!$AD$15/100)) -> 48.85890487 | F32: =E32*(1+('Scenario Input'!$AG$15/100)) -> 50.11488743 | G32: =F32*(1+('Scenario Input'!$AJ$15/100)) -> 51.27593791 | H32: =G32*(1+('Scenario Input'!$AM$15/100)) -> 52.44785123 | I32: =H32*(1+('Scenario Input'!$AP$15/100)) -> 54.54278756 | J32: =I32*(1+('Scenario Input'!$AS$15/100)) -> 56.72140241
A33: SWS_WLM | B33: SUBURBAN WATER SYSTEMS-WHITTER,LA MIRADA | C33: 42.35 | D33: =C33*(1+('Scenario Input'!$AA$15/100)) -> 45.79735525 | E33: =D33*(1+('Scenario Input'!$AD$15/100)) -> 47.93084598 | F33: =E33*(1+('Scenario Input'!$AG$15/100)) -> 49.16297157 | G33: =F33*(1+('Scenario Input'!$AJ$15/100)) -> 50.30196828 | H33: =G33*(1+('Scenario Input'!$AM$15/100)) -> 51.45162148 | I33: =H33*(1+('Scenario Input'!$AP$15/100)) -> 53.50676519 | J33: =I33*(1+('Scenario Input'!$AS$15/100)) -> 55.64399797
A34: SGVWC_Fontana | B34: SAN GABRIEL VALLEY - FONTANA | C34: 44.01 | D34: =C34*(1+('Scenario Input'!$AA$15/100)) -> 47.59248181 | E34: =D34*(1+('Scenario Input'!$AD$15/100)) -> 49.80959933 | F34: =E34*(1+('Scenario Input'!$AG$15/100)) -> 51.09002075 | G34: =F34*(1+('Scenario Input'!$AJ$15/100)) -> 52.27366291 | H34: =G34*(1+('Scenario Input'!$AM$15/100)) -> 53.46837926 | I34: =H34*(1+('Scenario Input'!$AP$15/100)) -> 55.60407877 | J34: =I34*(1+('Scenario Input'!$AS$15/100)) -> 57.82508502
A35: SGVWC_LA | B35: SAN GABRIEL VALLEY - LA | C35: 47.81 | D35: =C35*(1+('Scenario Input'!$AA$15/100)) -> 51.70180766 | E35: =D35*(1+('Scenario Input'!$AD$15/100)) -> 54.11036001 | F35: =E35*(1+('Scenario Input'!$AG$15/100)) -> 55.50133815 | G35: =F35*(1+('Scenario Input'!$AJ$15/100)) -> 56.78718072 | H35: =G35*(1+('Scenario Input'!$AM$15/100)) -> 58.08505367 | I35: =H35*(1+('Scenario Input'!$AP$15/100)) -> 60.40515806 | J35: =I35*(1+('Scenario Input'!$AS$15/100)) -> 62.8179349
A36: SanJoseWater | B36: San Jose Water Company | C36: 74.21 | D36: =C36*(1+('Scenario Input'!$AA$15/100)) -> 80.25080834 | E36: =D36*(1+('Scenario Input'!$AD$15/100)) -> 83.98932894 | F36: =E36*(1+('Scenario Input'!$AG$15/100)) -> 86.14838537 | G36: =F36*(1+('Scenario Input'!$AJ$15/100)) -> 88.14425186 | H36: =G36*(1+('Scenario Input'!$AM$15/100)) -> 90.15879174 | I36: =H36*(1+('Scenario Input'!$AP$15/100)) -> 93.76002467 | J36: =I36*(1+('Scenario Input'!$AS$15/100)) -> 97.50510246
A37: LU_AV | B37: LIBERTY UTILITIES - APPLE VALLEY | C37: 46.6 | D37: =C37*(1+('Scenario Input'!$AA$15/100)) -> 50.3933118 | E37: =D37*(1+('Scenario Input'!$AD$15/100)) -> 52.74090727 | F37: =E37*(1+('Scenario Input'!$AG$15/100)) -> 54.09668182 | G37: =F37*(1+('Scenario Input'!$AJ$15/100)) -> 55.34998163 | H37: =G37*(1+('Scenario Input'!$AM$15/100)) -> 56.61500735 | I37: =H37*(1+('Scenario Input'!$AP$15/100)) -> 58.87639334 | J37: =I37*(1+('Scenario Input'!$AS$15/100)) -> 61.22810638
A38: GSWC_Region2 | B38: GOLDEN STATE - REGION 2 | C38: 49.07 | D38: =C38*(1+('Scenario Input'!$AA$15/100)) -> 53.0643736 | E38: =D38*(1+('Scenario Input'!$AD$15/100)) -> 55.53640171 | F38: =E38*(1+('Scenario Input'!$AG$15/100)) -> 56.96403814 | G38: =F38*(1+('Scenario Input'!$AJ$15/100)) -> 58.28376821 | H38: =G38*(1+('Scenario Input'!$AM$15/100)) -> 59.61584572 | I38: =H38*(1+('Scenario Input'!$AP$15/100)) -> 61.99709487 | J38: =I38*(1+('Scenario Input'!$AS$15/100)) -> 64.4734588
A39: CWS_LAV_AV | B39: CALIFORNIA WATER SERVICE - ANTELOPE VALLEY | C39: 53.87 | D39: =C39*(1+('Scenario Input'!$AA$15/100)) -> 58.255101 | E39: =D39*(1+('Scenario Input'!$AD$15/100)) -> 60.96894152 | F39: =E39*(1+('Scenario Input'!$AG$15/100)) -> 62.53622854 | G39: =F39*(1+('Scenario Input'!$AJ$15/100)) -> 63.98505387 | H39: =G39*(1+('Scenario Input'!$AM$15/100)) -> 65.44743446 | I39: =H39*(1+('Scenario Input'!$AP$15/100)) -> 68.06161608 | J39: =I39*(1+('Scenario Input'!$AS$15/100)) -> 70.78021654
A40: CWS_LAV_PV | B40: CALIFORNIA WATER SERVICE - PALOS VERDES | C40: 65.94 | D40: =C40*(1+('Scenario Input'!$AA$15/100)) -> 71.3076176 | E40: =D40*(1+('Scenario Input'!$AD$15/100)) -> 74.62951557 | F40: =E40*(1+('Scenario Input'!$AG$15/100)) -> 76.54796565 | G40: =F40*(1+('Scenario Input'!$AJ$15/100)) -> 78.32141177 | H40: =G40*(1+('Scenario Input'!$AM$15/100)) -> 80.11145031 | I40: =H40*(1+('Scenario Input'!$AP$15/100)) -> 83.31136002 | J40: =I40*(1+('Scenario Input'!$AS$15/100)) -> 86.63908444
A41: CalAm_BH | B41: CALIFORNIA AMERICAN WATER - BALDWIN HILLS | C41: 45.71 | D41: =C41*(1+('Scenario Input'!$AA$15/100)) -> 49.43086443 | E41: =D41*(1+('Scenario Input'!$AD$15/100)) -> 51.73362385 | F41: =E41*(1+('Scenario Input'!$AG$15/100)) -> 53.06350485 | G41: =F41*(1+('Scenario Input'!$AJ$15/100)) -> 54.29286824 | H41: =G41*(1+('Scenario Input'!$AM$15/100)) -> 55.5337336 | I41: =H41*(1+('Scenario Input'!$AP$15/100)) -> 57.75193003 | J41: =I41*(1+('Scenario Input'!$AS$15/100)) -> 60.05872838
A42: CalAm_CS | B42: CALIFORNIA AMERICAN WATER - CENTRAL SATELLITE | C42: 56.57 | D42: =C42*(1+('Scenario Input'!$AA$15/100)) -> 61.17488516 | E42: =D42*(1+('Scenario Input'!$AD$15/100)) -> 64.02474516 | F42: =E42*(1+('Scenario Input'!$AG$15/100)) -> 65.67058564 | G42: =F42*(1+('Scenario Input'!$AJ$15/100)) -> 67.19202705 | H42: =G42*(1+('Scenario Input'!$AM$15/100)) -> 68.72770312 | I42: =H42*(1+('Scenario Input'!$AP$15/100)) -> 71.47290925 | J42: =I42*(1+('Scenario Input'!$AS$15/100)) -> 74.32776777
A43: CalAm_DT | B43: CALIFORNIA AMERICAN WATER - DUARTE | C43: 37.09 | D43: =C43*(1+('Scenario Input'!$AA$15/100)) -> 40.10918315 | E43: =D43*(1+('Scenario Input'!$AD$15/100)) -> 41.97768778 | F43: =E43*(1+('Scenario Input'!$AG$15/100)) -> 43.05677959 | G43: =F43*(1+('Scenario Input'!$AJ$15/100)) -> 44.05430941 | H43: =G43*(1+('Scenario Input'!$AM$15/100)) -> 45.06117216 | I43: =H43*(1+('Scenario Input'!$AP$15/100)) -> 46.86106071 | J43: =I43*(1+('Scenario Input'!$AS$15/100)) -> 48.73284261
A44: CalAm_EP | B44: CALIFORNIA AMERICAN WATER - EAST PASADENA | C44: 36.3 | D44: =C44*(1+('Scenario Input'!$AA$15/100)) -> 39.25487593 | E44: =D44*(1+('Scenario Input'!$AD$15/100)) -> 41.08358227 | F44: =E44*(1+('Scenario Input'!$AG$15/100)) -> 42.13968992 | G44: =F44*(1+('Scenario Input'!$AJ$15/100)) -> 43.11597281 | H44: =G44*(1+('Scenario Input'!$AM$15/100)) -> 44.10138984 | I44: =H44*(1+('Scenario Input'!$AP$15/100)) -> 45.86294159 | J44: =I44*(1+('Scenario Input'!$AS$15/100)) -> 47.6948554
A45: CalAm_FRV | B45: CALIFORNIA AMERICAN WATER - FRUITRIDGE | C45: 36.3 | D45: =C45*(1+('Scenario Input'!$AA$15/100)) -> 39.25487593 | E45: =D45*(1+('Scenario Input'!$AD$15/100)) -> 41.08358227 | F45: =E45*(1+('Scenario Input'!$AG$15/100)) -> 42.13968992 | G45: =F45*(1+('Scenario Input'!$AJ$15/100)) -> 43.11597281 | H45: =G45*(1+('Scenario Input'!$AM$15/100)) -> 44.10138984 | I45: =H45*(1+('Scenario Input'!$AP$15/100)) -> 45.86294159 | J45: =I45*(1+('Scenario Input'!$AS$15/100)) -> 47.6948554
A46: CalAm_HILL | B46: CALIFORNIA AMERICAN WATER - HILLVIEW | C46: 89.09 | D46: =C46*(1+('Scenario Input'!$AA$15/100)) -> 96.34206327 | E46: =D46*(1+('Scenario Input'!$AD$15/100)) -> 100.8302023 | F46: =E46*(1+('Scenario Input'!$AG$15/100)) -> 103.4221756 | G46: =F46*(1+('Scenario Input'!$AJ$15/100)) -> 105.8182374 | H46: =G46*(1+('Scenario Input'!$AM$15/100)) -> 108.2367168 | I46: =H46*(1+('Scenario Input'!$AP$15/100)) -> 112.5600404 | J46: =I46*(1+('Scenario Input'!$AS$15/100)) -> 117.0560514
A47: CalAm_LKD | B47: CALIFORNIA AMERICAN WATER - LARKFIELD | C47: 66.87 | D47: =C47*(1+('Scenario Input'!$AA$15/100)) -> 72.31332103 | E47: =D47*(1+('Scenario Input'!$AD$15/100)) -> 75.68207015 | F47: =E47*(1+('Scenario Input'!$AG$15/100)) -> 77.62757754 | G47: =F47*(1+('Scenario Input'!$AJ$15/100)) -> 79.42603587 | H47: =G47*(1+('Scenario Input'!$AM$15/100)) -> 81.24132063 | I47: =H47*(1+('Scenario Input'!$AP$15/100)) -> 84.486361 | J47: =I47*(1+('Scenario Input'!$AS$15/100)) -> 87.86101875
A48: CalAm_MEAD | B48: CALIFORNIA AMERICAN WATER - MEADOWBROOK | C48: 31.5 | D48: =C48*(1+('Scenario Input'!$AA$15/100)) -> 34.06414853 | E48: =D48*(1+('Scenario Input'!$AD$15/100)) -> 35.65104247 | F48: =E48*(1+('Scenario Input'!$AG$15/100)) -> 36.56749952 | G48: =F48*(1+('Scenario Input'!$AJ$15/100)) -> 37.41468715 | H48: =G48*(1+('Scenario Input'!$AM$15/100)) -> 38.2698011 | I48: =H48*(1+('Scenario Input'!$AP$15/100)) -> 39.79842039 | J48: =I48*(1+('Scenario Input'!$AS$15/100)) -> 41.38809766
A49: CalAm_MON | B49: CALIFORNIA AMERICAN WATER - MONTEREY | C49: 115.08 | D49: =C49*(1+('Scenario Input'!$AA$15/100)) -> 124.4476893 | E49: =D49*(1+('Scenario Input'!$AD$15/100)) -> 130.2451418 | F49: =E49*(1+('Scenario Input'!$AG$15/100)) -> 133.5932649 | G49: =F49*(1+('Scenario Input'!$AJ$15/100)) -> 136.6883237 | H49: =G49*(1+('Scenario Input'!$AM$15/100)) -> 139.81234 | I49: =H49*(1+('Scenario Input'!$AP$15/100)) -> 145.3968958 | J49: =I49*(1+('Scenario Input'!$AS$15/100)) -> 151.2045168
A50: CalAm_RIO | B50: CALIFORNIA AMERICAN WATER - RIO PLAZA | C50: 41.43 | D50: =C50*(1+('Scenario Input'!$AA$15/100)) -> 44.80246583 | E50: =D50*(1+('Scenario Input'!$AD$15/100)) -> 46.88960919 | F50: =E50*(1+('Scenario Input'!$AG$15/100)) -> 48.09496841 | G50: =F50*(1+('Scenario Input'!$AJ$15/100)) -> 49.20922186 | H50: =G50*(1+('Scenario Input'!$AM$15/100)) -> 50.33390031 | I50: =H50*(1+('Scenario Input'!$AP$15/100)) -> 52.34439863 | J50: =I50*(1+('Scenario Input'!$AS$15/100)) -> 54.43520273
A51: CalAm_Sac | B51: CALIFORNIA AMERICAN WATER - SACRAMENTO | C51: 33.94 | D51: =C51*(1+('Scenario Input'!$AA$15/100)) -> 36.70276829 | E51: =D51*(1+('Scenario Input'!$AD$15/100)) -> 38.41258353 | F51: =E51*(1+('Scenario Input'!$AG$15/100)) -> 39.40002964 | G51: =F51*(1+('Scenario Input'!$AJ$15/100)) -> 40.3128407 | H51: =G51*(1+('Scenario Input'!$AM$15/100)) -> 41.23419205 | I51: =H51*(1+('Scenario Input'!$AP$15/100)) -> 42.88121867 | J51: =I51*(1+('Scenario Input'!$AS$15/100)) -> 44.59403285
A52: CalAm_SAN | B52: CALIFORNIA AMERICAN WATER - SAN DIEGO | C52: 50.51 | D52: =C52*(1+('Scenario Input'!$AA$15/100)) -> 54.62159182 | E52: =D52*(1+('Scenario Input'!$AD$15/100)) -> 57.16616365 | F52: =E52*(1+('Scenario Input'!$AG$15/100)) -> 58.63569526 | G52: =F52*(1+('Scenario Input'!$AJ$15/100)) -> 59.9941539 | H52: =G52*(1+('Scenario Input'!$AM$15/100)) -> 61.36532234 | I52: =H52*(1+('Scenario Input'!$AP$15/100)) -> 63.81645123 | J52: =I52*(1+('Scenario Input'!$AS$15/100)) -> 66.36548612
A53: CalAm_SM | B53: CALIFORNIA AMERICAN WATER - SAN MARINO | C53: 32.53 | D53: =C53*(1+('Scenario Input'!$AA$15/100)) -> 35.17799212 | E53: =D53*(1+('Scenario Input'!$AD$15/100)) -> 36.81677497 | F53: =E53*(1+('Scenario Input'!$AG$15/100)) -> 37.76319871 | G53: =F53*(1+('Scenario Input'!$AJ$15/100)) -> 38.63808803 | H53: =G53*(1+('Scenario Input'!$AM$15/100)) -> 39.52116285 | I53: =H53*(1+('Scenario Input'!$AP$15/100)) -> 41.09976556 | J53: =I53*(1+('Scenario Input'!$AS$15/100)) -> 42.74142276
A54: CalAm_VEN | B54: CALIFORNIA AMERICAN WATER - VENTURA | C54: 43.3 | D54: =C54*(1+('Scenario Input'!$AA$15/100)) -> 46.82468671 | E54: =D54*(1+('Scenario Input'!$AD$15/100)) -> 49.00603615 | F54: =E54*(1+('Scenario Input'!$AG$15/100)) -> 50.26580092 | G54: =F54*(1+('Scenario Input'!$AJ$15/100)) -> 51.43034773 | H54: =G54*(1+('Scenario Input'!$AM$15/100)) -> 52.60579009 | I54: =H54*(1+('Scenario Input'!$AP$15/100)) -> 54.70703501 | J54: =I54*(1+('Scenario Input'!$AS$15/100)) -> 56.89221044
A55: CA1100445 | B55: ORLAND MOBILE H.P. | C55: 29.83 | D55: =C55*(1+('Scenario Input'!$AA$15/100)) -> 32.25820796 | E55: =D55*(1+('Scenario Input'!$AD$15/100)) -> 33.76097133 | F55: =E55*(1+('Scenario Input'!$AG$15/100)) -> 34.62884161 | G55: =F55*(1+('Scenario Input'!$AJ$15/100)) -> 35.43111485 | H55: =G55*(1+('Scenario Input'!$AM$15/100)) -> 36.24089419 | I55: =H55*(1+('Scenario Input'!$AP$15/100)) -> 37.68847239 | J55: =I55*(1+('Scenario Input'!$AS$15/100)) -> 39.19387153
A56: CA5201140 | B56: ANTOINETTE MUTUAL WATER CO | C56: 33.33 | D56: =C56*(1+('Scenario Input'!$AA$15/100)) -> 36.04311335 | E56: =D56*(1+('Scenario Input'!$AD$15/100)) -> 37.72219827 | F56: =E56*(1+('Scenario Input'!$AG$15/100)) -> 38.69189711 | G56: =F56*(1+('Scenario Input'!$AJ$15/100)) -> 39.58830231 | H56: =G56*(1+('Scenario Input'!$AM$15/100)) -> 40.49309431 | I56: =H56*(1+('Scenario Input'!$AP$15/100)) -> 42.1105191 | J56: =I56*(1+('Scenario Input'!$AS$15/100)) -> 43.79254905
A57: CA4400692 | B57: ALLAN LANE WATER ASSOCIATION | C57: 110 | D57: =C57*(1+('Scenario Input'!$AA$15/100)) -> 118.9541695 | E57: =D57*(1+('Scenario Input'!$AD$15/100)) -> 124.4957039 | F57: =E57*(1+('Scenario Input'!$AG$15/100)) -> 127.6960301 | G57: =F57*(1+('Scenario Input'!$AJ$15/100)) -> 130.6544631 | H57: =G57*(1+('Scenario Input'!$AM$15/100)) -> 133.6405753 | I57: =H57*(1+('Scenario Input'!$AP$15/100)) -> 138.9786109 | J57: =I57*(1+('Scenario Input'!$AS$15/100)) -> 144.5298648
A58: CA3301943 | B58: PLANTATION ON THE LAKE PARK | C58: 24.5 | D58: =C58*(1+('Scenario Input'!$AA$15/100)) -> 26.49433775 | E58: =D58*(1+('Scenario Input'!$AD$15/100)) -> 27.72858859 | F58: =E58*(1+('Scenario Input'!$AG$15/100)) -> 28.44138851 | G58: =F58*(1+('Scenario Input'!$AJ$15/100)) -> 29.10031223 | H58: =G58*(1+('Scenario Input'!$AM$15/100)) -> 29.76540086 | I58: =H58*(1+('Scenario Input'!$AP$15/100)) -> 30.95432697 | J58: =I58*(1+('Scenario Input'!$AS$15/100)) -> 32.19074263
A59: CA3400101 | B59: HOOD WATER MAINTENCE DIST [SWS] | C59: 21.26 | D59: =C59*(1+('Scenario Input'!$AA$15/100)) -> 22.99059676 | E59: =D59*(1+('Scenario Input'!$AD$15/100)) -> 24.06162422 | F59: =E59*(1+('Scenario Input'!$AG$15/100)) -> 24.68015999 | G59: =F59*(1+('Scenario Input'!$AJ$15/100)) -> 25.25194441 | H59: =G59*(1+('Scenario Input'!$AM$15/100)) -> 25.82907846 | I59: =H59*(1+('Scenario Input'!$AP$15/100)) -> 26.86077516 | J59: =I59*(1+('Scenario Input'!$AS$15/100)) -> 27.93368115
A60: CA0310005 | B60: PINE GROVE COMM SERV DIST | C60: 45.75 | D60: =C60*(1+('Scenario Input'!$AA$15/100)) -> 49.47412049 | E60: =D60*(1+('Scenario Input'!$AD$15/100)) -> 51.77889501 | F60: =E60*(1+('Scenario Input'!$AG$15/100)) -> 53.10993977 | G60: =F60*(1+('Scenario Input'!$AJ$15/100)) -> 54.34037896 | H60: =G60*(1+('Scenario Input'!$AM$15/100)) -> 55.58233017 | I60: =H60*(1+('Scenario Input'!$AP$15/100)) -> 57.80246771 | J60: =I60*(1+('Scenario Input'!$AS$15/100)) -> 60.1112847
A61: CA1210007 | B61: DEL ORO WATER CO-FERNDALE | C61: 69.16 | D61: =C61*(1+('Scenario Input'!$AA$15/100)) -> 74.78973056 | E61: =D61*(1+('Scenario Input'!$AD$15/100)) -> 78.27384435 | F61: =E61*(1+('Scenario Input'!$AG$15/100)) -> 80.28597672 | G61: =F61*(1+('Scenario Input'!$AJ$15/100)) -> 82.14602423 | H61: =G61*(1+('Scenario Input'!$AM$15/100)) -> 84.02347442 | I61: =H61*(1+('Scenario Input'!$AP$15/100)) -> 87.37964299 | J61: =I61*(1+('Scenario Input'!$AS$15/100)) -> 90.86986775
A62: CA3700041 | B62: BARRETT LAKE MH AND RV LLC | C62: 21 | D62: =C62*(1+('Scenario Input'!$AA$15/100)) -> 22.70943236 | E62: =D62*(1+('Scenario Input'!$AD$15/100)) -> 23.76736165 | F62: =E62*(1+('Scenario Input'!$AG$15/100)) -> 24.37833301 | G62: =F62*(1+('Scenario Input'!$AJ$15/100)) -> 24.94312477 | H62: =G62*(1+('Scenario Input'!$AM$15/100)) -> 25.51320074 | I62: =H62*(1+('Scenario Input'!$AP$15/100)) -> 26.53228026 | J62: =I62*(1+('Scenario Input'!$AS$15/100)) -> 27.59206511
A63: CA3910020 | B63: STOCKTON VERDE MOBILE HOME PARK | C63: 34.05 | D63: =C63*(1+('Scenario Input'!$AA$15/100)) -> 36.82172246 | E63: =D63*(1+('Scenario Input'!$AD$15/100)) -> 38.53707924 | F63: =E63*(1+('Scenario Input'!$AG$15/100)) -> 39.52772567 | G63: =F63*(1+('Scenario Input'!$AJ$15/100)) -> 40.44349516 | H63: =G63*(1+('Scenario Input'!$AM$15/100)) -> 41.36783262 | I63: =H63*(1+('Scenario Input'!$AP$15/100)) -> 43.02019728 | J63: =I63*(1+('Scenario Input'!$AS$15/100)) -> 44.73856271
A64: CA3900927 | B64: SPRING CREEK ESTATES PWS | C64: 51.58 | D64: =C64*(1+('Scenario Input'!$AA$15/100)) -> 55.77869147 | E64: =D64*(1+('Scenario Input'!$AD$15/100)) -> 58.37716732 | F64: =E64*(1+('Scenario Input'!$AG$15/100)) -> 59.87782937 | G64: =F64*(1+('Scenario Input'!$AJ$15/100)) -> 61.2650655 | H64: =G64*(1+('Scenario Input'!$AM$15/100)) -> 62.66528066 | I64: =H64*(1+('Scenario Input'!$AP$15/100)) -> 65.16833409 | J64: =I64*(1+('Scenario Input'!$AS$15/100)) -> 67.77136754
A65: CA3900586 | B65: B&G MOBILE HOME PARK LLC WS | C65: 46.22 | D65: =C65*(1+('Scenario Input'!$AA$15/100)) -> 49.98237921 | E65: =D65*(1+('Scenario Input'!$AD$15/100)) -> 52.3108312 | F65: =E65*(1+('Scenario Input'!$AG$15/100)) -> 53.65555008 | G65: =F65*(1+('Scenario Input'!$AJ$15/100)) -> 54.89862985 | H65: =G65*(1+('Scenario Input'!$AM$15/100)) -> 56.1533399 | I65: =H65*(1+('Scenario Input'!$AP$15/100)) -> 58.39628541 | J65: =I65*(1+('Scenario Input'!$AS$15/100)) -> 60.72882139
A66: CA3510002 | B66: SAN JUAN BAUTISTA, CITY OF | C66: 171.12 | D66: =C66*(1+('Scenario Input'!$AA$15/100)) -> 185.0494317 | E66: =D66*(1+('Scenario Input'!$AD$15/100)) -> 193.670044 | F66: =E66*(1+('Scenario Input'!$AG$15/100)) -> 198.6485878 | G66: =F66*(1+('Scenario Input'!$AJ$15/100)) -> 203.2508338 | H66: =G66*(1+('Scenario Input'!$AM$15/100)) -> 207.8961386 | I66: =H66*(1+('Scenario Input'!$AP$15/100)) -> 216.2001809 | J66: =I66*(1+('Scenario Input'!$AS$15/100)) -> 224.8359134
A67: CA5200534 | B67: PASKENTA COMM. SERVICES DIST. | C67: 64 | D67: =C67*(1+('Scenario Input'!$AA$15/100)) -> 69.20969861 | E67: =D67*(1+('Scenario Input'!$AD$15/100)) -> 72.43386406 | F67: =E67*(1+('Scenario Input'!$AG$15/100)) -> 74.29587203 | G67: =F67*(1+('Scenario Input'!$AJ$15/100)) -> 76.01714215 | H67: =G67*(1+('Scenario Input'!$AM$15/100)) -> 77.75451653 | I67: =H67*(1+('Scenario Input'!$AP$15/100)) -> 80.8602827 | J67: =I67*(1+('Scenario Input'!$AS$15/100)) -> 84.09010319
A68: CA2810007 | B68: TOWN OF YOUNTVILLE | C68: 81.43 | D68: =C68*(1+('Scenario Input'!$AA$15/100)) -> 88.05852746 | E68: =D68*(1+('Scenario Input'!$AD$15/100)) -> 92.16077423 | F68: =E68*(1+('Scenario Input'!$AG$15/100)) -> 94.52988843 | G68: =F68*(1+('Scenario Input'!$AJ$15/100)) -> 96.71993571 | H68: =G68*(1+('Scenario Input'!$AM$15/100)) -> 98.93047314 | I68: =H68*(1+('Scenario Input'!$AP$15/100)) -> 102.8820753 | J68: =I68*(1+('Scenario Input'!$AS$15/100)) -> 106.9915172
A69: CA5000433 | B69: OID-OAKDALE RURAL WATER SYSTEM #1 | C69: 23.22 | D69: =C69*(1+('Scenario Input'!$AA$15/100)) -> 25.11014378 | E69: =D69*(1+('Scenario Input'!$AD$15/100)) -> 26.2799113 | F69: =E69*(1+('Scenario Input'!$AG$15/100)) -> 26.95547107 | G69: =F69*(1+('Scenario Input'!$AJ$15/100)) -> 27.57996939 | H69: =G69*(1+('Scenario Input'!$AM$15/100)) -> 28.21031053 | I69: =H69*(1+('Scenario Input'!$AP$15/100)) -> 29.33712132 | J69: =I69*(1+('Scenario Input'!$AS$15/100)) -> 30.50894056
A70: CA4400526 | B70: BIG REDWOOD PARK WATER | C70: 67.8 | D70: =C70*(1+('Scenario Input'!$AA$15/100)) -> 73.31902446 | E70: =D70*(1+('Scenario Input'!$AD$15/100)) -> 76.73462474 | F70: =E70*(1+('Scenario Input'!$AG$15/100)) -> 78.70718944 | G70: =F70*(1+('Scenario Input'!$AJ$15/100)) -> 80.53065996 | H70: =G70*(1+('Scenario Input'!$AM$15/100)) -> 82.37119095 | I70: =H70*(1+('Scenario Input'!$AP$15/100)) -> 85.66136198 | J70: =I70*(1+('Scenario Input'!$AS$15/100)) -> 89.08295306
A71: CA3600399 | B71: PARADISE MOBILE ESTATES | C71: 20 | D71: =C71*(1+('Scenario Input'!$AA$15/100)) -> 21.62803082 | E71: =D71*(1+('Scenario Input'!$AD$15/100)) -> 22.63558252 | F71: =E71*(1+('Scenario Input'!$AG$15/100)) -> 23.21746001 | G71: =F71*(1+('Scenario Input'!$AJ$15/100)) -> 23.75535692 | H71: =G71*(1+('Scenario Input'!$AM$15/100)) -> 24.29828641 | I71: =H71*(1+('Scenario Input'!$AP$15/100)) -> 25.26883834 | J71: =I71*(1+('Scenario Input'!$AS$15/100)) -> 26.27815725
A72: CA3400179 | B72: MC CLELLAN MHP | C72: 20 | D72: =C72*(1+('Scenario Input'!$AA$15/100)) -> 21.62803082 | E72: =D72*(1+('Scenario Input'!$AD$15/100)) -> 22.63558252 | F72: =E72*(1+('Scenario Input'!$AG$15/100)) -> 23.21746001 | G72: =F72*(1+('Scenario Input'!$AJ$15/100)) -> 23.75535692 | H72: =G72*(1+('Scenario Input'!$AM$15/100)) -> 24.29828641 | I72: =H72*(1+('Scenario Input'!$AP$15/100)) -> 25.26883834 | J72: =I72*(1+('Scenario Input'!$AS$15/100)) -> 26.27815725
A73: CA3010068 | B73: EAST ORANGE COUNTY WD - RZ | C73: 48.34 | D73: =C73*(1+('Scenario Input'!$AA$15/100)) -> 52.27495048 | E73: =D73*(1+('Scenario Input'!$AD$15/100)) -> 54.71020295 | F73: =E73*(1+('Scenario Input'!$AG$15/100)) -> 56.11660085 | G73: =F73*(1+('Scenario Input'!$AJ$15/100)) -> 57.41669768 | H73: =G73*(1+('Scenario Input'!$AM$15/100)) -> 58.72895826 | I73: =H73*(1+('Scenario Input'!$AP$15/100)) -> 61.07478227 | J73: =I73*(1+('Scenario Input'!$AS$15/100)) -> 63.51430606
A74: CA3600087 | B74: DEER LODGE WATER SYSTEM | C74: 69.11 | D74: =C74*(1+('Scenario Input'!$AA$15/100)) -> 74.73566048 | E74: =D74*(1+('Scenario Input'!$AD$15/100)) -> 78.21725539 | F74: =E74*(1+('Scenario Input'!$AG$15/100)) -> 80.22793307 | G74: =F74*(1+('Scenario Input'!$AJ$15/100)) -> 82.08663584 | H74: =G74*(1+('Scenario Input'!$AM$15/100)) -> 83.96272871 | I74: =H74*(1+('Scenario Input'!$AP$15/100)) -> 87.31647089 | J74: =I74*(1+('Scenario Input'!$AS$15/100)) -> 90.80417236
A75: CA1500494 | B75: WILSON ROAD WATER COMMUNITY | C75: 50 | D75: =C75*(1+('Scenario Input'!$AA$15/100)) -> 54.07007704 | E75: =D75*(1+('Scenario Input'!$AD$15/100)) -> 56.5889563 | F75: =E75*(1+('Scenario Input'!$AG$15/100)) -> 58.04365003 | G75: =F75*(1+('Scenario Input'!$AJ$15/100)) -> 59.3883923 | H75: =G75*(1+('Scenario Input'!$AM$15/100)) -> 60.74571604 | I75: =H75*(1+('Scenario Input'!$AP$15/100)) -> 63.17209586 | J75: =I75*(1+('Scenario Input'!$AS$15/100)) -> 65.69539311
A76: CA5400744 | B76: EAST THREE RIVERS MUTUAL WATER CORP | C76: 40 | D76: =C76*(1+('Scenario Input'!$AA$15/100)) -> 43.25606163 | E76: =D76*(1+('Scenario Input'!$AD$15/100)) -> 45.27116504 | F76: =E76*(1+('Scenario Input'!$AG$15/100)) -> 46.43492002 | G76: =F76*(1+('Scenario Input'!$AJ$15/100)) -> 47.51071384 | H76: =G76*(1+('Scenario Input'!$AM$15/100)) -> 48.59657283 | I76: =H76*(1+('Scenario Input'!$AP$15/100)) -> 50.53767669 | J76: =I76*(1+('Scenario Input'!$AS$15/100)) -> 52.55631449
A77: CA4400557 | B77: ST FRANCIS TRACT WATER SYSTEM | C77: 100 | D77: =C77*(1+('Scenario Input'!$AA$15/100)) -> 108.1401541 | E77: =D77*(1+('Scenario Input'!$AD$15/100)) -> 113.1779126 | F77: =E77*(1+('Scenario Input'!$AG$15/100)) -> 116.0873001 | G77: =F77*(1+('Scenario Input'!$AJ$15/100)) -> 118.7767846 | H77: =G77*(1+('Scenario Input'!$AM$15/100)) -> 121.4914321 | I77: =H77*(1+('Scenario Input'!$AP$15/100)) -> 126.3441917 | J77: =I77*(1+('Scenario Input'!$AS$15/100)) -> 131.3907862
A78: CA5210002 | B78: GERBER LAS FLORES CSD | C78: 35.9 | D78: =C78*(1+('Scenario Input'!$AA$15/100)) -> 38.82231531 | E78: =D78*(1+('Scenario Input'!$AD$15/100)) -> 40.63087062 | F78: =E78*(1+('Scenario Input'!$AG$15/100)) -> 41.67534072 | G78: =F78*(1+('Scenario Input'!$AJ$15/100)) -> 42.64086567 | H78: =G78*(1+('Scenario Input'!$AM$15/100)) -> 43.61542411 | I78: =H78*(1+('Scenario Input'!$AP$15/100)) -> 45.35756483 | J78: =I78*(1+('Scenario Input'!$AS$15/100)) -> 47.16929226
A79: CA2900502 | B79: FLORISTON WATER SYSTEM | C79: 100 | D79: =C79*(1+('Scenario Input'!$AA$15/100)) -> 108.1401541 | E79: =D79*(1+('Scenario Input'!$AD$15/100)) -> 113.1779126 | F79: =E79*(1+('Scenario Input'!$AG$15/100)) -> 116.0873001 | G79: =F79*(1+('Scenario Input'!$AJ$15/100)) -> 118.7767846 | H79: =G79*(1+('Scenario Input'!$AM$15/100)) -> 121.4914321 | I79: =H79*(1+('Scenario Input'!$AP$15/100)) -> 126.3441917 | J79: =I79*(1+('Scenario Input'!$AS$15/100)) -> 131.3907862
A80: CA1010062 | B80: FCWWD #18/MIRA BELLA | C80: 73.34 | D80: =C80*(1+('Scenario Input'!$AA$15/100)) -> 79.309989 | E80: =D80*(1+('Scenario Input'!$AD$15/100)) -> 83.0046811 | F80: =E80*(1+('Scenario Input'!$AG$15/100)) -> 85.13842586 | G80: =F80*(1+('Scenario Input'!$AJ$15/100)) -> 87.11089383 | H80: =G80*(1+('Scenario Input'!$AM$15/100)) -> 89.10181628 | I80: =H80*(1+('Scenario Input'!$AP$15/100)) -> 92.6608302 | J80: =I80*(1+('Scenario Input'!$AS$15/100)) -> 96.36200262
A81: CA3310052 | B81: LAKE HEMET-GARNER VALLEY | C81: 48.3 | D81: =C81*(1+('Scenario Input'!$AA$15/100)) -> 52.23169442 | E81: =D81*(1+('Scenario Input'!$AD$15/100)) -> 54.66493178 | F81: =E81*(1+('Scenario Input'!$AG$15/100)) -> 56.07016593 | G81: =F81*(1+('Scenario Input'!$AJ$15/100)) -> 57.36918697 | H81: =G81*(1+('Scenario Input'!$AM$15/100)) -> 58.68036169 | I81: =H81*(1+('Scenario Input'!$AP$15/100)) -> 61.0242446 | J81: =I81*(1+('Scenario Input'!$AS$15/100)) -> 63.46174975
A82: CA5200535 | B82: LIVE OAK ACRES MWC INC. | C82: 55 | D82: =C82*(1+('Scenario Input'!$AA$15/100)) -> 59.47708474 | E82: =D82*(1+('Scenario Input'!$AD$15/100)) -> 62.24785193 | F82: =E82*(1+('Scenario Input'!$AG$15/100)) -> 63.84801503 | G82: =F82*(1+('Scenario Input'!$AJ$15/100)) -> 65.32723153 | H82: =G82*(1+('Scenario Input'!$AM$15/100)) -> 66.82028764 | I82: =H82*(1+('Scenario Input'!$AP$15/100)) -> 69.48930544 | J82: =I82*(1+('Scenario Input'!$AS$15/100)) -> 72.26493242
A83: CA0400008 | B83: GRAN MUTUAL WATER CO | C83: 43.33 | D83: =C83*(1+('Scenario Input'!$AA$15/100)) -> 46.85712876 | E83: =D83*(1+('Scenario Input'!$AD$15/100)) -> 49.03998953 | F83: =E83*(1+('Scenario Input'!$AG$15/100)) -> 50.30062711 | G83: =F83*(1+('Scenario Input'!$AJ$15/100)) -> 51.46598077 | H83: =G83*(1+('Scenario Input'!$AM$15/100)) -> 52.64223752 | I83: =H83*(1+('Scenario Input'!$AP$15/100)) -> 54.74493827 | J83: =I83*(1+('Scenario Input'!$AS$15/100)) -> 56.93162767
A84: CA3900596 | B84: VILLA CEREZOS | C84: 25 | D84: =C84*(1+('Scenario Input'!$AA$15/100)) -> 27.03503852 | E84: =D84*(1+('Scenario Input'!$AD$15/100)) -> 28.29447815 | F84: =E84*(1+('Scenario Input'!$AG$15/100)) -> 29.02182501 | G84: =F84*(1+('Scenario Input'!$AJ$15/100)) -> 29.69419615 | H84: =G84*(1+('Scenario Input'!$AM$15/100)) -> 30.37285802 | I84: =H84*(1+('Scenario Input'!$AP$15/100)) -> 31.58604793 | J84: =I84*(1+('Scenario Input'!$AS$15/100)) -> 32.84769656
A85: CA5010010 | B85: MODESTO, CITY OF | C85: 48.95 | D85: =C85*(1+('Scenario Input'!$AA$15/100)) -> 52.93460542 | E85: =D85*(1+('Scenario Input'!$AD$15/100)) -> 55.40058822 | F85: =E85*(1+('Scenario Input'!$AG$15/100)) -> 56.82473338 | G85: =F85*(1+('Scenario Input'!$AJ$15/100)) -> 58.14123607 | H85: =G85*(1+('Scenario Input'!$AM$15/100)) -> 59.470056 | I85: =H85*(1+('Scenario Input'!$AP$15/100)) -> 61.84548184 | J85: =I85*(1+('Scenario Input'!$AS$15/100)) -> 64.31578986
A86: CA1910158 | B86: STERLING MUTUAL WATER COMPANY | C86: 55 | D86: =C86*(1+('Scenario Input'!$AA$15/100)) -> 59.47708474 | E86: =D86*(1+('Scenario Input'!$AD$15/100)) -> 62.24785193 | F86: =E86*(1+('Scenario Input'!$AG$15/100)) -> 63.84801503 | G86: =F86*(1+('Scenario Input'!$AJ$15/100)) -> 65.32723153 | H86: =G86*(1+('Scenario Input'!$AM$15/100)) -> 66.82028764 | I86: =H86*(1+('Scenario Input'!$AP$15/100)) -> 69.48930544 | J86: =I86*(1+('Scenario Input'!$AS$15/100)) -> 72.26493242
A87: CA1800512 | B87: CLEAR CREEK CSD-WESTWOOD | C87: 39.25 | D87: =C87*(1+('Scenario Input'!$AA$15/100)) -> 42.44501047 | E87: =D87*(1+('Scenario Input'!$AD$15/100)) -> 44.42233069 | F87: =E87*(1+('Scenario Input'!$AG$15/100)) -> 45.56426527 | G87: =F87*(1+('Scenario Input'!$AJ$15/100)) -> 46.61988796 | H87: =G87*(1+('Scenario Input'!$AM$15/100)) -> 47.68538709 | I87: =H87*(1+('Scenario Input'!$AP$15/100)) -> 49.59009525 | J87: =I87*(1+('Scenario Input'!$AS$15/100)) -> 51.57088359
A88: CA1110001 | B88: CITY OF ORLAND | C88: 34.8 | D88: =C88*(1+('Scenario Input'!$AA$15/100)) -> 37.63277362 | E88: =D88*(1+('Scenario Input'!$AD$15/100)) -> 39.38591358 | F88: =E88*(1+('Scenario Input'!$AG$15/100)) -> 40.39838042 | G88: =F88*(1+('Scenario Input'!$AJ$15/100)) -> 41.33432104 | H88: =G88*(1+('Scenario Input'!$AM$15/100)) -> 42.27901836 | I88: =H88*(1+('Scenario Input'!$AP$15/100)) -> 43.96777872 | J88: =I88*(1+('Scenario Input'!$AS$15/100)) -> 45.72399361
A89: CA3301031 | B89: BANNING HTS. MUTUAL WATER CO. | C89: 22.75 | D89: =C89*(1+('Scenario Input'!$AA$15/100)) -> 24.60188505 | E89: =D89*(1+('Scenario Input'!$AD$15/100)) -> 25.74797512 | F89: =E89*(1+('Scenario Input'!$AG$15/100)) -> 26.40986076 | G89: =F89*(1+('Scenario Input'!$AJ$15/100)) -> 27.0217185 | H89: =G89*(1+('Scenario Input'!$AM$15/100)) -> 27.6393008 | I89: =H89*(1+('Scenario Input'!$AP$15/100)) -> 28.74330362 | J89: =I89*(1+('Scenario Input'!$AS$15/100)) -> 29.89140387
A90: CA4010027 | B90: NACIMIENTO WATER COMPANY | C90: 158.81 | D90: =C90*(1+('Scenario Input'!$AA$15/100)) -> 171.7373787 | E90: =D90*(1+('Scenario Input'!$AD$15/100)) -> 179.737843 | F90: =E90*(1+('Scenario Input'!$AG$15/100)) -> 184.3582412 | G90: =F90*(1+('Scenario Input'!$AJ$15/100)) -> 188.6294116 | H90: =G90*(1+('Scenario Input'!$AM$15/100)) -> 192.9405433 | I90: =H90*(1+('Scenario Input'!$AP$15/100)) -> 200.6472109 | J90: =I90*(1+('Scenario Input'!$AS$15/100)) -> 208.6617076
A91: CA4700521 | B91: SISKIYOU CO.SERVICE AREA #5/CARRICK | C91: 44.28 | D91: =C91*(1+('Scenario Input'!$AA$15/100)) -> 47.88446022 | E91: =D91*(1+('Scenario Input'!$AD$15/100)) -> 50.1151797 | F91: =E91*(1+('Scenario Input'!$AG$15/100)) -> 51.40345646 | G91: =F91*(1+('Scenario Input'!$AJ$15/100)) -> 52.59436022 | H91: =G91*(1+('Scenario Input'!$AM$15/100)) -> 53.79640612 | I91: =H91*(1+('Scenario Input'!$AP$15/100)) -> 55.94520809 | J91: =I91*(1+('Scenario Input'!$AS$15/100)) -> 58.17984014
A92: CA4400558 | B92: SAN ANDREAS MUTUAL WATER CO | C92: 54.63 | D92: =C92*(1+('Scenario Input'!$AA$15/100)) -> 59.07696617 | E92: =D92*(1+('Scenario Input'!$AD$15/100)) -> 61.82909365 | F92: =E92*(1+('Scenario Input'!$AG$15/100)) -> 63.41849202 | G92: =F92*(1+('Scenario Input'!$AJ$15/100)) -> 64.88775743 | H92: =G92*(1+('Scenario Input'!$AM$15/100)) -> 66.37076934 | I92: =H92*(1+('Scenario Input'!$AP$15/100)) -> 69.02183193 | J92: =I92*(1+('Scenario Input'!$AS$15/100)) -> 71.77878652
A93: CA0510009 | B93: BLUE LAKE SPRINGS MUT WTR | C93: 73.3 | D93: =C93*(1+('Scenario Input'!$AA$15/100)) -> 79.26673294 | E93: =D93*(1+('Scenario Input'!$AD$15/100)) -> 82.95940993 | F93: =E93*(1+('Scenario Input'!$AG$15/100)) -> 85.09199094 | G93: =F93*(1+('Scenario Input'!$AJ$15/100)) -> 87.06338312 | H93: =G93*(1+('Scenario Input'!$AM$15/100)) -> 89.05321971 | I93: =H93*(1+('Scenario Input'!$AP$15/100)) -> 92.61029253 | J93: =I93*(1+('Scenario Input'!$AS$15/100)) -> 96.3094463
A94: CA1900636 | B94: EL RANCHO MOBILE HOME PARK | C94: 23.92 | D94: =C94*(1+('Scenario Input'!$AA$15/100)) -> 25.86712485 | E94: =D94*(1+('Scenario Input'!$AD$15/100)) -> 27.07215669 | F94: =E94*(1+('Scenario Input'!$AG$15/100)) -> 27.76808217 | G94: =F94*(1+('Scenario Input'!$AJ$15/100)) -> 28.41140688 | H94: =G94*(1+('Scenario Input'!$AM$15/100)) -> 29.06075055 | I94: =H94*(1+('Scenario Input'!$AP$15/100)) -> 30.22153066 | J94: =I94*(1+('Scenario Input'!$AS$15/100)) -> 31.42867607
A95: CA4400528 | B95: LAUREL COMMUNITY LEAGUE | C95: 50 | D95: =C95*(1+('Scenario Input'!$AA$15/100)) -> 54.07007704 | E95: =D95*(1+('Scenario Input'!$AD$15/100)) -> 56.5889563 | F95: =E95*(1+('Scenario Input'!$AG$15/100)) -> 58.04365003 | G95: =F95*(1+('Scenario Input'!$AJ$15/100)) -> 59.3883923 | H95: =G95*(1+('Scenario Input'!$AM$15/100)) -> 60.74571604 | I95: =H95*(1+('Scenario Input'!$AP$15/100)) -> 63.17209586 | J95: =I95*(1+('Scenario Input'!$AS$15/100)) -> 65.69539311
A96: CA1810004 | B96: LEAVITT LAKE CSD | C96: 60.93 | D96: =C96*(1+('Scenario Input'!$AA$15/100)) -> 65.88979588 | E96: =D96*(1+('Scenario Input'!$AD$15/100)) -> 68.95930214 | F96: =E96*(1+('Scenario Input'!$AG$15/100)) -> 70.73199192 | G96: =F96*(1+('Scenario Input'!$AJ$15/100)) -> 72.37069486 | H96: =G96*(1+('Scenario Input'!$AM$15/100)) -> 74.02472956 | I96: =H96*(1+('Scenario Input'!$AP$15/100)) -> 76.98151601 | J96: =I96*(1+('Scenario Input'!$AS$15/100)) -> 80.05640605
A97: CA4610001 | B97: CITY OF LOYALTON | C97: 51.64 | D97: =C97*(1+('Scenario Input'!$AA$15/100)) -> 55.84357556 | E97: =D97*(1+('Scenario Input'!$AD$15/100)) -> 58.44507406 | F97: =E97*(1+('Scenario Input'!$AG$15/100)) -> 59.94748175 | G97: =F97*(1+('Scenario Input'!$AJ$15/100)) -> 61.33633157 | H97: =G97*(1+('Scenario Input'!$AM$15/100)) -> 62.73817552 | I97: =H97*(1+('Scenario Input'!$AP$15/100)) -> 65.2441406 | J97: =I97*(1+('Scenario Input'!$AS$15/100)) -> 67.85020201
A98: CA1900303 | B98: LLANO MUTUAL WATER COMPANY | C98: 42.98 | D98: =C98*(1+('Scenario Input'!$AA$15/100)) -> 46.47863822 | E98: =D98*(1+('Scenario Input'!$AD$15/100)) -> 48.64386683 | F98: =E98*(1+('Scenario Input'!$AG$15/100)) -> 49.89432156 | G98: =F98*(1+('Scenario Input'!$AJ$15/100)) -> 51.05026202 | H98: =G98*(1+('Scenario Input'!$AM$15/100)) -> 52.21701751 | I98: =H98*(1+('Scenario Input'!$AP$15/100)) -> 54.3027336 | J98: =I98*(1+('Scenario Input'!$AS$15/100)) -> 56.47175992
A99: CA4000808 | B99: MONTE SERENO MUTUAL BENEFIT WATER | C99: 260 | D99: =C99*(1+('Scenario Input'!$AA$15/100)) -> 281.1644006 | E99: =D99*(1+('Scenario Input'!$AD$15/100)) -> 294.2625727 | F99: =E99*(1+('Scenario Input'!$AG$15/100)) -> 301.8269801 | G99: =F99*(1+('Scenario Input'!$AJ$15/100)) -> 308.81964 | H99: =G99*(1+('Scenario Input'!$AM$15/100)) -> 315.8777234 | I99: =H99*(1+('Scenario Input'!$AP$15/100)) -> 328.4948985 | J99: =I99*(1+('Scenario Input'!$AS$15/100)) -> 341.6160442
A100: CA3500576 | B100: AROMAS HILLS MUTUAL WATER ASSOCIATION | C100: 150 | D100: =C100*(1+('Scenario Input'!$AA$15/100)) -> 162.2102311 | E100: =D100*(1+('Scenario Input'!$AD$15/100)) -> 169.7668689 | F100: =E100*(1+('Scenario Input'!$AG$15/100)) -> 174.1309501 | G100: =F100*(1+('Scenario Input'!$AJ$15/100)) -> 178.1651769 | H100: =G100*(1+('Scenario Input'!$AM$15/100)) -> 182.2371481 | I100: =H100*(1+('Scenario Input'!$AP$15/100)) -> 189.5162876 | J100: =I100*(1+('Scenario Input'!$AS$15/100)) -> 197.0861793
A101: CA0610004 | B101: CITY OF WILLIAMS | C101: 35.87 | D101: =C101*(1+('Scenario Input'!$AA$15/100)) -> 38.78987327 | E101: =D101*(1+('Scenario Input'!$AD$15/100)) -> 40.59691725 | F101: =E101*(1+('Scenario Input'!$AG$15/100)) -> 41.64051453 | G101: =F101*(1+('Scenario Input'!$AJ$15/100)) -> 42.60523264 | H101: =G101*(1+('Scenario Input'!$AM$15/100)) -> 43.57897668 | I101: =H101*(1+('Scenario Input'!$AP$15/100)) -> 45.31966157 | J101: =I101*(1+('Scenario Input'!$AS$15/100)) -> 47.12987502
A102: CA5500092 | B102: PONDEROSA MOBILE HOME PARK | C102: 18.7 | D102: =C102*(1+('Scenario Input'!$AA$15/100)) -> 20.22220881 | E102: =D102*(1+('Scenario Input'!$AD$15/100)) -> 21.16426966 | F102: =E102*(1+('Scenario Input'!$AG$15/100)) -> 21.70832511 | G102: =F102*(1+('Scenario Input'!$AJ$15/100)) -> 22.21125872 | H102: =G102*(1+('Scenario Input'!$AM$15/100)) -> 22.7188978 | I102: =H102*(1+('Scenario Input'!$AP$15/100)) -> 23.62636385 | J102: =I102*(1+('Scenario Input'!$AS$15/100)) -> 24.57007702
A103: CA1900808 | B103: LANCASTER WATER COMPANY | C103: 508.9 | D103: =C103*(1+('Scenario Input'!$AA$15/100)) -> 550.3252441 | E103: =D103*(1+('Scenario Input'!$AD$15/100)) -> 575.9623972 | F103: =E103*(1+('Scenario Input'!$AG$15/100)) -> 590.76827 | G103: =F103*(1+('Scenario Input'!$AJ$15/100)) -> 604.4550569 | H103: =G103*(1+('Scenario Input'!$AM$15/100)) -> 618.2698978 | I103: =H103*(1+('Scenario Input'!$AP$15/100)) -> 642.9655916 | J103: =I103*(1+('Scenario Input'!$AS$15/100)) -> 668.6477111
A104: CA1210020 | B104: FIELDBROOK GLENDALE C.S.D. | C104: 66.25 | D104: =C104*(1+('Scenario Input'!$AA$15/100)) -> 71.64285207 | E104: =D104*(1+('Scenario Input'!$AD$15/100)) -> 74.98036709 | F104: =E104*(1+('Scenario Input'!$AG$15/100)) -> 76.90783628 | G104: =F104*(1+('Scenario Input'!$AJ$15/100)) -> 78.6896198 | H104: =G104*(1+('Scenario Input'!$AM$15/100)) -> 80.48807375 | I104: =H104*(1+('Scenario Input'!$AP$15/100)) -> 83.70302701 | J104: =I104*(1+('Scenario Input'!$AS$15/100)) -> 87.04639588
A105: CA1710003 | B105: HIGHLANDS MUTUAL WATER COMPANY | C105: 83.5 | D105: =C105*(1+('Scenario Input'!$AA$15/100)) -> 90.29702865 | E105: =D105*(1+('Scenario Input'!$AD$15/100)) -> 94.50355702 | F105: =E105*(1+('Scenario Input'!$AG$15/100)) -> 96.93289554 | G105: =F105*(1+('Scenario Input'!$AJ$15/100)) -> 99.17861515 | H105: =G105*(1+('Scenario Input'!$AM$15/100)) -> 101.4453458 | I105: =H105*(1+('Scenario Input'!$AP$15/100)) -> 105.4974001 | J105: =I105*(1+('Scenario Input'!$AS$15/100)) -> 109.7113065
A106: CA3010064 | B106: CITY OF WESTMINSTER | C106: 17.23 | D106: =C106*(1+('Scenario Input'!$AA$15/100)) -> 18.63254855 | E106: =D106*(1+('Scenario Input'!$AD$15/100)) -> 19.50055434 | F106: =E106*(1+('Scenario Input'!$AG$15/100)) -> 20.0018418 | G106: =F106*(1+('Scenario Input'!$AJ$15/100)) -> 20.46523999 | H106: =G106*(1+('Scenario Input'!$AM$15/100)) -> 20.93297375 | I106: =H106*(1+('Scenario Input'!$AP$15/100)) -> 21.76910423 | J106: =I106*(1+('Scenario Input'!$AS$15/100)) -> 22.63863247
A107: CA5500116 | B107: PEPPERMINT CREEK MHP | C107: 43.94 | D107: =C107*(1+('Scenario Input'!$AA$15/100)) -> 47.5167837 | E107: =D107*(1+('Scenario Input'!$AD$15/100)) -> 49.73037479 | F107: =E107*(1+('Scenario Input'!$AG$15/100)) -> 51.00875964 | G107: =F107*(1+('Scenario Input'!$AJ$15/100)) -> 52.19051916 | H107: =G107*(1+('Scenario Input'!$AM$15/100)) -> 53.38333525 | I107: =H107*(1+('Scenario Input'!$AP$15/100)) -> 55.51563784 | J107: =I107*(1+('Scenario Input'!$AS$15/100)) -> 57.73311147
A108: CA5310003 | B108: TRINITY CENTER M.W.C. . | C108: 60 | D108: =C108*(1+('Scenario Input'!$AA$15/100)) -> 64.88409245 | E108: =D108*(1+('Scenario Input'!$AD$15/100)) -> 67.90674756 | F108: =E108*(1+('Scenario Input'!$AG$15/100)) -> 69.65238003 | G108: =F108*(1+('Scenario Input'!$AJ$15/100)) -> 71.26607076 | H108: =G108*(1+('Scenario Input'!$AM$15/100)) -> 72.89485924 | I108: =H108*(1+('Scenario Input'!$AP$15/100)) -> 75.80651503 | J108: =I108*(1+('Scenario Input'!$AS$15/100)) -> 78.83447174
A109: CA1910013 | B109: BELLFLOWER - SOMERSET MWC | C109: 32.48 | D109: =C109*(1+('Scenario Input'!$AA$15/100)) -> 35.12392204 | E109: =D109*(1+('Scenario Input'!$AD$15/100)) -> 36.76018601 | F109: =E109*(1+('Scenario Input'!$AG$15/100)) -> 37.70515506 | G109: =F109*(1+('Scenario Input'!$AJ$15/100)) -> 38.57869964 | H109: =G109*(1+('Scenario Input'!$AM$15/100)) -> 39.46041714 | I109: =H109*(1+('Scenario Input'!$AP$15/100)) -> 41.03659347 | J109: =I109*(1+('Scenario Input'!$AS$15/100)) -> 42.67572737
A110: CA3310002 | B110: BEAUMONT CHERRY VALLEY WD | C110: 10.13 | D110: =C110*(1+('Scenario Input'!$AA$15/100)) -> 10.95459761 | E110: =D110*(1+('Scenario Input'!$AD$15/100)) -> 11.46492255 | F110: =E110*(1+('Scenario Input'!$AG$15/100)) -> 11.7596435 | G110: =F110*(1+('Scenario Input'!$AJ$15/100)) -> 12.03208828 | H110: =G110*(1+('Scenario Input'!$AM$15/100)) -> 12.30708207 | I110: =H110*(1+('Scenario Input'!$AP$15/100)) -> 12.79866662 | J110: =I110*(1+('Scenario Input'!$AS$15/100)) -> 13.30988664
A111: CA3610053 | B111: WESTERN HEIGHTS WATER COMPANY | C111: 61.99 | D111: =C111*(1+('Scenario Input'!$AA$15/100)) -> 67.03608151 | E111: =D111*(1+('Scenario Input'!$AD$15/100)) -> 70.15898802 | F111: =E111*(1+('Scenario Input'!$AG$15/100)) -> 71.9625173 | G111: =F111*(1+('Scenario Input'!$AJ$15/100)) -> 73.62972878 | H111: =G111*(1+('Scenario Input'!$AM$15/100)) -> 75.31253874 | I111: =H111*(1+('Scenario Input'!$AP$15/100)) -> 78.32076444 | J111: =I111*(1+('Scenario Input'!$AS$15/100)) -> 81.44914838
A112: CA4700686 | B112: SUN MOUNTAIN M.W.C. | C112: 31.75 | D112: =C112*(1+('Scenario Input'!$AA$15/100)) -> 34.33449892 | E112: =D112*(1+('Scenario Input'!$AD$15/100)) -> 35.93398725 | F112: =E112*(1+('Scenario Input'!$AG$15/100)) -> 36.85771777 | G112: =F112*(1+('Scenario Input'!$AJ$15/100)) -> 37.71162911 | H112: =G112*(1+('Scenario Input'!$AM$15/100)) -> 38.57352968 | I112: =H112*(1+('Scenario Input'!$AP$15/100)) -> 40.11428087 | J112: =I112*(1+('Scenario Input'!$AS$15/100)) -> 41.71657463
A113: CA1500459 | B113: LAKE OF THE WOODS MOBILE VILLAGE | C113: 39 | D113: =C113*(1+('Scenario Input'!$AA$15/100)) -> 42.17466009 | E113: =D113*(1+('Scenario Input'!$AD$15/100)) -> 44.13938591 | F113: =E113*(1+('Scenario Input'!$AG$15/100)) -> 45.27404702 | G113: =F113*(1+('Scenario Input'!$AJ$15/100)) -> 46.322946 | H113: =G113*(1+('Scenario Input'!$AM$15/100)) -> 47.38165851 | I113: =H113*(1+('Scenario Input'!$AP$15/100)) -> 49.27423477 | J113: =I113*(1+('Scenario Input'!$AS$15/100)) -> 51.24240663
A114: CA2310002 | B114: ROGINA WATER COMPANY INC. | C114: 38.36 | D114: =C114*(1+('Scenario Input'!$AA$15/100)) -> 41.4825631 | E114: =D114*(1+('Scenario Input'!$AD$15/100)) -> 43.41504727 | F114: =E114*(1+('Scenario Input'!$AG$15/100)) -> 44.5310883 | G114: =F114*(1+('Scenario Input'!$AJ$15/100)) -> 45.56277458 | H114: =G114*(1+('Scenario Input'!$AM$15/100)) -> 46.60411334 | I114: =H114*(1+('Scenario Input'!$AP$15/100)) -> 48.46563194 | J114: =I114*(1+('Scenario Input'!$AS$15/100)) -> 50.4015056
A115: CA3301588 | B115: ROYAL CARRIZO HOA | C115: 69.78 | D115: =C115*(1+('Scenario Input'!$AA$15/100)) -> 75.46019951 | E115: =D115*(1+('Scenario Input'!$AD$15/100)) -> 78.97554741 | F115: =E115*(1+('Scenario Input'!$AG$15/100)) -> 81.00571798 | G115: =F115*(1+('Scenario Input'!$AJ$15/100)) -> 82.8824403 | H115: =G115*(1+('Scenario Input'!$AM$15/100)) -> 84.7767213 | I115: =H115*(1+('Scenario Input'!$AP$15/100)) -> 88.16297698 | J115: =I115*(1+('Scenario Input'!$AS$15/100)) -> 91.68449063
A116: CA3310033 | B116: SANTA ANA RIVER WATER COMPANY | C116: 51.98 | D116: =C116*(1+('Scenario Input'!$AA$15/100)) -> 56.21125209 | E116: =D116*(1+('Scenario Input'!$AD$15/100)) -> 58.82987897 | F116: =E116*(1+('Scenario Input'!$AG$15/100)) -> 60.34217857 | G116: =F116*(1+('Scenario Input'!$AJ$15/100)) -> 61.74017264 | H116: =G116*(1+('Scenario Input'!$AM$15/100)) -> 63.15124639 | I116: =H116*(1+('Scenario Input'!$AP$15/100)) -> 65.67371085 | J116: =I116*(1+('Scenario Input'!$AS$15/100)) -> 68.29693068
A117: CA5400728 | B117: GRIER MUTUAL WATER COMPANY | C117: 20.83 | D117: =C117*(1+('Scenario Input'!$AA$15/100)) -> 22.52559409 | E117: =D117*(1+('Scenario Input'!$AD$15/100)) -> 23.57495919 | F117: =E117*(1+('Scenario Input'!$AG$15/100)) -> 24.1809846 | G117: =F117*(1+('Scenario Input'!$AJ$15/100)) -> 24.74120423 | H117: =G117*(1+('Scenario Input'!$AM$15/100)) -> 25.3066653 | I117: =H117*(1+('Scenario Input'!$AP$15/100)) -> 26.31749513 | J117: =I117*(1+('Scenario Input'!$AS$15/100)) -> 27.36870077
A118: CA0310004 | B118: PLYMOUTH, CITY OF | C118: 60.89 | D118: =C118*(1+('Scenario Input'!$AA$15/100)) -> 65.84653982 | E118: =D118*(1+('Scenario Input'!$AD$15/100)) -> 68.91403098 | F118: =E118*(1+('Scenario Input'!$AG$15/100)) -> 70.685557 | G118: =F118*(1+('Scenario Input'!$AJ$15/100)) -> 72.32318415 | H118: =G118*(1+('Scenario Input'!$AM$15/100)) -> 73.97613299 | I118: =H118*(1+('Scenario Input'!$AP$15/100)) -> 76.93097833 | J118: =I118*(1+('Scenario Input'!$AS$15/100)) -> 80.00384973
A119: CA2000509 | B119: CASCADEL MUTUAL WATER SYSTEM | C119: 67.64 | D119: =C119*(1+('Scenario Input'!$AA$15/100)) -> 73.14600022 | E119: =D119*(1+('Scenario Input'!$AD$15/100)) -> 76.55354008 | F119: =E119*(1+('Scenario Input'!$AG$15/100)) -> 78.52144976 | G119: =F119*(1+('Scenario Input'!$AJ$15/100)) -> 80.34061711 | H119: =G119*(1+('Scenario Input'!$AM$15/100)) -> 82.17680465 | I119: =H119*(1+('Scenario Input'!$AP$15/100)) -> 85.45921128 | J119: =I119*(1+('Scenario Input'!$AS$15/100)) -> 88.8727278
A120: CA0400090 | B120: MOUNTAIN VILLAGE HOMEOWNER'S ASSOC | C120: 85.28 | D120: =C120*(1+('Scenario Input'!$AA$15/100)) -> 92.2219234 | E120: =D120*(1+('Scenario Input'!$AD$15/100)) -> 96.51812386 | F120: =E120*(1+('Scenario Input'!$AG$15/100)) -> 98.99924948 | G120: =F120*(1+('Scenario Input'!$AJ$15/100)) -> 101.2928419 | H120: =G120*(1+('Scenario Input'!$AM$15/100)) -> 103.6078933 | I120: =H120*(1+('Scenario Input'!$AP$15/100)) -> 107.7463267 | J120: =I120*(1+('Scenario Input'!$AS$15/100)) -> 112.0500625
A121: CA1100404 | B121: DEL ORO WC - BLACK BUTTE DISTRICT | C121: 42.444 | D121: =C121*(1+('Scenario Input'!$AA$15/100)) -> 45.899007 | E121: =D121*(1+('Scenario Input'!$AD$15/100)) -> 48.03723322 | F121: =E121*(1+('Scenario Input'!$AG$15/100)) -> 49.27209363 | G121: =F121*(1+('Scenario Input'!$AJ$15/100)) -> 50.41361846 | H121: =G121*(1+('Scenario Input'!$AM$15/100)) -> 51.56582343 | I121: =H121*(1+('Scenario Input'!$AP$15/100)) -> 53.62552873 | J121: =I121*(1+('Scenario Input'!$AS$15/100)) -> 55.76750531
A122: CA2110005 | B122: BOLINAS COMMUNITY PUD | C122: 124.33 | D122: =C122*(1+('Scenario Input'!$AA$15/100)) -> 134.4506536 | E122: =D122*(1+('Scenario Input'!$AD$15/100)) -> 140.7140987 | F122: =E122*(1+('Scenario Input'!$AG$15/100)) -> 144.3313402 | G122: =F122*(1+('Scenario Input'!$AJ$15/100)) -> 147.6751763 | H122: =G122*(1+('Scenario Input'!$AM$15/100)) -> 151.0502975 | I122: =H122*(1+('Scenario Input'!$AP$15/100)) -> 157.0837336 | J122: =I122*(1+('Scenario Input'!$AS$15/100)) -> 163.3581645
A123: CA4510001 | B123: CITY OF ANDERSON | C123: 12.3 | D123: =C123*(1+('Scenario Input'!$AA$15/100)) -> 13.30123895 | E123: =D123*(1+('Scenario Input'!$AD$15/100)) -> 13.92088325 | F123: =E123*(1+('Scenario Input'!$AG$15/100)) -> 14.27873791 | G123: =F123*(1+('Scenario Input'!$AJ$15/100)) -> 14.60954451 | H123: =G123*(1+('Scenario Input'!$AM$15/100)) -> 14.94344615 | I123: =H123*(1+('Scenario Input'!$AP$15/100)) -> 15.54033558 | J123: =I123*(1+('Scenario Input'!$AS$15/100)) -> 16.16106671
A124: CA1910019 | B124: CERRITOS - CITY, WATER DEPT. | C124: 27.05 | D124: =C124*(1+('Scenario Input'!$AA$15/100)) -> 29.25191168 | E124: =D124*(1+('Scenario Input'!$AD$15/100)) -> 30.61462536 | F124: =E124*(1+('Scenario Input'!$AG$15/100)) -> 31.40161466 | G124: =F124*(1+('Scenario Input'!$AJ$15/100)) -> 32.12912024 | H124: =G124*(1+('Scenario Input'!$AM$15/100)) -> 32.86343238 | I124: =H124*(1+('Scenario Input'!$AP$15/100)) -> 34.17610386 | J124: =I124*(1+('Scenario Input'!$AS$15/100)) -> 35.54120767
A125: CA5200504 | B125: CITY OF TEHAMA | C125: 34.3 | D125: =C125*(1+('Scenario Input'!$AA$15/100)) -> 37.09207285 | E125: =D125*(1+('Scenario Input'!$AD$15/100)) -> 38.82002402 | F125: =E125*(1+('Scenario Input'!$AG$15/100)) -> 39.81794392 | G125: =F125*(1+('Scenario Input'!$AJ$15/100)) -> 40.74043712 | H125: =G125*(1+('Scenario Input'!$AM$15/100)) -> 41.6715612 | I125: =H125*(1+('Scenario Input'!$AP$15/100)) -> 43.33605776 | J125: =I125*(1+('Scenario Input'!$AS$15/100)) -> 45.06703968
A126: CA4000568 | B126: SAN SIMEON CSD | C126: 119.57 | D126: =C126*(1+('Scenario Input'!$AA$15/100)) -> 129.3031822 | E126: =D126*(1+('Scenario Input'!$AD$15/100)) -> 135.3268301 | F126: =E126*(1+('Scenario Input'!$AG$15/100)) -> 138.8055847 | G126: =F126*(1+('Scenario Input'!$AJ$15/100)) -> 142.0214014 | H126: =G126*(1+('Scenario Input'!$AM$15/100)) -> 145.2673053 | I126: =H126*(1+('Scenario Input'!$AP$15/100)) -> 151.06975 | J126: =I126*(1+('Scenario Input'!$AS$15/100)) -> 157.1039631
A127: CA4810008 | B127: CITY OF VACAVILLE | C127: 31.9 | D127: =C127*(1+('Scenario Input'!$AA$15/100)) -> 34.49670915 | E127: =D127*(1+('Scenario Input'!$AD$15/100)) -> 36.10375412 | F127: =E127*(1+('Scenario Input'!$AG$15/100)) -> 37.03184872 | G127: =F127*(1+('Scenario Input'!$AJ$15/100)) -> 37.88979429 | H127: =G127*(1+('Scenario Input'!$AM$15/100)) -> 38.75576683 | I127: =H127*(1+('Scenario Input'!$AP$15/100)) -> 40.30379716 | J127: =I127*(1+('Scenario Input'!$AS$15/100)) -> 41.91366081
A128: CA1510021 | B128: WASCO, CITY OF | C128: 28.6 | D128: =C128*(1+('Scenario Input'!$AA$15/100)) -> 30.92808407 | E128: =D128*(1+('Scenario Input'!$AD$15/100)) -> 32.368883 | F128: =E128*(1+('Scenario Input'!$AG$15/100)) -> 33.20096781 | G128: =F128*(1+('Scenario Input'!$AJ$15/100)) -> 33.9701604 | H128: =G128*(1+('Scenario Input'!$AM$15/100)) -> 34.74654957 | I128: =H128*(1+('Scenario Input'!$AP$15/100)) -> 36.13443883 | J128: =I128*(1+('Scenario Input'!$AS$15/100)) -> 37.57776486
A129: CA0910013 | B129: GEORGETOWN DIVIDE PUD | C129: 38.53 | D129: =C129*(1+('Scenario Input'!$AA$15/100)) -> 41.66640137 | E129: =D129*(1+('Scenario Input'!$AD$15/100)) -> 43.60744972 | F129: =E129*(1+('Scenario Input'!$AG$15/100)) -> 44.72843671 | G129: =F129*(1+('Scenario Input'!$AJ$15/100)) -> 45.76469511 | H129: =G129*(1+('Scenario Input'!$AM$15/100)) -> 46.81064878 | I129: =H129*(1+('Scenario Input'!$AP$15/100)) -> 48.68041707 | J129: =I129*(1+('Scenario Input'!$AS$15/100)) -> 50.62486993
A130: CA4100539 | B130: KINGS MOUNTAIN PARK MUTUAL | C130: 805.69 | D130: =C130*(1+('Scenario Input'!$AA$15/100)) -> 871.2744074 | E130: =D130*(1+('Scenario Input'!$AD$15/100)) -> 911.863124 | F130: =E130*(1+('Scenario Input'!$AG$15/100)) -> 935.3037678 | G130: =F130*(1+('Scenario Input'!$AJ$15/100)) -> 956.9726759 | H130: =G130*(1+('Scenario Input'!$AM$15/100)) -> 978.8443191 | I130: =H130*(1+('Scenario Input'!$AP$15/100)) -> 1017.942518 | J130: =I130*(1+('Scenario Input'!$AS$15/100)) -> 1058.602426
A131: CA4100582 | B131: COUNTY SERVICE AREA 11 | C131: 21.03 | D131: =C131*(1+('Scenario Input'!$AA$15/100)) -> 22.7418744 | E131: =D131*(1+('Scenario Input'!$AD$15/100)) -> 23.80131502 | F131: =E131*(1+('Scenario Input'!$AG$15/100)) -> 24.4131592 | G131: =F131*(1+('Scenario Input'!$AJ$15/100)) -> 24.9787578 | H131: =G131*(1+('Scenario Input'!$AM$15/100)) -> 25.54964816 | I131: =H131*(1+('Scenario Input'!$AP$15/100)) -> 26.57018352 | J131: =I131*(1+('Scenario Input'!$AS$15/100)) -> 27.63148234
A132: CA4110020 | B132: PALO ALTO PARK MUTUAL WATER COMPANY | C132: 75 | D132: =C132*(1+('Scenario Input'!$AA$15/100)) -> 81.10511556 | E132: =D132*(1+('Scenario Input'!$AD$15/100)) -> 84.88343445 | F132: =E132*(1+('Scenario Input'!$AG$15/100)) -> 87.06547504 | G132: =F132*(1+('Scenario Input'!$AJ$15/100)) -> 89.08258846 | H132: =G132*(1+('Scenario Input'!$AM$15/100)) -> 91.11857405 | I132: =H132*(1+('Scenario Input'!$AP$15/100)) -> 94.75814379 | J132: =I132*(1+('Scenario Input'!$AS$15/100)) -> 98.54308967
A133: CA1510028 | B133: MIL POTRERO MWC | C133: 40.5 | D133: =C133*(1+('Scenario Input'!$AA$15/100)) -> 43.7967624 | E133: =D133*(1+('Scenario Input'!$AD$15/100)) -> 45.8370546 | F133: =E133*(1+('Scenario Input'!$AG$15/100)) -> 47.01535652 | G133: =F133*(1+('Scenario Input'!$AJ$15/100)) -> 48.10459777 | H133: =G133*(1+('Scenario Input'!$AM$15/100)) -> 49.20402999 | I133: =H133*(1+('Scenario Input'!$AP$15/100)) -> 51.16939764 | J133: =I133*(1+('Scenario Input'!$AS$15/100)) -> 53.21326842
A134: CA2700511 | B134: NORMCO WC | C134: 88.7 | D134: =C134*(1+('Scenario Input'!$AA$15/100)) -> 95.92031666 | E134: =D134*(1+('Scenario Input'!$AD$15/100)) -> 100.3888085 | F134: =E134*(1+('Scenario Input'!$AG$15/100)) -> 102.9694351 | G134: =F134*(1+('Scenario Input'!$AJ$15/100)) -> 105.3550079 | H134: =G134*(1+('Scenario Input'!$AM$15/100)) -> 107.7629002 | I134: =H134*(1+('Scenario Input'!$AP$15/100)) -> 112.0672981 | J134: =I134*(1+('Scenario Input'!$AS$15/100)) -> 116.5436274
A135: CA4110001 | B135: MID-PENINSULA WATER DISTRICT | C135: 74.48 | D135: =C135*(1+('Scenario Input'!$AA$15/100)) -> 80.54278676 | E135: =D135*(1+('Scenario Input'!$AD$15/100)) -> 84.2949093 | F135: =E135*(1+('Scenario Input'!$AG$15/100)) -> 86.46182108 | G135: =F135*(1+('Scenario Input'!$AJ$15/100)) -> 88.46494918 | H135: =G135*(1+('Scenario Input'!$AM$15/100)) -> 90.48681861 | I135: =H135*(1+('Scenario Input'!$AP$15/100)) -> 94.10115399 | J135: =I135*(1+('Scenario Input'!$AS$15/100)) -> 97.85985758
A136: CA1510015 | B136: OILDALE MWC | C136: 27.43 | D136: =C136*(1+('Scenario Input'!$AA$15/100)) -> 29.66284426 | E136: =D136*(1+('Scenario Input'!$AD$15/100)) -> 31.04470142 | F136: =E136*(1+('Scenario Input'!$AG$15/100)) -> 31.8427464 | G136: =F136*(1+('Scenario Input'!$AJ$15/100)) -> 32.58047202 | H136: =G136*(1+('Scenario Input'!$AM$15/100)) -> 33.32509982 | I136: =H136*(1+('Scenario Input'!$AP$15/100)) -> 34.65621179 | J136: =I136*(1+('Scenario Input'!$AS$15/100)) -> 36.04049266
A137: CA1400036 | B137: KEELER COMMUNITY SERVICE DISTRICT | C137: 35 | D137: =C137*(1+('Scenario Input'!$AA$15/100)) -> 37.84905393 | E137: =D137*(1+('Scenario Input'!$AD$15/100)) -> 39.61226941 | F137: =E137*(1+('Scenario Input'!$AG$15/100)) -> 40.63055502 | G137: =F137*(1+('Scenario Input'!$AJ$15/100)) -> 41.57187461 | H137: =G137*(1+('Scenario Input'!$AM$15/100)) -> 42.52200123 | I137: =H137*(1+('Scenario Input'!$AP$15/100)) -> 44.2204671 | J137: =I137*(1+('Scenario Input'!$AS$15/100)) -> 45.98677518
A138: CA3110041 | B138: MIDWAY HEIGHTS C. W. D. | C138: 71.93 | D138: =C138*(1+('Scenario Input'!$AA$15/100)) -> 77.78521283 | E138: =D138*(1+('Scenario Input'!$AD$15/100)) -> 81.40887253 | F138: =E138*(1+('Scenario Input'!$AG$15/100)) -> 83.50159493 | G138: =F138*(1+('Scenario Input'!$AJ$15/100)) -> 85.43614117 | H138: =G138*(1+('Scenario Input'!$AM$15/100)) -> 87.38878709 | I138: =H138*(1+('Scenario Input'!$AP$15/100)) -> 90.8793771 | J138: =I138*(1+('Scenario Input'!$AS$15/100)) -> 94.50939253
A139: CA3610016 | B139: GLEN MARTIN MWC | C139: 50.42 | D139: =C139*(1+('Scenario Input'!$AA$15/100)) -> 54.52426568 | E139: =D139*(1+('Scenario Input'!$AD$15/100)) -> 57.06430353 | F139: =E139*(1+('Scenario Input'!$AG$15/100)) -> 58.53121669 | G139: =F139*(1+('Scenario Input'!$AJ$15/100)) -> 59.8872548 | H139: =G139*(1+('Scenario Input'!$AM$15/100)) -> 61.25598005 | I139: =H139*(1+('Scenario Input'!$AP$15/100)) -> 63.70274146 | J139: =I139*(1+('Scenario Input'!$AS$15/100)) -> 66.24723442
A140: CA4900603 | B140: RIEBLI MUTUAL WATER COMPANY | C140: 63.33 | D140: =C140*(1+('Scenario Input'!$AA$15/100)) -> 68.48515958 | E140: =D140*(1+('Scenario Input'!$AD$15/100)) -> 71.67557205 | F140: =E140*(1+('Scenario Input'!$AG$15/100)) -> 73.51808712 | G140: =F140*(1+('Scenario Input'!$AJ$15/100)) -> 75.22133769 | H140: =G140*(1+('Scenario Input'!$AM$15/100)) -> 76.94052393 | I140: =H140*(1+('Scenario Input'!$AP$15/100)) -> 80.01377661 | J140: =I140*(1+('Scenario Input'!$AS$15/100)) -> 83.20978492
A141: CA3510001 | B141: HOLLISTER, CITY OF | C141: 33.57 | D141: =C141*(1+('Scenario Input'!$AA$15/100)) -> 36.30264972 | E141: =D141*(1+('Scenario Input'!$AD$15/100)) -> 37.99382526 | F141: =E141*(1+('Scenario Input'!$AG$15/100)) -> 38.97050663 | G141: =F141*(1+('Scenario Input'!$AJ$15/100)) -> 39.87336659 | H141: =G141*(1+('Scenario Input'!$AM$15/100)) -> 40.78467375 | I141: =H141*(1+('Scenario Input'!$AP$15/100)) -> 42.41374516 | J141: =I141*(1+('Scenario Input'!$AS$15/100)) -> 44.10788694
A142: CA1910018 | B142: BELLFLOWER MUNICIPAL WATER SYSTEM | C142: 36.25 | D142: =C142*(1+('Scenario Input'!$AA$15/100)) -> 39.20080585 | E142: =D142*(1+('Scenario Input'!$AD$15/100)) -> 41.02699332 | F142: =E142*(1+('Scenario Input'!$AG$15/100)) -> 42.08164627 | G142: =F142*(1+('Scenario Input'!$AJ$15/100)) -> 43.05658442 | H142: =G142*(1+('Scenario Input'!$AM$15/100)) -> 44.04064413 | I142: =H142*(1+('Scenario Input'!$AP$15/100)) -> 45.7997695 | J142: =I142*(1+('Scenario Input'!$AS$15/100)) -> 47.62916001
A143: CA5410010 | B143: PORTERVILLE, CITY OF | C143: 29.54 | D143: =C143*(1+('Scenario Input'!$AA$15/100)) -> 31.94460151 | E143: =D143*(1+('Scenario Input'!$AD$15/100)) -> 33.43275538 | F143: =E143*(1+('Scenario Input'!$AG$15/100)) -> 34.29218844 | G143: =F143*(1+('Scenario Input'!$AJ$15/100)) -> 35.08666217 | H143: =G143*(1+('Scenario Input'!$AM$15/100)) -> 35.88856903 | I143: =H143*(1+('Scenario Input'!$AP$15/100)) -> 37.32207423 | J143: =I143*(1+('Scenario Input'!$AS$15/100)) -> 38.81283825
A144: CA0400003 | B144: HARTLEY MUTUAL WATER SYSTEM | C144: 55.84 | D144: =C144*(1+('Scenario Input'!$AA$15/100)) -> 60.38546204 | E144: =D144*(1+('Scenario Input'!$AD$15/100)) -> 63.19854639 | F144: =E144*(1+('Scenario Input'!$AG$15/100)) -> 64.82314835 | G144: =F144*(1+('Scenario Input'!$AJ$15/100)) -> 66.32495652 | H144: =G144*(1+('Scenario Input'!$AM$15/100)) -> 67.84081567 | I144: =H144*(1+('Scenario Input'!$AP$15/100)) -> 70.55059665 | J144: =I144*(1+('Scenario Input'!$AS$15/100)) -> 73.36861503
A145: CA1400026 | B145: RAWSON CREEK MUTUAL WATER COMPANY | C145: 50 | D145: =C145*(1+('Scenario Input'!$AA$15/100)) -> 54.07007704 | E145: =D145*(1+('Scenario Input'!$AD$15/100)) -> 56.5889563 | F145: =E145*(1+('Scenario Input'!$AG$15/100)) -> 58.04365003 | G145: =F145*(1+('Scenario Input'!$AJ$15/100)) -> 59.3883923 | H145: =G145*(1+('Scenario Input'!$AM$15/100)) -> 60.74571604 | I145: =H145*(1+('Scenario Input'!$AP$15/100)) -> 63.17209586 | J145: =I145*(1+('Scenario Input'!$AS$15/100)) -> 65.69539311
A146: CA3301115 | B146: CHIRIACO SUMMIT WATER DIST. | C146: 112.28 | D146: =C146*(1+('Scenario Input'!$AA$15/100)) -> 121.419765 | E146: =D146*(1+('Scenario Input'!$AD$15/100)) -> 127.0761603 | F146: =E146*(1+('Scenario Input'!$AG$15/100)) -> 130.3428205 | G146: =F146*(1+('Scenario Input'!$AJ$15/100)) -> 133.3625738 | H146: =G146*(1+('Scenario Input'!$AM$15/100)) -> 136.4105799 | I146: =H146*(1+('Scenario Input'!$AP$15/100)) -> 141.8592585 | J146: =I146*(1+('Scenario Input'!$AS$15/100)) -> 147.5255748
A147: CA3610117 | B147: DEVORE WC | C147: 38.64 | D147: =C147*(1+('Scenario Input'!$AA$15/100)) -> 41.78535553 | E147: =D147*(1+('Scenario Input'!$AD$15/100)) -> 43.73194543 | F147: =E147*(1+('Scenario Input'!$AG$15/100)) -> 44.85613274 | G147: =F147*(1+('Scenario Input'!$AJ$15/100)) -> 45.89534957 | H147: =G147*(1+('Scenario Input'!$AM$15/100)) -> 46.94428935 | I147: =H147*(1+('Scenario Input'!$AP$15/100)) -> 48.81939568 | J147: =I147*(1+('Scenario Input'!$AS$15/100)) -> 50.7693998
A148: CA0310021 | B148: AWA - CAMANCHE VILLAGE | C148: 54.12 | D148: =C148*(1+('Scenario Input'!$AA$15/100)) -> 58.52545139 | E148: =D148*(1+('Scenario Input'!$AD$15/100)) -> 61.2518863 | F148: =E148*(1+('Scenario Input'!$AG$15/100)) -> 62.82644679 | G148: =F148*(1+('Scenario Input'!$AJ$15/100)) -> 64.28199583 | H148: =G148*(1+('Scenario Input'!$AM$15/100)) -> 65.75116304 | I148: =H148*(1+('Scenario Input'!$AP$15/100)) -> 68.37747656 | J148: =I148*(1+('Scenario Input'!$AS$15/100)) -> 71.10869351
A149: CA2702198 | B149: FOOTHILL ESTATES WS | C149: 36.4 | D149: =C149*(1+('Scenario Input'!$AA$15/100)) -> 39.36301608 | E149: =D149*(1+('Scenario Input'!$AD$15/100)) -> 41.19676018 | F149: =E149*(1+('Scenario Input'!$AG$15/100)) -> 42.25577722 | G149: =F149*(1+('Scenario Input'!$AJ$15/100)) -> 43.2347496 | H149: =G149*(1+('Scenario Input'!$AM$15/100)) -> 44.22288127 | I149: =H149*(1+('Scenario Input'!$AP$15/100)) -> 45.98928578 | J149: =I149*(1+('Scenario Input'!$AS$15/100)) -> 47.82624619
A150: CA4510007 | B150: COTTONWOOD WATER DISTRICT | C150: 37 | D150: =C150*(1+('Scenario Input'!$AA$15/100)) -> 40.01185701 | E150: =D150*(1+('Scenario Input'!$AD$15/100)) -> 41.87582766 | F150: =E150*(1+('Scenario Input'!$AG$15/100)) -> 42.95230102 | G150: =F150*(1+('Scenario Input'!$AJ$15/100)) -> 43.9474103 | H150: =G150*(1+('Scenario Input'!$AM$15/100)) -> 44.95182987 | I150: =H150*(1+('Scenario Input'!$AP$15/100)) -> 46.74735093 | J150: =I150*(1+('Scenario Input'!$AS$15/100)) -> 48.6145909
A151: CA4910009 | B151: SANTA ROSA, CITY OF | C151: 33.35 | D151: =C151*(1+('Scenario Input'!$AA$15/100)) -> 36.06474138 | E151: =D151*(1+('Scenario Input'!$AD$15/100)) -> 37.74483385 | F151: =E151*(1+('Scenario Input'!$AG$15/100)) -> 38.71511457 | G151: =F151*(1+('Scenario Input'!$AJ$15/100)) -> 39.61205767 | H151: =G151*(1+('Scenario Input'!$AM$15/100)) -> 40.5173926 | I151: =H151*(1+('Scenario Input'!$AP$15/100)) -> 42.13578794 | J151: =I151*(1+('Scenario Input'!$AS$15/100)) -> 43.81882721
A152: CA4910013 | B152: VALLEY OF THE MOON WATER DISTRICT | C152: 25.03 | D152: =C152*(1+('Scenario Input'!$AA$15/100)) -> 27.06748056 | E152: =D152*(1+('Scenario Input'!$AD$15/100)) -> 28.32843152 | F152: =E152*(1+('Scenario Input'!$AG$15/100)) -> 29.0566512 | G152: =F152*(1+('Scenario Input'!$AJ$15/100)) -> 29.72982919 | H152: =G152*(1+('Scenario Input'!$AM$15/100)) -> 30.40930545 | I152: =H152*(1+('Scenario Input'!$AP$15/100)) -> 31.62395119 | J152: =I152*(1+('Scenario Input'!$AS$15/100)) -> 32.88711379
A153: CA4900793 | B153: VINEHILL VISTAS MUTUAL WATER COMPANY | C153: 50 | D153: =C153*(1+('Scenario Input'!$AA$15/100)) -> 54.07007704 | E153: =D153*(1+('Scenario Input'!$AD$15/100)) -> 56.5889563 | F153: =E153*(1+('Scenario Input'!$AG$15/100)) -> 58.04365003 | G153: =F153*(1+('Scenario Input'!$AJ$15/100)) -> 59.3883923 | H153: =G153*(1+('Scenario Input'!$AM$15/100)) -> 60.74571604 | I153: =H153*(1+('Scenario Input'!$AP$15/100)) -> 63.17209586 | J153: =I153*(1+('Scenario Input'!$AS$15/100)) -> 65.69539311
A154: CA3110009 | B154: MEADOW VISTA CWD | C154: 80.25 | D154: =C154*(1+('Scenario Input'!$AA$15/100)) -> 86.78247365 | E154: =D154*(1+('Scenario Input'!$AD$15/100)) -> 90.82527486 | F154: =E154*(1+('Scenario Input'!$AG$15/100)) -> 93.16005829 | G154: =F154*(1+('Scenario Input'!$AJ$15/100)) -> 95.31836965 | H154: =G154*(1+('Scenario Input'!$AM$15/100)) -> 97.49687424 | I154: =H154*(1+('Scenario Input'!$AP$15/100)) -> 101.3912139 | J154: =I154*(1+('Scenario Input'!$AS$15/100)) -> 105.4411059
A155: CA1502569 | B155: FIRST MUTUAL WATER SYSTEM | C155: 30 | D155: =C155*(1+('Scenario Input'!$AA$15/100)) -> 32.44204622 | E155: =D155*(1+('Scenario Input'!$AD$15/100)) -> 33.95337378 | F155: =E155*(1+('Scenario Input'!$AG$15/100)) -> 34.82619002 | G155: =F155*(1+('Scenario Input'!$AJ$15/100)) -> 35.63303538 | H155: =G155*(1+('Scenario Input'!$AM$15/100)) -> 36.44742962 | I155: =H155*(1+('Scenario Input'!$AP$15/100)) -> 37.90325751 | J155: =I155*(1+('Scenario Input'!$AS$15/100)) -> 39.41723587
A156: CA1900563 | B156: SUNDALE MUTUAL WATER COMPANY A, B | C156: 65 | D156: =C156*(1+('Scenario Input'!$AA$15/100)) -> 70.29110015 | E156: =D156*(1+('Scenario Input'!$AD$15/100)) -> 73.56564319 | F156: =E156*(1+('Scenario Input'!$AG$15/100)) -> 75.45674503 | G156: =F156*(1+('Scenario Input'!$AJ$15/100)) -> 77.20490999 | H156: =G156*(1+('Scenario Input'!$AM$15/100)) -> 78.96943085 | I156: =H156*(1+('Scenario Input'!$AP$15/100)) -> 82.12372461 | J156: =I156*(1+('Scenario Input'!$AS$15/100)) -> 85.40401105
A157: CA3610060 | B157: BDVWA - GOAT MOUNTAIN ID | C157: 39.98 | D157: =C157*(1+('Scenario Input'!$AA$15/100)) -> 43.2344336 | E157: =D157*(1+('Scenario Input'!$AD$15/100)) -> 45.24852946 | F157: =E157*(1+('Scenario Input'!$AG$15/100)) -> 46.41170256 | G157: =F157*(1+('Scenario Input'!$AJ$15/100)) -> 47.48695849 | H157: =G157*(1+('Scenario Input'!$AM$15/100)) -> 48.57227454 | I157: =H157*(1+('Scenario Input'!$AP$15/100)) -> 50.51240785 | J157: =I157*(1+('Scenario Input'!$AS$15/100)) -> 52.53003633
A158: CA3310048 | B158: COACHELLA VWD: I.D. NO. 8 | C158: 22.1 | D158: =C158*(1+('Scenario Input'!$AA$15/100)) -> 23.89897405 | E158: =D158*(1+('Scenario Input'!$AD$15/100)) -> 25.01231868 | F158: =E158*(1+('Scenario Input'!$AG$15/100)) -> 25.65529331 | G158: =F158*(1+('Scenario Input'!$AJ$15/100)) -> 26.2496694 | H158: =G158*(1+('Scenario Input'!$AM$15/100)) -> 26.84960649 | I158: =H158*(1+('Scenario Input'!$AP$15/100)) -> 27.92206637 | J158: =I158*(1+('Scenario Input'!$AS$15/100)) -> 29.03736376
A159: CA3901159 | B159: WILKINSON MANOR A-ZONE PWS | C159: 116.25 | D159: =C159*(1+('Scenario Input'!$AA$15/100)) -> 125.7129291 | E159: =D159*(1+('Scenario Input'!$AD$15/100)) -> 131.5693234 | F159: =E159*(1+('Scenario Input'!$AG$15/100)) -> 134.9514863 | G159: =F159*(1+('Scenario Input'!$AJ$15/100)) -> 138.0780121 | H159: =G159*(1+('Scenario Input'!$AM$15/100)) -> 141.2337898 | I159: =H159*(1+('Scenario Input'!$AP$15/100)) -> 146.8751229 | J159: =I159*(1+('Scenario Input'!$AS$15/100)) -> 152.741789
A160: CA1500561 | B160: ROUND MOUNTAIN WATER COMPANY | C160: 125 | D160: =C160*(1+('Scenario Input'!$AA$15/100)) -> 135.1751926 | E160: =D160*(1+('Scenario Input'!$AD$15/100)) -> 141.4723907 | F160: =E160*(1+('Scenario Input'!$AG$15/100)) -> 145.1091251 | G160: =F160*(1+('Scenario Input'!$AJ$15/100)) -> 148.4709808 | H160: =G160*(1+('Scenario Input'!$AM$15/100)) -> 151.8642901 | I160: =H160*(1+('Scenario Input'!$AP$15/100)) -> 157.9302396 | J160: =I160*(1+('Scenario Input'!$AS$15/100)) -> 164.2384828
A161: CA3400169 | B161: SPINDRIFT MARINA | C161: 100 | D161: =C161*(1+('Scenario Input'!$AA$15/100)) -> 108.1401541 | E161: =D161*(1+('Scenario Input'!$AD$15/100)) -> 113.1779126 | F161: =E161*(1+('Scenario Input'!$AG$15/100)) -> 116.0873001 | G161: =F161*(1+('Scenario Input'!$AJ$15/100)) -> 118.7767846 | H161: =G161*(1+('Scenario Input'!$AM$15/100)) -> 121.4914321 | I161: =H161*(1+('Scenario Input'!$AP$15/100)) -> 126.3441917 | J161: =I161*(1+('Scenario Input'!$AS$15/100)) -> 131.3907862
A162: CA5610015 | B162: VENTURA CWWD NO. 19 - SOMIS | C162: 16.45 | D162: =C162*(1+('Scenario Input'!$AA$15/100)) -> 17.78905535 | E162: =D162*(1+('Scenario Input'!$AD$15/100)) -> 18.61776662 | F162: =E162*(1+('Scenario Input'!$AG$15/100)) -> 19.09636086 | G162: =F162*(1+('Scenario Input'!$AJ$15/100)) -> 19.53878107 | H162: =G162*(1+('Scenario Input'!$AM$15/100)) -> 19.98534058 | I162: =H162*(1+('Scenario Input'!$AP$15/100)) -> 20.78361954 | J162: =I162*(1+('Scenario Input'!$AS$15/100)) -> 21.61378433
A163: CA5400553 | B163: DEL ORO TRAVER DISTRICT | C163: 76.22 | D163: =C163*(1+('Scenario Input'!$AA$15/100)) -> 82.42442544 | E163: =D163*(1+('Scenario Input'!$AD$15/100)) -> 86.26420498 | F163: =E163*(1+('Scenario Input'!$AG$15/100)) -> 88.4817401 | G163: =F163*(1+('Scenario Input'!$AJ$15/100)) -> 90.53166523 | H163: =G163*(1+('Scenario Input'!$AM$15/100)) -> 92.60076953 | I163: =H163*(1+('Scenario Input'!$AP$15/100)) -> 96.29954292 | J163: =I163*(1+('Scenario Input'!$AS$15/100)) -> 100.1460573
A164: CA1510022 | B164: WEST KERN WATER DISTRICT | C164: 13.84 | D164: =C164*(1+('Scenario Input'!$AA$15/100)) -> 14.96659732 | E164: =D164*(1+('Scenario Input'!$AD$15/100)) -> 15.6638231 | F164: =E164*(1+('Scenario Input'!$AG$15/100)) -> 16.06648233 | G164: =F164*(1+('Scenario Input'!$AJ$15/100)) -> 16.43870699 | H164: =G164*(1+('Scenario Input'!$AM$15/100)) -> 16.8144142 | I164: =H164*(1+('Scenario Input'!$AP$15/100)) -> 17.48603613 | J164: =I164*(1+('Scenario Input'!$AS$15/100)) -> 18.18448481
A165: CA1310008 | B165: WESTMORLAND, CITY OF | C165: 55.23 | D165: =C165*(1+('Scenario Input'!$AA$15/100)) -> 59.7258071 | E165: =D165*(1+('Scenario Input'!$AD$15/100)) -> 62.50816113 | F165: =E165*(1+('Scenario Input'!$AG$15/100)) -> 64.11501582 | G165: =F165*(1+('Scenario Input'!$AJ$15/100)) -> 65.60041814 | H165: =G165*(1+('Scenario Input'!$AM$15/100)) -> 67.09971793 | I165: =H165*(1+('Scenario Input'!$AP$15/100)) -> 69.77989708 | J165: =I165*(1+('Scenario Input'!$AS$15/100)) -> 72.56713123
A166: CA3310020 | B166: INDIO WATER AUTHORITY | C166: 28.11 | D166: =C166*(1+('Scenario Input'!$AA$15/100)) -> 30.39819731 | E166: =D166*(1+('Scenario Input'!$AD$15/100)) -> 31.81431123 | F166: =E166*(1+('Scenario Input'!$AG$15/100)) -> 32.63214004 | G166: =F166*(1+('Scenario Input'!$AJ$15/100)) -> 33.38815415 | H166: =G166*(1+('Scenario Input'!$AM$15/100)) -> 34.15124156 | I166: =H166*(1+('Scenario Input'!$AP$15/100)) -> 35.51535229 | J166: =I166*(1+('Scenario Input'!$AS$15/100)) -> 36.93395001
A167: CA5402038 | B167: PATTERSON TRACT CSD | C167: 49.56 | D167: =C167*(1+('Scenario Input'!$AA$15/100)) -> 53.59426036 | E167: =D167*(1+('Scenario Input'!$AD$15/100)) -> 56.09097348 | F167: =E167*(1+('Scenario Input'!$AG$15/100)) -> 57.53286591 | G167: =F167*(1+('Scenario Input'!$AJ$15/100)) -> 58.86577445 | H167: =G167*(1+('Scenario Input'!$AM$15/100)) -> 60.21115374 | I167: =H167*(1+('Scenario Input'!$AP$15/100)) -> 62.61618141 | J167: =I167*(1+('Scenario Input'!$AS$15/100)) -> 65.11727365
A168: CA5400647 | B168: YOKOHL MUTUAL WATER CO | C168: 50 | D168: =C168*(1+('Scenario Input'!$AA$15/100)) -> 54.07007704 | E168: =D168*(1+('Scenario Input'!$AD$15/100)) -> 56.5889563 | F168: =E168*(1+('Scenario Input'!$AG$15/100)) -> 58.04365003 | G168: =F168*(1+('Scenario Input'!$AJ$15/100)) -> 59.3883923 | H168: =G168*(1+('Scenario Input'!$AM$15/100)) -> 60.74571604 | I168: =H168*(1+('Scenario Input'!$AP$15/100)) -> 63.17209586 | J168: =I168*(1+('Scenario Input'!$AS$15/100)) -> 65.69539311
A169: CA4210017 | B169: VANDENBERG VILLAGE COMM. SERV. DIST. | C169: 32.62 | D169: =C169*(1+('Scenario Input'!$AA$15/100)) -> 35.27531826 | E169: =D169*(1+('Scenario Input'!$AD$15/100)) -> 36.91863509 | F169: =E169*(1+('Scenario Input'!$AG$15/100)) -> 37.86767728 | G169: =F169*(1+('Scenario Input'!$AJ$15/100)) -> 38.74498714 | H169: =G169*(1+('Scenario Input'!$AM$15/100)) -> 39.63050514 | I169: =H169*(1+('Scenario Input'!$AP$15/100)) -> 41.21347534 | J169: =I169*(1+('Scenario Input'!$AS$15/100)) -> 42.85967447
A170: CA3210011 | B170: PLUMAS EUREKA CSD | C170: 13.45 | D170: =C170*(1+('Scenario Input'!$AA$15/100)) -> 14.54485072 | E170: =D170*(1+('Scenario Input'!$AD$15/100)) -> 15.22242924 | F170: =E170*(1+('Scenario Input'!$AG$15/100)) -> 15.61374186 | G170: =F170*(1+('Scenario Input'!$AJ$15/100)) -> 15.97547753 | H170: =G170*(1+('Scenario Input'!$AM$15/100)) -> 16.34059761 | I170: =H170*(1+('Scenario Input'!$AP$15/100)) -> 16.99329379 | J170: =I170*(1+('Scenario Input'!$AS$15/100)) -> 17.67206075
A171: CA3600025 | B171: BAR-LEN MWC | C171: 75 | D171: =C171*(1+('Scenario Input'!$AA$15/100)) -> 81.10511556 | E171: =D171*(1+('Scenario Input'!$AD$15/100)) -> 84.88343445 | F171: =E171*(1+('Scenario Input'!$AG$15/100)) -> 87.06547504 | G171: =F171*(1+('Scenario Input'!$AJ$15/100)) -> 89.08258846 | H171: =G171*(1+('Scenario Input'!$AM$15/100)) -> 91.11857405 | I171: =H171*(1+('Scenario Input'!$AP$15/100)) -> 94.75814379 | J171: =I171*(1+('Scenario Input'!$AS$15/100)) -> 98.54308967
A172: CA3110004 | B172: CITY OF LINCOLN | C172: 44.74 | D172: =C172*(1+('Scenario Input'!$AA$15/100)) -> 48.38190493 | E172: =D172*(1+('Scenario Input'!$AD$15/100)) -> 50.6357981 | F172: =E172*(1+('Scenario Input'!$AG$15/100)) -> 51.93745804 | G172: =F172*(1+('Scenario Input'!$AJ$15/100)) -> 53.14073343 | H172: =G172*(1+('Scenario Input'!$AM$15/100)) -> 54.35526671 | I172: =H172*(1+('Scenario Input'!$AP$15/100)) -> 56.52639137 | J172: =I172*(1+('Scenario Input'!$AS$15/100)) -> 58.78423776
A173: CA5110007 | B173: SUTTER COMMUNITY S.D. | C173: 20.89 | D173: =C173*(1+('Scenario Input'!$AA$15/100)) -> 22.59047819 | E173: =D173*(1+('Scenario Input'!$AD$15/100)) -> 23.64286594 | F173: =E173*(1+('Scenario Input'!$AG$15/100)) -> 24.25063698 | G173: =F173*(1+('Scenario Input'!$AJ$15/100)) -> 24.8124703 | H173: =G173*(1+('Scenario Input'!$AM$15/100)) -> 25.37956016 | I173: =H173*(1+('Scenario Input'!$AP$15/100)) -> 26.39330165 | J173: =I173*(1+('Scenario Input'!$AS$15/100)) -> 27.44753524
A174: CA4900521 | B174: GILL CREEK MUTUAL WATER COMPANY | C174: 44.68 | D174: =C174*(1+('Scenario Input'!$AA$15/100)) -> 48.31702084 | E174: =D174*(1+('Scenario Input'!$AD$15/100)) -> 50.56789135 | F174: =E174*(1+('Scenario Input'!$AG$15/100)) -> 51.86780566 | G174: =F174*(1+('Scenario Input'!$AJ$15/100)) -> 53.06946736 | H174: =G174*(1+('Scenario Input'!$AM$15/100)) -> 54.28237185 | I174: =H174*(1+('Scenario Input'!$AP$15/100)) -> 56.45058486 | J174: =I174*(1+('Scenario Input'!$AS$15/100)) -> 58.70540329
A175: CA3610011 | B175: CEDARPINES PARK MWC | C175: 57.83 | D175: =C175*(1+('Scenario Input'!$AA$15/100)) -> 62.5374511 | E175: =D175*(1+('Scenario Input'!$AD$15/100)) -> 65.45078685 | F175: =E175*(1+('Scenario Input'!$AG$15/100)) -> 67.13328562 | G175: =F175*(1+('Scenario Input'!$AJ$15/100)) -> 68.68861454 | H175: =G175*(1+('Scenario Input'!$AM$15/100)) -> 70.25849517 | I175: =H175*(1+('Scenario Input'!$AP$15/100)) -> 73.06484607 | J175: =I175*(1+('Scenario Input'!$AS$15/100)) -> 75.98329168
A176: CA4000222 | B176: AVILA BEACH COMMUNITY SERVICES DISTRICT | C176: 82.36 | D176: =C176*(1+('Scenario Input'!$AA$15/100)) -> 89.0642309 | E176: =D176*(1+('Scenario Input'!$AD$15/100)) -> 93.21332881 | F176: =E176*(1+('Scenario Input'!$AG$15/100)) -> 95.60950032 | G176: =F176*(1+('Scenario Input'!$AJ$15/100)) -> 97.8245598 | H176: =G176*(1+('Scenario Input'!$AM$15/100)) -> 100.0603435 | I176: =H176*(1+('Scenario Input'!$AP$15/100)) -> 104.0570763 | J176: =I176*(1+('Scenario Input'!$AS$15/100)) -> 108.2134515
A177: CA2010011 | B177: MADERA CO SA1-INDIAN LAKES | C177: 56.54 | D177: =C177*(1+('Scenario Input'!$AA$15/100)) -> 61.14244311 | E177: =D177*(1+('Scenario Input'!$AD$15/100)) -> 63.99079178 | F177: =E177*(1+('Scenario Input'!$AG$15/100)) -> 65.63575945 | G177: =F177*(1+('Scenario Input'!$AJ$15/100)) -> 67.15639402 | H177: =G177*(1+('Scenario Input'!$AM$15/100)) -> 68.69125569 | I177: =H177*(1+('Scenario Input'!$AP$15/100)) -> 71.435006 | J177: =I177*(1+('Scenario Input'!$AS$15/100)) -> 74.28835053
A178: CA4900673 | B178: ATHENA TERRACE MUTUAL WATER COMPANY | C178: 115 | D178: =C178*(1+('Scenario Input'!$AA$15/100)) -> 124.3611772 | E178: =D178*(1+('Scenario Input'!$AD$15/100)) -> 130.1545995 | F178: =E178*(1+('Scenario Input'!$AG$15/100)) -> 133.5003951 | G178: =F178*(1+('Scenario Input'!$AJ$15/100)) -> 136.5933023 | H178: =G178*(1+('Scenario Input'!$AM$15/100)) -> 139.7151469 | I178: =H178*(1+('Scenario Input'!$AP$15/100)) -> 145.2958205 | J178: =I178*(1+('Scenario Input'!$AS$15/100)) -> 151.0994042
A179: CA1910044 | B179: GLENDORA-CITY, WATER DEPT. | C179: 47.54 | D179: =C179*(1+('Scenario Input'!$AA$15/100)) -> 51.40982925 | E179: =D179*(1+('Scenario Input'!$AD$15/100)) -> 53.80477965 | F179: =E179*(1+('Scenario Input'!$AG$15/100)) -> 55.18790244 | G179: =F179*(1+('Scenario Input'!$AJ$15/100)) -> 56.4664834 | H179: =G179*(1+('Scenario Input'!$AM$15/100)) -> 57.75702681 | I179: =H179*(1+('Scenario Input'!$AP$15/100)) -> 60.06402874 | J179: =I179*(1+('Scenario Input'!$AS$15/100)) -> 62.46317977
A180: CA1000267 | B180: KINGS CANYON MOBILE HOME PARK | C180: 20 | D180: =C180*(1+('Scenario Input'!$AA$15/100)) -> 21.62803082 | E180: =D180*(1+('Scenario Input'!$AD$15/100)) -> 22.63558252 | F180: =E180*(1+('Scenario Input'!$AG$15/100)) -> 23.21746001 | G180: =F180*(1+('Scenario Input'!$AJ$15/100)) -> 23.75535692 | H180: =G180*(1+('Scenario Input'!$AM$15/100)) -> 24.29828641 | I180: =H180*(1+('Scenario Input'!$AP$15/100)) -> 25.26883834 | J180: =I180*(1+('Scenario Input'!$AS$15/100)) -> 26.27815725
A181: CA2700547 | B181: DESMOND RD WS #03 | C181: 18.33 | D181: =C181*(1+('Scenario Input'!$AA$15/100)) -> 19.82209024 | E181: =D181*(1+('Scenario Input'!$AD$15/100)) -> 20.74551138 | F181: =E181*(1+('Scenario Input'!$AG$15/100)) -> 21.2788021 | G181: =F181*(1+('Scenario Input'!$AJ$15/100)) -> 21.77178462 | H181: =G181*(1+('Scenario Input'!$AM$15/100)) -> 22.2693795 | I181: =H181*(1+('Scenario Input'!$AP$15/100)) -> 23.15889034 | J181: =I181*(1+('Scenario Input'!$AS$15/100)) -> 24.08393112
A182: CA3301511 | B182: PINYON CREST HOA | C182: 42.65 | D182: =C182*(1+('Scenario Input'!$AA$15/100)) -> 46.12177571 | E182: =D182*(1+('Scenario Input'!$AD$15/100)) -> 48.27037972 | F182: =E182*(1+('Scenario Input'!$AG$15/100)) -> 49.51123347 | G182: =F182*(1+('Scenario Input'!$AJ$15/100)) -> 50.65829863 | H182: =G182*(1+('Scenario Input'!$AM$15/100)) -> 51.81609578 | I182: =H182*(1+('Scenario Input'!$AP$15/100)) -> 53.88579777 | J182: =I182*(1+('Scenario Input'!$AS$15/100)) -> 56.03817033
A183: CA3310046 | B183: FARM MUTUAL W.C. (THE) | C183: 46.4 | D183: =C183*(1+('Scenario Input'!$AA$15/100)) -> 50.17703149 | E183: =D183*(1+('Scenario Input'!$AD$15/100)) -> 52.51455144 | F183: =E183*(1+('Scenario Input'!$AG$15/100)) -> 53.86450722 | G183: =F183*(1+('Scenario Input'!$AJ$15/100)) -> 55.11242806 | H183: =G183*(1+('Scenario Input'!$AM$15/100)) -> 56.37202448 | I183: =H183*(1+('Scenario Input'!$AP$15/100)) -> 58.62370496 | J183: =I183*(1+('Scenario Input'!$AS$15/100)) -> 60.96532481
A184: CA4900798 | B184: MOUNTAIN VIEW MOBILE ESTATES, LLC | C184: 18.86 | D184: =C184*(1+('Scenario Input'!$AA$15/100)) -> 20.39523306 | E184: =D184*(1+('Scenario Input'!$AD$15/100)) -> 21.34535432 | F184: =E184*(1+('Scenario Input'!$AG$15/100)) -> 21.89406479 | G184: =F184*(1+('Scenario Input'!$AJ$15/100)) -> 22.40130158 | H184: =G184*(1+('Scenario Input'!$AM$15/100)) -> 22.91328409 | I184: =H184*(1+('Scenario Input'!$AP$15/100)) -> 23.82851456 | J184: =I184*(1+('Scenario Input'!$AS$15/100)) -> 24.78030228
A185: CA3301180 | B185: ANZA MUTUAL WATER COMPANY | C185: 66 | D185: =C185*(1+('Scenario Input'!$AA$15/100)) -> 71.37250169 | E185: =D185*(1+('Scenario Input'!$AD$15/100)) -> 74.69742231 | F185: =E185*(1+('Scenario Input'!$AG$15/100)) -> 76.61761803 | G185: =F185*(1+('Scenario Input'!$AJ$15/100)) -> 78.39267784 | H185: =G185*(1+('Scenario Input'!$AM$15/100)) -> 80.18434517 | I185: =H185*(1+('Scenario Input'!$AP$15/100)) -> 83.38716653 | J185: =I185*(1+('Scenario Input'!$AS$15/100)) -> 86.71791891
A186: CA4900608 | B186: SIX ACRES WATER COMPANY | C186: 25 | D186: =C186*(1+('Scenario Input'!$AA$15/100)) -> 27.03503852 | E186: =D186*(1+('Scenario Input'!$AD$15/100)) -> 28.29447815 | F186: =E186*(1+('Scenario Input'!$AG$15/100)) -> 29.02182501 | G186: =F186*(1+('Scenario Input'!$AJ$15/100)) -> 29.69419615 | H186: =G186*(1+('Scenario Input'!$AM$15/100)) -> 30.37285802 | I186: =H186*(1+('Scenario Input'!$AP$15/100)) -> 31.58604793 | J186: =I186*(1+('Scenario Input'!$AS$15/100)) -> 32.84769656
A187: CA0310019 | B187: AWA LA MEL HEIGHTS #3 | C187: 68.43 | D187: =C187*(1+('Scenario Input'!$AA$15/100)) -> 74.00030743 | E187: =D187*(1+('Scenario Input'!$AD$15/100)) -> 77.44764559 | F187: =E187*(1+('Scenario Input'!$AG$15/100)) -> 79.43853943 | G187: =F187*(1+('Scenario Input'!$AJ$15/100)) -> 81.27895371 | H187: =G187*(1+('Scenario Input'!$AM$15/100)) -> 83.13658697 | I187: =H187*(1+('Scenario Input'!$AP$15/100)) -> 86.45733039 | J187: =I187*(1+('Scenario Input'!$AS$15/100)) -> 89.91071502
A188: CA2000552 | B188: MD 24 TEAFORD MEADOW LAKES | C188: 51.42 | D188: =C188*(1+('Scenario Input'!$AA$15/100)) -> 55.60566723 | E188: =D188*(1+('Scenario Input'!$AD$15/100)) -> 58.19608266 | F188: =E188*(1+('Scenario Input'!$AG$15/100)) -> 59.69208969 | G188: =F188*(1+('Scenario Input'!$AJ$15/100)) -> 61.07502264 | H188: =G188*(1+('Scenario Input'!$AM$15/100)) -> 62.47089437 | I188: =H188*(1+('Scenario Input'!$AP$15/100)) -> 64.96618338 | J188: =I188*(1+('Scenario Input'!$AS$15/100)) -> 67.56114228
A189: CA3310078 | B189: WEST PALM SPRINGS VILLAGE | C189: 27.37 | D189: =C189*(1+('Scenario Input'!$AA$15/100)) -> 29.59796017 | E189: =D189*(1+('Scenario Input'!$AD$15/100)) -> 30.97679468 | F189: =E189*(1+('Scenario Input'!$AG$15/100)) -> 31.77309402 | G189: =F189*(1+('Scenario Input'!$AJ$15/100)) -> 32.50920595 | H189: =G189*(1+('Scenario Input'!$AM$15/100)) -> 33.25220496 | I189: =H189*(1+('Scenario Input'!$AP$15/100)) -> 34.58040527 | J189: =I189*(1+('Scenario Input'!$AS$15/100)) -> 35.96165819
A190: CA3110025 | B190: PLACER CWA - FOOTHILL | C190: 23.85 | D190: =C190*(1+('Scenario Input'!$AA$15/100)) -> 25.79142675 | E190: =D190*(1+('Scenario Input'!$AD$15/100)) -> 26.99293215 | F190: =E190*(1+('Scenario Input'!$AG$15/100)) -> 27.68682106 | G190: =F190*(1+('Scenario Input'!$AJ$15/100)) -> 28.32826313 | H190: =G190*(1+('Scenario Input'!$AM$15/100)) -> 28.97570655 | I190: =H190*(1+('Scenario Input'!$AP$15/100)) -> 30.13308972 | J190: =I190*(1+('Scenario Input'!$AS$15/100)) -> 31.33670252
A191: CA5410038 | B191: TERRA BELLA IRRIGATION DISTRICT - TBT | C191: 391.73 | D191: =C191*(1+('Scenario Input'!$AA$15/100)) -> 423.6174256 | E191: =D191*(1+('Scenario Input'!$AD$15/100)) -> 443.351837 | F191: =E191*(1+('Scenario Input'!$AG$15/100)) -> 454.7487805 | G191: =F191*(1+('Scenario Input'!$AJ$15/100)) -> 465.2842983 | H191: =G191*(1+('Scenario Input'!$AM$15/100)) -> 475.9183869 | I191: =H191*(1+('Scenario Input'!$AP$15/100)) -> 494.9281022 | J191: =I191*(1+('Scenario Input'!$AS$15/100)) -> 514.6971269
A192: CA1910051 | B192: INGLEWOOD- CITY, WATER DEPT. | C192: 39.93 | D192: =C192*(1+('Scenario Input'!$AA$15/100)) -> 43.18036352 | E192: =D192*(1+('Scenario Input'!$AD$15/100)) -> 45.1919405 | F192: =E192*(1+('Scenario Input'!$AG$15/100)) -> 46.35365891 | G192: =F192*(1+('Scenario Input'!$AJ$15/100)) -> 47.42757009 | H192: =G192*(1+('Scenario Input'!$AM$15/100)) -> 48.51152883 | I192: =H192*(1+('Scenario Input'!$AP$15/100)) -> 50.44923575 | J192: =I192*(1+('Scenario Input'!$AS$15/100)) -> 52.46434094
A193: CA4010028 | B193: SLO CSA NO. 16 - SHANDON | C193: 71.28 | D193: =C193*(1+('Scenario Input'!$AA$15/100)) -> 77.08230182 | E193: =D193*(1+('Scenario Input'!$AD$15/100)) -> 80.6732161 | F193: =E193*(1+('Scenario Input'!$AG$15/100)) -> 82.74702748 | G193: =F193*(1+('Scenario Input'!$AJ$15/100)) -> 84.66409207 | H193: =G193*(1+('Scenario Input'!$AM$15/100)) -> 86.59909278 | I193: =H193*(1+('Scenario Input'!$AP$15/100)) -> 90.05813985 | J193: =I193*(1+('Scenario Input'!$AS$15/100)) -> 93.65535242
A194: CA3301577 | B194: CSA 62 | C194: 103.8 | D194: =C194*(1+('Scenario Input'!$AA$15/100)) -> 112.2494799 | E194: =D194*(1+('Scenario Input'!$AD$15/100)) -> 117.4786733 | F194: =E194*(1+('Scenario Input'!$AG$15/100)) -> 120.4986175 | G194: =F194*(1+('Scenario Input'!$AJ$15/100)) -> 123.2903024 | H194: =G194*(1+('Scenario Input'!$AM$15/100)) -> 126.1081065 | I194: =H194*(1+('Scenario Input'!$AP$15/100)) -> 131.145271 | J194: =I194*(1+('Scenario Input'!$AS$15/100)) -> 136.3836361
A195: CA2700638 | B195: MAHER RD WS #05 | C195: 35 | D195: =C195*(1+('Scenario Input'!$AA$15/100)) -> 37.84905393 | E195: =D195*(1+('Scenario Input'!$AD$15/100)) -> 39.61226941 | F195: =E195*(1+('Scenario Input'!$AG$15/100)) -> 40.63055502 | G195: =F195*(1+('Scenario Input'!$AJ$15/100)) -> 41.57187461 | H195: =G195*(1+('Scenario Input'!$AM$15/100)) -> 42.52200123 | I195: =H195*(1+('Scenario Input'!$AP$15/100)) -> 44.2204671 | J195: =I195*(1+('Scenario Input'!$AS$15/100)) -> 45.98677518
A196: CA5301101 | B196: TREASURE CREEK WOODS MWC | C196: 47.5 | D196: =C196*(1+('Scenario Input'!$AA$15/100)) -> 51.36657319 | E196: =D196*(1+('Scenario Input'!$AD$15/100)) -> 53.75950848 | F196: =E196*(1+('Scenario Input'!$AG$15/100)) -> 55.14146752 | G196: =F196*(1+('Scenario Input'!$AJ$15/100)) -> 56.41897269 | H196: =G196*(1+('Scenario Input'!$AM$15/100)) -> 57.70843023 | I196: =H196*(1+('Scenario Input'!$AP$15/100)) -> 60.01349106 | J196: =I196*(1+('Scenario Input'!$AS$15/100)) -> 62.41062346
A197: CA5805001 | B197: PLUMAS LAKE | C197: 19.5 | D197: =C197*(1+('Scenario Input'!$AA$15/100)) -> 21.08733004 | E197: =D197*(1+('Scenario Input'!$AD$15/100)) -> 22.06969296 | F197: =E197*(1+('Scenario Input'!$AG$15/100)) -> 22.63702351 | G197: =F197*(1+('Scenario Input'!$AJ$15/100)) -> 23.161473 | H197: =G197*(1+('Scenario Input'!$AM$15/100)) -> 23.69082925 | I197: =H197*(1+('Scenario Input'!$AP$15/100)) -> 24.63711738 | J197: =I197*(1+('Scenario Input'!$AS$15/100)) -> 25.62120331
A198: CA5601134 | B198: ELKINS RANCH | C198: 118 | D198: =C198*(1+('Scenario Input'!$AA$15/100)) -> 127.6053818 | E198: =D198*(1+('Scenario Input'!$AD$15/100)) -> 133.5499369 | F198: =E198*(1+('Scenario Input'!$AG$15/100)) -> 136.9830141 | G198: =F198*(1+('Scenario Input'!$AJ$15/100)) -> 140.1566058 | H198: =G198*(1+('Scenario Input'!$AM$15/100)) -> 143.3598898 | I198: =H198*(1+('Scenario Input'!$AP$15/100)) -> 149.0861462 | J198: =I198*(1+('Scenario Input'!$AS$15/100)) -> 155.0411277
A199: CA1010035 | B199: DEL REY COMMUNITY SERV DIST | C199: 24.35 | D199: =C199*(1+('Scenario Input'!$AA$15/100)) -> 26.33212752 | E199: =D199*(1+('Scenario Input'!$AD$15/100)) -> 27.55882172 | F199: =E199*(1+('Scenario Input'!$AG$15/100)) -> 28.26725756 | G199: =F199*(1+('Scenario Input'!$AJ$15/100)) -> 28.92214705 | H199: =G199*(1+('Scenario Input'!$AM$15/100)) -> 29.58316371 | I199: =H199*(1+('Scenario Input'!$AP$15/100)) -> 30.76481068 | J199: =I199*(1+('Scenario Input'!$AS$15/100)) -> 31.99365645
A200: CA2710008 | B200: GREENFIELD, CITY OF | C200: 22.28 | D200: =C200*(1+('Scenario Input'!$AA$15/100)) -> 24.09362633 | E200: =D200*(1+('Scenario Input'!$AD$15/100)) -> 25.21603893 | F200: =E200*(1+('Scenario Input'!$AG$15/100)) -> 25.86425045 | G200: =F200*(1+('Scenario Input'!$AJ$15/100)) -> 26.46346761 | H200: =G200*(1+('Scenario Input'!$AM$15/100)) -> 27.06829107 | I200: =H200*(1+('Scenario Input'!$AP$15/100)) -> 28.14948591 | J200: =I200*(1+('Scenario Input'!$AS$15/100)) -> 29.27386717
... 1406 more rows

Sheet Comm Input
A1: Communications Provider ID | B1: Communication Provider Names (Broadband, Voice) | C1: 2021 Essential Usage Bill ($/month) | D1: 2022 Essential Usage Bill ($/month) | E1: 2023 Essential Usage Bill ($/month) | F1: 2024 Essential Usage Bill ($/month) | G1: 2025 Essential Usage Bill ($/month) | H1: 2026 Essential Usage Bill ($/month) | I1: 2027 Essential Usage Bill ($/month) | J1: 2028 Essential Usage Bill ($/month)
A2: 1 | C2: 0 | D2: =C2*(1+('Scenario Input'!$AA$15/100)) -> 0 | E2: =D2*(1+('Scenario Input'!$AD$15/100)) -> 0 | F2: =E2*(1+('Scenario Input'!$AG$15/100)) -> 0 | G2: =F2*(1+('Scenario Input'!$AJ$15/100)) -> 0 | H2: =G2*(1+('Scenario Input'!$AM$15/100)) -> 0 | I2: =H2*(1+('Scenario Input'!$AP$15/100)) -> 0 | J2: =I2*(1+('Scenario Input'!$AS$15/100)) -> 0
A3: 2 | B3: , AT&T California | C3: 29.5 | D3: =C3*(1+('Scenario Input'!$AA$15/100)) -> 31.90134545 | E3: =D3*(1+('Scenario Input'!$AD$15/100)) -> 33.38748422 | F3: =E3*(1+('Scenario Input'!$AG$15/100)) -> 34.24575352 | G3: =F3*(1+('Scenario Input'!$AJ$15/100)) -> 35.03915146 | H3: =G3*(1+('Scenario Input'!$AM$15/100)) -> 35.83997246 | I3: =H3*(1+('Scenario Input'!$AP$15/100)) -> 37.27153656 | J3: =I3*(1+('Scenario Input'!$AS$15/100)) -> 38.76028194
A4: 3 | B4: , Cal-Ore | C4: 25 | D4: =C4*(1+('Scenario Input'!$AA$15/100)) -> 27.03503852 | E4: =D4*(1+('Scenario Input'!$AD$15/100)) -> 28.29447815 | F4: =E4*(1+('Scenario Input'!$AG$15/100)) -> 29.02182501 | G4: =F4*(1+('Scenario Input'!$AJ$15/100)) -> 29.69419615 | H4: =G4*(1+('Scenario Input'!$AM$15/100)) -> 30.37285802 | I4: =H4*(1+('Scenario Input'!$AP$15/100)) -> 31.58604793 | J4: =I4*(1+('Scenario Input'!$AS$15/100)) -> 32.84769656
A5: 4 | B5: , Calaveras | C5: 25 | D5: =C5*(1+('Scenario Input'!$AA$15/100)) -> 27.03503852 | E5: =D5*(1+('Scenario Input'!$AD$15/100)) -> 28.29447815 | F5: =E5*(1+('Scenario Input'!$AG$15/100)) -> 29.02182501 | G5: =F5*(1+('Scenario Input'!$AJ$15/100)) -> 29.69419615 | H5: =G5*(1+('Scenario Input'!$AM$15/100)) -> 30.37285802 | I5: =H5*(1+('Scenario Input'!$AP$15/100)) -> 31.58604793 | J5: =I5*(1+('Scenario Input'!$AS$15/100)) -> 32.84769656
A6: 5 | B6: , Ducor | C6: 25 | D6: =C6*(1+('Scenario Input'!$AA$15/100)) -> 27.03503852 | E6: =D6*(1+('Scenario Input'!$AD$15/100)) -> 28.29447815 | F6: =E6*(1+('Scenario Input'!$AG$15/100)) -> 29.02182501 | G6: =F6*(1+('Scenario Input'!$AJ$15/100)) -> 29.69419615 | H6: =G6*(1+('Scenario Input'!$AM$15/100)) -> 30.37285802 | I6: =H6*(1+('Scenario Input'!$AP$15/100)) -> 31.58604793 | J6: =I6*(1+('Scenario Input'!$AS$15/100)) -> 32.84769656
A7: 6 | B7: , Foresthill | C7: 25 | D7: =C7*(1+('Scenario Input'!$AA$15/100)) -> 27.03503852 | E7: =D7*(1+('Scenario Input'!$AD$15/100)) -> 28.29447815 | F7: =E7*(1+('Scenario Input'!$AG$15/100)) -> 29.02182501 | G7: =F7*(1+('Scenario Input'!$AJ$15/100)) -> 29.69419615 | H7: =G7*(1+('Scenario Input'!$AM$15/100)) -> 30.37285802 | I7: =H7*(1+('Scenario Input'!$AP$15/100)) -> 31.58604793 | J7: =I7*(1+('Scenario Input'!$AS$15/100)) -> 32.84769656
A8: 7 | B8: , Frontier | C8: 22.5 | D8: =C8*(1+('Scenario Input'!$AA$15/100)) -> 24.33153467 | E8: =D8*(1+('Scenario Input'!$AD$15/100)) -> 25.46503033 | F8: =E8*(1+('Scenario Input'!$AG$15/100)) -> 26.11964251 | G8: =F8*(1+('Scenario Input'!$AJ$15/100)) -> 26.72477654 | H8: =G8*(1+('Scenario Input'!$AM$15/100)) -> 27.33557222 | I8: =H8*(1+('Scenario Input'!$AP$15/100)) -> 28.42744314 | J8: =I8*(1+('Scenario Input'!$AS$15/100)) -> 29.5629269
A9: 8 | B9: , Frontier - Citizens | C9: 22.5 | D9: =C9*(1+('Scenario Input'!$AA$15/100)) -> 24.33153467 | E9: =D9*(1+('Scenario Input'!$AD$15/100)) -> 25.46503033 | F9: =E9*(1+('Scenario Input'!$AG$15/100)) -> 26.11964251 | G9: =F9*(1+('Scenario Input'!$AJ$15/100)) -> 26.72477654 | H9: =G9*(1+('Scenario Input'!$AM$15/100)) -> 27.33557222 | I9: =H9*(1+('Scenario Input'!$AP$15/100)) -> 28.42744314 | J9: =I9*(1+('Scenario Input'!$AS$15/100)) -> 29.5629269
A10: 9 | B10: , Kerman | C10: 22.58 | D10: =C10*(1+('Scenario Input'!$AA$15/100)) -> 24.41804679 | E10: =D10*(1+('Scenario Input'!$AD$15/100)) -> 25.55557266 | F10: =E10*(1+('Scenario Input'!$AG$15/100)) -> 26.21251235 | G10: =F10*(1+('Scenario Input'!$AJ$15/100)) -> 26.81979796 | H10: =G10*(1+('Scenario Input'!$AM$15/100)) -> 27.43276536 | I10: =H10*(1+('Scenario Input'!$AP$15/100)) -> 28.52851849 | J10: =I10*(1+('Scenario Input'!$AS$15/100)) -> 29.66803953
A11: 10 | B11: , Pinnacles | C11: 25 | D11: =C11*(1+('Scenario Input'!$AA$15/100)) -> 27.03503852 | E11: =D11*(1+('Scenario Input'!$AD$15/100)) -> 28.29447815 | F11: =E11*(1+('Scenario Input'!$AG$15/100)) -> 29.02182501 | G11: =F11*(1+('Scenario Input'!$AJ$15/100)) -> 29.69419615 | H11: =G11*(1+('Scenario Input'!$AM$15/100)) -> 30.37285802 | I11: =H11*(1+('Scenario Input'!$AP$15/100)) -> 31.58604793 | J11: =I11*(1+('Scenario Input'!$AS$15/100)) -> 32.84769656
A12: 11 | B12: , Ponderosa | C12: 25 | D12: =C12*(1+('Scenario Input'!$AA$15/100)) -> 27.03503852 | E12: =D12*(1+('Scenario Input'!$AD$15/100)) -> 28.29447815 | F12: =E12*(1+('Scenario Input'!$AG$15/100)) -> 29.02182501 | G12: =F12*(1+('Scenario Input'!$AJ$15/100)) -> 29.69419615 | H12: =G12*(1+('Scenario Input'!$AM$15/100)) -> 30.37285802 | I12: =H12*(1+('Scenario Input'!$AP$15/100)) -> 31.58604793 | J12: =I12*(1+('Scenario Input'!$AS$15/100)) -> 32.84769656
A13: 12 | B13: , Sierra | C13: 25 | D13: =C13*(1+('Scenario Input'!$AA$15/100)) -> 27.03503852 | E13: =D13*(1+('Scenario Input'!$AD$15/100)) -> 28.29447815 | F13: =E13*(1+('Scenario Input'!$AG$15/100)) -> 29.02182501 | G13: =F13*(1+('Scenario Input'!$AJ$15/100)) -> 29.69419615 | H13: =G13*(1+('Scenario Input'!$AM$15/100)) -> 30.37285802 | I13: =H13*(1+('Scenario Input'!$AP$15/100)) -> 31.58604793 | J13: =I13*(1+('Scenario Input'!$AS$15/100)) -> 32.84769656
A14: 13 | B14: , Siskiyou | C14: 24 | D14: =C14*(1+('Scenario Input'!$AA$15/100)) -> 25.95363698 | E14: =D14*(1+('Scenario Input'!$AD$15/100)) -> 27.16269902 | F14: =E14*(1+('Scenario Input'!$AG$15/100)) -> 27.86095201 | G14: =F14*(1+('Scenario Input'!$AJ$15/100)) -> 28.50642831 | H14: =G14*(1+('Scenario Input'!$AM$15/100)) -> 29.1579437 | I14: =H14*(1+('Scenario Input'!$AP$15/100)) -> 30.32260601 | J14: =I14*(1+('Scenario Input'!$AS$15/100)) -> 31.53378869
A15: 14 | B15: , Surewest | C15: 23.22 | D15: =C15*(1+('Scenario Input'!$AA$15/100)) -> 25.11014378 | E15: =D15*(1+('Scenario Input'!$AD$15/100)) -> 26.2799113 | F15: =E15*(1+('Scenario Input'!$AG$15/100)) -> 26.95547107 | G15: =F15*(1+('Scenario Input'!$AJ$15/100)) -> 27.57996939 | H15: =G15*(1+('Scenario Input'!$AM$15/100)) -> 28.21031053 | I15: =H15*(1+('Scenario Input'!$AP$15/100)) -> 29.33712132 | J15: =I15*(1+('Scenario Input'!$AS$15/100)) -> 30.50894056
A16: 15 | B16: , TDS Telecom | C16: 16.05 | D16: =C16*(1+('Scenario Input'!$AA$15/100)) -> 17.35649473 | E16: =D16*(1+('Scenario Input'!$AD$15/100)) -> 18.16505497 | F16: =E16*(1+('Scenario Input'!$AG$15/100)) -> 18.63201166 | G16: =F16*(1+('Scenario Input'!$AJ$15/100)) -> 19.06367393 | H16: =G16*(1+('Scenario Input'!$AM$15/100)) -> 19.49937485 | I16: =H16*(1+('Scenario Input'!$AP$15/100)) -> 20.27824277 | J16: =I16*(1+('Scenario Input'!$AS$15/100)) -> 21.08822119
A17: 16 | B17: , TDS Telecom - Horn | C17: 16.05 | D17: =C17*(1+('Scenario Input'!$AA$15/100)) -> 17.35649473 | E17: =D17*(1+('Scenario Input'!$AD$15/100)) -> 18.16505497 | F17: =E17*(1+('Scenario Input'!$AG$15/100)) -> 18.63201166 | G17: =F17*(1+('Scenario Input'!$AJ$15/100)) -> 19.06367393 | H17: =G17*(1+('Scenario Input'!$AM$15/100)) -> 19.49937485 | I17: =H17*(1+('Scenario Input'!$AP$15/100)) -> 20.27824277 | J17: =I17*(1+('Scenario Input'!$AS$15/100)) -> 21.08822119
A18: 17 | B18: , TDS Telecom - HV | C18: 16.85 | D18: =C18*(1+('Scenario Input'!$AA$15/100)) -> 18.22161596 | E18: =D18*(1+('Scenario Input'!$AD$15/100)) -> 19.07047827 | F18: =E18*(1+('Scenario Input'!$AG$15/100)) -> 19.56071006 | G18: =F18*(1+('Scenario Input'!$AJ$15/100)) -> 20.01388821 | H18: =G18*(1+('Scenario Input'!$AM$15/100)) -> 20.4713063 | I18: =H18*(1+('Scenario Input'!$AP$15/100)) -> 21.2889963 | J18: =I18*(1+('Scenario Input'!$AS$15/100)) -> 22.13934748
A19: 18 | B19: , TDS Telecom - WH | C19: 17.5 | D19: =C19*(1+('Scenario Input'!$AA$15/100)) -> 18.92452696 | E19: =D19*(1+('Scenario Input'!$AD$15/100)) -> 19.8061347 | F19: =E19*(1+('Scenario Input'!$AG$15/100)) -> 20.31527751 | G19: =F19*(1+('Scenario Input'!$AJ$15/100)) -> 20.78593731 | H19: =G19*(1+('Scenario Input'!$AM$15/100)) -> 21.26100061 | I19: =H19*(1+('Scenario Input'!$AP$15/100)) -> 22.11023355 | J19: =I19*(1+('Scenario Input'!$AS$15/100)) -> 22.99338759
A20: 19 | B20: , Volcano | C20: 24 | D20: =C20*(1+('Scenario Input'!$AA$15/100)) -> 25.95363698 | E20: =D20*(1+('Scenario Input'!$AD$15/100)) -> 27.16269902 | F20: =E20*(1+('Scenario Input'!$AG$15/100)) -> 27.86095201 | G20: =F20*(1+('Scenario Input'!$AJ$15/100)) -> 28.50642831 | H20: =G20*(1+('Scenario Input'!$AM$15/100)) -> 29.1579437 | I20: =H20*(1+('Scenario Input'!$AP$15/100)) -> 30.32260601 | J20: =I20*(1+('Scenario Input'!$AS$15/100)) -> 31.53378869
A21: 20 | B21: 101Netlink, | C21: 75 | D21: =C21*(1+('Scenario Input'!$AA$15/100)) -> 81.10511556 | E21: =D21*(1+('Scenario Input'!$AD$15/100)) -> 84.88343445 | F21: =E21*(1+('Scenario Input'!$AG$15/100)) -> 87.06547504 | G21: =F21*(1+('Scenario Input'!$AJ$15/100)) -> 89.08258846 | H21: =G21*(1+('Scenario Input'!$AM$15/100)) -> 91.11857405 | I21: =H21*(1+('Scenario Input'!$AP$15/100)) -> 94.75814379 | J21: =I21*(1+('Scenario Input'!$AS$15/100)) -> 98.54308967
A22: 21 | B22: 101Netlink, AT&T California | C22: 104.5 | D22: =C22*(1+('Scenario Input'!$AA$15/100)) -> 113.006461 | E22: =D22*(1+('Scenario Input'!$AD$15/100)) -> 118.2709187 | F22: =E22*(1+('Scenario Input'!$AG$15/100)) -> 121.3112286 | G22: =F22*(1+('Scenario Input'!$AJ$15/100)) -> 124.1217399 | H22: =G22*(1+('Scenario Input'!$AM$15/100)) -> 126.9585465 | I22: =H22*(1+('Scenario Input'!$AP$15/100)) -> 132.0296803 | J22: =I22*(1+('Scenario Input'!$AS$15/100)) -> 137.3033716
A23: 22 | B23: 101Netlink, Frontier | C23: 97.5 | D23: =C23*(1+('Scenario Input'!$AA$15/100)) -> 105.4366502 | E23: =D23*(1+('Scenario Input'!$AD$15/100)) -> 110.3484648 | F23: =E23*(1+('Scenario Input'!$AG$15/100)) -> 113.1851176 | G23: =F23*(1+('Scenario Input'!$AJ$15/100)) -> 115.807365 | H23: =G23*(1+('Scenario Input'!$AM$15/100)) -> 118.4541463 | I23: =H23*(1+('Scenario Input'!$AP$15/100)) -> 123.1855869 | J23: =I23*(1+('Scenario Input'!$AS$15/100)) -> 128.1060166
A24: 23 | B24: 101Netlink, Frontier - Citizens | C24: 97.5 | D24: =C24*(1+('Scenario Input'!$AA$15/100)) -> 105.4366502 | E24: =D24*(1+('Scenario Input'!$AD$15/100)) -> 110.3484648 | F24: =E24*(1+('Scenario Input'!$AG$15/100)) -> 113.1851176 | G24: =F24*(1+('Scenario Input'!$AJ$15/100)) -> 115.807365 | H24: =G24*(1+('Scenario Input'!$AM$15/100)) -> 118.4541463 | I24: =H24*(1+('Scenario Input'!$AP$15/100)) -> 123.1855869 | J24: =I24*(1+('Scenario Input'!$AS$15/100)) -> 128.1060166
A25: 24 | B25: Aan Chuuphan, | C25: 204 | D25: =C25*(1+('Scenario Input'!$AA$15/100)) -> 220.6059143 | E25: =D25*(1+('Scenario Input'!$AD$15/100)) -> 230.8829417 | F25: =E25*(1+('Scenario Input'!$AG$15/100)) -> 236.8180921 | G25: =F25*(1+('Scenario Input'!$AJ$15/100)) -> 242.3046406 | H25: =G25*(1+('Scenario Input'!$AM$15/100)) -> 247.8425214 | I25: =H25*(1+('Scenario Input'!$AP$15/100)) -> 257.7421511 | J25: =I25*(1+('Scenario Input'!$AS$15/100)) -> 268.0372039
A26: 25 | B26: Aan Chuuphan, Frontier | C26: 226.5 | D26: =C26*(1+('Scenario Input'!$AA$15/100)) -> 244.937449 | E26: =D26*(1+('Scenario Input'!$AD$15/100)) -> 256.347972 | F26: =E26*(1+('Scenario Input'!$AG$15/100)) -> 262.9377346 | G26: =F26*(1+('Scenario Input'!$AJ$15/100)) -> 269.0294171 | H26: =G26*(1+('Scenario Input'!$AM$15/100)) -> 275.1780936 | I26: =H26*(1+('Scenario Input'!$AP$15/100)) -> 286.1695942 | J26: =I26*(1+('Scenario Input'!$AS$15/100)) -> 297.6001308
A27: 26 | B27: AeroSurf, AT&T California | C27: 129.45 | D27: =C27*(1+('Scenario Input'!$AA$15/100)) -> 139.9874295 | E27: =D27*(1+('Scenario Input'!$AD$15/100)) -> 146.5088079 | F27: =E27*(1+('Scenario Input'!$AG$15/100)) -> 150.2750099 | G27: =F27*(1+('Scenario Input'!$AJ$15/100)) -> 153.7565477 | H27: =G27*(1+('Scenario Input'!$AM$15/100)) -> 157.2706588 | I27: =H27*(1+('Scenario Input'!$AP$15/100)) -> 163.5525562 | J27: =I27*(1+('Scenario Input'!$AS$15/100)) -> 170.0853728
A28: 27 | B28: AeroSurf, Frontier | C28: 122.45 | D28: =C28*(1+('Scenario Input'!$AA$15/100)) -> 132.4176187 | E28: =D28*(1+('Scenario Input'!$AD$15/100)) -> 138.586354 | F28: =E28*(1+('Scenario Input'!$AG$15/100)) -> 142.1488989 | G28: =F28*(1+('Scenario Input'!$AJ$15/100)) -> 145.4421728 | H28: =G28*(1+('Scenario Input'!$AM$15/100)) -> 148.7662586 | I28: =H28*(1+('Scenario Input'!$AP$15/100)) -> 154.7084628 | J28: =I28*(1+('Scenario Input'!$AS$15/100)) -> 160.8880177
A29: 28 | B29: AFES Network Services LLC, AT&T California | C29: 629.5 | D29: =C29*(1+('Scenario Input'!$AA$15/100)) -> 680.7422699 | E29: =D29*(1+('Scenario Input'!$AD$15/100)) -> 712.4549598 | F29: =E29*(1+('Scenario Input'!$AG$15/100)) -> 730.7695538 | G29: =F29*(1+('Scenario Input'!$AJ$15/100)) -> 747.6998591 | H29: =G29*(1+('Scenario Input'!$AM$15/100)) -> 764.7885649 | I29: =H29*(1+('Scenario Input'!$AP$15/100)) -> 795.3366868 | J29: =I29*(1+('Scenario Input'!$AS$15/100)) -> 827.1049993
A30: 29 | B30: AFES Network Services LLC, Frontier | C30: 622.5 | D30: =C30*(1+('Scenario Input'!$AA$15/100)) -> 673.1724591 | E30: =D30*(1+('Scenario Input'!$AD$15/100)) -> 704.5325059 | F30: =E30*(1+('Scenario Input'!$AG$15/100)) -> 722.6434428 | G30: =F30*(1+('Scenario Input'!$AJ$15/100)) -> 739.3854842 | H30: =G30*(1+('Scenario Input'!$AM$15/100)) -> 756.2841647 | I30: =H30*(1+('Scenario Input'!$AP$15/100)) -> 786.4925934 | J30: =I30*(1+('Scenario Input'!$AS$15/100)) -> 817.9076443
A31: 30 | B31: AFES Network Services LLC, Frontier - Citizens | C31: 622.5 | D31: =C31*(1+('Scenario Input'!$AA$15/100)) -> 673.1724591 | E31: =D31*(1+('Scenario Input'!$AD$15/100)) -> 704.5325059 | F31: =E31*(1+('Scenario Input'!$AG$15/100)) -> 722.6434428 | G31: =F31*(1+('Scenario Input'!$AJ$15/100)) -> 739.3854842 | H31: =G31*(1+('Scenario Input'!$AM$15/100)) -> 756.2841647 | I31: =H31*(1+('Scenario Input'!$AP$15/100)) -> 786.4925934 | J31: =I31*(1+('Scenario Input'!$AS$15/100)) -> 817.9076443
A32: 31 | B32: Antelecom Inc., | C32: 63.95 | D32: =C32*(1+('Scenario Input'!$AA$15/100)) -> 69.15562853 | E32: =D32*(1+('Scenario Input'!$AD$15/100)) -> 72.3772751 | F32: =E32*(1+('Scenario Input'!$AG$15/100)) -> 74.23782838 | G32: =F32*(1+('Scenario Input'!$AJ$15/100)) -> 75.95775376 | H32: =G32*(1+('Scenario Input'!$AM$15/100)) -> 77.69377081 | I32: =H32*(1+('Scenario Input'!$AP$15/100)) -> 80.7971106 | J32: =I32*(1+('Scenario Input'!$AS$15/100)) -> 84.02440779
A33: 32 | B33: Antelecom Inc., AT&T California | C33: 93.45 | D33: =C33*(1+('Scenario Input'!$AA$15/100)) -> 101.056974 | E33: =D33*(1+('Scenario Input'!$AD$15/100)) -> 105.7647593 | F33: =E33*(1+('Scenario Input'!$AG$15/100)) -> 108.4835819 | G33: =F33*(1+('Scenario Input'!$AJ$15/100)) -> 110.9969052 | H33: =G33*(1+('Scenario Input'!$AM$15/100)) -> 113.5337433 | I33: =H33*(1+('Scenario Input'!$AP$15/100)) -> 118.0686472 | J33: =I33*(1+('Scenario Input'!$AS$15/100)) -> 122.7846897
A34: 33 | B34: Antelecom Inc., Frontier | C34: 86.45 | D34: =C34*(1+('Scenario Input'!$AA$15/100)) -> 93.4871632 | E34: =D34*(1+('Scenario Input'!$AD$15/100)) -> 97.84230544 | F34: =E34*(1+('Scenario Input'!$AG$15/100)) -> 100.3574709 | G34: =F34*(1+('Scenario Input'!$AJ$15/100)) -> 102.6825303 | H34: =G34*(1+('Scenario Input'!$AM$15/100)) -> 105.029343 | I34: =H34*(1+('Scenario Input'!$AP$15/100)) -> 109.2245537 | J34: =I34*(1+('Scenario Input'!$AS$15/100)) -> 113.5873347
A35: 34 | B35: Applied Technology Group Inc, | C35: 148 | D35: =C35*(1+('Scenario Input'!$AA$15/100)) -> 160.047428 | E35: =D35*(1+('Scenario Input'!$AD$15/100)) -> 167.5033106 | F35: =E35*(1+('Scenario Input'!$AG$15/100)) -> 171.8092041 | G35: =F35*(1+('Scenario Input'!$AJ$15/100)) -> 175.7896412 | H35: =G35*(1+('Scenario Input'!$AM$15/100)) -> 179.8073195 | I35: =H35*(1+('Scenario Input'!$AP$15/100)) -> 186.9894037 | J35: =I35*(1+('Scenario Input'!$AS$15/100)) -> 194.4583636
A36: 35 | B36: Applied Technology Group Inc, AT&T California | C36: 177.5 | D36: =C36*(1+('Scenario Input'!$AA$15/100)) -> 191.9487735 | E36: =D36*(1+('Scenario Input'!$AD$15/100)) -> 200.8907949 | F36: =E36*(1+('Scenario Input'!$AG$15/100)) -> 206.0549576 | G36: =F36*(1+('Scenario Input'!$AJ$15/100)) -> 210.8287927 | H36: =G36*(1+('Scenario Input'!$AM$15/100)) -> 215.6472919 | I36: =H36*(1+('Scenario Input'!$AP$15/100)) -> 224.2609403 | J36: =I36*(1+('Scenario Input'!$AS$15/100)) -> 233.2186456
A37: 36 | B37: Applied Technology Group Inc, Frontier | C37: 170.5 | D37: =C37*(1+('Scenario Input'!$AA$15/100)) -> 184.3789627 | E37: =D37*(1+('Scenario Input'!$AD$15/100)) -> 192.968341 | F37: =E37*(1+('Scenario Input'!$AG$15/100)) -> 197.9288466 | G37: =F37*(1+('Scenario Input'!$AJ$15/100)) -> 202.5144178 | H37: =G37*(1+('Scenario Input'!$AM$15/100)) -> 207.1428917 | I37: =H37*(1+('Scenario Input'!$AP$15/100)) -> 215.4168469 | J37: =I37*(1+('Scenario Input'!$AS$15/100)) -> 224.0212905
A38: 37 | B38: AT&T California, | C38: 70 | D38: =C38*(1+('Scenario Input'!$AA$15/100)) -> 75.69810785 | E38: =D38*(1+('Scenario Input'!$AD$15/100)) -> 79.22453882 | F38: =E38*(1+('Scenario Input'!$AG$15/100)) -> 81.26111004 | G38: =F38*(1+('Scenario Input'!$AJ$15/100)) -> 83.14374922 | H38: =G38*(1+('Scenario Input'!$AM$15/100)) -> 85.04400245 | I38: =H38*(1+('Scenario Input'!$AP$15/100)) -> 88.4409342 | J38: =I38*(1+('Scenario Input'!$AS$15/100)) -> 91.97355036
A39: 38 | B39: AT&T California, AT&T California | C39: 99.5 | D39: =C39*(1+('Scenario Input'!$AA$15/100)) -> 107.5994533 | E39: =D39*(1+('Scenario Input'!$AD$15/100)) -> 112.612023 | F39: =E39*(1+('Scenario Input'!$AG$15/100)) -> 115.5068636 | G39: =F39*(1+('Scenario Input'!$AJ$15/100)) -> 118.1829007 | H39: =G39*(1+('Scenario Input'!$AM$15/100)) -> 120.8839749 | I39: =H39*(1+('Scenario Input'!$AP$15/100)) -> 125.7124708 | J39: =I39*(1+('Scenario Input'!$AS$15/100)) -> 130.7338323
A40: 39 | B40: AT&T California, Ducor | C40: 95 | D40: =C40*(1+('Scenario Input'!$AA$15/100)) -> 102.7331464 | E40: =D40*(1+('Scenario Input'!$AD$15/100)) -> 107.519017 | F40: =E40*(1+('Scenario Input'!$AG$15/100)) -> 110.282935 | G40: =F40*(1+('Scenario Input'!$AJ$15/100)) -> 112.8379454 | H40: =G40*(1+('Scenario Input'!$AM$15/100)) -> 115.4168605 | I40: =H40*(1+('Scenario Input'!$AP$15/100)) -> 120.0269821 | J40: =I40*(1+('Scenario Input'!$AS$15/100)) -> 124.8212469
A41: 40 | B41: AT&T California, Foresthill | C41: 95 | D41: =C41*(1+('Scenario Input'!$AA$15/100)) -> 102.7331464 | E41: =D41*(1+('Scenario Input'!$AD$15/100)) -> 107.519017 | F41: =E41*(1+('Scenario Input'!$AG$15/100)) -> 110.282935 | G41: =F41*(1+('Scenario Input'!$AJ$15/100)) -> 112.8379454 | H41: =G41*(1+('Scenario Input'!$AM$15/100)) -> 115.4168605 | I41: =H41*(1+('Scenario Input'!$AP$15/100)) -> 120.0269821 | J41: =I41*(1+('Scenario Input'!$AS$15/100)) -> 124.8212469
A42: 41 | B42: AT&T California, Frontier | C42: 92.5 | D42: =C42*(1+('Scenario Input'!$AA$15/100)) -> 100.0296425 | E42: =D42*(1+('Scenario Input'!$AD$15/100)) -> 104.6895692 | F42: =E42*(1+('Scenario Input'!$AG$15/100)) -> 107.3807525 | G42: =F42*(1+('Scenario Input'!$AJ$15/100)) -> 109.8685258 | H42: =G42*(1+('Scenario Input'!$AM$15/100)) -> 112.3795747 | I42: =H42*(1+('Scenario Input'!$AP$15/100)) -> 116.8683773 | J42: =I42*(1+('Scenario Input'!$AS$15/100)) -> 121.5364773
A43: 42 | B43: AT&T California, Frontier - Citizens | C43: 92.5 | D43: =C43*(1+('Scenario Input'!$AA$15/100)) -> 100.0296425 | E43: =D43*(1+('Scenario Input'!$AD$15/100)) -> 104.6895692 | F43: =E43*(1+('Scenario Input'!$AG$15/100)) -> 107.3807525 | G43: =F43*(1+('Scenario Input'!$AJ$15/100)) -> 109.8685258 | H43: =G43*(1+('Scenario Input'!$AM$15/100)) -> 112.3795747 | I43: =H43*(1+('Scenario Input'!$AP$15/100)) -> 116.8683773 | J43: =I43*(1+('Scenario Input'!$AS$15/100)) -> 121.5364773
A44: 43 | B44: AT&T California, Surewest | C44: 93.22 | D44: =C44*(1+('Scenario Input'!$AA$15/100)) -> 100.8082516 | E44: =D44*(1+('Scenario Input'!$AD$15/100)) -> 105.5044501 | F44: =E44*(1+('Scenario Input'!$AG$15/100)) -> 108.2165811 | G44: =F44*(1+('Scenario Input'!$AJ$15/100)) -> 110.7237186 | H44: =G44*(1+('Scenario Input'!$AM$15/100)) -> 113.254313 | I44: =H44*(1+('Scenario Input'!$AP$15/100)) -> 117.7780555 | J44: =I44*(1+('Scenario Input'!$AS$15/100)) -> 122.4824909
A45: 44 | B45: AT&T California, TDS Telecom - HV | C45: 86.85 | D45: =C45*(1+('Scenario Input'!$AA$15/100)) -> 93.91972381 | E45: =D45*(1+('Scenario Input'!$AD$15/100)) -> 98.29501709 | F45: =E45*(1+('Scenario Input'!$AG$15/100)) -> 100.8218201 | G45: =F45*(1+('Scenario Input'!$AJ$15/100)) -> 103.1576374 | H45: =G45*(1+('Scenario Input'!$AM$15/100)) -> 105.5153088 | I45: =H45*(1+('Scenario Input'!$AP$15/100)) -> 109.7299305 | J45: =I45*(1+('Scenario Input'!$AS$15/100)) -> 114.1128978
A46: 45 | B46: AT&T California, Volcano | C46: 94 | D46: =C46*(1+('Scenario Input'!$AA$15/100)) -> 101.6517448 | E46: =D46*(1+('Scenario Input'!$AD$15/100)) -> 106.3872378 | F46: =E46*(1+('Scenario Input'!$AG$15/100)) -> 109.122062 | G46: =F46*(1+('Scenario Input'!$AJ$15/100)) -> 111.6501775 | H46: =G46*(1+('Scenario Input'!$AM$15/100)) -> 114.2019461 | I46: =H46*(1+('Scenario Input'!$AP$15/100)) -> 118.7635402 | J46: =I46*(1+('Scenario Input'!$AS$15/100)) -> 123.5073391
A47: 46 | B47: AT&T California, 50, | C47: 60 | D47: =C47*(1+('Scenario Input'!$AA$15/100)) -> 64.88409245 | E47: =D47*(1+('Scenario Input'!$AD$15/100)) -> 67.90674756 | F47: =E47*(1+('Scenario Input'!$AG$15/100)) -> 69.65238003 | G47: =F47*(1+('Scenario Input'!$AJ$15/100)) -> 71.26607076 | H47: =G47*(1+('Scenario Input'!$AM$15/100)) -> 72.89485924 | I47: =H47*(1+('Scenario Input'!$AP$15/100)) -> 75.80651503 | J47: =I47*(1+('Scenario Input'!$AS$15/100)) -> 78.83447174
A48: 47 | B48: AT&T California, 50, AT&T California | C48: 89.5 | D48: =C48*(1+('Scenario Input'!$AA$15/100)) -> 96.7854379 | E48: =D48*(1+('Scenario Input'!$AD$15/100)) -> 101.2942318 | F48: =E48*(1+('Scenario Input'!$AG$15/100)) -> 103.8981335 | G48: =F48*(1+('Scenario Input'!$AJ$15/100)) -> 106.3052222 | H48: =G48*(1+('Scenario Input'!$AM$15/100)) -> 108.7348317 | I48: =H48*(1+('Scenario Input'!$AP$15/100)) -> 113.0780516 | J48: =I48*(1+('Scenario Input'!$AS$15/100)) -> 117.5947537
A49: 48 | B49: AT&T California, 50, Frontier | C49: 82.5 | D49: =C49*(1+('Scenario Input'!$AA$15/100)) -> 89.21562711 | E49: =D49*(1+('Scenario Input'!$AD$15/100)) -> 93.37177789 | F49: =E49*(1+('Scenario Input'!$AG$15/100)) -> 95.77202254 | G49: =F49*(1+('Scenario Input'!$AJ$15/100)) -> 97.9908473 | H49: =G49*(1+('Scenario Input'!$AM$15/100)) -> 100.2304315 | I49: =H49*(1+('Scenario Input'!$AP$15/100)) -> 104.2339582 | J49: =I49*(1+('Scenario Input'!$AS$15/100)) -> 108.3973986
A50: 49 | B50: AT&T California, 50, Frontier - Citizens | C50: 82.5 | D50: =C50*(1+('Scenario Input'!$AA$15/100)) -> 89.21562711 | E50: =D50*(1+('Scenario Input'!$AD$15/100)) -> 93.37177789 | F50: =E50*(1+('Scenario Input'!$AG$15/100)) -> 95.77202254 | G50: =F50*(1+('Scenario Input'!$AJ$15/100)) -> 97.9908473 | H50: =G50*(1+('Scenario Input'!$AM$15/100)) -> 100.2304315 | I50: =H50*(1+('Scenario Input'!$AP$15/100)) -> 104.2339582 | J50: =I50*(1+('Scenario Input'!$AS$15/100)) -> 108.3973986
A51: 50 | B51: AT&T California, 50, Surewest | C51: 83.22 | D51: =C51*(1+('Scenario Input'!$AA$15/100)) -> 89.99423622 | E51: =D51*(1+('Scenario Input'!$AD$15/100)) -> 94.18665886 | F51: =E51*(1+('Scenario Input'!$AG$15/100)) -> 96.6078511 | G51: =F51*(1+('Scenario Input'!$AJ$15/100)) -> 98.84604015 | H51: =G51*(1+('Scenario Input'!$AM$15/100)) -> 101.1051698 | I51: =H51*(1+('Scenario Input'!$AP$15/100)) -> 105.1436363 | J51: =I51*(1+('Scenario Input'!$AS$15/100)) -> 109.3434123
A52: 51 | B52: AT&T California, 50, TDS Telecom - HV | C52: 76.85 | D52: =C52*(1+('Scenario Input'!$AA$15/100)) -> 83.10570841 | E52: =D52*(1+('Scenario Input'!$AD$15/100)) -> 86.97722583 | F52: =E52*(1+('Scenario Input'!$AG$15/100)) -> 89.21309009 | G52: =F52*(1+('Scenario Input'!$AJ$15/100)) -> 91.27995897 | H52: =G52*(1+('Scenario Input'!$AM$15/100)) -> 93.36616555 | I52: =H52*(1+('Scenario Input'!$AP$15/100)) -> 97.09551133 | J52: =I52*(1+('Scenario Input'!$AS$15/100)) -> 100.9738192
A53: 52 | B53: AT&T California, 70, | C53: 59.99 | D53: =C53*(1+('Scenario Input'!$AA$15/100)) -> 64.87327843 | E53: =D53*(1+('Scenario Input'!$AD$15/100)) -> 67.89542977 | F53: =E53*(1+('Scenario Input'!$AG$15/100)) -> 69.6407713 | G53: =F53*(1+('Scenario Input'!$AJ$15/100)) -> 71.25419309 | H53: =G53*(1+('Scenario Input'!$AM$15/100)) -> 72.8827101 | I53: =H53*(1+('Scenario Input'!$AP$15/100)) -> 75.79388061 | J53: =I53*(1+('Scenario Input'!$AS$15/100)) -> 78.82133266
A54: 53 | B54: AT&T California, 70, AT&T California | C54: 89.49 | D54: =C54*(1+('Scenario Input'!$AA$15/100)) -> 96.77462388 | E54: =D54*(1+('Scenario Input'!$AD$15/100)) -> 101.282914 | F54: =E54*(1+('Scenario Input'!$AG$15/100)) -> 103.8865248 | G54: =F54*(1+('Scenario Input'!$AJ$15/100)) -> 106.2933445 | H54: =G54*(1+('Scenario Input'!$AM$15/100)) -> 108.7226826 | I54: =H54*(1+('Scenario Input'!$AP$15/100)) -> 113.0654172 | J54: =I54*(1+('Scenario Input'!$AS$15/100)) -> 117.5816146
A55: 54 | B55: AT&T California, 70, Calaveras | C55: 84.99 | D55: =C55*(1+('Scenario Input'!$AA$15/100)) -> 91.90831695 | E55: =D55*(1+('Scenario Input'!$AD$15/100)) -> 96.18990791 | F55: =E55*(1+('Scenario Input'!$AG$15/100)) -> 98.66259631 | G55: =F55*(1+('Scenario Input'!$AJ$15/100)) -> 100.9483892 | H55: =G55*(1+('Scenario Input'!$AM$15/100)) -> 103.2555681 | I55: =H55*(1+('Scenario Input'!$AP$15/100)) -> 107.3799285 | J55: =I55*(1+('Scenario Input'!$AS$15/100)) -> 111.6690292
A56: 55 | B56: AT&T California, 70, Ducor | C56: 84.99 | D56: =C56*(1+('Scenario Input'!$AA$15/100)) -> 91.90831695 | E56: =D56*(1+('Scenario Input'!$AD$15/100)) -> 96.18990791 | F56: =E56*(1+('Scenario Input'!$AG$15/100)) -> 98.66259631 | G56: =F56*(1+('Scenario Input'!$AJ$15/100)) -> 100.9483892 | H56: =G56*(1+('Scenario Input'!$AM$15/100)) -> 103.2555681 | I56: =H56*(1+('Scenario Input'!$AP$15/100)) -> 107.3799285 | J56: =I56*(1+('Scenario Input'!$AS$15/100)) -> 111.6690292
A57: 56 | B57: AT&T California, 70, Foresthill | C57: 84.99 | D57: =C57*(1+('Scenario Input'!$AA$15/100)) -> 91.90831695 | E57: =D57*(1+('Scenario Input'!$AD$15/100)) -> 96.18990791 | F57: =E57*(1+('Scenario Input'!$AG$15/100)) -> 98.66259631 | G57: =F57*(1+('Scenario Input'!$AJ$15/100)) -> 100.9483892 | H57: =G57*(1+('Scenario Input'!$AM$15/100)) -> 103.2555681 | I57: =H57*(1+('Scenario Input'!$AP$15/100)) -> 107.3799285 | J57: =I57*(1+('Scenario Input'!$AS$15/100)) -> 111.6690292
A58: 57 | B58: AT&T California, 70, Frontier | C58: 82.49 | D58: =C58*(1+('Scenario Input'!$AA$15/100)) -> 89.2048131 | E58: =D58*(1+('Scenario Input'!$AD$15/100)) -> 93.3604601 | F58: =E58*(1+('Scenario Input'!$AG$15/100)) -> 95.76041381 | G58: =F58*(1+('Scenario Input'!$AJ$15/100)) -> 97.97896962 | H58: =G58*(1+('Scenario Input'!$AM$15/100)) -> 100.2182823 | I58: =H58*(1+('Scenario Input'!$AP$15/100)) -> 104.2213237 | J58: =I58*(1+('Scenario Input'!$AS$15/100)) -> 108.3842596
A59: 58 | B59: AT&T California, 70, Frontier - Citizens | C59: 82.49 | D59: =C59*(1+('Scenario Input'!$AA$15/100)) -> 89.2048131 | E59: =D59*(1+('Scenario Input'!$AD$15/100)) -> 93.3604601 | F59: =E59*(1+('Scenario Input'!$AG$15/100)) -> 95.76041381 | G59: =F59*(1+('Scenario Input'!$AJ$15/100)) -> 97.97896962 | H59: =G59*(1+('Scenario Input'!$AM$15/100)) -> 100.2182823 | I59: =H59*(1+('Scenario Input'!$AP$15/100)) -> 104.2213237 | J59: =I59*(1+('Scenario Input'!$AS$15/100)) -> 108.3842596
A60: 59 | B60: AT&T California, 70, Kerman | C60: 82.57 | D60: =C60*(1+('Scenario Input'!$AA$15/100)) -> 89.29132522 | E60: =D60*(1+('Scenario Input'!$AD$15/100)) -> 93.45100243 | F60: =E60*(1+('Scenario Input'!$AG$15/100)) -> 95.85328365 | G60: =F60*(1+('Scenario Input'!$AJ$15/100)) -> 98.07399105 | H60: =G60*(1+('Scenario Input'!$AM$15/100)) -> 100.3154755 | I60: =H60*(1+('Scenario Input'!$AP$15/100)) -> 104.3223991 | J60: =I60*(1+('Scenario Input'!$AS$15/100)) -> 108.4893722
A61: 60 | B61: AT&T California, 70, Ponderosa | C61: 84.99 | D61: =C61*(1+('Scenario Input'!$AA$15/100)) -> 91.90831695 | E61: =D61*(1+('Scenario Input'!$AD$15/100)) -> 96.18990791 | F61: =E61*(1+('Scenario Input'!$AG$15/100)) -> 98.66259631 | G61: =F61*(1+('Scenario Input'!$AJ$15/100)) -> 100.9483892 | H61: =G61*(1+('Scenario Input'!$AM$15/100)) -> 103.2555681 | I61: =H61*(1+('Scenario Input'!$AP$15/100)) -> 107.3799285 | J61: =I61*(1+('Scenario Input'!$AS$15/100)) -> 111.6690292
A62: 61 | B62: AT&T California, 70, TDS Telecom - Horn | C62: 76.04 | D62: =C62*(1+('Scenario Input'!$AA$15/100)) -> 82.22977316 | E62: =D62*(1+('Scenario Input'!$AD$15/100)) -> 86.06048474 | F62: =E62*(1+('Scenario Input'!$AG$15/100)) -> 88.27278296 | G62: =F62*(1+('Scenario Input'!$AJ$15/100)) -> 90.31786702 | H62: =G62*(1+('Scenario Input'!$AM$15/100)) -> 92.38208495 | I62: =H62*(1+('Scenario Input'!$AP$15/100)) -> 96.07212338 | J62: =I62*(1+('Scenario Input'!$AS$15/100)) -> 99.90955385
A63: 62 | B63: AT&T California, 70, Volcano | C63: 83.99 | D63: =C63*(1+('Scenario Input'!$AA$15/100)) -> 90.82691541 | E63: =D63*(1+('Scenario Input'!$AD$15/100)) -> 95.05812879 | F63: =E63*(1+('Scenario Input'!$AG$15/100)) -> 97.50172331 | G63: =F63*(1+('Scenario Input'!$AJ$15/100)) -> 99.76062139 | H63: =G63*(1+('Scenario Input'!$AM$15/100)) -> 102.0406538 | I63: =H63*(1+('Scenario Input'!$AP$15/100)) -> 106.1164866 | J63: =I63*(1+('Scenario Input'!$AS$15/100)) -> 110.3551214
A64: 63 | B64: Atherton Fiber, AT&T California | C64: 84.5 | D64: =C64*(1+('Scenario Input'!$AA$15/100)) -> 91.37843019 | E64: =D64*(1+('Scenario Input'!$AD$15/100)) -> 95.63533614 | F64: =E64*(1+('Scenario Input'!$AG$15/100)) -> 98.09376854 | G64: =F64*(1+('Scenario Input'!$AJ$15/100)) -> 100.366383 | H64: =G64*(1+('Scenario Input'!$AM$15/100)) -> 102.6602601 | I64: =H64*(1+('Scenario Input'!$AP$15/100)) -> 106.760842 | J64: =I64*(1+('Scenario Input'!$AS$15/100)) -> 111.0252144
A65: 64 | B65: AVISP, | C65: 299 | D65: =C65*(1+('Scenario Input'!$AA$15/100)) -> 323.3390607 | E65: =D65*(1+('Scenario Input'!$AD$15/100)) -> 338.4019587 | F65: =E65*(1+('Scenario Input'!$AG$15/100)) -> 347.1010272 | G65: =F65*(1+('Scenario Input'!$AJ$15/100)) -> 355.142586 | H65: =G65*(1+('Scenario Input'!$AM$15/100)) -> 363.2593819 | I65: =H65*(1+('Scenario Input'!$AP$15/100)) -> 377.7691332 | J65: =I65*(1+('Scenario Input'!$AS$15/100)) -> 392.8584508
A66: 65 | B66: AVISP, AT&T California | C66: 328.5 | D66: =C66*(1+('Scenario Input'!$AA$15/100)) -> 355.2404061 | E66: =D66*(1+('Scenario Input'!$AD$15/100)) -> 371.7894429 | F66: =E66*(1+('Scenario Input'!$AG$15/100)) -> 381.3467807 | G66: =F66*(1+('Scenario Input'!$AJ$15/100)) -> 390.1817374 | H66: =G66*(1+('Scenario Input'!$AM$15/100)) -> 399.0993544 | I66: =H66*(1+('Scenario Input'!$AP$15/100)) -> 415.0406698 | J66: =I66*(1+('Scenario Input'!$AS$15/100)) -> 431.6187328
A67: 66 | B67: AVISP, Frontier | C67: 321.5 | D67: =C67*(1+('Scenario Input'!$AA$15/100)) -> 347.6705954 | E67: =D67*(1+('Scenario Input'!$AD$15/100)) -> 363.866989 | F67: =E67*(1+('Scenario Input'!$AG$15/100)) -> 373.2206697 | G67: =F67*(1+('Scenario Input'!$AJ$15/100)) -> 381.8673625 | H67: =G67*(1+('Scenario Input'!$AM$15/100)) -> 390.5949541 | I67: =H67*(1+('Scenario Input'!$AP$15/100)) -> 406.1965764 | J67: =I67*(1+('Scenario Input'!$AS$15/100)) -> 422.4213777
A68: 67 | B68: Ayera Technologies Inc, | C68: 69 | D68: =C68*(1+('Scenario Input'!$AA$15/100)) -> 74.61670631 | E68: =D68*(1+('Scenario Input'!$AD$15/100)) -> 78.09275969 | F68: =E68*(1+('Scenario Input'!$AG$15/100)) -> 80.10023704 | G68: =F68*(1+('Scenario Input'!$AJ$15/100)) -> 81.95598138 | H68: =G68*(1+('Scenario Input'!$AM$15/100)) -> 83.82908813 | I68: =H68*(1+('Scenario Input'!$AP$15/100)) -> 87.17749228 | J68: =I68*(1+('Scenario Input'!$AS$15/100)) -> 90.6596425
A69: 68 | B69: Ayera Technologies Inc, AT&T California | C69: 98.5 | D69: =C69*(1+('Scenario Input'!$AA$15/100)) -> 106.5180518 | E69: =D69*(1+('Scenario Input'!$AD$15/100)) -> 111.4802439 | F69: =E69*(1+('Scenario Input'!$AG$15/100)) -> 114.3459906 | G69: =F69*(1+('Scenario Input'!$AJ$15/100)) -> 116.9951328 | H69: =G69*(1+('Scenario Input'!$AM$15/100)) -> 119.6690606 | I69: =H69*(1+('Scenario Input'!$AP$15/100)) -> 124.4490288 | J69: =I69*(1+('Scenario Input'!$AS$15/100)) -> 129.4199244
A70: 69 | B70: Ayera Technologies Inc, Frontier | C70: 91.5 | D70: =C70*(1+('Scenario Input'!$AA$15/100)) -> 98.94824098 | E70: =D70*(1+('Scenario Input'!$AD$15/100)) -> 103.55779 | F70: =E70*(1+('Scenario Input'!$AG$15/100)) -> 106.2198795 | G70: =F70*(1+('Scenario Input'!$AJ$15/100)) -> 108.6807579 | H70: =G70*(1+('Scenario Input'!$AM$15/100)) -> 111.1646603 | I70: =H70*(1+('Scenario Input'!$AP$15/100)) -> 115.6049354 | J70: =I70*(1+('Scenario Input'!$AS$15/100)) -> 120.2225694
A71: 70 | B71: Beamspeed LLC, | C71: 75 | D71: =C71*(1+('Scenario Input'!$AA$15/100)) -> 81.10511556 | E71: =D71*(1+('Scenario Input'!$AD$15/100)) -> 84.88343445 | F71: =E71*(1+('Scenario Input'!$AG$15/100)) -> 87.06547504 | G71: =F71*(1+('Scenario Input'!$AJ$15/100)) -> 89.08258846 | H71: =G71*(1+('Scenario Input'!$AM$15/100)) -> 91.11857405 | I71: =H71*(1+('Scenario Input'!$AP$15/100)) -> 94.75814379 | J71: =I71*(1+('Scenario Input'!$AS$15/100)) -> 98.54308967
A72: 71 | B72: Beamspeed LLC, AT&T California | C72: 104.5 | D72: =C72*(1+('Scenario Input'!$AA$15/100)) -> 113.006461 | E72: =D72*(1+('Scenario Input'!$AD$15/100)) -> 118.2709187 | F72: =E72*(1+('Scenario Input'!$AG$15/100)) -> 121.3112286 | G72: =F72*(1+('Scenario Input'!$AJ$15/100)) -> 124.1217399 | H72: =G72*(1+('Scenario Input'!$AM$15/100)) -> 126.9585465 | I72: =H72*(1+('Scenario Input'!$AP$15/100)) -> 132.0296803 | J72: =I72*(1+('Scenario Input'!$AS$15/100)) -> 137.3033716
A73: 72 | B73: Beamspeed LLC, TDS Telecom - WH | C73: 92.5 | D73: =C73*(1+('Scenario Input'!$AA$15/100)) -> 100.0296425 | E73: =D73*(1+('Scenario Input'!$AD$15/100)) -> 104.6895692 | F73: =E73*(1+('Scenario Input'!$AG$15/100)) -> 107.3807525 | G73: =F73*(1+('Scenario Input'!$AJ$15/100)) -> 109.8685258 | H73: =G73*(1+('Scenario Input'!$AM$15/100)) -> 112.3795747 | I73: =H73*(1+('Scenario Input'!$AP$15/100)) -> 116.8683773 | J73: =I73*(1+('Scenario Input'!$AS$15/100)) -> 121.5364773
A74: 73 | B74: Cal-Ore Communications Inc., AT&T California | C74: 108.5 | D74: =C74*(1+('Scenario Input'!$AA$15/100)) -> 117.3320672 | E74: =D74*(1+('Scenario Input'!$AD$15/100)) -> 122.7980352 | F74: =E74*(1+('Scenario Input'!$AG$15/100)) -> 125.9547206 | G74: =F74*(1+('Scenario Input'!$AJ$15/100)) -> 128.8728113 | H74: =G74*(1+('Scenario Input'!$AM$15/100)) -> 131.8182038 | I74: =H74*(1+('Scenario Input'!$AP$15/100)) -> 137.083448 | J74: =I74*(1+('Scenario Input'!$AS$15/100)) -> 142.5590031
A75: 74 | B75: Cal-Ore Communications Inc., Cal-Ore | C75: 104 | D75: =C75*(1+('Scenario Input'!$AA$15/100)) -> 112.4657602 | E75: =D75*(1+('Scenario Input'!$AD$15/100)) -> 117.7050291 | F75: =E75*(1+('Scenario Input'!$AG$15/100)) -> 120.7307921 | G75: =F75*(1+('Scenario Input'!$AJ$15/100)) -> 123.527856 | H75: =G75*(1+('Scenario Input'!$AM$15/100)) -> 126.3510894 | I75: =H75*(1+('Scenario Input'!$AP$15/100)) -> 131.3979594 | J75: =I75*(1+('Scenario Input'!$AS$15/100)) -> 136.6464177
A76: 75 | B76: Cal-Ore Communications Inc., 12, | C76: 49.95 | D76: =C76*(1+('Scenario Input'!$AA$15/100)) -> 54.01600696 | E76: =D76*(1+('Scenario Input'!$AD$15/100)) -> 56.53236734 | F76: =E76*(1+('Scenario Input'!$AG$15/100)) -> 57.98560638 | G76: =F76*(1+('Scenario Input'!$AJ$15/100)) -> 59.32900391 | H76: =G76*(1+('Scenario Input'!$AM$15/100)) -> 60.68497032 | I76: =H76*(1+('Scenario Input'!$AP$15/100)) -> 63.10892376 | J76: =I76*(1+('Scenario Input'!$AS$15/100)) -> 65.62969772
A77: 76 | B77: Cal-Ore Communications Inc., 12, AT&T California | C77: 79.45 | D77: =C77*(1+('Scenario Input'!$AA$15/100)) -> 85.91735241 | E77: =D77*(1+('Scenario Input'!$AD$15/100)) -> 89.91985156 | F77: =E77*(1+('Scenario Input'!$AG$15/100)) -> 92.23135989 | G77: =F77*(1+('Scenario Input'!$AJ$15/100)) -> 94.36815537 | H77: =G77*(1+('Scenario Input'!$AM$15/100)) -> 96.52494278 | I77: =H77*(1+('Scenario Input'!$AP$15/100)) -> 100.3804603 | J77: =I77*(1+('Scenario Input'!$AS$15/100)) -> 104.3899797
A78: 77 | B78: Cal-Ore Communications Inc., 12, Cal-Ore | C78: 74.95 | D78: =C78*(1+('Scenario Input'!$AA$15/100)) -> 81.05104548 | E78: =D78*(1+('Scenario Input'!$AD$15/100)) -> 84.82684549 | F78: =E78*(1+('Scenario Input'!$AG$15/100)) -> 87.00743139 | G78: =F78*(1+('Scenario Input'!$AJ$15/100)) -> 89.02320006 | H78: =G78*(1+('Scenario Input'!$AM$15/100)) -> 91.05782834 | I78: =H78*(1+('Scenario Input'!$AP$15/100)) -> 94.69497169 | J78: =I78*(1+('Scenario Input'!$AS$15/100)) -> 98.47739428
A79: 78 | B79: Cal-Ore Communications Inc., 70, | C79: 69.95 | D79: =C79*(1+('Scenario Input'!$AA$15/100)) -> 75.64403778 | E79: =D79*(1+('Scenario Input'!$AD$15/100)) -> 79.16794986 | F79: =E79*(1+('Scenario Input'!$AG$15/100)) -> 81.20306639 | G79: =F79*(1+('Scenario Input'!$AJ$15/100)) -> 83.08436083 | H79: =G79*(1+('Scenario Input'!$AM$15/100)) -> 84.98325674 | I79: =H79*(1+('Scenario Input'!$AP$15/100)) -> 88.3777621 | J79: =I79*(1+('Scenario Input'!$AS$15/100)) -> 91.90785497
A80: 79 | B80: Cal-Ore Communications Inc., 70, AT&T California | C80: 99.45 | D80: =C80*(1+('Scenario Input'!$AA$15/100)) -> 107.5453832 | E80: =D80*(1+('Scenario Input'!$AD$15/100)) -> 112.5554341 | F80: =E80*(1+('Scenario Input'!$AG$15/100)) -> 115.4488199 | G80: =F80*(1+('Scenario Input'!$AJ$15/100)) -> 118.1235123 | H80: =G80*(1+('Scenario Input'!$AM$15/100)) -> 120.8232292 | I80: =H80*(1+('Scenario Input'!$AP$15/100)) -> 125.6492987 | J80: =I80*(1+('Scenario Input'!$AS$15/100)) -> 130.6681369
A81: 80 | B81: Cal-Ore Communications Inc., 70, Cal-Ore | C81: 94.95 | D81: =C81*(1+('Scenario Input'!$AA$15/100)) -> 102.6790763 | E81: =D81*(1+('Scenario Input'!$AD$15/100)) -> 107.462428 | F81: =E81*(1+('Scenario Input'!$AG$15/100)) -> 110.2248914 | G81: =F81*(1+('Scenario Input'!$AJ$15/100)) -> 112.778557 | H81: =G81*(1+('Scenario Input'!$AM$15/100)) -> 115.3561148 | I81: =H81*(1+('Scenario Input'!$AP$15/100)) -> 119.96381 | J81: =I81*(1+('Scenario Input'!$AS$15/100)) -> 124.7555515
A82: 81 | B82: Cal.net Inc., | C82: 159.95 | D82: =C82*(1+('Scenario Input'!$AA$15/100)) -> 172.9701764 | E82: =D82*(1+('Scenario Input'!$AD$15/100)) -> 181.0280712 | F82: =E82*(1+('Scenario Input'!$AG$15/100)) -> 185.6816364 | G82: =F82*(1+('Scenario Input'!$AJ$15/100)) -> 189.983467 | H82: =G82*(1+('Scenario Input'!$AM$15/100)) -> 194.3255456 | I82: =H82*(1+('Scenario Input'!$AP$15/100)) -> 202.0875346 | J82: =I82*(1+('Scenario Input'!$AS$15/100)) -> 210.1595626
A83: 82 | B83: Cal.net Inc., AT&T California | C83: 189.45 | D83: =C83*(1+('Scenario Input'!$AA$15/100)) -> 204.8715219 | E83: =D83*(1+('Scenario Input'!$AD$15/100)) -> 214.4155554 | F83: =E83*(1+('Scenario Input'!$AG$15/100)) -> 219.9273899 | G83: =F83*(1+('Scenario Input'!$AJ$15/100)) -> 225.0226184 | H83: =G83*(1+('Scenario Input'!$AM$15/100)) -> 230.1655181 | I83: =H83*(1+('Scenario Input'!$AP$15/100)) -> 239.3590712 | J83: =I83*(1+('Scenario Input'!$AS$15/100)) -> 248.9198445
A84: 83 | B84: Cal.net Inc., Calaveras | C84: 184.95 | D84: =C84*(1+('Scenario Input'!$AA$15/100)) -> 200.005215 | E84: =D84*(1+('Scenario Input'!$AD$15/100)) -> 209.3225493 | F84: =E84*(1+('Scenario Input'!$AG$15/100)) -> 214.7034614 | G84: =F84*(1+('Scenario Input'!$AJ$15/100)) -> 219.6776631 | H84: =G84*(1+('Scenario Input'!$AM$15/100)) -> 224.6984036 | I84: =H84*(1+('Scenario Input'!$AP$15/100)) -> 233.6735826 | J84: =I84*(1+('Scenario Input'!$AS$15/100)) -> 243.0072591
A85: 84 | B85: Cal.net Inc., Frontier | C85: 182.45 | D85: =C85*(1+('Scenario Input'!$AA$15/100)) -> 197.3017111 | E85: =D85*(1+('Scenario Input'!$AD$15/100)) -> 206.4931015 | F85: =E85*(1+('Scenario Input'!$AG$15/100)) -> 211.8012789 | G85: =F85*(1+('Scenario Input'!$AJ$15/100)) -> 216.7082435 | H85: =G85*(1+('Scenario Input'!$AM$15/100)) -> 221.6611178 | I85: =H85*(1+('Scenario Input'!$AP$15/100)) -> 230.5149778 | J85: =I85*(1+('Scenario Input'!$AS$15/100)) -> 239.7224895
A86: 85 | B86: Cal.net Inc., Frontier - Citizens | C86: 182.45 | D86: =C86*(1+('Scenario Input'!$AA$15/100)) -> 197.3017111 | E86: =D86*(1+('Scenario Input'!$AD$15/100)) -> 206.4931015 | F86: =E86*(1+('Scenario Input'!$AG$15/100)) -> 211.8012789 | G86: =F86*(1+('Scenario Input'!$AJ$15/100)) -> 216.7082435 | H86: =G86*(1+('Scenario Input'!$AM$15/100)) -> 221.6611178 | I86: =H86*(1+('Scenario Input'!$AP$15/100)) -> 230.5149778 | J86: =I86*(1+('Scenario Input'!$AS$15/100)) -> 239.7224895
A87: 86 | B87: Cal.net Inc., Surewest | C87: 183.17 | D87: =C87*(1+('Scenario Input'!$AA$15/100)) -> 198.0803202 | E87: =D87*(1+('Scenario Input'!$AD$15/100)) -> 207.3079825 | F87: =E87*(1+('Scenario Input'!$AG$15/100)) -> 212.6371075 | G87: =F87*(1+('Scenario Input'!$AJ$15/100)) -> 217.5634364 | H87: =G87*(1+('Scenario Input'!$AM$15/100)) -> 222.5358561 | I87: =H87*(1+('Scenario Input'!$AP$15/100)) -> 231.424656 | J87: =I87*(1+('Scenario Input'!$AS$15/100)) -> 240.6685031
A88: 87 | B88: Calaveras Telephone Company, AT&T California | C88: 97.45 | D88: =C88*(1+('Scenario Input'!$AA$15/100)) -> 105.3825801 | E88: =D88*(1+('Scenario Input'!$AD$15/100)) -> 110.2918758 | F88: =E88*(1+('Scenario Input'!$AG$15/100)) -> 113.1270739 | G88: =F88*(1+('Scenario Input'!$AJ$15/100)) -> 115.7479766 | H88: =G88*(1+('Scenario Input'!$AM$15/100)) -> 118.3934006 | I88: =H88*(1+('Scenario Input'!$AP$15/100)) -> 123.1224148 | J88: =I88*(1+('Scenario Input'!$AS$15/100)) -> 128.0403212
A89: 88 | B89: Calaveras Telephone Company, Calaveras | C89: 92.95 | D89: =C89*(1+('Scenario Input'!$AA$15/100)) -> 100.5162732 | E89: =D89*(1+('Scenario Input'!$AD$15/100)) -> 105.1988698 | F89: =E89*(1+('Scenario Input'!$AG$15/100)) -> 107.9031454 | G89: =F89*(1+('Scenario Input'!$AJ$15/100)) -> 110.4030213 | H89: =G89*(1+('Scenario Input'!$AM$15/100)) -> 112.9262861 | I89: =H89*(1+('Scenario Input'!$AP$15/100)) -> 117.4369262 | J89: =I89*(1+('Scenario Input'!$AS$15/100)) -> 122.1277358
A90: 89 | B90: Calaveras Telephone Company, Frontier | C90: 90.45 | D90: =C90*(1+('Scenario Input'!$AA$15/100)) -> 97.81276936 | E90: =D90*(1+('Scenario Input'!$AD$15/100)) -> 102.3694219 | F90: =E90*(1+('Scenario Input'!$AG$15/100)) -> 105.0009629 | G90: =F90*(1+('Scenario Input'!$AJ$15/100)) -> 107.4336017 | H90: =G90*(1+('Scenario Input'!$AM$15/100)) -> 109.8890003 | I90: =H90*(1+('Scenario Input'!$AP$15/100)) -> 114.2783214 | J90: =I90*(1+('Scenario Input'!$AS$15/100)) -> 118.8429661
A91: 90 | B91: California Broadband Services, AT&T California | C91: 159.45 | D91: =C91*(1+('Scenario Input'!$AA$15/100)) -> 172.4294757 | E91: =D91*(1+('Scenario Input'!$AD$15/100)) -> 180.4621816 | F91: =E91*(1+('Scenario Input'!$AG$15/100)) -> 185.1011999 | G91: =F91*(1+('Scenario Input'!$AJ$15/100)) -> 189.3895831 | H91: =G91*(1+('Scenario Input'!$AM$15/100)) -> 193.7180884 | I91: =H91*(1+('Scenario Input'!$AP$15/100)) -> 201.4558137 | J91: =I91*(1+('Scenario Input'!$AS$15/100)) -> 209.5026086
A92: 91 | B92: California Broadband Services, Frontier | C92: 152.45 | D92: =C92*(1+('Scenario Input'!$AA$15/100)) -> 164.8596649 | E92: =D92*(1+('Scenario Input'!$AD$15/100)) -> 172.5397278 | F92: =E92*(1+('Scenario Input'!$AG$15/100)) -> 176.9750889 | G92: =F92*(1+('Scenario Input'!$AJ$15/100)) -> 181.0752081 | H92: =G92*(1+('Scenario Input'!$AM$15/100)) -> 185.2136882 | I92: =H92*(1+('Scenario Input'!$AP$15/100)) -> 192.6117203 | J92: =I92*(1+('Scenario Input'!$AS$15/100)) -> 200.3052536
A93: 92 | B93: California Broadband Services, Frontier - Citizens | C93: 152.45 | D93: =C93*(1+('Scenario Input'!$AA$15/100)) -> 164.8596649 | E93: =D93*(1+('Scenario Input'!$AD$15/100)) -> 172.5397278 | F93: =E93*(1+('Scenario Input'!$AG$15/100)) -> 176.9750889 | G93: =F93*(1+('Scenario Input'!$AJ$15/100)) -> 181.0752081 | H93: =G93*(1+('Scenario Input'!$AM$15/100)) -> 185.2136882 | I93: =H93*(1+('Scenario Input'!$AP$15/100)) -> 192.6117203 | J93: =I93*(1+('Scenario Input'!$AS$15/100)) -> 200.3052536
A94: 93 | B94: CalNeva Broadband, | C94: 29.95 | D94: =C94*(1+('Scenario Input'!$AA$15/100)) -> 32.38797615 | E94: =D94*(1+('Scenario Input'!$AD$15/100)) -> 33.89678482 | F94: =E94*(1+('Scenario Input'!$AG$15/100)) -> 34.76814637 | G94: =F94*(1+('Scenario Input'!$AJ$15/100)) -> 35.57364699 | H94: =G94*(1+('Scenario Input'!$AM$15/100)) -> 36.38668391 | I94: =H94*(1+('Scenario Input'!$AP$15/100)) -> 37.84008542 | J94: =I94*(1+('Scenario Input'!$AS$15/100)) -> 39.35154048
A95: 94 | B95: CalNeva Broadband, AT&T California | C95: 59.45 | D95: =C95*(1+('Scenario Input'!$AA$15/100)) -> 64.2893216 | E95: =D95*(1+('Scenario Input'!$AD$15/100)) -> 67.28426904 | F95: =E95*(1+('Scenario Input'!$AG$15/100)) -> 69.01389988 | G95: =F95*(1+('Scenario Input'!$AJ$15/100)) -> 70.61279845 | H95: =G95*(1+('Scenario Input'!$AM$15/100)) -> 72.22665637 | I95: =H95*(1+('Scenario Input'!$AP$15/100)) -> 75.11162197 | J95: =I95*(1+('Scenario Input'!$AS$15/100)) -> 78.11182241
A96: 95 | B96: Catalina Broadband Solutions, | C96: 79.95 | D96: =C96*(1+('Scenario Input'!$AA$15/100)) -> 86.45805318 | E96: =D96*(1+('Scenario Input'!$AD$15/100)) -> 90.48574112 | F96: =E96*(1+('Scenario Input'!$AG$15/100)) -> 92.81179639 | G96: =F96*(1+('Scenario Input'!$AJ$15/100)) -> 94.96203929 | H96: =G96*(1+('Scenario Input'!$AM$15/100)) -> 97.13239994 | I96: =H96*(1+('Scenario Input'!$AP$15/100)) -> 101.0121813 | J96: =I96*(1+('Scenario Input'!$AS$15/100)) -> 105.0469336
A97: 96 | B97: Central Coast Internet, | C97: 274.95 | D97: =C97*(1+('Scenario Input'!$AA$15/100)) -> 297.3313536 | E97: =D97*(1+('Scenario Input'!$AD$15/100)) -> 311.1826707 | F97: =E97*(1+('Scenario Input'!$AG$15/100)) -> 319.1820315 | G97: =F97*(1+('Scenario Input'!$AJ$15/100)) -> 326.5767693 | H97: =G97*(1+('Scenario Input'!$AM$15/100)) -> 334.0406925 | I97: =H97*(1+('Scenario Input'!$AP$15/100)) -> 347.3833551 | J97: =I97*(1+('Scenario Input'!$AS$15/100)) -> 361.2589667
A98: 97 | B98: Central Coast Internet, AT&T California | C98: 304.45 | D98: =C98*(1+('Scenario Input'!$AA$15/100)) -> 329.2326991 | E98: =D98*(1+('Scenario Input'!$AD$15/100)) -> 344.5701549 | F98: =E98*(1+('Scenario Input'!$AG$15/100)) -> 353.427785 | G98: =F98*(1+('Scenario Input'!$AJ$15/100)) -> 361.6159207 | H98: =G98*(1+('Scenario Input'!$AM$15/100)) -> 369.8806649 | I98: =H98*(1+('Scenario Input'!$AP$15/100)) -> 384.6548917 | J98: =I98*(1+('Scenario Input'!$AS$15/100)) -> 400.0192487
A99: 98 | B99: Charter Communications Inc, | C99: 17.99 | D99: =C99*(1+('Scenario Input'!$AA$15/100)) -> 19.45441372 | E99: =D99*(1+('Scenario Input'!$AD$15/100)) -> 20.36070648 | F99: =E99*(1+('Scenario Input'!$AG$15/100)) -> 20.88410528 | G99: =F99*(1+('Scenario Input'!$AJ$15/100)) -> 21.36794355 | H99: =G99*(1+('Scenario Input'!$AM$15/100)) -> 21.85630863 | I99: =H99*(1+('Scenario Input'!$AP$15/100)) -> 22.72932009 | J99: =I99*(1+('Scenario Input'!$AS$15/100)) -> 23.63720244
A100: 99 | B100: Charter Communications Inc, AT&T California | C100: 47.49 | D100: =C100*(1+('Scenario Input'!$AA$15/100)) -> 51.35575917 | E100: =D100*(1+('Scenario Input'!$AD$15/100)) -> 53.74819069 | F100: =E100*(1+('Scenario Input'!$AG$15/100)) -> 55.12985879 | G100: =F100*(1+('Scenario Input'!$AJ$15/100)) -> 56.40709501 | H100: =G100*(1+('Scenario Input'!$AM$15/100)) -> 57.69628109 | I100: =H100*(1+('Scenario Input'!$AP$15/100)) -> 60.00085665 | J100: =I100*(1+('Scenario Input'!$AS$15/100)) -> 62.39748438
A101: 100 | B101: Charter Communications Inc, Frontier | C101: 40.49 | D101: =C101*(1+('Scenario Input'!$AA$15/100)) -> 43.78594838 | E101: =D101*(1+('Scenario Input'!$AD$15/100)) -> 45.82573681 | F101: =E101*(1+('Scenario Input'!$AG$15/100)) -> 47.00374779 | G101: =F101*(1+('Scenario Input'!$AJ$15/100)) -> 48.09272009 | H101: =G101*(1+('Scenario Input'!$AM$15/100)) -> 49.19188085 | I101: =H101*(1+('Scenario Input'!$AP$15/100)) -> 51.15676323 | J101: =I101*(1+('Scenario Input'!$AS$15/100)) -> 53.20012934
A102: 101 | B102: Charter Communications Inc, Frontier - Citizens | C102: 40.49 | D102: =C102*(1+('Scenario Input'!$AA$15/100)) -> 43.78594838 | E102: =D102*(1+('Scenario Input'!$AD$15/100)) -> 45.82573681 | F102: =E102*(1+('Scenario Input'!$AG$15/100)) -> 47.00374779 | G102: =F102*(1+('Scenario Input'!$AJ$15/100)) -> 48.09272009 | H102: =G102*(1+('Scenario Input'!$AM$15/100)) -> 49.19188085 | I102: =H102*(1+('Scenario Input'!$AP$15/100)) -> 51.15676323 | J102: =I102*(1+('Scenario Input'!$AS$15/100)) -> 53.20012934
A103: 102 | B103: Charter Communications Inc, TDS Telecom - HV | C103: 34.84 | D103: =C103*(1+('Scenario Input'!$AA$15/100)) -> 37.67602968 | E103: =D103*(1+('Scenario Input'!$AD$15/100)) -> 39.43118475 | F103: =E103*(1+('Scenario Input'!$AG$15/100)) -> 40.44481534 | G103: =F103*(1+('Scenario Input'!$AJ$15/100)) -> 41.38183176 | H103: =G103*(1+('Scenario Input'!$AM$15/100)) -> 42.32761493 | I103: =H103*(1+('Scenario Input'!$AP$15/100)) -> 44.01831639 | J103: =I103*(1+('Scenario Input'!$AS$15/100)) -> 45.77654992
A104: 103 | B104: Charter Communications Inc, TDS Telecom - WH | C104: 35.49 | D104: =C104*(1+('Scenario Input'!$AA$15/100)) -> 38.37894068 | E104: =D104*(1+('Scenario Input'!$AD$15/100)) -> 40.16684118 | F104: =E104*(1+('Scenario Input'!$AG$15/100)) -> 41.19938279 | G104: =F104*(1+('Scenario Input'!$AJ$15/100)) -> 42.15388086 | H104: =G104*(1+('Scenario Input'!$AM$15/100)) -> 43.11730924 | I104: =H104*(1+('Scenario Input'!$AP$15/100)) -> 44.83955364 | J104: =I104*(1+('Scenario Input'!$AS$15/100)) -> 46.63059003
A105: 104 | B105: Charter Communications Inc, Volcano | C105: 41.99 | D105: =C105*(1+('Scenario Input'!$AA$15/100)) -> 45.4080507 | E105: =D105*(1+('Scenario Input'!$AD$15/100)) -> 47.5234055 | F105: =E105*(1+('Scenario Input'!$AG$15/100)) -> 48.74505729 | G105: =F105*(1+('Scenario Input'!$AJ$15/100)) -> 49.87437186 | H105: =G105*(1+('Scenario Input'!$AM$15/100)) -> 51.01425233 | I105: =H105*(1+('Scenario Input'!$AP$15/100)) -> 53.0519261 | J105: =I105*(1+('Scenario Input'!$AS$15/100)) -> 55.17099114
A106: 105 | B106: City of Lompoc (LompocNet), Frontier | C106: 58.49 | D106: =C106*(1+('Scenario Input'!$AA$15/100)) -> 63.25117612 | E106: =D106*(1+('Scenario Input'!$AD$15/100)) -> 66.19776108 | F106: =E106*(1+('Scenario Input'!$AG$15/100)) -> 67.8994618 | G106: =F106*(1+('Scenario Input'!$AJ$15/100)) -> 69.47254132 | H106: =G106*(1+('Scenario Input'!$AM$15/100)) -> 71.06033862 | I106: =H106*(1+('Scenario Input'!$AP$15/100)) -> 73.89871773 | J106: =I106*(1+('Scenario Input'!$AS$15/100)) -> 76.85047086
A107: 106 | B107: ColfaxNet, | C107: 150 | D107: =C107*(1+('Scenario Input'!$AA$15/100)) -> 162.2102311 | E107: =D107*(1+('Scenario Input'!$AD$15/100)) -> 169.7668689 | F107: =E107*(1+('Scenario Input'!$AG$15/100)) -> 174.1309501 | G107: =F107*(1+('Scenario Input'!$AJ$15/100)) -> 178.1651769 | H107: =G107*(1+('Scenario Input'!$AM$15/100)) -> 182.2371481 | I107: =H107*(1+('Scenario Input'!$AP$15/100)) -> 189.5162876 | J107: =I107*(1+('Scenario Input'!$AS$15/100)) -> 197.0861793
A108: 107 | B108: ColfaxNet, AT&T California | C108: 179.5 | D108: =C108*(1+('Scenario Input'!$AA$15/100)) -> 194.1115766 | E108: =D108*(1+('Scenario Input'!$AD$15/100)) -> 203.1543531 | F108: =E108*(1+('Scenario Input'!$AG$15/100)) -> 208.3767036 | G108: =F108*(1+('Scenario Input'!$AJ$15/100)) -> 213.2043284 | H108: =G108*(1+('Scenario Input'!$AM$15/100)) -> 218.0771206 | I108: =H108*(1+('Scenario Input'!$AP$15/100)) -> 226.7878241 | J108: =I108*(1+('Scenario Input'!$AS$15/100)) -> 235.8464613
A109: 108 | B109: ColfaxNet, Foresthill | C109: 175 | D109: =C109*(1+('Scenario Input'!$AA$15/100)) -> 189.2452696 | E109: =D109*(1+('Scenario Input'!$AD$15/100)) -> 198.061347 | F109: =E109*(1+('Scenario Input'!$AG$15/100)) -> 203.1527751 | G109: =F109*(1+('Scenario Input'!$AJ$15/100)) -> 207.8593731 | H109: =G109*(1+('Scenario Input'!$AM$15/100)) -> 212.6100061 | I109: =H109*(1+('Scenario Input'!$AP$15/100)) -> 221.1023355 | J109: =I109*(1+('Scenario Input'!$AS$15/100)) -> 229.9338759
A110: 109 | B110: ColfaxNet, Frontier | C110: 172.5 | D110: =C110*(1+('Scenario Input'!$AA$15/100)) -> 186.5417658 | E110: =D110*(1+('Scenario Input'!$AD$15/100)) -> 195.2318992 | F110: =E110*(1+('Scenario Input'!$AG$15/100)) -> 200.2505926 | G110: =F110*(1+('Scenario Input'!$AJ$15/100)) -> 204.8899534 | H110: =G110*(1+('Scenario Input'!$AM$15/100)) -> 209.5727203 | I110: =H110*(1+('Scenario Input'!$AP$15/100)) -> 217.9437307 | J110: =I110*(1+('Scenario Input'!$AS$15/100)) -> 226.6491062
A111: 110 | B111: Com-Pair Services, | C111: 100 | D111: =C111*(1+('Scenario Input'!$AA$15/100)) -> 108.1401541 | E111: =D111*(1+('Scenario Input'!$AD$15/100)) -> 113.1779126 | F111: =E111*(1+('Scenario Input'!$AG$15/100)) -> 116.0873001 | G111: =F111*(1+('Scenario Input'!$AJ$15/100)) -> 118.7767846 | H111: =G111*(1+('Scenario Input'!$AM$15/100)) -> 121.4914321 | I111: =H111*(1+('Scenario Input'!$AP$15/100)) -> 126.3441917 | J111: =I111*(1+('Scenario Input'!$AS$15/100)) -> 131.3907862
A112: 111 | B112: Com-Pair Services, AT&T California | C112: 129.5 | D112: =C112*(1+('Scenario Input'!$AA$15/100)) -> 140.0414995 | E112: =D112*(1+('Scenario Input'!$AD$15/100)) -> 146.5653968 | F112: =E112*(1+('Scenario Input'!$AG$15/100)) -> 150.3330536 | G112: =F112*(1+('Scenario Input'!$AJ$15/100)) -> 153.8159361 | H112: =G112*(1+('Scenario Input'!$AM$15/100)) -> 157.3314045 | I112: =H112*(1+('Scenario Input'!$AP$15/100)) -> 163.6157283 | J112: =I112*(1+('Scenario Input'!$AS$15/100)) -> 170.1510682
A113: 112 | B113: Com-Pair Services, Ducor | C113: 125 | D113: =C113*(1+('Scenario Input'!$AA$15/100)) -> 135.1751926 | E113: =D113*(1+('Scenario Input'!$AD$15/100)) -> 141.4723907 | F113: =E113*(1+('Scenario Input'!$AG$15/100)) -> 145.1091251 | G113: =F113*(1+('Scenario Input'!$AJ$15/100)) -> 148.4709808 | H113: =G113*(1+('Scenario Input'!$AM$15/100)) -> 151.8642901 | I113: =H113*(1+('Scenario Input'!$AP$15/100)) -> 157.9302396 | J113: =I113*(1+('Scenario Input'!$AS$15/100)) -> 164.2384828
A114: 113 | B114: Com-Pair Services, Frontier | C114: 122.5 | D114: =C114*(1+('Scenario Input'!$AA$15/100)) -> 132.4716887 | E114: =D114*(1+('Scenario Input'!$AD$15/100)) -> 138.6429429 | F114: =E114*(1+('Scenario Input'!$AG$15/100)) -> 142.2069426 | G114: =F114*(1+('Scenario Input'!$AJ$15/100)) -> 145.5015611 | H114: =G114*(1+('Scenario Input'!$AM$15/100)) -> 148.8270043 | I114: =H114*(1+('Scenario Input'!$AP$15/100)) -> 154.7716349 | J114: =I114*(1+('Scenario Input'!$AS$15/100)) -> 160.9537131
A115: 114 | B115: Com-Pair Services, Frontier - Citizens | C115: 122.5 | D115: =C115*(1+('Scenario Input'!$AA$15/100)) -> 132.4716887 | E115: =D115*(1+('Scenario Input'!$AD$15/100)) -> 138.6429429 | F115: =E115*(1+('Scenario Input'!$AG$15/100)) -> 142.2069426 | G115: =F115*(1+('Scenario Input'!$AJ$15/100)) -> 145.5015611 | H115: =G115*(1+('Scenario Input'!$AM$15/100)) -> 148.8270043 | I115: =H115*(1+('Scenario Input'!$AP$15/100)) -> 154.7716349 | J115: =I115*(1+('Scenario Input'!$AS$15/100)) -> 160.9537131
A116: 115 | B116: Com-Pair Services, TDS Telecom - HV | C116: 116.85 | D116: =C116*(1+('Scenario Input'!$AA$15/100)) -> 126.36177 | E116: =D116*(1+('Scenario Input'!$AD$15/100)) -> 132.2483909 | F116: =E116*(1+('Scenario Input'!$AG$15/100)) -> 135.6480101 | G116: =F116*(1+('Scenario Input'!$AJ$15/100)) -> 138.7906728 | H116: =G116*(1+('Scenario Input'!$AM$15/100)) -> 141.9627384 | I116: =H116*(1+('Scenario Input'!$AP$15/100)) -> 147.633188 | J116: =I116*(1+('Scenario Input'!$AS$15/100)) -> 153.5301337
A117: 116 | B117: Comcast Cable Communications Management, LLC, | C117: 60 | D117: =C117*(1+('Scenario Input'!$AA$15/100)) -> 64.88409245 | E117: =D117*(1+('Scenario Input'!$AD$15/100)) -> 67.90674756 | F117: =E117*(1+('Scenario Input'!$AG$15/100)) -> 69.65238003 | G117: =F117*(1+('Scenario Input'!$AJ$15/100)) -> 71.26607076 | H117: =G117*(1+('Scenario Input'!$AM$15/100)) -> 72.89485924 | I117: =H117*(1+('Scenario Input'!$AP$15/100)) -> 75.80651503 | J117: =I117*(1+('Scenario Input'!$AS$15/100)) -> 78.83447174
A118: 117 | B118: Comcast Cable Communications Management, LLC, AT&T California | C118: 89.5 | D118: =C118*(1+('Scenario Input'!$AA$15/100)) -> 96.7854379 | E118: =D118*(1+('Scenario Input'!$AD$15/100)) -> 101.2942318 | F118: =E118*(1+('Scenario Input'!$AG$15/100)) -> 103.8981335 | G118: =F118*(1+('Scenario Input'!$AJ$15/100)) -> 106.3052222 | H118: =G118*(1+('Scenario Input'!$AM$15/100)) -> 108.7348317 | I118: =H118*(1+('Scenario Input'!$AP$15/100)) -> 113.0780516 | J118: =I118*(1+('Scenario Input'!$AS$15/100)) -> 117.5947537
A119: 118 | B119: Comcast Cable Communications Management, LLC, Calaveras | C119: 85 | D119: =C119*(1+('Scenario Input'!$AA$15/100)) -> 91.91913096 | E119: =D119*(1+('Scenario Input'!$AD$15/100)) -> 96.20122571 | F119: =E119*(1+('Scenario Input'!$AG$15/100)) -> 98.67420504 | G119: =F119*(1+('Scenario Input'!$AJ$15/100)) -> 100.9602669 | H119: =G119*(1+('Scenario Input'!$AM$15/100)) -> 103.2677173 | I119: =H119*(1+('Scenario Input'!$AP$15/100)) -> 107.392563 | J119: =I119*(1+('Scenario Input'!$AS$15/100)) -> 111.6821683
A120: 119 | B120: Comcast Cable Communications Management, LLC, Frontier | C120: 82.5 | D120: =C120*(1+('Scenario Input'!$AA$15/100)) -> 89.21562711 | E120: =D120*(1+('Scenario Input'!$AD$15/100)) -> 93.37177789 | F120: =E120*(1+('Scenario Input'!$AG$15/100)) -> 95.77202254 | G120: =F120*(1+('Scenario Input'!$AJ$15/100)) -> 97.9908473 | H120: =G120*(1+('Scenario Input'!$AM$15/100)) -> 100.2304315 | I120: =H120*(1+('Scenario Input'!$AP$15/100)) -> 104.2339582 | J120: =I120*(1+('Scenario Input'!$AS$15/100)) -> 108.3973986
A121: 120 | B121: Comcast Cable Communications Management, LLC, Frontier - Citizens | C121: 82.5 | D121: =C121*(1+('Scenario Input'!$AA$15/100)) -> 89.21562711 | E121: =D121*(1+('Scenario Input'!$AD$15/100)) -> 93.37177789 | F121: =E121*(1+('Scenario Input'!$AG$15/100)) -> 95.77202254 | G121: =F121*(1+('Scenario Input'!$AJ$15/100)) -> 97.9908473 | H121: =G121*(1+('Scenario Input'!$AM$15/100)) -> 100.2304315 | I121: =H121*(1+('Scenario Input'!$AP$15/100)) -> 104.2339582 | J121: =I121*(1+('Scenario Input'!$AS$15/100)) -> 108.3973986
A122: 121 | B122: Comcast Cable Communications Management, LLC, Kerman | C122: 82.58 | D122: =C122*(1+('Scenario Input'!$AA$15/100)) -> 89.30213924 | E122: =D122*(1+('Scenario Input'!$AD$15/100)) -> 93.46232022 | F122: =E122*(1+('Scenario Input'!$AG$15/100)) -> 95.86489238 | G122: =F122*(1+('Scenario Input'!$AJ$15/100)) -> 98.08586873 | H122: =G122*(1+('Scenario Input'!$AM$15/100)) -> 100.3276246 | I122: =H122*(1+('Scenario Input'!$AP$15/100)) -> 104.3350335 | J122: =I122*(1+('Scenario Input'!$AS$15/100)) -> 108.5025113
A123: 122 | B123: Comcast Cable Communications Management, LLC, Ponderosa | C123: 85 | D123: =C123*(1+('Scenario Input'!$AA$15/100)) -> 91.91913096 | E123: =D123*(1+('Scenario Input'!$AD$15/100)) -> 96.20122571 | F123: =E123*(1+('Scenario Input'!$AG$15/100)) -> 98.67420504 | G123: =F123*(1+('Scenario Input'!$AJ$15/100)) -> 100.9602669 | H123: =G123*(1+('Scenario Input'!$AM$15/100)) -> 103.2677173 | I123: =H123*(1+('Scenario Input'!$AP$15/100)) -> 107.392563 | J123: =I123*(1+('Scenario Input'!$AS$15/100)) -> 111.6821683
A124: 123 | B124: Comcast Cable Communications Management, LLC, Surewest | C124: 83.22 | D124: =C124*(1+('Scenario Input'!$AA$15/100)) -> 89.99423622 | E124: =D124*(1+('Scenario Input'!$AD$15/100)) -> 94.18665886 | F124: =E124*(1+('Scenario Input'!$AG$15/100)) -> 96.6078511 | G124: =F124*(1+('Scenario Input'!$AJ$15/100)) -> 98.84604015 | H124: =G124*(1+('Scenario Input'!$AM$15/100)) -> 101.1051698 | I124: =H124*(1+('Scenario Input'!$AP$15/100)) -> 105.1436363 | J124: =I124*(1+('Scenario Input'!$AS$15/100)) -> 109.3434123
A125: 124 | B125: Comcast Cable Communications Management, LLC, Volcano | C125: 84 | D125: =C125*(1+('Scenario Input'!$AA$15/100)) -> 90.83772942 | E125: =D125*(1+('Scenario Input'!$AD$15/100)) -> 95.06944658 | F125: =E125*(1+('Scenario Input'!$AG$15/100)) -> 97.51333204 | G125: =F125*(1+('Scenario Input'!$AJ$15/100)) -> 99.77249907 | H125: =G125*(1+('Scenario Input'!$AM$15/100)) -> 102.0528029 | I125: =H125*(1+('Scenario Input'!$AP$15/100)) -> 106.129121 | J125: =I125*(1+('Scenario Input'!$AS$15/100)) -> 110.3682604
A126: 125 | B126: Conifer, | C126: 89.95 | D126: =C126*(1+('Scenario Input'!$AA$15/100)) -> 97.27206859 | E126: =D126*(1+('Scenario Input'!$AD$15/100)) -> 101.8035324 | F126: =E126*(1+('Scenario Input'!$AG$15/100)) -> 104.4205264 | G126: =F126*(1+('Scenario Input'!$AJ$15/100)) -> 106.8397178 | H126: =G126*(1+('Scenario Input'!$AM$15/100)) -> 109.2815431 | I126: =H126*(1+('Scenario Input'!$AP$15/100)) -> 113.6466004 | J126: =I126*(1+('Scenario Input'!$AS$15/100)) -> 118.1860122
A127: 126 | B127: Conifer, AT&T California | C127: 119.45 | D127: =C127*(1+('Scenario Input'!$AA$15/100)) -> 129.173414 | E127: =D127*(1+('Scenario Input'!$AD$15/100)) -> 135.1910166 | F127: =E127*(1+('Scenario Input'!$AG$15/100)) -> 138.6662799 | G127: =F127*(1+('Scenario Input'!$AJ$15/100)) -> 141.8788692 | H127: =G127*(1+('Scenario Input'!$AM$15/100)) -> 145.1215156 | I127: =H127*(1+('Scenario Input'!$AP$15/100)) -> 150.918137 | J127: =I127*(1+('Scenario Input'!$AS$15/100)) -> 156.9462941
A128: 127 | B128: Conifer, Calaveras | C128: 114.95 | D128: =C128*(1+('Scenario Input'!$AA$15/100)) -> 124.3071071 | E128: =D128*(1+('Scenario Input'!$AD$15/100)) -> 130.0980105 | F128: =E128*(1+('Scenario Input'!$AG$15/100)) -> 133.4423514 | G128: =F128*(1+('Scenario Input'!$AJ$15/100)) -> 136.5339139 | H128: =G128*(1+('Scenario Input'!$AM$15/100)) -> 139.6544012 | I128: =H128*(1+('Scenario Input'!$AP$15/100)) -> 145.2326484 | J128: =I128*(1+('Scenario Input'!$AS$15/100)) -> 151.0337088
A129: 128 | B129: Conifer, Frontier | C129: 112.45 | D129: =C129*(1+('Scenario Input'!$AA$15/100)) -> 121.6036033 | E129: =D129*(1+('Scenario Input'!$AD$15/100)) -> 127.2685627 | F129: =E129*(1+('Scenario Input'!$AG$15/100)) -> 130.5401689 | G129: =F129*(1+('Scenario Input'!$AJ$15/100)) -> 133.5644943 | H129: =G129*(1+('Scenario Input'!$AM$15/100)) -> 136.6171154 | I129: =H129*(1+('Scenario Input'!$AP$15/100)) -> 142.0740436 | J129: =I129*(1+('Scenario Input'!$AS$15/100)) -> 147.7489391
A130: 129 | B130: Conifer, Frontier - Citizens | C130: 112.45 | D130: =C130*(1+('Scenario Input'!$AA$15/100)) -> 121.6036033 | E130: =D130*(1+('Scenario Input'!$AD$15/100)) -> 127.2685627 | F130: =E130*(1+('Scenario Input'!$AG$15/100)) -> 130.5401689 | G130: =F130*(1+('Scenario Input'!$AJ$15/100)) -> 133.5644943 | H130: =G130*(1+('Scenario Input'!$AM$15/100)) -> 136.6171154 | I130: =H130*(1+('Scenario Input'!$AP$15/100)) -> 142.0740436 | J130: =I130*(1+('Scenario Input'!$AS$15/100)) -> 147.7489391
A131: 130 | B131: Conifer, TDS Telecom - Horn | C131: 106 | D131: =C131*(1+('Scenario Input'!$AA$15/100)) -> 114.6285633 | E131: =D131*(1+('Scenario Input'!$AD$15/100)) -> 119.9685874 | F131: =E131*(1+('Scenario Input'!$AG$15/100)) -> 123.0525381 | G131: =F131*(1+('Scenario Input'!$AJ$15/100)) -> 125.9033917 | H131: =G131*(1+('Scenario Input'!$AM$15/100)) -> 128.780918 | I131: =H131*(1+('Scenario Input'!$AP$15/100)) -> 133.9248432 | J131: =I131*(1+('Scenario Input'!$AS$15/100)) -> 139.2742334
A132: 131 | B132: ConnectAnza, | C132: 49 | D132: =C132*(1+('Scenario Input'!$AA$15/100)) -> 52.9886755 | E132: =D132*(1+('Scenario Input'!$AD$15/100)) -> 55.45717717 | F132: =E132*(1+('Scenario Input'!$AG$15/100)) -> 56.88277703 | G132: =F132*(1+('Scenario Input'!$AJ$15/100)) -> 58.20062446 | H132: =G132*(1+('Scenario Input'!$AM$15/100)) -> 59.53080172 | I132: =H132*(1+('Scenario Input'!$AP$15/100)) -> 61.90865394 | J132: =I132*(1+('Scenario Input'!$AS$15/100)) -> 64.38148525
A133: 132 | B133: ConnectAnza, Frontier | C133: 71.5 | D133: =C133*(1+('Scenario Input'!$AA$15/100)) -> 77.32021016 | E133: =D133*(1+('Scenario Input'!$AD$15/100)) -> 80.92220751 | F133: =E133*(1+('Scenario Input'!$AG$15/100)) -> 83.00241954 | G133: =F133*(1+('Scenario Input'!$AJ$15/100)) -> 84.92540099 | H133: =G133*(1+('Scenario Input'!$AM$15/100)) -> 86.86637393 | I133: =H133*(1+('Scenario Input'!$AP$15/100)) -> 90.33609708 | J133: =I133*(1+('Scenario Input'!$AS$15/100)) -> 93.94441215
A134: 133 | B134: ConnectTo Communications, AT&T California | C134: 54.49 | D134: =C134*(1+('Scenario Input'!$AA$15/100)) -> 58.92556996 | E134: =D134*(1+('Scenario Input'!$AD$15/100)) -> 61.67064457 | F134: =E134*(1+('Scenario Input'!$AG$15/100)) -> 63.2559698 | G134: =F134*(1+('Scenario Input'!$AJ$15/100)) -> 64.72146993 | H134: =G134*(1+('Scenario Input'!$AM$15/100)) -> 66.20068134 | I134: =H134*(1+('Scenario Input'!$AP$15/100)) -> 68.84495007 | J134: =I134*(1+('Scenario Input'!$AS$15/100)) -> 71.59483942
A135: 134 | B135: ConnectTo Communications, Frontier | C135: 47.49 | D135: =C135*(1+('Scenario Input'!$AA$15/100)) -> 51.35575917 | E135: =D135*(1+('Scenario Input'!$AD$15/100)) -> 53.74819069 | F135: =E135*(1+('Scenario Input'!$AG$15/100)) -> 55.12985879 | G135: =F135*(1+('Scenario Input'!$AJ$15/100)) -> 56.40709501 | H135: =G135*(1+('Scenario Input'!$AM$15/100)) -> 57.69628109 | I135: =H135*(1+('Scenario Input'!$AP$15/100)) -> 60.00085665 | J135: =I135*(1+('Scenario Input'!$AS$15/100)) -> 62.39748438
A136: 135 | B136: Consolidated Communications, 11, AT&T California | C136: 107.45 | D136: =C136*(1+('Scenario Input'!$AA$15/100)) -> 116.1965956 | E136: =D136*(1+('Scenario Input'!$AD$15/100)) -> 121.6096671 | F136: =E136*(1+('Scenario Input'!$AG$15/100)) -> 124.7358039 | G136: =F136*(1+('Scenario Input'!$AJ$15/100)) -> 127.6256551 | H136: =G136*(1+('Scenario Input'!$AM$15/100)) -> 130.5425438 | I136: =H136*(1+('Scenario Input'!$AP$15/100)) -> 135.756834 | J136: =I136*(1+('Scenario Input'!$AS$15/100)) -> 141.1793998
A137: 136 | B137: Consolidated Communications, 11, Surewest | C137: 101.17 | D137: =C137*(1+('Scenario Input'!$AA$15/100)) -> 109.4053939 | E137: =D137*(1+('Scenario Input'!$AD$15/100)) -> 114.5020942 | F137: =E137*(1+('Scenario Input'!$AG$15/100)) -> 117.4455215 | G137: =F137*(1+('Scenario Input'!$AJ$15/100)) -> 120.166473 | H137: =G137*(1+('Scenario Input'!$AM$15/100)) -> 122.9128818 | I137: =H137*(1+('Scenario Input'!$AP$15/100)) -> 127.8224188 | J137: =I137*(1+('Scenario Input'!$AS$15/100)) -> 132.9280584
A138: 137 | B138: Consolidated Communications, 12, Surewest | C138: 106.17 | D138: =C138*(1+('Scenario Input'!$AA$15/100)) -> 114.8124016 | E138: =D138*(1+('Scenario Input'!$AD$15/100)) -> 120.1609898 | F138: =E138*(1+('Scenario Input'!$AG$15/100)) -> 123.2498865 | G138: =F138*(1+('Scenario Input'!$AJ$15/100)) -> 126.1053122 | H138: =G138*(1+('Scenario Input'!$AM$15/100)) -> 128.9874534 | I138: =H138*(1+('Scenario Input'!$AP$15/100)) -> 134.1396283 | J138: =I138*(1+('Scenario Input'!$AS$15/100)) -> 139.4975977
A139: 138 | B139: Consolidated Communications, 50, AT&T California | C139: 64.5 | D139: =C139*(1+('Scenario Input'!$AA$15/100)) -> 69.75039938 | E139: =D139*(1+('Scenario Input'!$AD$15/100)) -> 72.99975362 | F139: =E139*(1+('Scenario Input'!$AG$15/100)) -> 74.87630853 | G139: =F139*(1+('Scenario Input'!$AJ$15/100)) -> 76.61102607 | H139: =G139*(1+('Scenario Input'!$AM$15/100)) -> 78.36197369 | I139: =H139*(1+('Scenario Input'!$AP$15/100)) -> 81.49200366 | J139: =I139*(1+('Scenario Input'!$AS$15/100)) -> 84.74705712
A140: 139 | B140: Consolidated Communications, 50, Frontier - Citizens | C140: 57.5 | D140: =C140*(1+('Scenario Input'!$AA$15/100)) -> 62.18058859 | E140: =D140*(1+('Scenario Input'!$AD$15/100)) -> 65.07729974 | F140: =E140*(1+('Scenario Input'!$AG$15/100)) -> 66.75019753 | G140: =F140*(1+('Scenario Input'!$AJ$15/100)) -> 68.29665115 | H140: =G140*(1+('Scenario Input'!$AM$15/100)) -> 69.85757344 | I140: =H140*(1+('Scenario Input'!$AP$15/100)) -> 72.64791024 | J140: =I140*(1+('Scenario Input'!$AS$15/100)) -> 75.54970208
A141: 140 | B141: Consolidated Communications, 50, Surewest | C141: 58.22 | D141: =C141*(1+('Scenario Input'!$AA$15/100)) -> 62.9591977 | E141: =D141*(1+('Scenario Input'!$AD$15/100)) -> 65.89218071 | F141: =E141*(1+('Scenario Input'!$AG$15/100)) -> 67.58602609 | G141: =F141*(1+('Scenario Input'!$AJ$15/100)) -> 69.151844 | H141: =G141*(1+('Scenario Input'!$AM$15/100)) -> 70.73231175 | I141: =H141*(1+('Scenario Input'!$AP$15/100)) -> 73.55758842 | J141: =I141*(1+('Scenario Input'!$AS$15/100)) -> 76.49571574
A142: 141 | B142: Consolidated Smart Broadband Systems LLC, AT&T California | C142: 54.49 | D142: =C142*(1+('Scenario Input'!$AA$15/100)) -> 58.92556996 | E142: =D142*(1+('Scenario Input'!$AD$15/100)) -> 61.67064457 | F142: =E142*(1+('Scenario Input'!$AG$15/100)) -> 63.2559698 | G142: =F142*(1+('Scenario Input'!$AJ$15/100)) -> 64.72146993 | H142: =G142*(1+('Scenario Input'!$AM$15/100)) -> 66.20068134 | I142: =H142*(1+('Scenario Input'!$AP$15/100)) -> 68.84495007 | J142: =I142*(1+('Scenario Input'!$AS$15/100)) -> 71.59483942
A143: 142 | B143: Consolidated Smart Broadband Systems LLC, Frontier | C143: 47.49 | D143: =C143*(1+('Scenario Input'!$AA$15/100)) -> 51.35575917 | E143: =D143*(1+('Scenario Input'!$AD$15/100)) -> 53.74819069 | F143: =E143*(1+('Scenario Input'!$AG$15/100)) -> 55.12985879 | G143: =F143*(1+('Scenario Input'!$AJ$15/100)) -> 56.40709501 | H143: =G143*(1+('Scenario Input'!$AM$15/100)) -> 57.69628109 | I143: =H143*(1+('Scenario Input'!$AP$15/100)) -> 60.00085665 | J143: =I143*(1+('Scenario Input'!$AS$15/100)) -> 62.39748438
A144: 143 | B144: Cox Communications, | C144: 49.99 | D144: =C144*(1+('Scenario Input'!$AA$15/100)) -> 54.05926302 | E144: =D144*(1+('Scenario Input'!$AD$15/100)) -> 56.57763851 | F144: =E144*(1+('Scenario Input'!$AG$15/100)) -> 58.0320413 | G144: =F144*(1+('Scenario Input'!$AJ$15/100)) -> 59.37651462 | H144: =G144*(1+('Scenario Input'!$AM$15/100)) -> 60.73356689 | I144: =H144*(1+('Scenario Input'!$AP$15/100)) -> 63.15946144 | J144: =I144*(1+('Scenario Input'!$AS$15/100)) -> 65.68225403
A145: 144 | B145: Cox Communications, AT&T California | C145: 79.49 | D145: =C145*(1+('Scenario Input'!$AA$15/100)) -> 85.96060847 | E145: =D145*(1+('Scenario Input'!$AD$15/100)) -> 89.96512272 | F145: =E145*(1+('Scenario Input'!$AG$15/100)) -> 92.27779481 | G145: =F145*(1+('Scenario Input'!$AJ$15/100)) -> 94.41566608 | H145: =G145*(1+('Scenario Input'!$AM$15/100)) -> 96.57353935 | I145: =H145*(1+('Scenario Input'!$AP$15/100)) -> 100.430998 | J145: =I145*(1+('Scenario Input'!$AS$15/100)) -> 104.442536
A146: 145 | B146: Cox Communications, Frontier | C146: 72.49 | D146: =C146*(1+('Scenario Input'!$AA$15/100)) -> 78.39079769 | E146: =D146*(1+('Scenario Input'!$AD$15/100)) -> 82.04266884 | F146: =E146*(1+('Scenario Input'!$AG$15/100)) -> 84.15168381 | G146: =F146*(1+('Scenario Input'!$AJ$15/100)) -> 86.10129116 | H146: =G146*(1+('Scenario Input'!$AM$15/100)) -> 88.06913911 | I146: =H146*(1+('Scenario Input'!$AP$15/100)) -> 91.58690457 | J146: =I146*(1+('Scenario Input'!$AS$15/100)) -> 95.24518094
A147: 146 | B147: Cruzio, AT&T California | C147: 104.45 | D147: =C147*(1+('Scenario Input'!$AA$15/100)) -> 112.9523909 | E147: =D147*(1+('Scenario Input'!$AD$15/100)) -> 118.2143297 | F147: =E147*(1+('Scenario Input'!$AG$15/100)) -> 121.2531849 | G147: =F147*(1+('Scenario Input'!$AJ$15/100)) -> 124.0623515 | H147: =G147*(1+('Scenario Input'!$AM$15/100)) -> 126.8978008 | I147: =H147*(1+('Scenario Input'!$AP$15/100)) -> 131.9665082 | J147: =I147*(1+('Scenario Input'!$AS$15/100)) -> 137.2376762
A148: 147 | B148: Cruzio, Frontier | C148: 97.45 | D148: =C148*(1+('Scenario Input'!$AA$15/100)) -> 105.3825801 | E148: =D148*(1+('Scenario Input'!$AD$15/100)) -> 110.2918758 | F148: =E148*(1+('Scenario Input'!$AG$15/100)) -> 113.1270739 | G148: =F148*(1+('Scenario Input'!$AJ$15/100)) -> 115.7479766 | H148: =G148*(1+('Scenario Input'!$AM$15/100)) -> 118.3934006 | I148: =H148*(1+('Scenario Input'!$AP$15/100)) -> 123.1224148 | J148: =I148*(1+('Scenario Input'!$AS$15/100)) -> 128.0403212
A149: 148 | B149: DigitalPath Inc., | C149: 61 | D149: =C149*(1+('Scenario Input'!$AA$15/100)) -> 65.96549399 | E149: =D149*(1+('Scenario Input'!$AD$15/100)) -> 69.03852668 | F149: =E149*(1+('Scenario Input'!$AG$15/100)) -> 70.81325303 | G149: =F149*(1+('Scenario Input'!$AJ$15/100)) -> 72.45383861 | H149: =G149*(1+('Scenario Input'!$AM$15/100)) -> 74.10977356 | I149: =H149*(1+('Scenario Input'!$AP$15/100)) -> 77.06995695 | J149: =I149*(1+('Scenario Input'!$AS$15/100)) -> 80.1483796
A150: 149 | B150: DigitalPath Inc., AT&T California | C150: 90.5 | D150: =C150*(1+('Scenario Input'!$AA$15/100)) -> 97.86683944 | E150: =D150*(1+('Scenario Input'!$AD$15/100)) -> 102.4260109 | F150: =E150*(1+('Scenario Input'!$AG$15/100)) -> 105.0590065 | G150: =F150*(1+('Scenario Input'!$AJ$15/100)) -> 107.4929901 | H150: =G150*(1+('Scenario Input'!$AM$15/100)) -> 109.949746 | I150: =H150*(1+('Scenario Input'!$AP$15/100)) -> 114.3414935 | J150: =I150*(1+('Scenario Input'!$AS$15/100)) -> 118.9086615
A151: 150 | B151: DigitalPath Inc., Ducor | C151: 86 | D151: =C151*(1+('Scenario Input'!$AA$15/100)) -> 93.0005325 | E151: =D151*(1+('Scenario Input'!$AD$15/100)) -> 97.33300483 | F151: =E151*(1+('Scenario Input'!$AG$15/100)) -> 99.83507804 | G151: =F151*(1+('Scenario Input'!$AJ$15/100)) -> 102.1480348 | H151: =G151*(1+('Scenario Input'!$AM$15/100)) -> 104.4826316 | I151: =H151*(1+('Scenario Input'!$AP$15/100)) -> 108.6560049 | J151: =I151*(1+('Scenario Input'!$AS$15/100)) -> 112.9960762
A152: 151 | B152: DigitalPath Inc., Frontier | C152: 83.5 | D152: =C152*(1+('Scenario Input'!$AA$15/100)) -> 90.29702865 | E152: =D152*(1+('Scenario Input'!$AD$15/100)) -> 94.50355702 | F152: =E152*(1+('Scenario Input'!$AG$15/100)) -> 96.93289554 | G152: =F152*(1+('Scenario Input'!$AJ$15/100)) -> 99.17861515 | H152: =G152*(1+('Scenario Input'!$AM$15/100)) -> 101.4453458 | I152: =H152*(1+('Scenario Input'!$AP$15/100)) -> 105.4974001 | J152: =I152*(1+('Scenario Input'!$AS$15/100)) -> 109.7113065
A153: 152 | B153: DigitalPath Inc., Frontier - Citizens | C153: 83.5 | D153: =C153*(1+('Scenario Input'!$AA$15/100)) -> 90.29702865 | E153: =D153*(1+('Scenario Input'!$AD$15/100)) -> 94.50355702 | F153: =E153*(1+('Scenario Input'!$AG$15/100)) -> 96.93289554 | G153: =F153*(1+('Scenario Input'!$AJ$15/100)) -> 99.17861515 | H153: =G153*(1+('Scenario Input'!$AM$15/100)) -> 101.4453458 | I153: =H153*(1+('Scenario Input'!$AP$15/100)) -> 105.4974001 | J153: =I153*(1+('Scenario Input'!$AS$15/100)) -> 109.7113065
A154: 153 | B154: DigitalPath Inc., TDS Telecom - HV | C154: 77.85 | D154: =C154*(1+('Scenario Input'!$AA$15/100)) -> 84.18710995 | E154: =D154*(1+('Scenario Input'!$AD$15/100)) -> 88.10900496 | F154: =E154*(1+('Scenario Input'!$AG$15/100)) -> 90.37396309 | G154: =F154*(1+('Scenario Input'!$AJ$15/100)) -> 92.46772682 | H154: =G154*(1+('Scenario Input'!$AM$15/100)) -> 94.58107987 | I154: =H154*(1+('Scenario Input'!$AP$15/100)) -> 98.35895325 | J154: =I154*(1+('Scenario Input'!$AS$15/100)) -> 102.2877271
A155: 154 | B155: Dillon Beach Internet Service LLC, | C155: 60 | D155: =C155*(1+('Scenario Input'!$AA$15/100)) -> 64.88409245 | E155: =D155*(1+('Scenario Input'!$AD$15/100)) -> 67.90674756 | F155: =E155*(1+('Scenario Input'!$AG$15/100)) -> 69.65238003 | G155: =F155*(1+('Scenario Input'!$AJ$15/100)) -> 71.26607076 | H155: =G155*(1+('Scenario Input'!$AM$15/100)) -> 72.89485924 | I155: =H155*(1+('Scenario Input'!$AP$15/100)) -> 75.80651503 | J155: =I155*(1+('Scenario Input'!$AS$15/100)) -> 78.83447174
A156: 155 | B156: Dillon Beach Internet Service LLC, AT&T California | C156: 89.5 | D156: =C156*(1+('Scenario Input'!$AA$15/100)) -> 96.7854379 | E156: =D156*(1+('Scenario Input'!$AD$15/100)) -> 101.2942318 | F156: =E156*(1+('Scenario Input'!$AG$15/100)) -> 103.8981335 | G156: =F156*(1+('Scenario Input'!$AJ$15/100)) -> 106.3052222 | H156: =G156*(1+('Scenario Input'!$AM$15/100)) -> 108.7348317 | I156: =H156*(1+('Scenario Input'!$AP$15/100)) -> 113.0780516 | J156: =I156*(1+('Scenario Input'!$AS$15/100)) -> 117.5947537
A157: 156 | B157: DM-Tech, | C157: 74.95 | D157: =C157*(1+('Scenario Input'!$AA$15/100)) -> 81.05104548 | E157: =D157*(1+('Scenario Input'!$AD$15/100)) -> 84.82684549 | F157: =E157*(1+('Scenario Input'!$AG$15/100)) -> 87.00743139 | G157: =F157*(1+('Scenario Input'!$AJ$15/100)) -> 89.02320006 | H157: =G157*(1+('Scenario Input'!$AM$15/100)) -> 91.05782834 | I157: =H157*(1+('Scenario Input'!$AP$15/100)) -> 94.69497169 | J157: =I157*(1+('Scenario Input'!$AS$15/100)) -> 98.47739428
A158: 157 | B158: DM-Tech, AT&T California | C158: 104.45 | D158: =C158*(1+('Scenario Input'!$AA$15/100)) -> 112.9523909 | E158: =D158*(1+('Scenario Input'!$AD$15/100)) -> 118.2143297 | F158: =E158*(1+('Scenario Input'!$AG$15/100)) -> 121.2531849 | G158: =F158*(1+('Scenario Input'!$AJ$15/100)) -> 124.0623515 | H158: =G158*(1+('Scenario Input'!$AM$15/100)) -> 126.8978008 | I158: =H158*(1+('Scenario Input'!$AP$15/100)) -> 131.9665082 | J158: =I158*(1+('Scenario Input'!$AS$15/100)) -> 137.2376762
A159: 158 | B159: DM-Tech, Ducor | C159: 99.95 | D159: =C159*(1+('Scenario Input'!$AA$15/100)) -> 108.086084 | E159: =D159*(1+('Scenario Input'!$AD$15/100)) -> 113.1213236 | F159: =E159*(1+('Scenario Input'!$AG$15/100)) -> 116.0292564 | G159: =F159*(1+('Scenario Input'!$AJ$15/100)) -> 118.7173962 | H159: =G159*(1+('Scenario Input'!$AM$15/100)) -> 121.4306864 | I159: =H159*(1+('Scenario Input'!$AP$15/100)) -> 126.2810196 | J159: =I159*(1+('Scenario Input'!$AS$15/100)) -> 131.3250908
A160: 159 | B160: Ducor Telephone Company, | C160: 89.95 | D160: =C160*(1+('Scenario Input'!$AA$15/100)) -> 97.27206859 | E160: =D160*(1+('Scenario Input'!$AD$15/100)) -> 101.8035324 | F160: =E160*(1+('Scenario Input'!$AG$15/100)) -> 104.4205264 | G160: =F160*(1+('Scenario Input'!$AJ$15/100)) -> 106.8397178 | H160: =G160*(1+('Scenario Input'!$AM$15/100)) -> 109.2815431 | I160: =H160*(1+('Scenario Input'!$AP$15/100)) -> 113.6466004 | J160: =I160*(1+('Scenario Input'!$AS$15/100)) -> 118.1860122
A161: 160 | B161: Ducor Telephone Company, AT&T California | C161: 119.45 | D161: =C161*(1+('Scenario Input'!$AA$15/100)) -> 129.173414 | E161: =D161*(1+('Scenario Input'!$AD$15/100)) -> 135.1910166 | F161: =E161*(1+('Scenario Input'!$AG$15/100)) -> 138.6662799 | G161: =F161*(1+('Scenario Input'!$AJ$15/100)) -> 141.8788692 | H161: =G161*(1+('Scenario Input'!$AM$15/100)) -> 145.1215156 | I161: =H161*(1+('Scenario Input'!$AP$15/100)) -> 150.918137 | J161: =I161*(1+('Scenario Input'!$AS$15/100)) -> 156.9462941
A162: 161 | B162: Ducor Telephone Company, Ducor | C162: 114.95 | D162: =C162*(1+('Scenario Input'!$AA$15/100)) -> 124.3071071 | E162: =D162*(1+('Scenario Input'!$AD$15/100)) -> 130.0980105 | F162: =E162*(1+('Scenario Input'!$AG$15/100)) -> 133.4423514 | G162: =F162*(1+('Scenario Input'!$AJ$15/100)) -> 136.5339139 | H162: =G162*(1+('Scenario Input'!$AM$15/100)) -> 139.6544012 | I162: =H162*(1+('Scenario Input'!$AP$15/100)) -> 145.2326484 | J162: =I162*(1+('Scenario Input'!$AS$15/100)) -> 151.0337088
A163: 162 | B163: eastsierra.net, Frontier | C163: 66 | D163: =C163*(1+('Scenario Input'!$AA$15/100)) -> 71.37250169 | E163: =D163*(1+('Scenario Input'!$AD$15/100)) -> 74.69742231 | F163: =E163*(1+('Scenario Input'!$AG$15/100)) -> 76.61761803 | G163: =F163*(1+('Scenario Input'!$AJ$15/100)) -> 78.39267784 | H163: =G163*(1+('Scenario Input'!$AM$15/100)) -> 80.18434517 | I163: =H163*(1+('Scenario Input'!$AP$15/100)) -> 83.38716653 | J163: =I163*(1+('Scenario Input'!$AS$15/100)) -> 86.71791891
A164: 163 | B164: Esparto Broadband Inc, AT&T California | C164: 77.5 | D164: =C164*(1+('Scenario Input'!$AA$15/100)) -> 83.80861941 | E164: =D164*(1+('Scenario Input'!$AD$15/100)) -> 87.71288226 | F164: =E164*(1+('Scenario Input'!$AG$15/100)) -> 89.96765754 | G164: =F164*(1+('Scenario Input'!$AJ$15/100)) -> 92.05200807 | H164: =G164*(1+('Scenario Input'!$AM$15/100)) -> 94.15585986 | I164: =H164*(1+('Scenario Input'!$AP$15/100)) -> 97.91674858 | J164: =I164*(1+('Scenario Input'!$AS$15/100)) -> 101.8278593
A165: 164 | B165: Esparto Broadband Inc, Frontier | C165: 70.5 | D165: =C165*(1+('Scenario Input'!$AA$15/100)) -> 76.23880862 | E165: =D165*(1+('Scenario Input'!$AD$15/100)) -> 79.79042838 | F165: =E165*(1+('Scenario Input'!$AG$15/100)) -> 81.84154654 | G165: =F165*(1+('Scenario Input'!$AJ$15/100)) -> 83.73763315 | H165: =G165*(1+('Scenario Input'!$AM$15/100)) -> 85.65145961 | I165: =H165*(1+('Scenario Input'!$AP$15/100)) -> 89.07265516 | J165: =I165*(1+('Scenario Input'!$AS$15/100)) -> 92.63050429
A166: 165 | B166: Esparto Broadband Inc, Frontier - Citizens | C166: 70.5 | D166: =C166*(1+('Scenario Input'!$AA$15/100)) -> 76.23880862 | E166: =D166*(1+('Scenario Input'!$AD$15/100)) -> 79.79042838 | F166: =E166*(1+('Scenario Input'!$AG$15/100)) -> 81.84154654 | G166: =F166*(1+('Scenario Input'!$AJ$15/100)) -> 83.73763315 | H166: =G166*(1+('Scenario Input'!$AM$15/100)) -> 85.65145961 | I166: =H166*(1+('Scenario Input'!$AP$15/100)) -> 89.07265516 | J166: =I166*(1+('Scenario Input'!$AS$15/100)) -> 92.63050429
A167: 166 | B167: Etheric Networks, Inc., | C167: 99 | D167: =C167*(1+('Scenario Input'!$AA$15/100)) -> 107.0587525 | E167: =D167*(1+('Scenario Input'!$AD$15/100)) -> 112.0461335 | F167: =E167*(1+('Scenario Input'!$AG$15/100)) -> 114.9264271 | G167: =F167*(1+('Scenario Input'!$AJ$15/100)) -> 117.5890168 | H167: =G167*(1+('Scenario Input'!$AM$15/100)) -> 120.2765178 | I167: =H167*(1+('Scenario Input'!$AP$15/100)) -> 125.0807498 | J167: =I167*(1+('Scenario Input'!$AS$15/100)) -> 130.0768784
A168: 167 | B168: Etheric Networks, Inc., AT&T California | C168: 128.5 | D168: =C168*(1+('Scenario Input'!$AA$15/100)) -> 138.960098 | E168: =D168*(1+('Scenario Input'!$AD$15/100)) -> 145.4336177 | F168: =E168*(1+('Scenario Input'!$AG$15/100)) -> 149.1721806 | G168: =F168*(1+('Scenario Input'!$AJ$15/100)) -> 152.6281682 | H168: =G168*(1+('Scenario Input'!$AM$15/100)) -> 156.1164902 | I168: =H168*(1+('Scenario Input'!$AP$15/100)) -> 162.3522864 | J168: =I168*(1+('Scenario Input'!$AS$15/100)) -> 168.8371603
A169: 168 | B169: Etheric Networks, Inc., Frontier | C169: 121.5 | D169: =C169*(1+('Scenario Input'!$AA$15/100)) -> 131.3902872 | E169: =D169*(1+('Scenario Input'!$AD$15/100)) -> 137.5111638 | F169: =E169*(1+('Scenario Input'!$AG$15/100)) -> 141.0460696 | G169: =F169*(1+('Scenario Input'!$AJ$15/100)) -> 144.3137933 | H169: =G169*(1+('Scenario Input'!$AM$15/100)) -> 147.61209 | I169: =H169*(1+('Scenario Input'!$AP$15/100)) -> 153.5081929 | J169: =I169*(1+('Scenario Input'!$AS$15/100)) -> 159.6398053
A170: 169 | B170: FlashByte Digital, LLC, | C170: 99 | D170: =C170*(1+('Scenario Input'!$AA$15/100)) -> 107.0587525 | E170: =D170*(1+('Scenario Input'!$AD$15/100)) -> 112.0461335 | F170: =E170*(1+('Scenario Input'!$AG$15/100)) -> 114.9264271 | G170: =F170*(1+('Scenario Input'!$AJ$15/100)) -> 117.5890168 | H170: =G170*(1+('Scenario Input'!$AM$15/100)) -> 120.2765178 | I170: =H170*(1+('Scenario Input'!$AP$15/100)) -> 125.0807498 | J170: =I170*(1+('Scenario Input'!$AS$15/100)) -> 130.0768784
A171: 170 | B171: FlashByte Digital, LLC, Frontier | C171: 121.5 | D171: =C171*(1+('Scenario Input'!$AA$15/100)) -> 131.3902872 | E171: =D171*(1+('Scenario Input'!$AD$15/100)) -> 137.5111638 | F171: =E171*(1+('Scenario Input'!$AG$15/100)) -> 141.0460696 | G171: =F171*(1+('Scenario Input'!$AJ$15/100)) -> 144.3137933 | H171: =G171*(1+('Scenario Input'!$AM$15/100)) -> 147.61209 | I171: =H171*(1+('Scenario Input'!$AP$15/100)) -> 153.5081929 | J171: =I171*(1+('Scenario Input'!$AS$15/100)) -> 159.6398053
A172: 171 | B172: Fort Mojave Telecommunications Inc, 50, Frontier - Citizens | C172: 92.45 | D172: =C172*(1+('Scenario Input'!$AA$15/100)) -> 99.97557244 | E172: =D172*(1+('Scenario Input'!$AD$15/100)) -> 104.6329802 | F172: =E172*(1+('Scenario Input'!$AG$15/100)) -> 107.3227089 | G172: =F172*(1+('Scenario Input'!$AJ$15/100)) -> 109.8091374 | H172: =G172*(1+('Scenario Input'!$AM$15/100)) -> 112.318829 | I172: =H172*(1+('Scenario Input'!$AP$15/100)) -> 116.8052052 | J172: =I172*(1+('Scenario Input'!$AS$15/100)) -> 121.4707819
A173: 172 | B173: Fort Mojave Telecommunications Inc, 70, Frontier - Citizens | C173: 117.45 | D173: =C173*(1+('Scenario Input'!$AA$15/100)) -> 127.010611 | E173: =D173*(1+('Scenario Input'!$AD$15/100)) -> 132.9274583 | F173: =E173*(1+('Scenario Input'!$AG$15/100)) -> 136.3445339 | G173: =F173*(1+('Scenario Input'!$AJ$15/100)) -> 139.5033335 | H173: =G173*(1+('Scenario Input'!$AM$15/100)) -> 142.691687 | I173: =H173*(1+('Scenario Input'!$AP$15/100)) -> 148.3912532 | J173: =I173*(1+('Scenario Input'!$AS$15/100)) -> 154.3184784
A174: 173 | B174: FractalVision, AT&T California | C174: 204.5 | D174: =C174*(1+('Scenario Input'!$AA$15/100)) -> 221.1466151 | E174: =D174*(1+('Scenario Input'!$AD$15/100)) -> 231.4488313 | F174: =E174*(1+('Scenario Input'!$AG$15/100)) -> 237.3985286 | G174: =F174*(1+('Scenario Input'!$AJ$15/100)) -> 242.8985245 | H174: =G174*(1+('Scenario Input'!$AM$15/100)) -> 248.4499786 | I174: =H174*(1+('Scenario Input'!$AP$15/100)) -> 258.3738721 | J174: =I174*(1+('Scenario Input'!$AS$15/100)) -> 268.6941578
